Workbook

Sheet Hoja1
M13: INDICADORES EPIDEMIOLÓGICOS | N13: DE SALUD 2015

Sheet INICIO
M13: INDICADORES EPIDEMIOLÓGICOS | N13: DE SALUD 2015
J26: NOTA: Los indicadores que tengan el "#", son aquellos que se calculan mensualmente

Sheet Fichaad
B2: FICHA TECNICA
B4: INDICADOR DE RESULTADO
B5: NOMBRE DEL INDICADOR: | C5: Proporcion de madres adolescentes
B6: OBJETIVO DEL INDICADOR: | C6: Identificar la proporcion de menores entre 10 y 19 años con parto atendido por EPS SURA
B7: FECHA ACTUALIZACION FICHA TECNICA | C7: 26-10-2020
B8: RESPONSABLE PUBLICACION | C8: Salud Publica
B9: FÓRMULA DEL INDICADOR:
B10: REFERENTE PAIS | C10: 17.4% (ENDS año 2015) informacion disponible en https://www.minsalud.gov.co/sites/rid/Lists/BibliotecaDigital/RIDE/VS/ED/GCFI/guia-metodologica-oniea-2018.pdf
B11: META EPS SURA (menor o igual al resultado registrado en el año inmediatamente anterior) | C11: 0.09
B12: FUENTE DE LOS DATOS | C12: NUMERADOR: Detalle Eventos General - Hospitalarios/ partos en mujeres entre 10 y 19 años
C13: DENOMINADOR: Teradata/ Detalle Eventos General - Hospitalarios/ total de partos con producto vivo o muerto
B14: PARÁMETROS DE EJECUCIÓN: | C14: Para la busqueda de la informacion del denominador se utilizaran los siguientes codigos suracups: 735301 ASISTENCIA DEL PARTO CON O SIN EPISIORRAFIA O PERINEORRAFIA 735930 ASISTENCIA DEL PARTO ESPONTANEO GEMELAR O MULTIPLE 735910 ASISTENCIA DEL PARTO ESPONTANEO NORMAL (EXPULSIVO) 735931 ASISTENCIA DEL PARTO INTERVENIDO GEMELAR O MULTIPLE 735300 ASISTENCIA DEL PARTO NORMAL CON EPISIORRAFIA Y/O PERINEORRAFIA SOD 735980 OTRA ASISTENCIA MANUAL DEL PARTO ESPONTANEO 721003 PARTO INSTRUMENTADO 721001 PARTO INSTRUMENTADO CON FORCEPS O ESPATULAS DE VELASCO BAJOS 721002 PARTO INSTRUMENTADO CON FORCEPS O ESPATULAS DE VELASCO MEDIOS 732201 PARTO INTERVENIDO CON MANIOBRA DE VERSION FETAL INTERNA Y COMBINADA CON EXTRACCION 740002 CESAREA CORPORAL 740200 CESAREA CORPORAL SOD 740003 CESAREA EXTRAPERITONEAL 740001 CESAREA SEGMENTARIA TRANSPERITONEAL 740100 CESAREA SEGMENTARIA TRANSPERITONEAL 12110 OPERACION CESAREA. SEGMENTARIA TRANSVERSAL O CORPORAL 725100 EXTRACCION (TOTAL O PARCIAL) INSTRUMENTADA EN PODALICA 721001 PARTO INSTRUMENTADO CON FORCEPS O ESPATULAS DE VELASCO BAJOS 721002 PARTO INSTRUMENTADO CON FORCEPS O ESPATULAS DE VELASCO MEDIOS
B15: PERIODICIDAD PUBLICACION DEL INDICADOR: | C15: TRIMESTRAL
B16: OBSERVACIONES | C16: Para el seguimiento de este indicador no se tendran en cuenta datos de las IPS Salud Sura y Salud en casa ya que no se cuenta con informacion para las usuarias de estas IPS en el pais
B17: FECHA DE CORTE DE EXTRACCIÓN DE LOS DATOS: | C17: El dia 18 del mes subsiguiente
B18: RUTA DONDE SE PUBLICARÁN LOS RESULTADOS: | C18: https://www.epssura.com/index.php?option=com_sura_coorcient&opcion=secciones
B19: SEGUIMIENTO DESDE SALUD PUBLICA | C19: Envio trimestral del top 5 de IPS de cada regional que presentan desviacion del indicador para que se definan acciones a implementar en conjunto con las IPS para impactar en el resultado. Desde Central se hara seguimiento al cambio en la tendencia del indicador de estas IPS en los trimestres posteriores a la implementacion de acciones.

Sheet adolescentes
A1: 1 | B1: =+VLOOKUP($A$1,Parametros!$AC$3:$AD$6,2,0) -> RESULTADO_ANUAL_ANTIOQUIA_2019: 8.0% RESULTADO_ANUAL_EPS SURA_2019: 6.82%
C3: INDICADORES EPIDEMIOLÓGICOS DE CONTEXTO "PROPORCIÓN DE MADRES ADOLESCENTES ENTRE 10-19 AÑOS DE EDAD " -2020
C4: =B1 -> RESULTADO_ANUAL_ANTIOQUIA_2019: 8.0% RESULTADO_ANUAL_EPS SURA_2019: 6.82%
C5: REGIONAL ANTIOQUIA | D5: I trimestre-2020 | G5: II trmestre-2020 | J5: III Trimestre-2020 | M5: IV trimestre-2020 | P5: MADRES ADOLESCENTES | T5: Total embarazos adolescentes año 2020 | U5: I trimestre-2020 | X5: II trmestre-2020 | AA5: III Trimestre-2020 | AD5: IV trimestre-2020 | AG5: NUMERO DE NACIMIENTOS 2020 | AK5: TOTAL NACIMIENTOS AÑO 2020 | AL5: PROPORCIÓN
C6: IPS | D6: Enero | E6: Febrero | F6: Marzo | G6: Abril | H6: Mayo | I6: Junio | J6: Julio | K6: Agosto | L6: Septiembre | M6: Octubre | N6: Noviembre | O6: Diciembre | P6: I TRIM | Q6: II TRIM | R6: III TRIM | S6: IV TRIM | U6: Enero | V6: Febrero | W6: Marzo | X6: Abril | Y6: Mayo | Z6: Junio | AA6: Julio | AB6: Agosto | AC6: Septiembre | AD6: Octubre | AE6: Noviembre | AF6: Diciembre | AG6: I TRIM | AH6: II TRIM | AI6: III TRIM | AJ6: IV TRIM | AL6: PORCENTAJE I SEM | AM6: I TRIM | AN6: II TRIM | AO6: PORCERNTAJE II SEM | AP6: III TRIM | AQ6: IV TRIM | AR6: PORCENTAJE ANUAL 2020 | AS6: año 2014 | AT6: razon de cambio trimestral | AU6: ponderado año 2014
A7: 112 | B7: APARTADO | C7: COMFAMA APARTADO | D7: 4 | E7: 8 | F7: 3 | G7: 3 | H7: 2 | I7: 4 | J7: 2 | K7: 6 | L7: 5 | M7: 8 | N7: 3 | O7: 3 | P7: =SUM(D7:F7) -> 15 | Q7: =SUM(G7:I7) -> 9 | R7: =SUM(J7:L7) -> 13 | S7: =SUM(M7:O7) -> 14 | T7: =SUM(P7:S7) -> 51 | U7: 24 | V7: 21 | W7: 27 | X7: 25 | Y7: 21 | Z7: 32 | AA7: 34 | AB7: 28 | AC7: 35 | AD7: 39 | AE7: 29 | AF7: 33 | AG7: =SUM(U7:W7) -> 72 | AH7: =SUM(X7:Z7) -> 78 | AI7: =SUM(AA7:AC7) -> 97 | AJ7: =+AD7+AE7+AF7 -> 101 | AK7: =SUM(AG7:AJ7) -> 348 | AL7: =IF(ISERROR(SUM(P7:Q7)/SUM(AG7:AH7)),0,SUM(P7:Q7)/SUM(AG7:AH7)) -> 0.16 | AM7: =IF(ISERROR(P7/AG7),0,P7/AG7) -> 0.2083333333 | AN7: =IF(ISERROR(Q7/AH7),0,Q7/AH7) -> 0.1153846154 | AO7: =IF(ISERROR(SUM(R7:S7)/SUM(AI7:AJ7)),0,SUM(R7:S7)/SUM(AI7:AJ7)) -> 0.1363636364 | AP7: =IF(ISERROR(R7/AI7),0,R7/AI7) -> 0.1340206186 | AQ7: =IF(ISERROR(S7/AJ7),0,S7/AJ7) -> 0.1386138614 | AR7: =IF(ISERROR(T7/AK7),0,T7/AK7) -> 0.1465517241 | AT7: =VLOOKUP(A7,MortalidaPerinatal!A$8:C$56,3,0) -> COMFAMA APARTADO | AW7: =+AV7=AK7 -> FALSE
A8: 2691 | B8: APARTADO | C8: COMFAMA CAREPA | D8: 2 | E8: 2 | F8: 1 | G8: 0 | H8: 1 | I8: 2 | J8: 1 | K8: 2 | L8: 4 | M8: 4 | N8: 5 | O8: 4 | P8: =SUM(D8:F8) -> 5 | Q8: =SUM(G8:I8) -> 3 | R8: =SUM(J8:L8) -> 7 | S8: =SUM(M8:O8) -> 13 | T8: =SUM(P8:S8) -> 28 | U8: 14 | V8: 6 | W8: 7 | X8: 8 | Y8: 12 | Z8: 10 | AA8: 11 | AB8: 7 | AC8: 16 | AD8: 21 | AE8: 17 | AF8: 18 | AG8: =SUM(U8:W8) -> 27 | AH8: 30 | AI8: 34 | AJ8: 56 | AK8: =SUM(AG8:AJ8) -> 147 | AL8: =IF(ISERROR(SUM(P8:Q8)/SUM(AG8:AH8)),0,SUM(P8:Q8)/SUM(AG8:AH8)) -> 0.1403508772 | AM8: =IF(ISERROR(P8/AG8),0,P8/AG8) -> 0.1851851852 | AN8: =IF(ISERROR(Q8/AH8),0,Q8/AH8) -> 0.1 | AO8: 0.2222222222 | AP8: =IF(ISERROR(R8/AI8),0,R8/AI8) -> 0.2058823529 | AQ8: =IF(ISERROR(S8/AJ8),0,S8/AJ8) -> 0.2321428571 | AR8: =IF(ISERROR(T8/AK8),0,T8/AK8) -> 0.1904761905 | AT8: =VLOOKUP(A8,MortalidaPerinatal!A$8:C$56,3,0) -> COMFAMA CAREPA | AW8: FALSE
A9: 2681 | B9: APARTADO | C9: COMFAMA CHIGORODO | D9: 3 | E9: 1 | F9: 2 | G9: 3 | H9: 2 | I9: 3 | J9: 2 | K9: 2 | L9: 2 | M9: 4 | N9: 0 | O9: 1 | P9: =SUM(D9:F9) -> 6 | Q9: 8 | R9: 6 | S9: 5 | T9: 25 | U9: 12 | V9: 14 | W9: 15 | X9: 14 | Y9: 14 | Z9: 12 | AA9: 10 | AB9: 13 | AC9: 22 | AD9: 17 | AE9: 8 | AF9: 11 | AG9: 41 | AH9: 40 | AI9: 45 | AJ9: 36 | AK9: 162 | AL9: 0.1728395062 | AM9: 0.1463414634 | AN9: 0.2 | AO9: 0.1358024691 | AP9: 0.1333333333 | AQ9: 0.1388888889 | AR9: 0.1543209877 | AT9: =VLOOKUP(A9,MortalidaPerinatal!A$8:C$56,3,0) -> COMFAMA CHIGORODO | AW9: FALSE
A10: 2690 | B10: APARTADO | C10: COMFAMA TURBO | D10: 6 | E10: 5 | F10: 3 | G10: 4 | H10: 4 | I10: 4 | J10: 3 | K10: 3 | L10: 2 | M10: 8 | N10: 3 | O10: 2 | P10: =SUM(D10:F10) -> 14 | Q10: 12 | R10: 8 | S10: 13 | T10: 47 | U10: 27 | V10: 23 | W10: 18 | X10: 12 | Y10: 19 | Z10: 20 | AA10: 27 | AB10: 21 | AC10: 18 | AD10: 33 | AE10: 15 | AF10: 13 | AG10: 68 | AH10: 51 | AI10: 66 | AJ10: 61 | AK10: 246 | AL10: 0.218487395 | AM10: 0.2058823529 | AN10: 0.2352941176 | AO10: 0.1653543307 | AP10: 0.1212121212 | AQ10: 0.2131147541 | AR10: 0.1910569106 | AT10: =VLOOKUP(A10,MortalidaPerinatal!A$8:C$56,3,0) -> COMFAMA TURBO | AW10: FALSE
A11: 2205 | B11: BARBOSA | C11: PROSALCO BARBOSA | D11: 0 | E11: 0 | F11: 0 | G11: 0 | H11: 0 | I11: 0 | J11: 1 | K11: 1 | L11: 1 | M11: 1 | N11: 0 | O11: 0 | P11: =SUM(D11:F11) -> 0 | Q11: 0 | R11: 3 | S11: 1 | T11: 4 | U11: 11 | V11: 4 | W11: 4 | X11: 9 | Y11: 6 | Z11: 9 | AA11: 7 | AB11: 12 | AC11: 9 | AD11: 9 | AE11: 3 | AF11: 9 | AG11: 19 | AH11: 24 | AI11: 28 | AJ11: 21 | AK11: 92 | AL11: 0 | AM11: 0 | AN11: 0 | AO11: 0.08163265306 | AP11: 0.1071428571 | AQ11: 0.04761904762 | AR11: 0.04347826087 | AT11: =VLOOKUP(A11,MortalidaPerinatal!A$8:C$56,3,0) -> PROSALCO BARBOSA | AW11: FALSE
A12: 37 | B12: BELLO | C12: COMFAMA BELLO | D12: 2 | E12: 12 | F12: 11 | G12: 4 | H12: 11 | I12: 7 | J12: 8 | K12: 12 | L12: 11 | M12: 7 | N12: 13 | O12: 6 | P12: 25 | Q12: 22 | R12: 31 | S12: 26 | T12: 104 | U12: 98 | V12: 127 | W12: 127 | X12: 121 | Y12: 143 | Z12: 107 | AA12: 115 | AB12: 145 | AC12: 163 | AD12: 129 | AE12: 116 | AF12: 81 | AG12: 352 | AH12: 371 | AI12: 423 | AJ12: 326 | AK12: 1472 | AL12: 0.06500691563 | AM12: 0.07102272727 | AN12: 0.05929919137 | AO12: 0.07610146862 | AP12: 0.07328605201 | AQ12: 0.07975460123 | AR12: 0.07065217391 | AT12: =VLOOKUP(A12,MortalidaPerinatal!A$8:C$56,3,0) -> COMFAMA BELLO | AW12: FALSE
A13: 2702 | B13: BELLO | C13: COOMSOCIAL - BELLO | D13: 4 | E13: 0 | F13: 1 | G13: 0 | H13: 2 | I13: 0 | J13: 2 | K13: 2 | L13: 1 | M13: 1 | N13: 1 | O13: 0 | P13: 5 | Q13: 2 | R13: 5 | S13: 2 | T13: 14 | U13: 29 | V13: 22 | W13: 23 | X13: 18 | Y13: 25 | Z13: 21 | AA13: 24 | AB13: 19 | AC13: 28 | AD13: 32 | AE13: 26 | AF13: 27 | AG13: 74 | AH13: 64 | AI13: 71 | AJ13: 85 | AK13: 294 | AL13: 0.05072463768 | AM13: 0.06756756757 | AN13: 0.03125 | AO13: 0.04487179487 | AP13: 0.07042253521 | AQ13: 0.02352941176 | AR13: 0.04761904762 | AT13: =VLOOKUP(A13,MortalidaPerinatal!A$8:C$56,3,0) -> COOMSOCIAL - BELLO | AW13: FALSE
A14: 34 | B14: CALDAS | C14: COMFAMA CALDAS | D14: 5 | E14: 3 | F14: 5 | G14: 5 | H14: 5 | I14: 2 | J14: 3 | K14: 3 | L14: 3 | M14: 1 | N14: 7 | O14: 1 | P14: 13 | Q14: 12 | R14: 9 | S14: 9 | T14: 43 | U14: 41 | V14: 43 | W14: 38 | X14: 34 | Y14: 40 | Z14: 29 | AA14: 48 | AB14: 46 | AC14: 33 | AD14: 48 | AE14: 48 | AF14: 22 | AG14: 122 | AH14: 103 | AI14: 127 | AJ14: 118 | AK14: 470 | AL14: 0.1111111111 | AM14: 0.106557377 | AN14: 0.1165048544 | AO14: 0.07346938776 | AP14: 0.07086614173 | AQ14: 0.07627118644 | AR14: 0.0914893617 | AT14: =VLOOKUP(A14,MortalidaPerinatal!A$8:C$56,3,0) -> COMFAMA CALDAS | AW14: FALSE
A15: 19 | B15: DON MATIAS | C15: PROSALCO DON MATIAS | D15: 0 | E15: 2 | F15: 0 | G15: 1 | H15: 3 | I15: 0 | J15: 2 | K15: 1 | L15: 0 | M15: 0 | N15: 1 | O15: 0 | P15: 2 | Q15: 4 | R15: 3 | S15: 1 | T15: 10 | U15: 9 | V15: 7 | W15: 8 | X15: 6 | Y15: 8 | Z15: 7 | AA15: 8 | AB15: 8 | AC15: 14 | AD15: 8 | AE15: 9 | AF15: 5 | AG15: 24 | AH15: 21 | AI15: 30 | AJ15: 22 | AK15: 97 | AL15: 0.1333333333 | AM15: 0.08333333333 | AN15: 0.1904761905 | AO15: 0.07692307692 | AP15: 0.1 | AQ15: 0.04545454545 | AR15: 0.1030927835 | AT15: =VLOOKUP(A15,MortalidaPerinatal!A$8:C$56,3,0) -> PROSALCO DON MATIAS | AW15: FALSE
A16: 27 | B16: ENVIGADO | C16: COMFAMA ENVIGADO | D16: 2 | E16: 0 | F16: 1 | G16: 1 | H16: 3 | I16: 2 | J16: 0 | K16: 2 | L16: 0 | M16: 0 | N16: 2 | O16: 0 | P16: 3 | Q16: 6 | R16: 2 | S16: 2 | T16: 13 | U16: 50 | V16: 36 | W16: 49 | X16: 41 | Y16: 43 | Z16: 43 | AA16: 41 | AB16: 44 | AC16: 32 | AD16: 34 | AE16: 37 | AF16: 32 | AG16: 135 | AH16: 127 | AI16: 117 | AJ16: 103 | AK16: 482 | AL16: 0.03435114504 | AM16: 0.02222222222 | AN16: 0.04724409449 | AO16: 0.01818181818 | AP16: 0.01709401709 | AQ16: 0.01941747573 | AR16: 0.02697095436 | AT16: =VLOOKUP(A16,MortalidaPerinatal!A$8:C$56,3,0) -> COMFAMA ENVIGADO | AW16: FALSE
A17: 32 | B17: GIRARDOTA | C17: COMFAMA GIRARDOTA | D17: 3 | E17: 2 | F17: 0 | G17: 2 | H17: 0 | I17: 1 | J17: 0 | K17: 1 | L17: 1 | M17: 0 | N17: 4 | O17: 1 | P17: 5 | Q17: 3 | R17: 2 | S17: 5 | T17: 15 | U17: 25 | V17: 19 | W17: 11 | X17: 16 | Y17: 14 | Z17: 17 | AA17: 14 | AB17: 18 | AC17: 21 | AD17: 14 | AE17: 21 | AF17: 12 | AG17: 55 | AH17: 47 | AI17: 53 | AJ17: 47 | AK17: 202 | AL17: 0.07843137255 | AM17: 0.09090909091 | AN17: 0.06382978723 | AO17: 0.07 | AP17: 0.03773584906 | AQ17: 0.1063829787 | AR17: 0.07425742574 | AT17: =VLOOKUP(A17,MortalidaPerinatal!A$8:C$56,3,0) -> COMFAMA GIRARDOTA | AW17: FALSE
A18: 2431 | B18: GUARNE | C18: PROSALCO GUARNE | D18: 1 | E18: 0 | F18: 1 | G18: 0 | H18: 1 | I18: 0 | J18: 0 | K18: 0 | L18: 1 | M18: 0 | N18: 1 | O18: 0 | P18: 2 | Q18: 1 | R18: 1 | S18: 1 | T18: 5 | U18: 13 | V18: 3 | W18: 13 | X18: 7 | Y18: 10 | Z18: 14 | AA18: 9 | AB18: 11 | AC18: 14 | AD18: 6 | AE18: 10 | AF18: 3 | AG18: 29 | AH18: 31 | AI18: 34 | AJ18: 19 | AK18: 113 | AL18: 0.05 | AM18: 0.06896551724 | AN18: 0.03225806452 | AO18: 0.03773584906 | AP18: 0.02941176471 | AQ18: 0.05263157895 | AR18: 0.04424778761 | AT18: =VLOOKUP(A18,MortalidaPerinatal!A$8:C$56,3,0) -> PROSALCO GUARNE | AW18: FALSE
A19: 26 | B19: ITAGUI | C19: COMFAMA ITAGUI | D19: 3 | E19: 5 | F19: 1 | G19: 7 | H19: 2 | I19: 3 | J19: 5 | K19: 3 | L19: 0 | M19: 5 | N19: 5 | O19: 7 | P19: =SUM(D19:F19) -> 9 | Q19: =SUM(G19:I19) -> 12 | R19: =SUM(J19:L19) -> 8 | S19: =SUM(M19:O19) -> 17 | T19: =SUM(P19:S19) -> 46 | U19: 50 | V19: 57 | W19: 69 | X19: 67 | Y19: 61 | Z19: 57 | AA19: 60 | AB19: 60 | AC19: 78 | AD19: 76 | AE19: 59 | AF19: 49 | AG19: 176 | AH19: =SUM(X19:Z19) -> 185 | AI19: =SUM(AA19:AC19) -> 198 | AJ19: =+AD19+AE19+AF19 -> 184 | AK19: =SUM(AG19:AJ19) -> 743 | AL19: 0.05817174515 | AM19: 0.05113636364 | AN19: 0.06486486486 | AO19: 0.06544502618 | AP19: 0.0404040404 | AQ19: 0.09239130435 | AR19: 0.06191117093 | AT19: =VLOOKUP(A19,MortalidaPerinatal!A$8:C$56,3,0) -> COMFAMA ITAGUI | AW19: FALSE
A20: 6 | B20: ITAGUI | C20: HUMANITAS - ITAGUI | D20: 1 | E20: 3 | F20: 3 | G20: 2 | H20: 4 | I20: 1 | J20: 2 | K20: 2 | L20: 6 | M20: 6 | N20: 2 | O20: 2 | P20: 7 | Q20: 7 | R20: 10 | S20: 10 | T20: 34 | U20: 48 | V20: 39 | W20: 43 | X20: 43 | Y20: 37 | Z20: 36 | AA20: 42 | AB20: 42 | AC20: 58 | AD20: 40 | AE20: 42 | AF20: 47 | AG20: 130 | AH20: 116 | AI20: 142 | AJ20: 129 | AK20: 517 | AL20: 0.05691056911 | AM20: 0.05384615385 | AN20: 0.06034482759 | AO20: 0.07380073801 | AP20: 0.07042253521 | AQ20: 0.07751937984 | AR20: 0.06576402321 | AT20: =VLOOKUP(A20,MortalidaPerinatal!A$8:C$56,3,0) -> HUMANITAS - ITAGUI | AW20: FALSE
A21: 33 | B21: LA CEJA | C21: COMFAMA LA CEJA | D21: 3 | E21: 6 | F21: 3 | G21: 2 | H21: 2 | I21: 2 | J21: 2 | K21: 0 | L21: 6 | M21: 3 | N21: 3 | O21: 0 | P21: 12 | Q21: 6 | R21: 8 | S21: 6 | T21: 32 | U21: 32 | V21: 28 | W21: 23 | X21: 20 | Y21: 33 | Z21: 32 | AA21: 35 | AB21: 34 | AC21: 36 | AD21: 30 | AE21: 25 | AF21: 18 | AG21: 83 | AH21: 85 | AI21: 105 | AJ21: 73 | AK21: 346 | AL21: 0.1071428571 | AM21: 0.1445783133 | AN21: 0.07058823529 | AO21: 0.07865168539 | AP21: 0.07619047619 | AQ21: 0.08219178082 | AR21: 0.09248554913 | AT21: =VLOOKUP(A21,MortalidaPerinatal!A$8:C$56,3,0) -> COMFAMA LA CEJA | AW21: FALSE
A22: 2424 | B22: MARINILLA | C22: PROSALCO MARINILLA | D22: 1 | E22: 1 | F22: 1 | G22: 4 | H22: 1 | I22: 1 | J22: 1 | K22: 2 | L22: 1 | M22: 3 | N22: 1 | O22: 0 | P22: 3 | Q22: 6 | R22: 4 | S22: 4 | T22: 17 | U22: 15 | V22: 17 | W22: 21 | X22: 21 | Y22: 22 | Z22: 9 | AA22: 13 | AB22: 29 | AC22: 22 | AD22: 28 | AE22: 18 | AF22: 10 | AG22: 53 | AH22: 52 | AI22: 64 | AJ22: 56 | AK22: 225 | AL22: 0.08571428571 | AM22: 0.05660377358 | AN22: 0.1153846154 | AO22: 0.06666666667 | AP22: 0.0625 | AQ22: 0.07142857143 | AR22: 0.07555555556 | AT22: =VLOOKUP(A22,MortalidaPerinatal!A$8:C$56,3,0) -> PROSALCO MARINILLA | AW22: FALSE
A23: 31 | B23: MEDELLIN | C23: COMFAMA ARANJUEZ | D23: 6 | E23: 5 | F23: 3 | G23: 9 | H23: 5 | I23: 6 | J23: 6 | K23: 5 | L23: 10 | M23: 5 | N23: 4 | O23: 7 | P23: 14 | Q23: 20 | R23: 21 | S23: 16 | T23: 71 | U23: 73 | V23: 45 | W23: 66 | X23: 74 | Y23: 71 | Z23: 52 | AA23: 71 | AB23: 64 | AC23: 67 | AD23: 74 | AE23: 47 | AF23: 55 | AG23: 184 | AH23: 197 | AI23: 202 | AJ23: 176 | AK23: 759 | AL23: 0.08923884514 | AM23: 0.07608695652 | AN23: 0.1015228426 | AO23: 0.09788359788 | AP23: 0.103960396 | AQ23: 0.09090909091 | AR23: 0.09354413702 | AT23: =VLOOKUP(A23,MortalidaPerinatal!A$8:C$56,3,0) -> COMFAMA ARANJUEZ | AW23: FALSE
A24: 2679 | B24: COPACABANA | C24: COMFAMA COPACABANA | D24: 2 | E24: 1 | F24: 3 | G24: 1 | H24: 1 | I24: 0 | J24: 0 | K24: 2 | L24: 1 | M24: 3 | N24: 1 | O24: 3 | P24: 6 | Q24: 2 | R24: 3 | S24: 7 | T24: 18 | U24: 21 | V24: 14 | W24: 21 | X24: 25 | Y24: 24 | Z24: 25 | AA24: 17 | AB24: 23 | AC24: 19 | AD24: 27 | AE24: 20 | AF24: 15 | AG24: 56 | AH24: 74 | AI24: 59 | AJ24: 62 | AK24: 251 | AL24: 0.06153846154 | AM24: 0.1071428571 | AN24: 0.02702702703 | AO24: 0.0826446281 | AP24: 0.05084745763 | AQ24: 0.1129032258 | AR24: 0.07171314741 | AT24: =VLOOKUP(A24,MortalidaPerinatal!A$8:C$56,3,0) -> COMFAMA COPACABANA | AW24: FALSE
A25: 2670 | B25: MEDELLIN | C25: COMFAMA LA 80 | D25: 0 | E25: 2 | F25: 3 | G25: 2 | H25: 0 | I25: 3 | J25: 2 | K25: 2 | L25: 5 | M25: 2 | N25: 2 | O25: 0 | P25: 5 | Q25: 5 | R25: 9 | S25: 4 | T25: 23 | U25: 26 | V25: 25 | W25: 30 | X25: 18 | Y25: 15 | Z25: 22 | AA25: 36 | AB25: 34 | AC25: 28 | AD25: 30 | AE25: 24 | AF25: 16 | AG25: 81 | AH25: 55 | AI25: 98 | AJ25: 70 | AK25: 304 | AL25: 0.07352941176 | AM25: 0.06172839506 | AN25: 0.09090909091 | AO25: 0.07738095238 | AP25: 0.09183673469 | AQ25: 0.05714285714 | AR25: 0.07565789474 | AT25: =VLOOKUP(A25,MortalidaPerinatal!A$8:C$56,3,0) -> COMFAMA LA 80 | AW25: FALSE
A26: 30 | B26: MEDELLIN | C26: COMFAMA MANRIQUE | D26: 3 | E26: 6 | F26: 4 | G26: 2 | H26: 5 | I26: 7 | J26: 3 | K26: 1 | L26: 2 | M26: 3 | N26: 6 | O26: 4 | P26: 13 | Q26: 14 | R26: 6 | S26: 13 | T26: 46 | U26: 48 | V26: 50 | W26: 61 | X26: 44 | Y26: 47 | Z26: 70 | AA26: 52 | AB26: 53 | AC26: 54 | AD26: 56 | AE26: 61 | AF26: 48 | AG26: =SUM(U26:W26) -> 159 | AH26: 161 | AI26: 159 | AJ26: 165 | AK26: 644 | AL26: 0.084375 | AM26: 0.08176100629 | AN26: 0.08695652174 | AO26: 0.05864197531 | AP26: 0.03773584906 | AQ26: 0.07878787879 | AR26: 0.07142857143 | AT26: =VLOOKUP(A26,MortalidaPerinatal!A$8:C$56,3,0) -> COMFAMA MANRIQUE | AW26: FALSE
A27: 29 | B27: MEDELLIN | C27: COMFAMA SAN IGNACIO | D27: 6 | E27: 13 | F27: 5 | G27: 7 | H27: 7 | I27: 7 | J27: 3 | K27: 11 | L27: 7 | M27: 10 | N27: 3 | O27: 9 | P27: 24 | Q27: 21 | R27: 21 | S27: 22 | T27: 88 | U27: 91 | V27: 97 | W27: 105 | X27: 93 | Y27: 87 | Z27: 99 | AA27: 116 | AB27: 113 | AC27: 94 | AD27: 96 | AE27: 69 | AF27: 82 | AG27: 293 | AH27: 279 | AI27: 323 | AJ27: 247 | AK27: 1142 | AL27: 0.07867132867 | AM27: 0.0819112628 | AN27: 0.0752688172 | AO27: 0.07543859649 | AP27: 0.06501547988 | AQ27: 0.08906882591 | AR27: 0.07705779335 | AT27: =VLOOKUP(A27,MortalidaPerinatal!A$8:C$56,3,0) -> COMFAMA SAN IGNACIO | AW27: FALSE
A28: 2701 | B28: MEDELLIN | C28: COOMSOCIAL - ESTADIO | D28: 3 | E28: 3 | F28: 5 | G28: 1 | H28: 2 | I28: 2 | J28: 4 | K28: 0 | L28: 2 | M28: 1 | N28: 4 | O28: 5 | P28: 11 | Q28: 5 | R28: 6 | S28: 10 | T28: 32 | U28: 36 | V28: 29 | W28: 49 | X28: 47 | Y28: 30 | Z28: 53 | AA28: 33 | AB28: 39 | AC28: 43 | AD28: 32 | AE28: 39 | AF28: 37 | AG28: 114 | AH28: 130 | AI28: 115 | AJ28: 108 | AK28: 467 | AL28: 0.06557377049 | AM28: 0.09649122807 | AN28: 0.03846153846 | AO28: 0.07174887892 | AP28: 0.05217391304 | AQ28: 0.09259259259 | AR28: 0.06852248394 | AT28: =VLOOKUP(A28,MortalidaPerinatal!A$8:C$56,3,0) -> COOMSOCIAL - ESTADIO | AW28: FALSE
A29: 35 | B29: MEDELLIN | C29: COOPSANA- CENTRO | D29: 3 | E29: 4 | F29: 2 | G29: 2 | H29: 1 | I29: 3 | J29: 3 | K29: 5 | L29: 3 | M29: 4 | N29: 3 | O29: 0 | P29: 9 | Q29: 6 | R29: 11 | S29: 7 | T29: 33 | U29: 46 | V29: 27 | W29: 28 | X29: 33 | Y29: 40 | Z29: 38 | AA29: 45 | AB29: 43 | AC29: 47 | AD29: 38 | AE29: 39 | AF29: 29 | AG29: 101 | AH29: 111 | AI29: 135 | AJ29: 106 | AK29: 453 | AL29: 0.07075471698 | AM29: 0.08910891089 | AN29: 0.05405405405 | AO29: 0.07468879668 | AP29: 0.08148148148 | AQ29: 0.06603773585 | AR29: 0.07284768212 | AT29: =VLOOKUP(A29,MortalidaPerinatal!A$8:C$56,3,0) -> COOPSANA- CENTRO | AW29: FALSE
A30: 1013 | B30: MEDELLIN | C30: COOPSANA CALASANZ | D30: 1 | E30: 0 | F30: 0 | G30: 2 | H30: 2 | I30: 0 | J30: 0 | K30: 0 | L30: 0 | M30: 1 | N30: 1 | O30: 0 | P30: =SUM(D30:F30) -> 1 | Q30: =SUM(G30:I30) -> 4 | R30: =SUM(J30:L30) -> 0 | S30: =SUM(M30:O30) -> 2 | T30: =SUM(P30:S30) -> 7 | U30: 31 | V30: 30 | W30: 31 | X30: 26 | Y30: 23 | Z30: 30 | AA30: 31 | AB30: 20 | AC30: 32 | AD30: 23 | AE30: 24 | AF30: 18 | AG30: 92 | AH30: =SUM(X30:Z30) -> 79 | AI30: =SUM(AA30:AC30) -> 83 | AJ30: =+AD30+AE30+AF30 -> 65 | AK30: =SUM(AG30:AJ30) -> 319 | AL30: 0.02923976608 | AM30: 0.01086956522 | AN30: 0.05063291139 | AO30: 0.01351351351 | AP30: 0 | AQ30: 0.03076923077 | AR30: 0.02194357367 | AW30: FALSE
A31: 2136 | B31: MEDELLIN | C31: COOPSANA NORTE | D31: 2 | E31: 4 | F31: 3 | G31: 5 | H31: 5 | I31: 2 | J31: 2 | K31: 2 | L31: 4 | M31: 6 | N31: 2 | O31: 5 | P31: 9 | Q31: 12 | R31: 8 | S31: 13 | T31: 42 | U31: 59 | V31: 55 | W31: 45 | X31: 47 | Y31: 52 | Z31: 46 | AA31: 44 | AB31: 54 | AC31: 55 | AD31: 61 | AE31: 59 | AF31: 44 | AG31: 159 | AH31: 145 | AI31: 153 | AJ31: 164 | AK31: 621 | AL31: 0.06907894737 | AM31: 0.05660377358 | AN31: 0.08275862069 | AO31: 0.06624605678 | AP31: 0.0522875817 | AQ31: 0.07926829268 | AR31: 0.06763285024 | AT31: =VLOOKUP(A31,MortalidaPerinatal!A$8:C$56,3,0) -> COOPSANA NORTE | AW31: FALSE
A32: 115393 | B32: MEDELLIN | C32: COOPSANA AVENIDA ORIENTAL | D32: 3 | E32: 4 | F32: 4 | G32: 0 | H32: 1 | I32: 0 | J32: 0 | K32: 1 | L32: 3 | M32: 1 | N32: 1 | O32: 0 | P32: =SUM(D32:F32) -> 11 | Q32: =SUM(G32:I32) -> 1 | R32: =SUM(J32:L32) -> 4 | S32: =SUM(M32:O32) -> 2 | T32: =SUM(P32:S32) -> 18 | U32: 21 | V32: 31 | W32: 24 | X32: 17 | Y32: 30 | Z32: 17 | AA32: 20 | AB32: 22 | AC32: 30 | AD32: 34 | AE32: 18 | AF32: 22 | AG32: 76 | AH32: =SUM(X32:Z32) -> 64 | AI32: =SUM(AA32:AC32) -> 72 | AJ32: =+AD32+AE32+AF32 -> 74 | AK32: =SUM(AG32:AJ32) -> 286 | AL32: 0.08571428571 | AM32: 0.1447368421 | AN32: 0.015625 | AO32: 0.04109589041 | AP32: 0.05555555556 | AQ32: 0.02702702703 | AR32: 0.06293706294 | AS32: 2953 | AT32: =VLOOKUP(A32,MortalidaPerinatal!A$8:C$56,3,0) -> COOPSANA ARGENTINA CENTRO | AW32: FALSE
A33: 60 | B33: MEDELLIN | C33: INSTITUTO DEL TORAX -LA PAZ | D33: 2 | E33: 3 | F33: 3 | G33: 3 | H33: 1 | I33: 1 | J33: 2 | K33: 0 | L33: 3 | M33: 2 | N33: 2 | O33: 2 | P33: 8 | Q33: 5 | R33: 5 | S33: 6 | T33: 24 | U33: 21 | V33: 23 | W33: 17 | X33: 14 | Y33: 14 | Z33: 19 | AA33: 17 | AB33: 17 | AC33: 24 | AD33: 24 | AE33: 24 | AF33: 17 | AG33: 61 | AH33: 47 | AI33: 58 | AJ33: 65 | AK33: 231 | AL33: 0.1203703704 | AM33: 0.131147541 | AN33: 0.1063829787 | AO33: 0.08943089431 | AP33: 0.08620689655 | AQ33: 0.09230769231 | AR33: 0.1038961039 | AT33: =VLOOKUP(A33,MortalidaPerinatal!A$8:C$56,3,0) -> INSTITUTO DEL TORAX -LA PAZ | AW33: FALSE
A34: 2325 | B34: MEDELLIN | C34: IPS COBERSALUD INTEGRAL EN SALUD | D34: 1 | E34: 1 | F34: 1 | G34: 0 | H34: 0 | I34: 0 | J34: 2 | K34: 1 | L34: 0 | M34: 0 | N34: 1 | O34: 1 | P34: 3 | Q34: 0 | R34: 3 | S34: 2 | T34: 8 | U34: 12 | V34: 9 | W34: 12 | X34: 8 | Y34: 12 | Z34: 4 | AA34: 9 | AB34: 11 | AC34: 8 | AD34: 14 | AE34: 6 | AF34: 7 | AG34: 33 | AH34: 24 | AI34: 28 | AJ34: 27 | AK34: 112 | AL34: 0.05263157895 | AM34: 0.09090909091 | AN34: 0 | AO34: 0.09090909091 | AP34: 0.1071428571 | AQ34: 0.07407407407 | AR34: 0.07142857143 | AT34: =VLOOKUP(A34,MortalidaPerinatal!A$8:C$56,3,0) -> IPS COBERSALUD INTEGRAL EN SALUD | AW34: FALSE
A35: 42 | B35: MEDELLIN | C35: IPS SURA ALMACENTRO | D35: 1 | E35: 1 | F35: 2 | G35: 2 | H35: 1 | I35: 0 | J35: 2 | K35: 0 | L35: 1 | M35: 3 | N35: 0 | O35: 1 | P35: =SUM(D35:F35) -> 4 | Q35: =SUM(G35:I35) -> 3 | R35: =SUM(J35:L35) -> 3 | S35: =SUM(M35:O35) -> 4 | T35: =SUM(P35:S35) -> 14 | U35: 23 | V35: 15 | W35: 28 | X35: 26 | Y35: 14 | Z35: 19 | AA35: 24 | AB35: 19 | AC35: 20 | AD35: 24 | AE35: 13 | AF35: 15 | AG35: 66 | AH35: =SUM(X35:Z35) -> 59 | AI35: =SUM(AA35:AC35) -> 63 | AJ35: =+AD35+AE35+AF35 -> 52 | AK35: =SUM(AG35:AJ35) -> 240 | AL35: 0.056 | AM35: 0.06060606061 | AN35: 0.05084745763 | AO35: 0.06086956522 | AP35: 0.04761904762 | AQ35: 0.07692307692 | AR35: 0.05833333333 | AT35: =VLOOKUP(A35,MortalidaPerinatal!A$8:C$56,3,0) -> IPS SURA ALMACENTRO | AW35: FALSE
A36: 80 | B36: MEDELLIN | C36: IPS SURA CENTRO | D36: 5 | E36: 1 | F36: 3 | G36: 0 | H36: 2 | I36: 4 | J36: 4 | K36: 0 | L36: 3 | M36: 2 | N36: 3 | O36: 0 | P36: 9 | Q36: 6 | R36: 7 | S36: 5 | T36: 27 | U36: 44 | V36: 32 | W36: 37 | X36: 22 | Y36: 29 | Z36: 40 | AA36: 32 | AB36: 37 | AC36: 37 | AD36: 26 | AE36: 38 | AF36: 24 | AG36: 113 | AH36: 91 | AI36: 106 | AJ36: 88 | AK36: 398 | AL36: 0.07352941176 | AM36: 0.0796460177 | AN36: 0.06593406593 | AO36: 0.0618556701 | AP36: 0.06603773585 | AQ36: 0.05681818182 | AR36: 0.06783919598 | AT36: =VLOOKUP(A36,MortalidaPerinatal!A$8:C$56,3,0) -> IPS SURA CENTRO | AW36: FALSE
A37: 20 | B37: MEDELLIN | C37: IPS SURA CORDOBA | D37: 6 | E37: 2 | F37: 1 | G37: 6 | H37: 5 | I37: 1 | J37: 2 | K37: 0 | L37: 2 | M37: 0 | N37: 3 | O37: 0 | P37: 9 | Q37: 12 | R37: 4 | S37: 3 | T37: 28 | U37: 36 | V37: 20 | W37: 30 | X37: 35 | Y37: 32 | Z37: 34 | AA37: 32 | AB37: 38 | AC37: 25 | AD37: 21 | AE37: 26 | AF37: 18 | AG37: 86 | AH37: 101 | AI37: 95 | AJ37: 65 | AK37: 347 | AL37: 0.1122994652 | AM37: 0.1046511628 | AN37: 0.1188118812 | AO37: 0.04375 | AP37: 0.04210526316 | AQ37: 0.04615384615 | AR37: 0.08069164265 | AT37: =VLOOKUP(A37,MortalidaPerinatal!A$8:C$56,3,0) -> IPS SURA CORDOBA | AW37: FALSE
A38: 2660 | B38: MEDELLIN | C38: IPS SURA LOS MOLINOS | D38: 0 | E38: 3 | F38: 3 | G38: 0 | H38: 2 | I38: 2 | J38: 1 | K38: 3 | L38: 3 | M38: 3 | N38: 3 | O38: 2 | P38: 6 | Q38: 4 | R38: 7 | S38: 8 | T38: 25 | U38: 74 | V38: 62 | W38: 61 | X38: 62 | Y38: 76 | Z38: 56 | AA38: 59 | AB38: 53 | AC38: 67 | AD38: 78 | AE38: 54 | AF38: 51 | AG38: 197 | AH38: 194 | AI38: 179 | AJ38: 183 | AK38: 753 | AL38: 0.02557544757 | AM38: 0.03045685279 | AN38: 0.0206185567 | AO38: 0.04143646409 | AP38: 0.03910614525 | AQ38: 0.04371584699 | AR38: 0.03320053121 | AT38: =VLOOKUP(A38,MortalidaPerinatal!A$8:C$56,3,0) -> IPS SURA LOS MOLINOS | AW38: FALSE
A39: 1709 | B39: MEDELLIN | C39: IPS SURA MONTERREY | D39: 2 | E39: 0 | F39: 0 | G39: 1 | H39: 0 | I39: 0 | J39: 1 | K39: 0 | L39: 2 | M39: 1 | N39: 0 | O39: 0 | P39: 2 | Q39: 1 | R39: 3 | S39: 1 | T39: 7 | U39: 25 | V39: 20 | W39: 18 | X39: 15 | Y39: 8 | Z39: 18 | AA39: 20 | AB39: 24 | AC39: 16 | AD39: 19 | AE39: 12 | AF39: 13 | AG39: =SUM(U39:W39) -> 63 | AH39: 41 | AI39: 60 | AJ39: 44 | AK39: 208 | AL39: 0.02884615385 | AM39: =IF(ISERROR(P39/AG39),0,P39/AG39) -> 0.03174603175 | AN39: =IF(ISERROR(Q39/AH39),0,Q39/AH39) -> 0.0243902439 | AO39: =IF(ISERROR(SUM(R39:S39)/SUM(AI39:AJ39)),0,SUM(R39:S39)/SUM(AI39:AJ39)) -> 0.03846153846 | AP39: =IF(ISERROR(R39/AI39),0,R39/AI39) -> 0.05 | AQ39: =IF(ISERROR(S39/AJ39),0,S39/AJ39) -> 0.02272727273 | AR39: =IF(ISERROR(T39/AK39),0,T39/AK39) -> 0.03365384615 | AT39: =VLOOKUP(A39,MortalidaPerinatal!A$8:C$56,3,0) -> IPS SURA MONTERREY | AW39: =+AV39=AK39 -> FALSE
A40: 1789 | B40: MEDELLIN | C40: IPS SURA SAMAN | D40: 0 | E40: 0 | F40: 0 | G40: 1 | H40: 2 | I40: 0 | J40: 2 | K40: 0 | L40: 0 | M40: 0 | N40: 0 | O40: 0 | P40: 0 | Q40: 3 | R40: 2 | S40: 0 | T40: 5 | U40: 14 | V40: 13 | W40: 13 | X40: 12 | Y40: 12 | Z40: 11 | AA40: 21 | AB40: 13 | AC40: 25 | AD40: 11 | AE40: 13 | AF40: 16 | AG40: 40 | AH40: 35 | AI40: 59 | AJ40: 40 | AK40: 174 | AL40: 0.04 | AM40: 0 | AN40: 0.08571428571 | AO40: 0.0202020202 | AP40: 0.03389830508 | AQ40: 0 | AR40: =IF(ISERROR(T40/AK40),0,T40/AK40) -> 0.02873563218 | AT40: =VLOOKUP(A40,MortalidaPerinatal!A$8:C$56,3,0) -> IPS SURA SAMAN | AW40: FALSE
A41: 2694 | B41: MEDELLIN | C41: IPS SURA SAN DIEGO | D41: 3 | E41: 0 | F41: 3 | G41: 1 | H41: 0 | I41: 0 | J41: 2 | K41: 0 | L41: 1 | M41: 2 | N41: 0 | O41: 0 | P41: =SUM(D41:F41) -> 6 | Q41: =SUM(G41:I41) -> 1 | R41: =SUM(J41:L41) -> 3 | S41: =SUM(M41:O41) -> 2 | T41: =SUM(P41:S41) -> 12 | U41: 42 | V41: 37 | W41: 41 | X41: 35 | Y41: 30 | Z41: 30 | AA41: 30 | AB41: 32 | AC41: 28 | AD41: 30 | AE41: 25 | AF41: 16 | AG41: 120 | AH41: =SUM(X41:Z41) -> 95 | AI41: =SUM(AA41:AC41) -> 90 | AJ41: =+AD41+AE41+AF41 -> 71 | AK41: =SUM(AG41:AJ41) -> 376 | AL41: 0.03255813953 | AM41: 0.05 | AN41: =IF(ISERROR(Q41/AH41),0,Q41/AH41) -> 0.01052631579 | AO41: 0.03105590062 | AP41: 0.03333333333 | AQ41: 0.02816901408 | AR41: 0.03191489362 | AW41: FALSE
A42: 55 | B42: MEDELLIN | C42: SALUD EN CASA MEDELLIN | D42: 0 | E42: 0 | F42: 0 | G42: 0 | H42: 0 | I42: 0 | J42: 0 | K42: 0 | L42: 0 | M42: 0 | N42: 0 | O42: 0 | P42: 0 | Q42: 0 | R42: 0 | S42: 0 | T42: 0 | U42: 1 | V42: 0 | W42: 2 | X42: 1 | Y42: 1 | Z42: 3 | AA42: 0 | AB42: 1 | AC42: 1 | AD42: 2 | AE42: 1 | AF42: 0 | AG42: 3 | AH42: 5 | AI42: 2 | AJ42: 3 | AK42: 13 | AL42: 0 | AM42: 0 | AN42: 0 | AO42: 0 | AP42: 0 | AQ42: 0 | AR42: 0 | AT42: =VLOOKUP(A42,MortalidaPerinatal!A$8:C$56,3,0) -> SALUD EN CASA MEDELLIN | AW42: FALSE
A43: 5 | B43: MEDELLIN | C43: SALUDSURA SAO PAULO | D43: 0 | E43: 0 | F43: 0 | G43: 0 | H43: 0 | I43: 0 | J43: 0 | K43: 0 | L43: 0 | M43: 0 | N43: 0 | O43: 0 | P43: 0 | Q43: 0 | R43: 0 | S43: 0 | T43: 0 | U43: 0 | V43: 0 | W43: 1 | X43: 1 | Y43: 1 | Z43: 3 | AA43: 0 | AB43: 0 | AC43: 1 | AD43: 0 | AE43: 1 | AF43: 1 | AG43: 1 | AH43: 5 | AI43: 1 | AJ43: 2 | AK43: 9 | AL43: 0 | AM43: 0 | AN43: 0 | AO43: 0 | AP43: 0 | AQ43: 0 | AR43: 0 | AT43: =VLOOKUP(A43,MortalidaPerinatal!A$8:C$56,3,0) -> SALUDSURA SAO PAULO | AW43: FALSE
A44: 2161 | B44: MEDELLIN | C44: SALUDSURA INDUSTRIALES | D44: 0 | E44: 0 | F44: 0 | G44: 0 | H44: 0 | I44: 0 | J44: 0 | K44: 0 | L44: 0 | M44: 0 | N44: 0 | O44: 0 | P44: =SUM(D44:F44) -> 0 | Q44: =SUM(G44:I44) -> 0 | R44: =SUM(J44:L44) -> 0 | S44: =SUM(M44:O44) -> 0 | T44: =SUM(P44:S44) -> 0 | U44: 0 | V44: 0 | W44: 0 | X44: 0 | Y44: 0 | Z44: 0 | AA44: 0 | AB44: 0 | AC44: 0 | AD44: 0 | AE44: 0 | AF44: 0 | AG44: 0 | AH44: =SUM(X44:Z44) -> 0 | AI44: =SUM(AA44:AC44) -> 0 | AJ44: =+AD44+AE44+AF44 -> 0 | AK44: =SUM(AG44:AJ44) -> 0 | AL44: 0 | AM44: 0 | AN44: 0 | AO44: 0 | AP44: 0 | AQ44: 0 | AR44: 0 | AS44: 0 | AT44: =VLOOKUP(A44,MortalidaPerinatal!A$8:C$56,3,0) -> SALUDSURA INDUSTRIALES | AW44: TRUE
A45: 1031 | B45: MEDELLIN | C45: PROSALCO SAN JUAN | D45: 4 | E45: 1 | F45: 2 | G45: 2 | H45: 1 | I45: 1 | J45: 2 | K45: 2 | L45: 1 | M45: 2 | N45: 1 | O45: 2 | P45: =SUM(D45:F45) -> 7 | Q45: =SUM(G45:I45) -> 4 | R45: =SUM(J45:L45) -> 5 | S45: =SUM(M45:O45) -> 5 | T45: =SUM(P45:S45) -> 21 | U45: 18 | V45: 15 | W45: 20 | X45: 14 | Y45: 23 | Z45: 23 | AA45: 19 | AB45: 25 | AC45: 25 | AD45: 21 | AE45: 22 | AF45: 24 | AG45: 53 | AH45: =SUM(X45:Z45) -> 60 | AI45: =SUM(AA45:AC45) -> 69 | AJ45: =+AD45+AE45+AF45 -> 67 | AK45: =SUM(AG45:AJ45) -> 249 | AL45: 0.09734513274 | AM45: 0.1320754717 | AN45: 0.06666666667 | AO45: 0.07352941176 | AP45: 0.07246376812 | AQ45: 0.07462686567 | AR45: 0.0843373494 | AW45: FALSE
A46: 53 | B46: RIONEGRO | C46: COMFAMA RIONEGRO | D46: 4 | E46: 1 | F46: 5 | G46: 4 | H46: 2 | I46: 1 | J46: 4 | K46: 4 | L46: 1 | M46: 1 | N46: 6 | O46: 2 | P46: 10 | Q46: 7 | R46: 9 | S46: 9 | T46: 35 | U46: 55 | V46: 57 | W46: 41 | X46: 50 | Y46: 44 | Z46: 50 | AA46: 52 | AB46: 55 | AC46: 42 | AD46: 49 | AE46: 62 | AF46: 15 | AG46: 153 | AH46: 144 | AI46: 149 | AJ46: 126 | AK46: 572 | AL46: 0.05723905724 | AM46: 0.06535947712 | AN46: 0.04861111111 | AO46: 0.06545454545 | AP46: 0.06040268456 | AQ46: 0.07142857143 | AR46: 0.06118881119 | AT46: =VLOOKUP(A46,MortalidaPerinatal!A$8:C$56,3,0) -> COMFAMA RIONEGRO | AW46: FALSE
A47: 78 | B47: RIONEGRO | C47: IPS SURA RIONEGRO | D47: 0 | E47: 1 | F47: 1 | G47: 2 | H47: 1 | I47: 0 | J47: 1 | K47: 1 | L47: 0 | M47: 3 | N47: 1 | O47: 2 | P47: 2 | Q47: 3 | R47: 2 | S47: 6 | T47: 13 | U47: 22 | V47: 23 | W47: 20 | X47: 20 | Y47: 20 | Z47: 28 | AA47: 26 | AB47: 18 | AC47: 17 | AD47: 26 | AE47: 23 | AF47: 12 | AG47: 65 | AH47: 68 | AI47: 61 | AJ47: 61 | AK47: 255 | AL47: 0.03759398496 | AM47: 0.03076923077 | AN47: 0.04411764706 | AO47: 0.06557377049 | AP47: 0.03278688525 | AQ47: 0.09836065574 | AR47: 0.05098039216 | AT47: =VLOOKUP(A47,MortalidaPerinatal!A$8:C$56,3,0) -> IPS SURA RIONEGRO | AW47: FALSE
A48: 2194 | B48: RIONEGRO | C48: SALUD EN CASA RIONEGRO | D48: 0 | E48: 0 | F48: 0 | G48: 0 | H48: 0 | I48: 0 | J48: 0 | K48: 0 | L48: 0 | M48: 0 | N48: 0 | O48: 0 | P48: =SUM(D48:F48) -> 0 | Q48: =SUM(G48:I48) -> 0 | R48: =SUM(J48:L48) -> 0 | S48: =SUM(M48:O48) -> 0 | T48: =SUM(P48:S48) -> 0 | U48: 1 | V48: 0 | W48: 0 | X48: 0 | Y48: 0 | Z48: 0 | AA48: 0 | AB48: 0 | AC48: 0 | AD48: 0 | AE48: 0 | AF48: 0 | AG48: 1 | AH48: =SUM(X48:Z48) -> 0 | AI48: =SUM(AA48:AC48) -> 0 | AJ48: =+AD48+AE48+AF48 -> 0 | AK48: =SUM(AG48:AJ48) -> 1 | AL48: 0 | AM48: 0 | AN48: 0 | AO48: 0 | AP48: 0 | AQ48: 0 | AR48: 0 | AT48: =VLOOKUP(A48,MortalidaPerinatal!A$8:C$56,3,0) -> SALUD EN CASA RIONEGRO | AW48: FALSE
A49: 91 | B49: SABANETA | C49: COMFAMA SABANETA | D49: 3 | E49: 3 | F49: 0 | G49: 0 | H49: 0 | I49: 0 | J49: 2 | K49: 1 | L49: 0 | M49: 1 | N49: 0 | O49: 0 | P49: 6 | Q49: 0 | R49: 3 | S49: 1 | T49: 10 | U49: 38 | V49: 28 | W49: 18 | X49: 24 | Y49: 18 | Z49: 29 | AA49: 34 | AB49: 32 | AC49: 33 | AD49: 31 | AE49: 35 | AF49: 23 | AG49: 84 | AH49: 71 | AI49: 99 | AJ49: 89 | AK49: 343 | AL49: 0.03870967742 | AM49: 0.07142857143 | AN49: 0 | AO49: 0.02127659574 | AP49: 0.0303030303 | AQ49: 0.01123595506 | AR49: 0.02915451895 | AT49: =VLOOKUP(A49,MortalidaPerinatal!A$8:C$56,3,0) -> COMFAMA SABANETA | AW49: FALSE
A50: 17 | B50: SANTA ROSA DE OSOS | C50: PROSALCO SANTA ROSA | D50: 0 | E50: 1 | F50: 1 | G50: 0 | H50: 1 | I50: 0 | J50: 1 | K50: 0 | L50: 0 | M50: 1 | N50: 1 | O50: 0 | P50: 2 | Q50: 1 | R50: 1 | S50: 2 | T50: 6 | U50: 2 | V50: 3 | W50: 8 | X50: 5 | Y50: 7 | Z50: 8 | AA50: 7 | AB50: 3 | AC50: 11 | AD50: 12 | AE50: 16 | AF50: 3 | AG50: 13 | AH50: 20 | AI50: 21 | AJ50: 31 | AK50: 85 | AL50: 0.09090909091 | AM50: 0.1538461538 | AN50: 0.05 | AO50: 0.05769230769 | AP50: 0.04761904762 | AQ50: 0.06451612903 | AR50: 0.07058823529 | AT50: =VLOOKUP(A50,MortalidaPerinatal!A$8:C$56,3,0) -> PROSALCO SANTA ROSA | AW50: FALSE
A51: 2084 | B51: YARUMAL | C51: PROSALCO YARUMAL | D51: 0 | E51: 0 | F51: 0 | G51: 0 | H51: 0 | I51: 0 | J51: 1 | K51: 0 | L51: 0 | M51: 0 | N51: 1 | O51: 0 | P51: 0 | Q51: 0 | R51: 1 | S51: 1 | T51: 2 | U51: 4 | V51: 0 | W51: 3 | X51: 2 | Y51: 1 | Z51: 2 | AA51: 1 | AB51: 0 | AC51: 2 | AD51: 2 | AE51: 2 | AF51: 0 | AG51: 7 | AH51: 5 | AI51: 3 | AJ51: 4 | AK51: 19 | AL51: 0 | AM51: 0 | AN51: 0 | AO51: 0.2857142857 | AP51: 0.3333333333 | AQ51: 0.25 | AR51: 0.1052631579 | AT51: =VLOOKUP(A51,MortalidaPerinatal!A$8:C$56,3,0) -> PROSALCO YARUMAL | AW51: FALSE
A52: 2642 | B52: ARMENIA | C52: SALUD DEL CARIBE ARMENIA | D52: 1 | E52: 3 | F52: 3 | G52: 1 | H52: 3 | I52: 0 | J52: 2 | K52: 2 | L52: 3 | M52: 0 | N52: 0 | O52: 0 | P52: =SUM(D52:F52) -> 7 | Q52: 4 | R52: 7 | S52: 0 | T52: 18 | U52: 32 | V52: 20 | W52: 25 | X52: 27 | Y52: 23 | Z52: 27 | AA52: 31 | AB52: 24 | AC52: 34 | AD52: 30 | AE52: 31 | AF52: 4 | AG52: =SUM(U52:W52) -> 77 | AH52: 77 | AI52: 89 | AJ52: 65 | AK52: 308 | AL52: 0.07142857143 | AM52: 0.09090909091 | AN52: 0.05194805195 | AO52: 0.04545454545 | AP52: 0.07865168539 | AQ52: 0 | AR52: 0.05844155844 | AT52: =VLOOKUP(A52,MortalidaPerinatal!A$8:C$56,3,0) -> SALUD DEL CARIBE ARMENIA | AW52: FALSE
A53: 1034 | B53: ARMENIA | C53: SALUD DEL CARIBE ARMENIA SEDE SUR | D53: 1 | E53: 1 | F53: 0 | G53: 1 | H53: 0 | I53: 1 | J53: 1 | K53: 0 | L53: 0 | M53: 0 | N53: 1 | O53: 0 | P53: 2 | Q53: 2 | R53: 1 | S53: 1 | T53: 6 | U53: 10 | V53: 20 | W53: 10 | X53: 14 | Y53: 9 | Z53: 15 | AA53: 19 | AB53: 15 | AC53: 13 | AD53: 8 | AE53: 11 | AF53: 4 | AG53: 40 | AH53: 38 | AI53: 47 | AJ53: 23 | AK53: 148 | AL53: 0.05128205128 | AM53: 0.05 | AN53: 0.05263157895 | AO53: 0.02857142857 | AP53: 0.02127659574 | AQ53: 0.04347826087 | AR53: 0.04054054054 | AW53: FALSE
A54: 1712 | B54: MANIZALES | C54: INTERCONSULTAS LTDA. | D54: 1 | E54: 1 | F54: 3 | G54: 0 | H54: 4 | I54: 2 | J54: 4 | K54: 6 | L54: 2 | M54: 0 | N54: 2 | O54: 3 | P54: 5 | Q54: 6 | R54: 12 | S54: 5 | T54: 28 | U54: 47 | V54: 37 | W54: 50 | X54: 25 | Y54: 40 | Z54: 35 | AA54: 42 | AB54: 45 | AC54: 55 | AD54: 40 | AE54: 37 | AF54: 47 | AG54: 134 | AH54: 100 | AI54: 142 | AJ54: 124 | AK54: 500 | AL54: 0.04700854701 | AM54: 0.03731343284 | AN54: 0.06 | AO54: 0.06390977444 | AP54: 0.08450704225 | AQ54: 0.04032258065 | AR54: 0.056 | AT54: =VLOOKUP(A54,MortalidaPerinatal!A$8:C$56,3,0) -> INTERCONSULTAS LTDA. | AW54: FALSE
A55: 2671 | B55: PEREIRA | C55: IPS COLSUBSIDIO PEREIRA | D55: 0 | E55: 2 | F55: 0 | G55: 2 | H55: 1 | I55: 4 | J55: 2 | K55: 3 | L55: 1 | M55: 2 | N55: 3 | O55: 2 | P55: =SUM(D55:F55) -> 2 | Q55: =SUM(G55:I55) -> 7 | R55: =SUM(J55:L55) -> 6 | S55: =SUM(M55:O55) -> 7 | T55: 22 | U55: 33 | V55: 19 | W55: 28 | X55: 32 | Y55: 31 | Z55: 36 | AA55: 35 | AB55: 38 | AC55: 39 | AD55: 29 | AE55: 31 | AF55: 37 | AG55: 80 | AH55: 99 | AI55: 112 | AJ55: 97 | AK55: 388 | AL55: 0.05027932961 | AM55: 0.025 | AN55: 0.07070707071 | AO55: 0.06220095694 | AP55: 0.05357142857 | AQ55: 0.07216494845 | AR55: 0.05670103093 | AT55: =VLOOKUP(A55,MortalidaPerinatal!A$8:C$56,3,0) -> IPS COLSUBSIDIO PEREIRA | AW55: FALSE
A56: 2704 | B56: LA ESTRELLA | C56: COMFAMA LA ESTRELLA | D56: 1 | E56: 0 | F56: 2 | G56: 1 | H56: 0 | I56: 0 | J56: 2 | K56: 2 | L56: 0 | M56: 0 | N56: 0 | O56: 1 | P56: =SUM(D56:F56) -> 3 | Q56: =SUM(G56:I56) -> 1 | R56: =SUM(J56:L56) -> 4 | S56: =SUM(M56:O56) -> 1 | T56: 9 | U56: 9 | V56: 6 | W56: 15 | X56: 10 | Y56: 11 | Z56: 12 | AA56: 9 | AB56: 10 | AC56: 7 | AD56: 8 | AE56: 8 | AF56: 12 | AG56: 30 | AH56: =SUM(X56:Z56) -> 33 | AI56: =SUM(AA56:AC56) -> 26 | AJ56: =+AD56+AE56+AF56 -> 28 | AK56: =SUM(AG56:AJ56) -> 117 | AL56: 0.06349206349 | AM56: 0.1 | AN56: 0.0303030303 | AO56: 0.09259259259 | AP56: 0.1538461538 | AQ56: 0.03571428571 | AR56: 0.07692307692
A57: 2705 | B57: CARMEN DE VIBORAL | C57: PROSALCO CARMEN DE VIBORAL | D57: 4 | E57: 2 | F57: 0 | G57: 0 | H57: 3 | I57: 0 | J57: 0 | K57: 1 | L57: 1 | M57: 3 | N57: 0 | O57: 0 | P57: =SUM(D57:F57) -> 6 | Q57: =SUM(G57:I57) -> 3 | R57: =SUM(J57:L57) -> 2 | S57: =SUM(M57:O57) -> 3 | T57: 14 | U57: 11 | V57: 11 | W57: 8 | X57: 9 | Y57: 9 | Z57: 9 | AA57: 9 | AB57: 13 | AC57: 12 | AD57: 12 | AE57: 13 | AF57: 7 | AG57: 30 | AH57: =SUM(X57:Z57) -> 27 | AI57: =SUM(AA57:AC57) -> 34 | AJ57: =+AD57+AE57+AF57 -> 32 | AK57: =SUM(AG57:AJ57) -> 123 | AL57: 0.1578947368 | AM57: 0.2 | AN57: 0.1111111111 | AO57: 0.07575757576 | AP57: 0.05882352941 | AQ57: 0.09375 | AR57: 0.1138211382
A58: 2707 | B58: MEDELLIN | C58: CIS COMFAMA CRISTO REY | D58: 1 | E58: 0 | F58: 0 | G58: 2 | H58: 1 | I58: 0 | J58: 1 | K58: 0 | L58: 0 | M58: 3 | N58: 1 | O58: 0 | P58: =SUM(D58:F58) -> 1 | Q58: =SUM(G58:I58) -> 3 | R58: =SUM(J58:L58) -> 1 | S58: =SUM(M58:O58) -> 4 | T58: 9 | U58: 10 | V58: 6 | W58: 9 | X58: 16 | Y58: 14 | Z58: 16 | AA58: 17 | AB58: 17 | AC58: 15 | AD58: 19 | AE58: 12 | AF58: 17 | AG58: 25 | AH58: =SUM(X58:Z58) -> 46 | AI58: =SUM(AA58:AC58) -> 49 | AJ58: =+AD58+AE58+AF58 -> 48 | AK58: =SUM(AG58:AJ58) -> 168 | AL58: 0.05633802817 | AM58: 0.04 | AN58: 0.0652173913 | AO58: 0.05154639175 | AP58: 0.02040816327 | AQ58: 0.08333333333 | AR58: 0.05357142857
A59: 2708 | B59: MANIZALES | C59: IPS CAJA COMPENSACIÓN FAMILIAR CALDAS CONFA | D59: 1 | E59: 1 | F59: 0 | G59: 1 | H59: 0 | I59: 3 | J59: 1 | K59: 2 | L59: 1 | M59: 2 | N59: 2 | O59: 2 | P59: =SUM(D59:F59) -> 2 | Q59: =SUM(G59:I59) -> 4 | R59: =SUM(J59:L59) -> 4 | S59: =SUM(M59:O59) -> 6 | T59: =SUM(P59:S59) -> 16 | U59: 11 | V59: 5 | W59: 7 | X59: 7 | Y59: 6 | Z59: 27 | AA59: 12 | AB59: 15 | AC59: 11 | AD59: 9 | AE59: 11 | AF59: 14 | AG59: =SUM(U59:W59) -> 23 | AH59: =SUM(X59:Z59) -> 40 | AI59: =SUM(AA59:AC59) -> 38 | AJ59: =+AD59+AE59+AF59 -> 34 | AK59: =SUM(AG59:AJ59) -> 135 | AL59: 0.09523809524 | AM59: 0.08695652174 | AN59: 0.1 | AO59: 0.1388888889 | AP59: 0.1052631579 | AQ59: 0.1764705882 | AR59: 0.1185185185
A60: 2709 | B60: MEDELLIN | C60: CIS COMFAMA LOPEZ DE MESA | D60: 1 | E60: 0 | F60: 0 | G60: 2 | H60: 0 | I60: 3 | J60: 2 | K60: 3 | L60: 3 | M60: 4 | N60: 1 | O60: 3 | P60: =SUM(D60:F60) -> 1 | Q60: 5 | R60: 8 | S60: 8 | T60: =SUM(P60:S60) -> 22 | U60: 12 | V60: 14 | W60: 12 | X60: 27 | Y60: 17 | Z60: 26 | AA60: 24 | AB60: 29 | AC60: 24 | AD60: 30 | AE60: 21 | AF60: 25 | AG60: 38 | AH60: 70 | AI60: 77 | AJ60: =+AD60+AE60+AF60 -> 76 | AK60: 261 | AL60: 0.05555555556 | AM60: 0.02631578947 | AN60: 0.07142857143 | AO60: 0.1045751634 | AP60: 0.1038961039 | AQ60: 0.1052631579 | AR60: 0.08429118774
A61: 2715 | B61: MEDELLIN | C61: IPS PAC COOPSANA SURAMERICANA | D61: 0 | E61: 0 | F61: 0 | G61: 0 | H61: 0 | I61: 0 | J61: 0 | K61: 0 | L61: 0 | M61: 0 | N61: 0 | O61: 0 | P61: =SUM(D61:F61) -> 0 | Q61: =SUM(G61:I61) -> 0 | R61: =SUM(J61:L61) -> 0 | S61: =SUM(M61:O61) -> 0 | T61: =SUM(P61:S61) -> 0 | U61: 14 | V61: 7 | W61: 9 | X61: 4 | Y61: 5 | Z61: 13 | AA61: 9 | AB61: 16 | AC61: 17 | AD61: 13 | AE61: 8 | AF61: 5 | AG61: =SUM(U61:W61) -> 30 | AH61: =SUM(X61:Z61) -> 22 | AI61: =SUM(AA61:AC61) -> 42 | AJ61: =+AD61+AE61+AF61 -> 26 | AK61: =SUM(AG61:AJ61) -> 120 | AL61: 0 | AM61: 0 | AN61: 0 | AO61: 0 | AP61: 0 | AQ61: 0 | AR61: 0
A62: 2713 | B62: RIONEGRO | C62: SALUDSURA RIONEGRO | D62: 0 | E62: 0 | F62: 0 | G62: 0 | H62: 0 | I62: 0 | J62: 0 | K62: 0 | L62: 0 | M62: 0 | N62: 0 | O62: 0 | P62: =SUM(D62:F62) -> 0 | Q62: =SUM(G62:I62) -> 0 | R62: =SUM(J62:L62) -> 0 | S62: =SUM(M62:O62) -> 0 | T62: =SUM(P62:S62) -> 0 | U62: 0 | V62: 0 | W62: 0 | X62: 1 | Y62: 0 | Z62: 0 | AA62: 0 | AB62: 0 | AC62: 0 | AD62: 0 | AE62: 0 | AF62: 0 | AG62: =SUM(U62:W62) -> 0 | AH62: =SUM(X62:Z62) -> 1 | AI62: =SUM(AA62:AC62) -> 0 | AJ62: =+AD62+AE62+AF62 -> 0 | AK62: 1 | AL62: 0 | AM62: 0 | AN62: 0 | AO62: 0 | AP62: 0 | AQ62: 0 | AR62: 0
A63: 2717 | B63: DOSQUEBRADAS | C63: COMFAMILIAR RISARALDA SEDE DOSQUEBRADAS | D63: 0 | E63: 0 | F63: 0 | G63: 0 | H63: 0 | I63: 0 | J63: 0 | K63: 0 | L63: 0 | M63: 2 | N63: 0 | O63: 0 | P63: 0 | Q63: 0 | R63: 0 | S63: 2 | T63: 2 | U63: 5 | V63: 1 | W63: 2 | X63: 4 | Y63: 3 | Z63: 3 | AA63: 3 | AB63: 4 | AC63: 2 | AD63: 3 | AE63: 2 | AF63: 3 | AG63: 8 | AH63: 10 | AI63: 9 | AJ63: 8 | AK63: 35 | AL63: 0 | AM63: 0 | AN63: 0 | AO63: 0.1176470588 | AP63: 0 | AQ63: 0.25 | AR63: 0.05714285714
A64: 2718 | B64: APARTADO | C64: CIS COMFAMA SALUD PLAZA APARTADO | D64: 4 | E64: 1 | F64: 2 | G64: 0 | H64: 1 | I64: 1 | J64: 4 | K64: 1 | L64: 2 | M64: 3 | N64: 4 | O64: 1 | P64: =SUM(D64:F64) -> 7 | Q64: =SUM(G64:I64) -> 2 | R64: =SUM(J64:L64) -> 7 | S64: =SUM(M64:O64) -> 8 | T64: =SUM(P64:S64) -> 24 | U64: 10 | V64: 5 | W64: 8 | X64: 12 | Y64: 6 | Z64: 6 | AA64: 16 | AB64: 15 | AC64: 16 | AD64: 16 | AE64: 17 | AF64: 7 | AG64: =SUM(U64:W64) -> 23 | AH64: =SUM(X64:Z64) -> 24 | AI64: =SUM(AA64:AC64) -> 47 | AJ64: =+AD64+AE64+AF64 -> 40 | AK64: =SUM(AG64:AJ64) -> 134 | AL64: =IF(ISERROR(SUM(P64:Q64)/SUM(AG64:AH64)),0,SUM(P64:Q64)/SUM(AG64:AH64)) -> 0.1914893617 | AM64: =IF(ISERROR(P64/AG64),0,P64/AG64) -> 0.3043478261 | AN64: =IF(ISERROR(Q64/AH64),0,Q64/AH64) -> 0.08333333333 | AO64: =IF(ISERROR(SUM(R64:S64)/SUM(AI64:AJ64)),0,SUM(R64:S64)/SUM(AI64:AJ64)) -> 0.1724137931 | AP64: =IF(ISERROR(R64/AI64),0,R64/AI64) -> 0.1489361702 | AQ64: =IF(ISERROR(S64/AJ64),0,S64/AJ64) -> 0.2 | AR64: =IF(ISERROR(T64/AK64),0,T64/AK64) -> 0.1791044776
A65: 2719 | B65: MEDELLIN | C65: CIS COMFAMA CALASANZ | D65: 0 | E65: 0 | F65: 0 | G65: 0 | H65: 0 | I65: 0 | J65: 1 | K65: 4 | L65: 1 | M65: 3 | N65: 0 | O65: 0 | P65: 0 | Q65: 0 | R65: 6 | S65: 3 | T65: 9 | U65: 10 | V65: 7 | W65: 11 | X65: 3 | Y65: 10 | Z65: 7 | AA65: 11 | AB65: 20 | AC65: 19 | AD65: 20 | AE65: 15 | AF65: 13 | AG65: 28 | AH65: 20 | AI65: 50 | AJ65: 48 | AK65: 146 | AL65: 0 | AM65: 0 | AN65: 0 | AO65: 0.09183673469 | AP65: 0.12 | AQ65: 0.0625 | AR65: =IF(ISERROR(T65/AK65),0,T65/AK65) -> 0.06164383562
A66: 2721 | B66: TURBO | C66: CIS COMFAMA CURRULAO | D66: 0 | E66: 1 | F66: 0 | G66: 0 | H66: 2 | I66: 0 | J66: 3 | K66: 1 | L66: 3 | M66: 1 | N66: 6 | O66: 5 | P66: =SUM(D66:F66) -> 1 | Q66: =SUM(G66:I66) -> 2 | R66: =SUM(J66:L66) -> 7 | S66: =SUM(M66:O66) -> 12 | T66: =SUM(P66:S66) -> 22 | U66: 0 | V66: 4 | W66: 4 | X66: 6 | Y66: 13 | Z66: 4 | AA66: 8 | AB66: 7 | AC66: 12 | AD66: 11 | AE66: 18 | AF66: 8 | AG66: =SUM(U66:W66) -> 8 | AH66: =SUM(X66:Z66) -> 23 | AI66: =SUM(AA66:AC66) -> 27 | AJ66: =+AD66+AE66+AF66 -> 37 | AK66: =SUM(AG66:AJ66) -> 95 | AL66: =IF(ISERROR(SUM(P66:Q66)/SUM(AG66:AH66)),0,SUM(P66:Q66)/SUM(AG66:AH66)) -> 0.09677419355 | AM66: =IF(ISERROR(P66/AG66),0,P66/AG66) -> 0.125 | AN66: =IF(ISERROR(Q66/AH66),0,Q66/AH66) -> 0.08695652174 | AO66: =IF(ISERROR(SUM(R66:S66)/SUM(AI66:AJ66)),0,SUM(R66:S66)/SUM(AI66:AJ66)) -> 0.296875 | AP66: =IF(ISERROR(R66/AI66),0,R66/AI66) -> 0.2592592593 | AQ66: =IF(ISERROR(S66/AJ66),0,S66/AJ66) -> 0.3243243243 | AR66: =IF(ISERROR(T66/AK66),0,T66/AK66) -> 0.2315789474
A67: 2722 | B67: APARTADO | C67: CIS COMFAMA NUEVA COLONIA | D67: 0 | E67: 1 | F67: 0 | G67: 1 | H67: 1 | I67: 4 | J67: 2 | K67: 0 | L67: 1 | M67: 4 | N67: 2 | O67: 0 | P67: =SUM(D67:F67) -> 1 | Q67: 6 | R67: 3 | S67: 6 | T67: =SUM(P67:S67) -> 16 | U67: 0 | V67: 6 | W67: 3 | X67: 3 | Y67: 3 | Z67: 7 | AA67: 7 | AB67: 2 | AC67: 6 | AD67: 4 | AE67: 7 | AF67: 3 | AG67: 9 | AH67: 13 | AI67: 15 | AJ67: 14 | AK67: 51 | AL67: 0.3181818182 | AM67: 0.1111111111 | AN67: 0.4615384615 | AO67: 0.3103448276 | AP67: 0.2 | AQ67: 0.4285714286 | AR67: 0.3137254902
A68: 2723 | B68: APARTADO | C68: CIS COMFAMA CHIGORODO CENTRO | D68: 0 | E68: 0 | F68: 0 | G68: 0 | H68: 0 | I68: 2 | J68: 0 | K68: 0 | L68: 1 | M68: 0 | N68: 3 | O68: 0 | P68: =SUM(D68:F68) -> 0 | Q68: =SUM(G68:I68) -> 2 | R68: =SUM(J68:L68) -> 1 | S68: =SUM(M68:O68) -> 3 | T68: =SUM(P68:S68) -> 6 | U68: 0 | V68: 0 | W68: 0 | X68: 0 | Y68: 0 | Z68: 2 | AA68: 1 | AB68: 4 | AC68: 1 | AD68: 4 | AE68: 10 | AF68: 2 | AG68: =SUM(U68:W68) -> 0 | AH68: =SUM(X68:Z68) -> 2 | AI68: =SUM(AA68:AC68) -> 6 | AJ68: =+AD68+AE68+AF68 -> 16 | AK68: 24 | AL68: 1 | AM68: =IF(ISERROR(P68/AG68),0,P68/AG68) -> 0 | AN68: =IF(ISERROR(Q68/AH68),0,Q68/AH68) -> 1 | AO68: =IF(ISERROR(SUM(R68:S68)/SUM(AI68:AJ68)),0,SUM(R68:S68)/SUM(AI68:AJ68)) -> 0.1818181818 | AP68: =IF(ISERROR(R68/AI68),0,R68/AI68) -> 0.1666666667 | AQ68: =IF(ISERROR(S68/AJ68),0,S68/AJ68) -> 0.1875 | AR68: =IF(ISERROR(T68/AK68),0,T68/AK68) -> 0.25
A69: 2724 | B69: BELLO | C69: IPS SURA BELLO | D69: 0 | E69: 0 | F69: 0 | G69: 0 | H69: 0 | I69: 0 | J69: 0 | K69: 0 | L69: 0 | M69: 0 | N69: 0 | O69: 2 | P69: =SUM(D69:F69) -> 0 | Q69: =SUM(G69:I69) -> 0 | R69: =SUM(J69:L69) -> 0 | S69: =SUM(M69:O69) -> 2 | T69: =SUM(P69:S69) -> 2 | U69: 0 | V69: 0 | W69: 0 | X69: 0 | Y69: 0 | Z69: 0 | AA69: 0 | AB69: 0 | AC69: 0 | AD69: 1 | AE69: 1 | AF69: 4 | AG69: =SUM(U69:W69) -> 0 | AH69: =SUM(X69:Z69) -> 0 | AI69: =SUM(AA69:AC69) -> 0 | AJ69: =+AD69+AE69+AF69 -> 6 | AK69: =SUM(AG69:AJ69) -> 6 | AL69: =IF(ISERROR(SUM(P69:Q69)/SUM(AG69:AH69)),0,SUM(P69:Q69)/SUM(AG69:AH69)) -> 0 | AM69: =IF(ISERROR(P69/AG69),0,P69/AG69) -> 0 | AN69: =IF(ISERROR(Q69/AH69),0,Q69/AH69) -> 0 | AO69: =IF(ISERROR(SUM(R69:S69)/SUM(AI69:AJ69)),0,SUM(R69:S69)/SUM(AI69:AJ69)) -> 0.3333333333 | AP69: =IF(ISERROR(R69/AI69),0,R69/AI69) -> 0 | AQ69: =IF(ISERROR(S69/AJ69),0,S69/AJ69) -> 0.3333333333 | AR69: =IF(ISERROR(T69/AK69),0,T69/AK69) -> 0.3333333333
A70: 2725 | B70: MEDELLIN | C70: CIS COMFAMA BUENOS AIRES | D70: 0 | E70: 0 | F70: 0 | G70: 0 | H70: 0 | I70: 0 | J70: 1 | K70: 0 | L70: 1 | M70: 0 | N70: 0 | O70: 0 | P70: 0 | Q70: 0 | R70: 2 | S70: 0 | T70: 2 | U70: 0 | V70: 0 | W70: 0 | X70: 0 | Y70: 0 | Z70: 7 | AA70: 9 | AB70: 12 | AC70: 9 | AD70: 11 | AE70: 12 | AF70: 14 | AG70: 0 | AH70: 7 | AI70: 30 | AJ70: 37 | AK70: 74 | AL70: 0 | AM70: 0 | AN70: 0 | AO70: 0.02985074627 | AP70: 0.06666666667 | AQ70: 0 | AR70: 0.02702702703
A71: 2727 | B71: MEDELLIN | C71: CIS COMFAMA CITY PLAZA | D71: 0 | E71: 0 | F71: 0 | G71: 0 | H71: 0 | I71: 0 | J71: 1 | K71: 0 | L71: 0 | M71: 0 | N71: 0 | O71: 0 | P71: 0 | Q71: 0 | R71: 1 | S71: 0 | T71: 1 | U71: 0 | V71: 0 | W71: 0 | X71: 0 | Y71: 5 | Z71: 8 | AA71: 12 | AB71: 7 | AC71: 6 | AD71: 5 | AE71: 5 | AF71: 10 | AG71: 0 | AH71: 13 | AI71: 25 | AJ71: 20 | AK71: 58 | AL71: 0 | AM71: 0 | AN71: 0 | AO71: 0.02222222222 | AP71: 0.04 | AQ71: 0 | AR71: 0.01724137931
A72: 2729 | B72: LA UNION | C72: CIS COMFAMA LA UNION | D72: 0 | E72: 0 | F72: 0 | G72: 0 | H72: 0 | I72: 0 | J72: 0 | K72: 0 | L72: 0 | M72: 0 | N72: 0 | O72: 0 | P72: 0 | Q72: 0 | R72: 0 | S72: 0 | T72: 0 | U72: 0 | V72: 0 | W72: 0 | X72: 0 | Y72: 0 | Z72: 0 | AA72: 4 | AB72: 4 | AC72: 5 | AD72: 0 | AE72: 2 | AF72: 4 | AG72: =SUM(U72:W72) -> 0 | AH72: =SUM(X72:Z72) -> 0 | AI72: =SUM(AA72:AC72) -> 13 | AJ72: =+AD72+AE72+AF72 -> 6 | AK72: =SUM(AG72:AJ72) -> 19 | AL72: 0 | AM72: 0 | AN72: 0 | AO72: 0 | AP72: 0 | AQ72: 0 | AR72: 0
A73: 2739 | B73: ITAGUI | C73: CIS COMFAMA SAN ANTONIO DE PRADO - ITAGUI | D73: 0 | E73: 0 | F73: 0 | G73: 0 | H73: 0 | I73: 0 | J73: 0 | K73: 0 | L73: 0 | M73: 0 | N73: 1 | O73: 0 | P73: 0 | Q73: 0 | R73: 0 | S73: 1 | T73: 1 | U73: 0 | V73: 0 | W73: 0 | X73: 0 | Y73: 0 | Z73: 0 | AA73: 0 | AB73: 0 | AC73: 1 | AD73: 0 | AE73: 6 | AF73: 3 | AG73: 0 | AH73: 0 | AI73: 1 | AJ73: 9 | AK73: 10 | AL73: =IF(ISERROR(SUM(P73:Q73)/SUM(AG73:AH73)),0,SUM(P73:Q73)/SUM(AG73:AH73)) -> 0 | AM73: 0 | AN73: 0 | AO73: 0.1 | AP73: 0 | AQ73: 0.1111111111 | AR73: 0.1
A74: 2740 | B74: ITAGUI | C74: CIS COMFAMA SANTA MARIA - ITAGUI | D74: 0 | E74: 0 | F74: 0 | G74: 0 | H74: 0 | I74: 0 | J74: 0 | K74: 0 | L74: 0 | M74: 0 | N74: 0 | O74: 0 | P74: 0 | Q74: 0 | R74: 0 | S74: 0 | T74: 0 | U74: 0 | V74: 0 | W74: 0 | X74: 0 | Y74: 0 | Z74: 0 | AA74: 1 | AB74: 0 | AC74: 0 | AD74: 0 | AE74: 2 | AF74: 0 | AG74: =SUM(U74:W74) -> 0 | AH74: =SUM(X74:Z74) -> 0 | AI74: =SUM(AA74:AC74) -> 1 | AJ74: =+AD74+AE74+AF74 -> 2 | AK74: =SUM(AG74:AJ74) -> 3 | AL74: 0 | AM74: 0 | AN74: 0 | AO74: 0 | AP74: 0 | AQ74: 0 | AR74: 0
A75: 2741 | B75: SANTUARIO | C75: CIS COMFAMA SANTUARIO | D75: 0 | E75: 0 | F75: 0 | G75: 0 | H75: 0 | I75: 0 | J75: 0 | K75: 0 | L75: 0 | M75: 0 | N75: 0 | O75: 0 | P75: 0 | Q75: 0 | R75: 0 | S75: 0 | T75: 0 | U75: 0 | V75: 0 | W75: 0 | X75: 0 | Y75: 0 | Z75: 0 | AA75: 0 | AB75: 0 | AC75: 0 | AD75: 0 | AE75: 2 | AF75: 2 | AG75: 0 | AH75: 0 | AI75: 0 | AJ75: =+AD75+AE75+AF75 -> 4 | AK75: =SUM(AG75:AJ75) -> 4 | AL75: =IF(ISERROR(SUM(P75:Q75)/SUM(AG75:AH75)),0,SUM(P75:Q75)/SUM(AG75:AH75)) -> 0 | AM75: 0 | AN75: 0 | AO75: 0 | AP75: 0 | AQ75: 0 | AR75: 0
A76: T1 | C76: TOTAL | D76: =SUM(D7:D75) -> 115 | E76: =SUM(E7:E75) -> 123 | F76: 103 | G76: 102 | H76: 106 | I76: 92 | J76: 113 | K76: 108 | L76: 118 | M76: 135 | N76: 126 | O76: 91 | P76: 341 | Q76: 300 | R76: 339 | S76: 352 | T76: =SUM(T7:T75) -> 1332 | U76: =SUM(U7:U75) -> 1596 | V76: 1394 | W76: 1527 | X76: 1432 | Y76: 1474 | Z76: 1544 | AA76: 1625 | AB76: 1677 | AC76: 1754 | AD76: 1698 | AE76: 1538 | AF76: 1256 | AG76: 4517 | AH76: 4450 | AI76: 5056 | AJ76: 4492 | AK76: 18515 | AL76: =IF(ISERROR(SUM(P76:Q76)/SUM(AG76:AH76)),0,SUM(P76:Q76)/SUM(AG76:AH76)) -> 0.07148433144 | AM76: =IF(ISERROR(P76/AG76),0,P76/AG76) -> 0.07549258357 | AN76: =IF(ISERROR(Q76/AH76),0,Q76/AH76) -> 0.06741573034 | AO76: 0.07237117721 | AP76: 0.06704905063 | AQ76: =IF(ISERROR(S76/AJ76),0,S76/AJ76) -> 0.07836153161 | AR76: =IF(ISERROR(T76/AK76),0,T76/AK76) -> 0.07194166892 | AS76: =SUM(AS7:AS55) ->  | AW76: =+AV76=AK76 -> FALSE
C79: MUNICIPIO | D79: Enero | E79: Febrero | F79: Marzo | G79: Abril | H79: Mayo | I79: Junio | J79: Julio | K79: Agosto | L79: Septiembre | M79: Octubre | N79: Noviembre | O79: Diciembre | P79: I TRIM | Q79: II TRIM | R79: III TRIM | S79: IV TRIM | T79: TOTAL | U79: Enero | V79: Febrero | W79: Marzo | X79: Abril | Y79: Mayo | Z79: Junio | AA79: Julio | AB79: Agosto | AC79: Septiembre | AD79: Octubre | AE79: Noviembre | AF79: Diciembre | AG79: I TRIM | AH79: II TRIM | AI79: III TRIM | AJ79: IV TRIM | AK79: TOTAL | AL79: PORCENTAJE I SEM | AM79: I TRIM | AN79: II TRIM | AO79: PORCERNTAJE II SEM | AP79: III TRIM | AQ79: IV TRIM | AR79: PORCENTAJE ANUAL 2020
A80: A1 | B80: ANTIOQUIA | C80: APARTADO | D80: =SUMIF($B$7:$B$75,$C80,D$7:D$75) -> 19 | E80: =SUMIF($B$7:$B$75,$C80,E$7:E$75) -> 18 | F80: 11 | G80: 11 | H80: 11 | I80: 20 | J80: 14 | K80: 14 | L80: 17 | M80: 31 | N80: 20 | O80: =SUMIF($B$7:$B$75,$C80,O$7:O$75) -> 11 | P80: =SUM(D80:F80) -> 48 | Q80: =SUM(G80:I80) -> 42 | R80: =SUM(J80:L80) -> 45 | S80: =SUM(M80:O80) -> 62 | T80: =SUM(P80:S80) -> 197 | U80: =SUMIF($B$7:$B$75,$C80,U$7:U$75) -> 87 | V80: =SUMIF($B$7:$B$75,$C80,V$7:V$75) -> 75 | W80: 78 | X80: 74 | Y80: 75 | Z80: 89 | AA80: 106 | AB80: 90 | AC80: 114 | AD80: 134 | AE80: 103 | AF80: =SUMIF($B$7:$B$75,$C80,AF$7:AF$75) -> 87 | AG80: =SUM(U80:W80) -> 240 | AH80: =SUM(X80:Z80) -> 238 | AI80: =SUM(AA80:AC80) -> 310 | AJ80: =+AD80+AE80+AF80 -> 324 | AK80: =SUM(AG80:AJ80) -> 1112 | AL80: =IF(ISERROR(SUM(P80:Q80)/SUM(AG80:AH80)),0,SUM(P80:Q80)/SUM(AG80:AH80)) -> 0.1882845188 | AM80: =IF(ISERROR(P80/AG80),0,P80/AG80) -> 0.2 | AN80: =IF(ISERROR(Q80/AH80),0,Q80/AH80) -> 0.1764705882 | AO80: =IF(ISERROR(SUM(R80:S80)/SUM(AI80:AJ80)),0,SUM(R80:S80)/SUM(AI80:AJ80)) -> 0.1687697161 | AP80: =IF(ISERROR(R80/AI80),0,R80/AI80) -> 0.1451612903 | AQ80: =IF(ISERROR(S80/AJ80),0,S80/AJ80) -> 0.1913580247 | AR80: =IF(ISERROR(T80/AK80),0,T80/AK80) -> 0.1771582734 | AS80: =SUMIF($B$7:$B$55,$C80,AS$7:AS$55) -> 
A81: =VLOOKUP(C81,Parametros!B$122:C$181,2,0) -> A2 | B81: ANTIOQUIA | C81: BARBOSA | D81: =SUMIF($B$7:$B$75,$C81,D$7:D$75) -> 0 | E81: 0 | F81: 0 | G81: 0 | H81: 0 | I81: 0 | J81: 1 | K81: 1 | L81: 1 | M81: 1 | N81: 0 | O81: 0 | P81: =SUM(D81:F81) -> 0 | Q81: =SUM(G81:I81) -> 0 | R81: =SUM(J81:L81) -> 3 | S81: =SUM(M81:O81) -> 1 | T81: =SUM(P81:S81) -> 4 | U81: =SUMIF($B$7:$B$75,$C81,U$7:U$75) -> 11 | V81: 4 | W81: 4 | X81: 9 | Y81: 6 | Z81: 9 | AA81: 7 | AB81: 12 | AC81: 9 | AD81: 9 | AE81: 3 | AF81: 9 | AG81: 19 | AH81: 24 | AI81: 28 | AJ81: 21 | AK81: 92 | AL81: =IF(ISERROR(SUM(P81:Q81)/SUM(AG81:AH81)),0,SUM(P81:Q81)/SUM(AG81:AH81)) -> 0 | AM81: 0 | AN81: 0 | AO81: 0.08163265306 | AP81: 0.1071428571 | AQ81: 0.04761904762 | AR81: 0.04347826087
A82: =VLOOKUP(C82,Parametros!B$122:C$181,2,0) -> A3 | B82: ANTIOQUIA | C82: BELLO | D82: 6 | E82: 12 | F82: 12 | G82: 4 | H82: 13 | I82: 7 | J82: 10 | K82: 14 | L82: 12 | M82: 8 | N82: 14 | O82: 8 | P82: =SUM(D82:F82) -> 30 | Q82: 24 | R82: 36 | S82: 30 | T82: 120 | U82: 127 | V82: 149 | W82: 150 | X82: 139 | Y82: 168 | Z82: 128 | AA82: 139 | AB82: 164 | AC82: 191 | AD82: 162 | AE82: 143 | AF82: 112 | AG82: 426 | AH82: 435 | AI82: 494 | AJ82: 417 | AK82: 1772 | AL82: 0.06271777003 | AM82: 0.07042253521 | AN82: 0.05517241379 | AO82: 0.0724478595 | AP82: 0.07287449393 | AQ82: 0.07194244604 | AR82: 0.06772009029
A83: =VLOOKUP(C83,Parametros!B$122:C$181,2,0) -> A4 | B83: ANTIOQUIA | C83: CALDAS | D83: 5 | E83: 3 | F83: 5 | G83: 5 | H83: 5 | I83: 2 | J83: 3 | K83: 3 | L83: 3 | M83: 1 | N83: 7 | O83: 1 | P83: 13 | Q83: 12 | R83: 9 | S83: 9 | T83: 43 | U83: 41 | V83: 43 | W83: 38 | X83: 34 | Y83: 40 | Z83: 29 | AA83: 48 | AB83: 46 | AC83: 33 | AD83: 48 | AE83: 48 | AF83: 22 | AG83: 122 | AH83: 103 | AI83: 127 | AJ83: 118 | AK83: 470 | AL83: 0.1111111111 | AM83: 0.106557377 | AN83: 0.1165048544 | AO83: 0.07346938776 | AP83: 0.07086614173 | AQ83: 0.07627118644 | AR83: 0.0914893617
A84: =VLOOKUP(C84,Parametros!B$122:C$181,2,0) -> A5 | B84: ANTIOQUIA | C84: COPACABANA | D84: 2 | E84: 1 | F84: 3 | G84: 1 | H84: 1 | I84: 0 | J84: 0 | K84: 2 | L84: 1 | M84: 3 | N84: 1 | O84: 3 | P84: 6 | Q84: 2 | R84: 3 | S84: 7 | T84: 18 | U84: 21 | V84: 14 | W84: 21 | X84: 25 | Y84: 24 | Z84: 25 | AA84: 17 | AB84: 23 | AC84: 19 | AD84: 27 | AE84: 20 | AF84: 15 | AG84: 56 | AH84: 74 | AI84: 59 | AJ84: 62 | AK84: 251 | AL84: 0.06153846154 | AM84: 0.1071428571 | AN84: 0.02702702703 | AO84: 0.0826446281 | AP84: 0.05084745763 | AQ84: 0.1129032258 | AR84: 0.07171314741
A85: =VLOOKUP(C85,Parametros!B$122:C$181,2,0) -> A6 | B85: ANTIOQUIA | C85: DON MATIAS | D85: 0 | E85: 2 | F85: 0 | G85: 1 | H85: 3 | I85: 0 | J85: 2 | K85: 1 | L85: 0 | M85: 0 | N85: 1 | O85: 0 | P85: 2 | Q85: 4 | R85: 3 | S85: 1 | T85: 10 | U85: 9 | V85: 7 | W85: 8 | X85: 6 | Y85: 8 | Z85: 7 | AA85: 8 | AB85: 8 | AC85: 14 | AD85: 8 | AE85: 9 | AF85: 5 | AG85: 24 | AH85: 21 | AI85: 30 | AJ85: 22 | AK85: 97 | AL85: 0.1333333333 | AM85: 0.08333333333 | AN85: 0.1904761905 | AO85: 0.07692307692 | AP85: 0.1 | AQ85: 0.04545454545 | AR85: 0.1030927835
A86: =VLOOKUP(C86,Parametros!B$122:C$181,2,0) -> A7 | B86: ANTIOQUIA | C86: ENVIGADO | D86: 2 | E86: 0 | F86: 1 | G86: 1 | H86: 3 | I86: 2 | J86: 0 | K86: 2 | L86: 0 | M86: 0 | N86: 2 | O86: 0 | P86: 3 | Q86: 6 | R86: 2 | S86: 2 | T86: 13 | U86: 50 | V86: 36 | W86: 49 | X86: 41 | Y86: 43 | Z86: 43 | AA86: 41 | AB86: 44 | AC86: 32 | AD86: 34 | AE86: 37 | AF86: 32 | AG86: 135 | AH86: 127 | AI86: 117 | AJ86: 103 | AK86: 482 | AL86: 0.03435114504 | AM86: 0.02222222222 | AN86: 0.04724409449 | AO86: 0.01818181818 | AP86: 0.01709401709 | AQ86: 0.01941747573 | AR86: 0.02697095436
A87: =VLOOKUP(C87,Parametros!B$122:C$181,2,0) -> A8 | B87: ANTIOQUIA | C87: GIRARDOTA | D87: 3 | E87: 2 | F87: 0 | G87: 2 | H87: 0 | I87: 1 | J87: 0 | K87: 1 | L87: 1 | M87: 0 | N87: 4 | O87: 1 | P87: 5 | Q87: 3 | R87: 2 | S87: 5 | T87: 15 | U87: 25 | V87: 19 | W87: 11 | X87: 16 | Y87: 14 | Z87: 17 | AA87: 14 | AB87: 18 | AC87: 21 | AD87: 14 | AE87: 21 | AF87: 12 | AG87: 55 | AH87: 47 | AI87: 53 | AJ87: 47 | AK87: 202 | AL87: 0.07843137255 | AM87: 0.09090909091 | AN87: 0.06382978723 | AO87: 0.07 | AP87: 0.03773584906 | AQ87: 0.1063829787 | AR87: 0.07425742574
A88: =VLOOKUP(C88,Parametros!B$122:C$181,2,0) -> A9 | B88: ANTIOQUIA | C88: GUARNE | D88: 1 | E88: 0 | F88: 1 | G88: 0 | H88: 1 | I88: 0 | J88: 0 | K88: 0 | L88: 1 | M88: 0 | N88: 1 | O88: 0 | P88: 2 | Q88: 1 | R88: 1 | S88: 1 | T88: 5 | U88: 13 | V88: 3 | W88: 13 | X88: 7 | Y88: 10 | Z88: 14 | AA88: 9 | AB88: 11 | AC88: 14 | AD88: 6 | AE88: 10 | AF88: 3 | AG88: 29 | AH88: 31 | AI88: 34 | AJ88: 19 | AK88: 113 | AL88: 0.05 | AM88: 0.06896551724 | AN88: 0.03225806452 | AO88: 0.03773584906 | AP88: 0.02941176471 | AQ88: 0.05263157895 | AR88: 0.04424778761
A89: =VLOOKUP(C89,Parametros!B$122:C$181,2,0) -> A10 | B89: ANTIOQUIA | C89: ITAGUI | D89: 4 | E89: 8 | F89: 4 | G89: 9 | H89: 6 | I89: 4 | J89: 7 | K89: 5 | L89: 6 | M89: 11 | N89: 8 | O89: 9 | P89: 16 | Q89: 19 | R89: 18 | S89: 28 | T89: 81 | U89: 98 | V89: 96 | W89: 112 | X89: 110 | Y89: 98 | Z89: 93 | AA89: 103 | AB89: 102 | AC89: 137 | AD89: 116 | AE89: 109 | AF89: 99 | AG89: 306 | AH89: 301 | AI89: 342 | AJ89: 324 | AK89: 1273 | AL89: 0.05766062603 | AM89: 0.0522875817 | AN89: 0.06312292359 | AO89: 0.06906906907 | AP89: 0.05263157895 | AQ89: 0.08641975309 | AR89: 0.06362922231
A90: =VLOOKUP(C90,Parametros!B$122:C$181,2,0) -> A11 | B90: ANTIOQUIA | C90: LA CEJA | D90: 3 | E90: 6 | F90: 3 | G90: 2 | H90: 2 | I90: 2 | J90: 2 | K90: 0 | L90: 6 | M90: 3 | N90: 3 | O90: 0 | P90: 12 | Q90: 6 | R90: 8 | S90: 6 | T90: 32 | U90: 32 | V90: 28 | W90: 23 | X90: 20 | Y90: 33 | Z90: 32 | AA90: 35 | AB90: 34 | AC90: 36 | AD90: 30 | AE90: 25 | AF90: 18 | AG90: 83 | AH90: 85 | AI90: 105 | AJ90: 73 | AK90: 346 | AL90: 0.1071428571 | AM90: 0.1445783133 | AN90: 0.07058823529 | AO90: 0.07865168539 | AP90: 0.07619047619 | AQ90: 0.08219178082 | AR90: 0.09248554913
A91: =VLOOKUP(C91,Parametros!B$122:C$181,2,0) -> A12 | B91: ANTIOQUIA | C91: MARINILLA | D91: 1 | E91: 1 | F91: 1 | G91: 4 | H91: 1 | I91: 1 | J91: 1 | K91: 2 | L91: 1 | M91: 3 | N91: 1 | O91: 0 | P91: 3 | Q91: 6 | R91: 4 | S91: 4 | T91: 17 | U91: 15 | V91: 17 | W91: 21 | X91: 21 | Y91: 22 | Z91: 9 | AA91: 13 | AB91: 29 | AC91: 22 | AD91: 28 | AE91: 18 | AF91: 10 | AG91: 53 | AH91: 52 | AI91: 64 | AJ91: 56 | AK91: 225 | AL91: 0.08571428571 | AM91: 0.05660377358 | AN91: 0.1153846154 | AO91: 0.06666666667 | AP91: 0.0625 | AQ91: 0.07142857143 | AR91: 0.07555555556
A92: =VLOOKUP(C92,Parametros!B$122:C$181,2,0) -> A13 | B92: ANTIOQUIA | C92: MEDELLIN | D92: 53 | E92: 53 | F92: 47 | G92: 50 | H92: 43 | I92: 42 | J92: 49 | K92: 40 | L92: 57 | M92: 58 | N92: 41 | O92: 41 | P92: 153 | Q92: 135 | R92: 146 | S92: 140 | T92: 574 | U92: 787 | V92: 669 | W92: 760 | X92: 694 | Y92: 698 | Z92: 764 | AA92: 793 | AB92: 813 | AC92: 817 | AD92: 812 | AE92: 688 | AF92: 637 | AG92: 2216 | AH92: 2156 | AI92: 2423 | AJ92: 2137 | AK92: 8932 | AL92: 0.06587374199 | AM92: 0.0690433213 | AN92: 0.06261595547 | AO92: 0.06271929825 | AP92: 0.06025588114 | AQ92: 0.06551240056 | AR92: 0.06426332288
A93: =VLOOKUP(C93,Parametros!B$122:C$181,2,0) -> A14 | B93: ANTIOQUIA | C93: RIONEGRO | D93: 4 | E93: 2 | F93: 6 | G93: 6 | H93: 3 | I93: 1 | J93: 5 | K93: 5 | L93: 1 | M93: 4 | N93: 7 | O93: 4 | P93: 12 | Q93: 10 | R93: 11 | S93: 15 | T93: 48 | U93: 78 | V93: 80 | W93: 61 | X93: 71 | Y93: 64 | Z93: 78 | AA93: 78 | AB93: 73 | AC93: 59 | AD93: 75 | AE93: 85 | AF93: 27 | AG93: 219 | AH93: 213 | AI93: 210 | AJ93: 187 | AK93: 829 | AL93: 0.05092592593 | AM93: 0.05479452055 | AN93: 0.04694835681 | AO93: 0.06549118388 | AP93: 0.05238095238 | AQ93: 0.08021390374 | AR93: 0.05790108565
A94: =VLOOKUP(C94,Parametros!B$122:C$181,2,0) -> A15 | B94: ANTIOQUIA | C94: SABANETA | D94: 3 | E94: 3 | F94: 0 | G94: 0 | H94: 0 | I94: 0 | J94: 2 | K94: 1 | L94: 0 | M94: 1 | N94: 0 | O94: 0 | P94: 6 | Q94: 0 | R94: 3 | S94: 1 | T94: 10 | U94: 38 | V94: 28 | W94: 18 | X94: 24 | Y94: 18 | Z94: 29 | AA94: 34 | AB94: 32 | AC94: 33 | AD94: 31 | AE94: 35 | AF94: 23 | AG94: 84 | AH94: 71 | AI94: 99 | AJ94: 89 | AK94: 343 | AL94: 0.03870967742 | AM94: 0.07142857143 | AN94: 0 | AO94: 0.02127659574 | AP94: 0.0303030303 | AQ94: 0.01123595506 | AR94: 0.02915451895
A95: =VLOOKUP(C95,Parametros!B$122:C$181,2,0) -> A16 | B95: ANTIOQUIA | C95: SANTA ROSA DE OSOS | D95: 0 | E95: 1 | F95: 1 | G95: 0 | H95: 1 | I95: 0 | J95: 1 | K95: 0 | L95: 0 | M95: 1 | N95: 1 | O95: 0 | P95: 2 | Q95: 1 | R95: 1 | S95: 2 | T95: 6 | U95: 2 | V95: 3 | W95: 8 | X95: 5 | Y95: 7 | Z95: 8 | AA95: 7 | AB95: 3 | AC95: 11 | AD95: 12 | AE95: 16 | AF95: 3 | AG95: 13 | AH95: 20 | AI95: 21 | AJ95: 31 | AK95: 85 | AL95: 0.09090909091 | AM95: 0.1538461538 | AN95: 0.05 | AO95: 0.05769230769 | AP95: 0.04761904762 | AQ95: 0.06451612903 | AR95: 0.07058823529
A96: =VLOOKUP(C96,Parametros!B$122:C$181,2,0) -> A17 | B96: ANTIOQUIA | C96: YARUMAL | D96: 0 | E96: 0 | F96: 0 | G96: 0 | H96: 0 | I96: 0 | J96: 1 | K96: 0 | L96: 0 | M96: 0 | N96: 1 | O96: 0 | P96: 0 | Q96: 0 | R96: 1 | S96: 1 | T96: 2 | U96: 4 | V96: 0 | W96: 3 | X96: 2 | Y96: 1 | Z96: 2 | AA96: 1 | AB96: 0 | AC96: 2 | AD96: 2 | AE96: 2 | AF96: 0 | AG96: 7 | AH96: 5 | AI96: 3 | AJ96: 4 | AK96: 19 | AL96: 0 | AM96: 0 | AN96: 0 | AO96: 0.2857142857 | AP96: 0.3333333333 | AQ96: 0.25 | AR96: 0.1052631579
A97: =VLOOKUP(C97,Parametros!B$122:C$181,2,0) -> A18 | B97: QUINDIO | C97: ARMENIA | D97: 2 | E97: 4 | F97: 3 | G97: 2 | H97: 3 | I97: 1 | J97: 3 | K97: 2 | L97: 3 | M97: 0 | N97: 1 | O97: 0 | P97: 9 | Q97: 6 | R97: 8 | S97: 1 | T97: 24 | U97: 42 | V97: 40 | W97: 35 | X97: 41 | Y97: 32 | Z97: 42 | AA97: 50 | AB97: 39 | AC97: 47 | AD97: 38 | AE97: 42 | AF97: 8 | AG97: 117 | AH97: 115 | AI97: 136 | AJ97: 88 | AK97: 456 | AL97: 0.06465517241 | AM97: 0.07692307692 | AN97: 0.05217391304 | AO97: 0.04017857143 | AP97: 0.05882352941 | AQ97: 0.01136363636 | AR97: 0.05263157895
A98: =VLOOKUP(C98,Parametros!B$122:C$181,2,0) -> A19 | B98: CALDAS | C98: MANIZALES | D98: 2 | E98: 2 | F98: 3 | G98: 1 | H98: 4 | I98: 5 | J98: 5 | K98: 8 | L98: 3 | M98: 2 | N98: 4 | O98: 5 | P98: 7 | Q98: 10 | R98: 16 | S98: 11 | T98: 44 | U98: 58 | V98: 42 | W98: 57 | X98: 32 | Y98: 46 | Z98: 62 | AA98: 54 | AB98: 60 | AC98: 66 | AD98: 49 | AE98: 48 | AF98: 61 | AG98: 157 | AH98: 140 | AI98: 180 | AJ98: 158 | AK98: 635 | AL98: 0.05723905724 | AM98: 0.04458598726 | AN98: 0.07142857143 | AO98: 0.0798816568 | AP98: 0.08888888889 | AQ98: 0.06962025316 | AR98: 0.06929133858
A99: =VLOOKUP(C99,Parametros!B$122:C$181,2,0) -> A20 | B99: RISARALDA | C99: PEREIRA | D99: 0 | E99: 2 | F99: 0 | G99: 2 | H99: 1 | I99: 4 | J99: 2 | K99: 3 | L99: 1 | M99: 2 | N99: 3 | O99: 2 | P99: =SUM(D99:F99) -> 2 | Q99: =SUM(G99:I99) -> 7 | R99: =SUM(J99:L99) -> 6 | S99: =SUM(M99:O99) -> 7 | T99: 22 | U99: 33 | V99: 19 | W99: 28 | X99: 32 | Y99: 31 | Z99: 36 | AA99: 35 | AB99: 38 | AC99: 39 | AD99: 29 | AE99: 31 | AF99: 37 | AG99: =SUM(U99:W99) -> 80 | AH99: =SUM(X99:Z99) -> 99 | AI99: 112 | AJ99: 97 | AK99: 388 | AL99: 0.05027932961 | AM99: 0.025 | AN99: 0.07070707071 | AO99: 0.06220095694 | AP99: 0.05357142857 | AQ99: 0.07216494845 | AR99: 0.05670103093
A100: =VLOOKUP(C100,Parametros!B$122:C$181,2,0) -> A21 | B100: ANTIOQUIA | C100: LA ESTRELLA | D100: 1 | E100: 0 | F100: 2 | G100: 1 | H100: 0 | I100: 0 | J100: 2 | K100: 2 | L100: 0 | M100: 0 | N100: 0 | O100: 1 | P100: 3 | Q100: 1 | R100: 4 | S100: 1 | T100: =SUM(P100:S100) -> 9 | U100: 9 | V100: 6 | W100: 15 | X100: 10 | Y100: 11 | Z100: 12 | AA100: 9 | AB100: 10 | AC100: 7 | AD100: 8 | AE100: 8 | AF100: 12 | AG100: 30 | AH100: 33 | AI100: =SUM(AA100:AC100) -> 26 | AJ100: =+AD100+AE100+AF100 -> 28 | AK100: =SUM(AG100:AJ100) -> 117 | AL100: 0.06349206349 | AM100: 0.1 | AN100: 0.0303030303 | AO100: 0.09259259259 | AP100: 0.1538461538 | AQ100: 0.03571428571 | AR100: 0.07692307692
A101: =VLOOKUP(C101,Parametros!B$122:C$181,2,0) -> A22 | B101: ANTIOQUIA | C101: CARMEN DE VIBORAL | D101: 4 | E101: 2 | F101: 0 | G101: 0 | H101: 3 | I101: 0 | J101: 0 | K101: 1 | L101: 1 | M101: 3 | N101: 0 | O101: 0 | P101: 6 | Q101: 3 | R101: 2 | S101: 3 | T101: 14 | U101: 11 | V101: 11 | W101: 8 | X101: 9 | Y101: 9 | Z101: 9 | AA101: 9 | AB101: 13 | AC101: 12 | AD101: 12 | AE101: 13 | AF101: 7 | AG101: 30 | AH101: 27 | AI101: 34 | AJ101: 32 | AK101: 123 | AL101: 0.1578947368 | AM101: 0.2 | AN101: 0.1111111111 | AO101: 0.07575757576 | AP101: 0.05882352941 | AQ101: 0.09375 | AR101: 0.1138211382
A102: =VLOOKUP(C102,Parametros!B$122:C$181,2,0) -> A23 | B102: RISARALDA | C102: DOSQUEBRADAS | D102: 0 | E102: 0 | F102: 0 | G102: 0 | H102: 0 | I102: 0 | J102: 0 | K102: 0 | L102: 0 | M102: 2 | N102: 0 | O102: 0 | P102: 0 | Q102: 0 | R102: 0 | S102: 2 | T102: 2 | U102: 5 | V102: 1 | W102: 2 | X102: 4 | Y102: 3 | Z102: 3 | AA102: 3 | AB102: 4 | AC102: 2 | AD102: 3 | AE102: 2 | AF102: 3 | AG102: 8 | AH102: 10 | AI102: 9 | AJ102: 8 | AK102: 35 | AL102: 0 | AM102: 0 | AN102: 0 | AO102: 0.1176470588 | AP102: 0 | AQ102: 0.25 | AR102: 0.05714285714
A103: =VLOOKUP(C103,Parametros!B$122:C$181,2,0) -> A24 | B103: ANTIOQUIA | C103: TURBO | D103: 0 | E103: 1 | F103: 0 | G103: 0 | H103: 2 | I103: 0 | J103: 3 | K103: 1 | L103: 3 | M103: 1 | N103: 6 | O103: 5 | P103: 1 | Q103: 2 | R103: 7 | S103: 12 | T103: 22 | U103: 0 | V103: 4 | W103: 4 | X103: 6 | Y103: 13 | Z103: 4 | AA103: 8 | AB103: 7 | AC103: 12 | AD103: 11 | AE103: 18 | AF103: 8 | AG103: 8 | AH103: 23 | AI103: 27 | AJ103: 37 | AK103: 95 | AL103: =IF(ISERROR(SUM(P103:Q103)/SUM(AG103:AH103)),0,SUM(P103:Q103)/SUM(AG103:AH103)) -> 0.09677419355 | AM103: =IF(ISERROR(P103/AG103),0,P103/AG103) -> 0.125 | AN103: =IF(ISERROR(Q103/AH103),0,Q103/AH103) -> 0.08695652174 | AO103: =IF(ISERROR(SUM(R103:S103)/SUM(AI103:AJ103)),0,SUM(R103:S103)/SUM(AI103:AJ103)) -> 0.296875 | AP103: =IF(ISERROR(R103/AI103),0,R103/AI103) -> 0.2592592593 | AQ103: =IF(ISERROR(S103/AJ103),0,S103/AJ103) -> 0.3243243243 | AR103: =IF(ISERROR(T103/AK103),0,T103/AK103) -> 0.2315789474
A104: =VLOOKUP(C104,Parametros!B$122:C$181,2,0) -> A25 | B104: ANTIOQUIA | C104: LA UNION | D104: 0 | E104: 0 | F104: 0 | G104: 0 | H104: 0 | I104: 0 | J104: 0 | K104: 0 | L104: 0 | M104: 0 | N104: 0 | O104: 0 | P104: 0 | Q104: 0 | R104: 0 | S104: 0 | T104: 0 | U104: 0 | V104: 0 | W104: 0 | X104: 0 | Y104: 0 | Z104: 0 | AA104: 4 | AB104: 4 | AC104: 5 | AD104: 0 | AE104: 2 | AF104: 4 | AG104: 0 | AH104: 0 | AI104: 13 | AJ104: 6 | AK104: 19 | AL104: =IF(ISERROR(SUM(P104:Q104)/SUM(AG104:AH104)),0,SUM(P104:Q104)/SUM(AG104:AH104)) -> 0 | AM104: =IF(ISERROR(P104/AG104),0,P104/AG104) -> 0 | AN104: =IF(ISERROR(Q104/AH104),0,Q104/AH104) -> 0 | AO104: =IF(ISERROR(SUM(R104:S104)/SUM(AI104:AJ104)),0,SUM(R104:S104)/SUM(AI104:AJ104)) -> 0 | AP104: =IF(ISERROR(R104/AI104),0,R104/AI104) -> 0 | AQ104: =IF(ISERROR(S104/AJ104),0,S104/AJ104) -> 0 | AR104: =IF(ISERROR(T104/AK104),0,T104/AK104) -> 0
A105: =VLOOKUP(C105,Parametros!B$122:C$181,2,0) -> A26 | B105: ANTIOQUIA | C105: SANTUARIO | D105: 0 | E105: 0 | F105: 0 | G105: 0 | H105: 0 | I105: 0 | J105: 0 | K105: 0 | L105: 0 | M105: 0 | N105: 0 | O105: =SUMIF($B$7:$B$75,$C105,O$7:O$75) -> 0 | P105: 0 | Q105: 0 | R105: 0 | S105: 0 | T105: 0 | U105: 0 | V105: 0 | W105: 0 | X105: 0 | Y105: 0 | Z105: 0 | AA105: 0 | AB105: 0 | AC105: 0 | AD105: 0 | AE105: 2 | AF105: 2 | AG105: 0 | AH105: 0 | AI105: 0 | AJ105: 4 | AK105: 4 | AM105: 0 | AN105: 0 | AO105: 0 | AP105: 0 | AQ105: 0 | AR105: 0
C106: TOTAL | D106: =SUM(D80:D105) -> 115 | E106: =SUM(E80:E105) -> 123 | F106: 103 | G106: 102 | H106: 106 | I106: 92 | J106: 113 | K106: 108 | L106: 118 | M106: 135 | N106: 126 | O106: =SUM(O80:O105) -> 91 | P106: =SUM(P80:P105) -> 341 | Q106: 300 | R106: 339 | S106: 352 | T106: 1332 | U106: =SUM(U80:U105) -> 1596 | V106: 1394 | W106: 1527 | X106: 1432 | Y106: 1474 | Z106: 1544 | AA106: 1625 | AB106: 1677 | AC106: 1754 | AD106: 1698 | AE106: 1538 | AF106: 1256 | AG106: 4517 | AH106: 4450 | AI106: 5056 | AJ106: 4492 | AK106: 18515 | AL106: =IF(ISERROR(SUM(P106:Q106)/SUM(AG106:AH106)),0,SUM(P106:Q106)/SUM(AG106:AH106)) -> 0.07148433144 | AM106: 0.07549258357 | AN106: 0.06741573034 | AO106: 0.07237117721 | AP106: 0.06704905063 | AQ106: 0.07836153161 | AR106: 0.07194166892 | AS106: =SUM(AS80:AS99) -> 
C109: REGIONAL ANTIOQUIA | D109: Enero | E109: Febrero | F109: Marzo | G109: Abril | H109: Mayo | I109: Junio | J109: Julio | K109: Agosto | L109: Septiembre | M109: Octubre | N109: Noviembre | O109: Diciembre | P109: I TRIM | Q109: II TRIM | R109: III TRIM | S109: IV TRIM | T109: TOTAL | U109: Enero | V109: Febrero | W109: Marzo | X109: Abril | Y109: Mayo | Z109: Junio | AA109: Julio | AB109: Agosto | AC109: Septiembre | AD109: Octubre | AE109: Noviembre | AF109: Diciembre | AG109: I TRIM | AH109: II TRIM | AI109: III TRIM | AJ109: IV TRIM | AK109: TOTAL | AL109: PORCENTAJE I SEM | AM109: I TRIM | AN109: II TRIM | AO109: PORCERNTAJE II SEM | AP109: III TRIM | AQ109: IV TRIM | AR109: PORCENTAJE ANUAL 2020
C110: DATOS | D110: =D76 -> 115 | E110: =E76 -> 123 | F110: =F76 -> 103 | G110: 102 | H110: 106 | I110: 92 | J110: 113 | K110: 108 | L110: 118 | M110: 135 | N110: 126 | O110: 91 | P110: =SUM(D110:F110) -> 341 | Q110: =SUM(G110:I110) -> 300 | R110: =SUM(J110:L110) -> 339 | S110: =SUM(M110:O110) -> 352 | T110: =SUM(P110:S110) -> 1332 | U110: =U76 -> 1596 | V110: 1394 | W110: 1527 | X110: 1432 | Y110: 1474 | Z110: 1544 | AA110: 1625 | AB110: 1677 | AC110: 1754 | AD110: 1698 | AE110: 1538 | AF110: 1256 | AG110: =SUM(U110:W110) -> 4517 | AH110: =SUM(X110:Z110) -> 4450 | AI110: =SUM(AA110:AC110) -> 5056 | AJ110: =SUM(AD110:AF110) -> 4492 | AK110: =SUM(AG110:AJ110) -> 18515 | AL110: =IF(ISERROR(SUM(P110:Q110)/SUM(AG110:AH110)),0,SUM(P110:Q110)/SUM(AG110:AH110)) -> 0.07148433144 | AM110: =IF(ISERROR(P110/AG110),0,P110/AG110) -> 0.07549258357 | AN110: =IF(ISERROR(Q110/AH110),0,Q110/AH110) -> 0.06741573034 | AO110: =IF(ISERROR(SUM(R110:S110)/SUM(AI110:AJ110)),0,SUM(R110:S110)/SUM(AI110:AJ110)) -> 0.07237117721 | AP110: =IF(ISERROR(R110/AI110),0,R110/AI110) -> 0.06704905063 | AQ110: =IF(ISERROR(S110/AJ110),0,S110/AJ110) -> 0.07836153161 | AR110: =IF(ISERROR(T110/AK110),0,T110/AK110) -> 0.07194166892 | AS110: =AS76 -> 
C113: REGIONAL OCCIDENTE | D113: I trimestre-2020 | G113: II trmestre-2020 | J113: III Trimestre-2020 | M113: IV trimestre-2020 | P113: MADRES ADOLESCENTE | T113: TOTAL | AG113: NÚMEROS DE NACIMIENTOS | AK113: TOTAL NACIMIENTOS | AL113: PROPORCIÓN
C115: IPS | D115: Enero | E115: Febrero | F115: Marzo | G115: Abril | H115: Mayo | I115: Junio | J115: Julio | K115: Agosto | L115: Septiembre | M115: Octubre | N115: Noviembre | O115: Diciembre | P115: I TRIM | Q115: II TRIM | R115: III TRIM | S115: IV TRIM | U115: Enero | V115: Febrero | W115: Marzo | X115: Abril | Y115: Mayo | Z115: Junio | AA115: Julio | AB115: Agosto | AC115: Septiembre | AD115: Octubre | AE115: Noviembre | AF115: Diciembre | AG115: I TRIM | AH115: II TRIM | AI115: III TRIM | AJ115: IV TRIM | AL115: PORCENTAJE I SEM | AM115: I TRIM | AN115: II TRIM | AO115: PORCERNTAJE II SEM | AP115: III TRIM | AQ115: IV TRIM | AR115: PORCENTAJE ANUAL 2020
A116: 2676 | B116: PALMIRA | C116: CENTRO DE EXCELENCIA CLINICA SANTA HELENA | D116: 0 | E116: 1 | F116: 0 | G116: 1 | H116: 0 | I116: 0 | J116: 0 | K116: 0 | L116: 0 | M116: 1 | N116: 2 | O116: 2 | P116: =SUM(D116:F116) -> 1 | Q116: =SUM(G116:I116) -> 1 | R116: =SUM(J116:L116) -> 0 | S116: =SUM(M116:O116) -> 5 | T116: =SUM(P116:S116) -> 7 | U116: 9 | V116: 5 | W116: 15 | X116: 11 | Y116: 7 | Z116: 6 | AA116: 13 | AB116: 12 | AC116: 12 | AD116: 19 | AE116: 17 | AF116: 9 | AG116: =SUM(U116:W116) -> 29 | AH116: =SUM(X116:Z116) -> 24 | AI116: =SUM(AA116:AC116) -> 37 | AJ116: =+AD116+AE116+AF116 -> 45 | AK116: =SUM(AG116:AJ116) -> 135 | AL116: =IF(ISERROR(SUM(P116:Q116)/SUM(AG116:AH116)),0,SUM(P116:Q116)/SUM(AG116:AH116)) -> 0.03773584906 | AM116: =IF(ISERROR(P116/AG116),0,P116/AG116) -> 0.03448275862 | AN116: =IF(ISERROR(Q116/AH116),0,Q116/AH116) -> 0.04166666667 | AO116: =IF(ISERROR(SUM(R116:S116)/SUM(AI116:AJ116)),0,SUM(R116:S116)/SUM(AI116:AJ116)) -> 0.06097560976 | AP116: =IF(ISERROR(R116/AI116),0,R116/AI116) -> 0 | AQ116: =IF(ISERROR(S116/AJ116),0,S116/AJ116) -> 0.1111111111 | AR116: =IF(ISERROR(T116/AK116),0,T116/AK116) -> 0.05185185185
A117: 1030 | B117: CALI | C117: IPS VIVIR | D117: 1 | E117: 2 | F117: 2 | G117: 3 | H117: 1 | I117: 6 | J117: 3 | K117: 3 | L117: 2 | M117: 1 | N117: 1 | O117: 0 | P117: =SUM(D117:F117) -> 5 | Q117: =SUM(G117:I117) -> 10 | R117: =SUM(J117:L117) -> 8 | S117: =SUM(M117:O117) -> 2 | T117: =SUM(P117:S117) -> 25 | U117: 33 | V117: 28 | W117: 48 | X117: 48 | Y117: 42 | Z117: 42 | AA117: 42 | AB117: 58 | AC117: 46 | AD117: 56 | AE117: 27 | AF117: 15 | AG117: =SUM(U117:W117) -> 109 | AH117: =SUM(X117:Z117) -> 132 | AI117: =SUM(AA117:AC117) -> 146 | AJ117: =+AD117+AE117+AF117 -> 98 | AK117: =SUM(AG117:AJ117) -> 485 | AL117: =IF(ISERROR(SUM(P117:Q117)/SUM(AG117:AH117)),0,SUM(P117:Q117)/SUM(AG117:AH117)) -> 0.0622406639 | AM117: 0.04587155963 | AN117: 0.07575757576 | AO117: 0.04098360656 | AP117: 0.05479452055 | AQ117: 0.02040816327 | AR117: 0.05154639175
A118: 1130 | B118: CALI | C118: SALUD SURA CHIPICHAPE | D118: 0 | E118: 0 | F118: 0 | G118: 0 | H118: 0 | I118: 0 | J118: 0 | K118: 0 | L118: 0 | M118: 0 | N118: 0 | O118: 0 | P118: =SUM(D118:F118) -> 0 | Q118: =SUM(G118:I118) -> 0 | R118: =SUM(J118:L118) -> 0 | S118: =SUM(M118:O118) -> 0 | T118: =SUM(P118:S118) -> 0 | U118: 0 | V118: 0 | W118: 1 | X118: 2 | Y118: 0 | Z118: 1 | AA118: 2 | AB118: 0 | AC118: 1 | AD118: 0 | AE118: 1 | AF118: 0 | AG118: =SUM(U118:W118) -> 1 | AH118: =SUM(X118:Z118) -> 3 | AI118: =SUM(AA118:AC118) -> 3 | AJ118: =+AD118+AE118+AF118 -> 1 | AK118: =SUM(AG118:AJ118) -> 8 | AL118: 0 | AM118: 0 | AN118: 0 | AO118: 0 | AP118: 0 | AQ118: 0 | AR118: 0
A119: 51 | B119: CALI | C119: IPS SURA LA FLORA | D119: 3 | E119: 1 | F119: 3 | G119: 0 | H119: 2 | I119: 2 | J119: 1 | K119: 1 | L119: 6 | M119: 0 | N119: 0 | O119: 1 | P119: 7 | Q119: 4 | R119: 8 | S119: 1 | T119: 20 | U119: 49 | V119: 43 | W119: 45 | X119: 42 | Y119: 49 | Z119: 42 | AA119: 40 | AB119: 43 | AC119: 46 | AD119: 28 | AE119: 29 | AF119: 30 | AG119: 137 | AH119: 133 | AI119: 129 | AJ119: =+AD119+AE119+AF119 -> 87 | AK119: =SUM(AG119:AJ119) -> 486 | AL119: 0.04074074074 | AM119: 0.05109489051 | AN119: 0.03007518797 | AO119: 0.04166666667 | AP119: 0.06201550388 | AQ119: 0.01149425287 | AR119: 0.04115226337
A120: 2666 | B120: CALI | C120: IPS SURA PASO ANCHO | D120: 0 | E120: 0 | F120: 0 | G120: 0 | H120: 0 | I120: 0 | J120: 0 | K120: 0 | L120: 0 | M120: 0 | N120: 0 | O120: 0 | P120: 0 | Q120: 0 | R120: 0 | S120: 0 | T120: 0 | U120: 1 | V120: 2 | W120: 3 | X120: 2 | Y120: 0 | Z120: 0 | AA120: 0 | AB120: 1 | AC120: 2 | AD120: 1 | AE120: 0 | AF120: 0 | AG120: 6 | AH120: 2 | AI120: 3 | AJ120: 1 | AK120: 12 | AL120: 0 | AM120: 0 | AN120: 0 | AO120: 0 | AP120: 0 | AQ120: 0 | AR120: 0
A121: 122354 | B121: CALI | C121: AMIGOS DE LA SALUD AMISALUD S.A.S | D121: 0 | E121: 0 | F121: 1 | G121: 0 | H121: 0 | I121: 2 | J121: 0 | K121: 0 | L121: 0 | M121: 1 | N121: 0 | O121: 0 | P121: =SUM(D121:F121) -> 1 | Q121: =SUM(G121:I121) -> 2 | R121: =SUM(J121:L121) -> 0 | S121: =SUM(M121:O121) -> 1 | T121: =SUM(P121:S121) -> 4 | U121: 1 | V121: 9 | W121: 5 | X121: 10 | Y121: 7 | Z121: 6 | AA121: 5 | AB121: 2 | AC121: 3 | AD121: 8 | AE121: 4 | AF121: 2 | AG121: 15 | AH121: 23 | AI121: 10 | AJ121: 14 | AK121: 62 | AL121: 0.07894736842 | AM121: 0.06666666667 | AN121: 0.08695652174 | AO121: 0.04166666667 | AP121: 0 | AQ121: 0.07142857143 | AR121: 0.06451612903
A122: 83 | B122: CALI | C122: SALUD EN CASA CALI | D122: 0 | E122: 0 | F122: 0 | G122: 0 | H122: 0 | I122: 0 | J122: 0 | K122: 0 | L122: 0 | M122: 0 | N122: 0 | O122: 0 | P122: 0 | Q122: 0 | R122: 0 | S122: 0 | T122: 0 | U122: 0 | V122: 0 | W122: 0 | X122: 0 | Y122: 0 | Z122: 0 | AA122: 0 | AB122: 0 | AC122: 1 | AD122: 0 | AE122: 0 | AF122: 0 | AG122: 0 | AH122: 0 | AI122: 1 | AJ122: 0 | AK122: 1 | AL122: 0 | AM122: 0 | AN122: 0 | AO122: 0 | AP122: 0 | AQ122: 0 | AR122: 0
A123: 2703 | B123: CALI | C123: IPS SURA TEQUENDAMA | D123: 3 | E123: 0 | F123: 1 | G123: 2 | H123: 4 | I123: 4 | J123: 3 | K123: 4 | L123: 0 | M123: 1 | N123: 4 | O123: 0 | P123: =SUM(D123:F123) -> 4 | Q123: =SUM(G123:I123) -> 10 | R123: =SUM(J123:L123) -> 7 | S123: =SUM(M123:O123) -> 5 | T123: 26 | U123: 86 | V123: 93 | W123: 76 | X123: 81 | Y123: 92 | Z123: 87 | AA123: 93 | AB123: 91 | AC123: 91 | AD123: 80 | AE123: 69 | AF123: 25 | AG123: =SUM(U123:W123) -> 255 | AH123: =SUM(X123:Z123) -> 260 | AI123: =SUM(AA123:AC123) -> 275 | AJ123: =+AD123+AE123+AF123 -> 174 | AK123: =SUM(AG123:AJ123) -> 964 | AL123: 0.02718446602 | AM123: 0.01568627451 | AN123: 0.03846153846 | AO123: 0.02672605791 | AP123: 0.02545454545 | AQ123: 0.02873563218 | AR123: 0.02697095436
A124: 2711 | B124: BUGA | C124: IPS BASICA COMFANDI BUGA | D124: 0 | E124: 0 | F124: 0 | G124: 0 | H124: 1 | I124: 0 | J124: 0 | K124: 0 | L124: 1 | M124: 1 | N124: 0 | O124: 0 | P124: =SUM(D124:F124) -> 0 | Q124: =SUM(G124:I124) -> 1 | R124: =SUM(J124:L124) -> 1 | S124: =SUM(M124:O124) -> 1 | T124: =SUM(P124:S124) -> 3 | U124: 6 | V124: 5 | W124: 7 | X124: 3 | Y124: 7 | Z124: 7 | AA124: 3 | AB124: 6 | AC124: 10 | AD124: 10 | AE124: 7 | AF124: 5 | AG124: =SUM(U124:W124) -> 18 | AH124: =SUM(X124:Z124) -> 17 | AI124: =SUM(AA124:AC124) -> 19 | AJ124: =+AD124+AE124+AF124 -> 22 | AK124: =SUM(AG124:AJ124) -> 76 | AL124: 0.02857142857 | AM124: 0 | AN124: 0.05882352941 | AO124: 0.0487804878 | AP124: 0.05263157895 | AQ124: 0.04545454545 | AR124: 0.03947368421
A125: 2712 | B125: CALI | C125: IPS COLSUBSIDIO NORTE | D125: 2 | E125: 2 | F125: 0 | G125: 0 | H125: 0 | I125: 2 | J125: 0 | K125: 3 | L125: 3 | M125: 2 | N125: 1 | O125: 0 | P125: =SUM(D125:F125) -> 4 | Q125: =SUM(G125:I125) -> 2 | R125: =SUM(J125:L125) -> 6 | S125: =SUM(M125:O125) -> 3 | T125: =SUM(P125:S125) -> 15 | U125: 25 | V125: 21 | W125: 33 | X125: 32 | Y125: 30 | Z125: 35 | AA125: 27 | AB125: 47 | AC125: 35 | AD125: 38 | AE125: 28 | AF125: 28 | AG125: =SUM(U125:W125) -> 79 | AH125: =SUM(X125:Z125) -> 97 | AI125: =SUM(AA125:AC125) -> 109 | AJ125: =+AD125+AE125+AF125 -> 94 | AK125: =SUM(AG125:AJ125) -> 379 | AL125: 0.03409090909 | AM125: 0.05063291139 | AN125: 0.0206185567 | AO125: 0.04433497537 | AP125: 0.05504587156 | AQ125: 0.03191489362 | AR125: 0.03957783641
A126: 141148 | B126: POPAYAN | C126: BIOS IPS MEDICAL CENTER SAS | D126: 1 | E126: 0 | F126: 0 | G126: 0 | H126: 1 | I126: 0 | J126: 2 | K126: 1 | L126: 0 | M126: 1 | N126: 1 | O126: 0 | P126: =SUM(D126:F126) -> 1 | Q126: =SUM(G126:I126) -> 1 | R126: =SUM(J126:L126) -> 3 | S126: =SUM(M126:O126) -> 2 | T126: =SUM(P126:S126) -> 7 | U126: 3 | V126: 0 | W126: 2 | X126: 2 | Y126: 1 | Z126: 0 | AA126: 2 | AB126: 2 | AC126: 5 | AD126: 3 | AE126: 2 | AF126: 0 | AG126: =SUM(U126:W126) -> 5 | AH126: =SUM(X126:Z126) -> 3 | AI126: =SUM(AA126:AC126) -> 9 | AJ126: =+AD126+AE126+AF126 -> 5 | AK126: =SUM(AG126:AJ126) -> 22 | AL126: =IF(ISERROR(SUM(P126:Q126)/SUM(AG126:AH126)),0,SUM(P126:Q126)/SUM(AG126:AH126)) -> 0.25 | AM126: =IF(ISERROR(P126/AG126),0,P126/AG126) -> 0.2 | AN126: =IF(ISERROR(Q126/AH126),0,Q126/AH126) -> 0.3333333333 | AO126: =IF(ISERROR(SUM(R126:S126)/SUM(AI126:AJ126)),0,SUM(R126:S126)/SUM(AI126:AJ126)) -> 0.3571428571 | AP126: =IF(ISERROR(R126/AI126),0,R126/AI126) -> 0.3333333333 | AQ126: =IF(ISERROR(S126/AJ126),0,S126/AJ126) -> 0.4 | AR126: =IF(ISERROR(T126/AK126),0,T126/AK126) -> 0.3181818182
A127: 2744 | B127: CALI | C127: IPS VIVIR NORTE | D127: 0 | E127: 0 | F127: 0 | G127: 0 | H127: 0 | I127: 0 | J127: 0 | K127: 1 | L127: 0 | M127: 0 | N127: 1 | O127: 0 | P127: =SUM(D127:F127) -> 0 | Q127: =SUM(G127:I127) -> 0 | R127: =SUM(J127:L127) -> 1 | S127: =SUM(M127:O127) -> 1 | T127: =SUM(P127:S127) -> 2 | U127: 0 | V127: 0 | W127: 0 | X127: 0 | Y127: 0 | Z127: 0 | AA127: 0 | AB127: 2 | AC127: 1 | AD127: 4 | AE127: 1 | AF127: 3 | AG127: =SUM(U127:W127) -> 0 | AH127: =SUM(X127:Z127) -> 0 | AI127: =SUM(AA127:AC127) -> 3 | AJ127: =+AD127+AE127+AF127 -> 8 | AK127: =SUM(AG127:AJ127) -> 11 | AL127: =IF(ISERROR(SUM(P127:Q127)/SUM(AG127:AH127)),0,SUM(P127:Q127)/SUM(AG127:AH127)) -> 0 | AM127: =IF(ISERROR(P127/AG127),0,P127/AG127) -> 0 | AN127: =IF(ISERROR(Q127/AH127),0,Q127/AH127) -> 0 | AO127: =IF(ISERROR(SUM(R127:S127)/SUM(AI127:AJ127)),0,SUM(R127:S127)/SUM(AI127:AJ127)) -> 0.1818181818 | AP127: =IF(ISERROR(R127/AI127),0,R127/AI127) -> 0.3333333333 | AQ127: =IF(ISERROR(S127/AJ127),0,S127/AJ127) -> 0.125 | AR127: =IF(ISERROR(T127/AK127),0,T127/AK127) -> 0.1818181818
A128: T2 | C128: TOTAL | D128: =SUM(D116:D127) -> 10 | E128: 6 | F128: 7 | G128: 6 | H128: 9 | I128: 16 | J128: 9 | K128: 13 | L128: 12 | M128: 8 | N128: 10 | O128: 3 | P128: 23 | Q128: 31 | R128: 34 | S128: 21 | T128: 109 | U128: 213 | V128: 206 | W128: 235 | X128: 233 | Y128: 235 | Z128: 226 | AA128: 227 | AB128: 264 | AC128: 253 | AD128: 247 | AE128: 185 | AF128: 117 | AG128: 654 | AH128: 694 | AI128: 744 | AJ128: 549 | AK128: 2641 | AL128: =IF(ISERROR(SUM(P128:Q128)/SUM(AG128:AH128)),0,SUM(P128:Q128)/SUM(AG128:AH128)) -> 0.04005934718 | AM128: 0.03516819572 | AN128: 0.0446685879 | AO128: 0.04253673627 | AP128: 0.04569892473 | AQ128: 0.03825136612 | AR128: 0.04127224536 | AS128: =SUM(AS116:AS122) -> 
C131: MUNICIPIO | D131: Enero | E131: Febrero | F131: Marzo | G131: Abril | H131: Mayo | I131: Junio | J131: Julio | K131: Agosto | L131: Septiembre | M131: Octubre | N131: Noviembre | O131: Diciembre | P131: I TRIM | Q131: II TRIM | R131: III TRIM | S131: IV TRIM | T131: TOTAL | U131: Enero | V131: Febrero | W131: Marzo | X131: Abril | Y131: Mayo | Z131: Junio | AA131: Julio | AB131: Agosto | AC131: Septiembre | AD131: Octubre | AE131: Noviembre | AF131: Diciembre | AG131: I TRIM | AH131: II TRIM | AI131: III TRIM | AJ131: IV TRIM | AK131: TOTAL | AL131: PORCENTAJE I SEM | AM131: I TRIM | AN131: II TRIM | AO131: PORCERNTAJE II SEM | AP131: III TRIM | AQ131: IV TRIM | AR131: PORCENTAJE ANUAL 2020
A132: =VLOOKUP(C132,Parametros!B$122:C$181,2,0) -> O1 | B132: VALLE | C132: BUGA | D132: =SUMIF($B$116:$B$127,$C132,D$116:D$127) -> 0 | E132: 0 | F132: 0 | G132: 0 | H132: 1 | I132: 0 | J132: 0 | K132: 0 | L132: 1 | M132: 1 | N132: 0 | O132: 0 | P132: =SUM(D132:F132) -> 0 | Q132: =SUM(G132:I132) -> 1 | R132: =SUM(J132:L132) -> 1 | S132: =SUM(M132:O132) -> 1 | T132: =SUM(P132:S132) -> 3 | U132: =SUMIF($B$116:$B$127,$C132,U$116:U$127) -> 6 | V132: 5 | W132: 7 | X132: 3 | Y132: 7 | Z132: 7 | AA132: 3 | AB132: 6 | AC132: 10 | AD132: 10 | AE132: 7 | AF132: 5 | AG132: =SUM(U132:W132) -> 18 | AH132: =SUM(X132:Z132) -> 17 | AI132: =SUM(AA132:AC132) -> 19 | AJ132: =+AD132+AE132+AF132 -> 22 | AK132: =SUM(AG132:AJ132) -> 76 | AL132: =IF(ISERROR(SUM(P132:Q132)/SUM(AG132:AH132)),0,SUM(P132:Q132)/SUM(AG132:AH132)) -> 0.02857142857 | AM132: =IF(ISERROR(P132/AG132),0,P132/AG132) -> 0 | AN132: 0.05882352941 | AO132: =IF(ISERROR(SUM(R132:S132)/SUM(AI132:AJ132)),0,SUM(R132:S132)/SUM(AI132:AJ132)) -> 0.0487804878 | AP132: =IF(ISERROR(R132/AI132),0,R132/AI132) -> 0.05263157895 | AQ132: 0.04545454545 | AR132: 0.03947368421 | AS132: =SUMIF($B$116:$B$122,$C132,AS$116:AS$122) -> 0
A133: =VLOOKUP(C133,Parametros!B$122:C$181,2,0) -> O2 | B133: VALLE | C133: CALI | D133: 9 | E133: 5 | F133: 7 | G133: 5 | H133: 7 | I133: 16 | J133: 7 | K133: 12 | L133: 11 | M133: 5 | N133: 7 | O133: 1 | P133: =SUM(D133:F133) -> 21 | Q133: =SUM(G133:I133) -> 28 | R133: =SUM(J133:L133) -> 30 | S133: =SUM(M133:O133) -> 13 | T133: =SUM(P133:S133) -> 92 | U133: 195 | V133: 196 | W133: 211 | X133: 217 | Y133: 220 | Z133: 213 | AA133: 209 | AB133: 244 | AC133: 226 | AD133: 215 | AE133: 159 | AF133: 103 | AG133: =SUM(U133:W133) -> 602 | AH133: =SUM(X133:Z133) -> 650 | AI133: =SUM(AA133:AC133) -> 679 | AJ133: =+AD133+AE133+AF133 -> 477 | AK133: =SUM(AG133:AJ133) -> 2408 | AL133: 0.03913738019 | AM133: 0.03488372093 | AN133: 0.04307692308 | AO133: 0.03719723183 | AP133: 0.0441826215 | AQ133: 0.02725366876 | AR133: 0.03820598007 | AS133: =SUMIF($B$116:$B$122,$C133,AS$116:AS$122) -> 
A134: =VLOOKUP(C134,Parametros!B$122:C$181,2,0) -> O3 | B134: VALLE | C134: PALMIRA | D134: 0 | E134: 1 | F134: 0 | G134: 1 | H134: 0 | I134: 0 | J134: 0 | K134: 0 | L134: 0 | M134: 1 | N134: 2 | O134: 2 | P134: =SUM(D134:F134) -> 1 | Q134: =SUM(G134:I134) -> 1 | R134: =SUM(J134:L134) -> 0 | S134: =SUM(M134:O134) -> 5 | T134: =SUM(P134:S134) -> 7 | U134: 9 | V134: 5 | W134: 15 | X134: 11 | Y134: 7 | Z134: 6 | AA134: 13 | AB134: 12 | AC134: 12 | AD134: 19 | AE134: 17 | AF134: 9 | AG134: =SUM(U134:W134) -> 29 | AH134: =SUM(X134:Z134) -> 24 | AI134: =SUM(AA134:AC134) -> 37 | AJ134: =+AD134+AE134+AF134 -> 45 | AK134: =SUM(AG134:AJ134) -> 135 | AL134: 0.03773584906 | AM134: 0.03448275862 | AN134: 0.04166666667 | AO134: 0.06097560976 | AP134: 0 | AQ134: 0.1111111111 | AR134: 0.05185185185 | AS134: =SUMIF($B$116:$B$122,$C134,AS$116:AS$122) -> 
A135: =VLOOKUP(C135,Parametros!B$122:C$181,2,0) -> O4 | B135: VALLE | C135: JAMUNDI | D135: 0 | E135: 0 | F135: 0 | G135: 0 | H135: 0 | I135: 0 | J135: 0 | K135: 0 | L135: 0 | M135: 0 | N135: 0 | O135: 0 | P135: =SUM(D135:F135) -> 0 | Q135: =SUM(G135:I135) -> 0 | R135: =SUM(J135:L135) -> 0 | S135: =SUM(M135:O135) -> 0 | T135: =SUM(P135:S135) -> 0 | U135: 0 | V135: 0 | W135: 0 | X135: 0 | Y135: 0 | Z135: 0 | AA135: 0 | AB135: 0 | AC135: 0 | AD135: 0 | AE135: 0 | AF135: 0 | AG135: =SUM(U135:W135) -> 0 | AH135: =SUM(X135:Z135) -> 0 | AI135: =SUM(AA135:AC135) -> 0 | AJ135: =+AD135+AE135+AF135 -> 0 | AK135: =SUM(AG135:AJ135) -> 0 | AL135: 0 | AM135: 0 | AN135: 0 | AO135: 0 | AP135: 0 | AQ135: 0 | AR135: 0 | AS135: =SUMIF($B$116:$B$122,$C135,AS$116:AS$122) -> 0
A136: =VLOOKUP(C136,Parametros!B$122:C$181,2,0) -> O5 | B136: VALLE | C136: POPAYAN | D136: 1 | E136: 0 | F136: 0 | G136: 0 | H136: 1 | I136: 0 | J136: 2 | K136: 1 | L136: 0 | M136: 1 | N136: 1 | O136: 0 | P136: =SUM(D136:F136) -> 1 | Q136: =SUM(G136:I136) -> 1 | R136: =SUM(J136:L136) -> 3 | S136: =SUM(M136:O136) -> 2 | T136: =SUM(P136:S136) -> 7 | U136: 3 | V136: 0 | W136: 2 | X136: 2 | Y136: 1 | Z136: 0 | AA136: 2 | AB136: 2 | AC136: 5 | AD136: 3 | AE136: 2 | AF136: 0 | AG136: =SUM(U136:W136) -> 5 | AH136: =SUM(X136:Z136) -> 3 | AI136: =SUM(AA136:AC136) -> 9 | AJ136: =+AD136+AE136+AF136 -> 5 | AK136: =SUM(AG136:AJ136) -> 22 | AL136: =IF(ISERROR(SUM(P136:Q136)/SUM(AG136:AH136)),0,SUM(P136:Q136)/SUM(AG136:AH136)) -> 0.25 | AM136: =IF(ISERROR(P136/AG136),0,P136/AG136) -> 0.2 | AN136: =IF(ISERROR(Q136/AH136),0,Q136/AH136) -> 0.3333333333 | AO136: 0.3571428571 | AP136: =IF(ISERROR(R136/AI136),0,R136/AI136) -> 0.3333333333 | AQ136: =IF(ISERROR(S136/AJ136),0,S136/AJ136) -> 0.4 | AR136: =IF(ISERROR(T136/AK136),0,T136/AK136) -> 0.3181818182
C137: TOTAL | D137: =SUM(D132:D136) -> 10 | E137: =SUM(E132:E136) -> 6 | F137: 7 | G137: 6 | H137: 9 | I137: 16 | J137: 9 | K137: 13 | L137: 12 | M137: 8 | N137: 10 | O137: 3 | P137: 23 | Q137: 31 | R137: 34 | S137: 21 | T137: 109 | U137: 213 | V137: 206 | W137: 235 | X137: 233 | Y137: 235 | Z137: 226 | AA137: 227 | AB137: 264 | AC137: 253 | AD137: 247 | AE137: 185 | AF137: 117 | AG137: 654 | AH137: 694 | AI137: 744 | AJ137: 549 | AK137: =SUM(AK132:AK136) -> 2641 | AL137: =IF(ISERROR(SUM(P137:Q137)/SUM(AG137:AH137)),0,SUM(P137:Q137)/SUM(AG137:AH137)) -> 0.04005934718 | AM137: 0.03516819572 | AN137: 0.0446685879 | AO137: 0.04253673627 | AP137: 0.04569892473 | AQ137: 0.03825136612 | AR137: 0.04127224536 | AS137: =SUM(AS132:AS135) -> 
C140: REGIONAL OCCIDENTE | D140: Enero | E140: Febrero | F140: Marzo | G140: Abril | H140: Mayo | I140: Junio | J140: Julio | K140: Agosto | L140: Septiembre | M140: Octubre | N140: Noviembre | O140: Diciembre | P140: I TRIM | Q140: II TRIM | R140: III TRIM | S140: IV TRIM | T140: TOTAL | U140: Enero | V140: Febrero | W140: Marzo | X140: Abril | Y140: Mayo | Z140: Junio | AA140: Julio | AB140: Agosto | AC140: Septiembre | AD140: Octubre | AE140: Noviembre | AF140: Diciembre | AG140: I TRIM | AH140: II TRIM | AI140: III TRIM | AJ140: IV TRIM | AK140: TOTAL | AL140: PORCENTAJE I SEM | AM140: I TRIM | AN140: II TRIM | AO140: PORCERNTAJE II SEM | AP140: III TRIM | AQ140: IV TRIM | AR140: PORCENTAJE ANUAL 2020
C141: DATOS | D141: =D128 -> 10 | E141: 6 | F141: 7 | G141: 6 | H141: 9 | I141: 16 | J141: 9 | K141: 13 | L141: 12 | M141: 8 | N141: 10 | O141: 3 | P141: 23 | Q141: 31 | R141: 34 | S141: 21 | T141: 109 | U141: 213 | V141: 206 | W141: 235 | X141: 233 | Y141: 235 | Z141: 226 | AA141: 227 | AB141: 264 | AC141: 253 | AD141: 247 | AE141: 185 | AF141: 117 | AG141: 654 | AH141: 694 | AI141: 744 | AJ141: 549 | AK141: 2641 | AL141: =IF(ISERROR(SUM(P141:Q141)/SUM(AG141:AH141)),0,SUM(P141:Q141)/SUM(AG141:AH141)) -> 0.04005934718 | AM141: =IF(ISERROR(P141/AG141),0,P141/AG141) -> 0.03516819572 | AN141: =IF(ISERROR(Q141/AH141),0,Q141/AH141) -> 0.0446685879 | AO141: =IF(ISERROR(SUM(R141:S141)/SUM(AI141:AJ141)),0,SUM(R141:S141)/SUM(AI141:AJ141)) -> 0.04253673627 | AP141: =IF(ISERROR(R141/AI141),0,R141/AI141) -> 0.04569892473 | AQ141: =IF(ISERROR(S141/AJ141),0,S141/AJ141) -> 0.03825136612 | AR141: =IF(ISERROR(T141/AK141),0,T141/AK141) -> 0.04127224536 | AS141: =AS128 -> 
C144: REGIONAL CENTRO | D144: I trimestre-2020 | G144: II trmestre-2020 | J144: III Trimestre-2020 | M144: IV trimestre-2020 | P144: MADRES ADOLESCENTES | T144: TOTAL | AG144: NÚMEROS DE NACIMIENTOS | AK144: TOTAL NACIMIENTOS | AL144: PROPORCIÓN
C146: IPS | D146: Enero | E146: Febrero | F146: Marzo | G146: Abril | H146: Mayo | I146: Junio | J146: Julio | K146: Agosto | L146: Septiembre | M146: Octubre | N146: Noviembre | O146: Diciembre | P146: I TRIM | Q146: II TRIM | R146: III TRIM | S146: IV TRIM | U146: Enero | V146: Febrero | W146: Marzo | X146: Abril | Y146: Mayo | Z146: Junio | AA146: Julio | AB146: Agosto | AC146: Septiembre | AD146: Octubre | AE146: Noviembre | AF146: Diciembre | AG146: I TRIM | AH146: II TRIM | AI146: III TRIM | AJ146: IV TRIM | AL146: PORCENTAJE I SEM | AM146: I TRIM | AN146: II TRIM | AO146: PORCERNTAJE II SEM | AP146: III TRIM | AQ146: IV TRIM | AR146: PORCENTAJE ANUAL 2020
A147: 1761 | B147: BOGOTA | C147: A & G NIZA | D147: 1 | E147: 0 | F147: 0 | G147: 0 | H147: 1 | I147: 0 | J147: 0 | K147: 0 | L147: 0 | M147: 0 | N147: 0 | O147: 1 | P147: =SUM(D147:F147) -> 1 | Q147: =SUM(G147:I147) -> 1 | R147: =SUM(J147:L147) -> 0 | S147: =SUM(M147:O147) -> 1 | T147: =SUM(P147:S147) -> 3 | U147: 18 | V147: 17 | W147: 11 | X147: 8 | Y147: 9 | Z147: 10 | AA147: 8 | AB147: 10 | AC147: 5 | AD147: 6 | AE147: 8 | AF147: 3 | AG147: =SUM(U147:W147) -> 46 | AH147: =SUM(X147:Z147) -> 27 | AI147: =SUM(AA147:AC147) -> 23 | AJ147: =+AD147+AE147+AF147 -> 17 | AK147: =SUM(AG147:AJ147) -> 113 | AL147: =IF(ISERROR(SUM(P147:Q147)/SUM(AG147:AH147)),0,SUM(P147:Q147)/SUM(AG147:AH147)) -> 0.02739726027 | AM147: =IF(ISERROR(P147/AG147),0,P147/AG147) -> 0.02173913043 | AN147: =IF(ISERROR(Q147/AH147),0,Q147/AH147) -> 0.03703703704 | AO147: =IF(ISERROR(SUM(R147:S147)/SUM(AI147:AJ147)),0,SUM(R147:S147)/SUM(AI147:AJ147)) -> 0.025 | AP147: =IF(ISERROR(R147/AI147),0,R147/AI147) -> 0 | AQ147: =IF(ISERROR(S147/AJ147),0,S147/AJ147) -> 0.05882352941 | AR147: =IF(ISERROR(T147/AK147),0,T147/AK147) -> 0.02654867257
A148: 165 | B148: BOGOTA | C148: ASISTIR SALUD FONTIBON | D148: 0 | E148: 0 | F148: 1 | G148: 0 | H148: 0 | I148: 1 | J148: 3 | K148: 1 | L148: 0 | M148: 2 | N148: 0 | O148: 0 | P148: =SUM(D148:F148) -> 1 | Q148: =SUM(G148:I148) -> 1 | R148: =SUM(J148:L148) -> 4 | S148: =SUM(M148:O148) -> 2 | T148: =SUM(P148:S148) -> 8 | U148: 21 | V148: 20 | W148: 16 | X148: 10 | Y148: 26 | Z148: 17 | AA148: 17 | AB148: 21 | AC148: 12 | AD148: 11 | AE148: 8 | AF148: 10 | AG148: =SUM(U148:W148) -> 57 | AH148: 53 | AI148: 50 | AJ148: 29 | AK148: 189 | AL148: =IF(ISERROR(SUM(P148:Q148)/SUM(AG148:AH148)),0,SUM(P148:Q148)/SUM(AG148:AH148)) -> 0.01818181818 | AM148: 0.01754385965 | AN148: 0.01886792453 | AO148: 0.07594936709 | AP148: 0.08 | AQ148: 0.06896551724 | AR148: 0.04232804233
A149: 2640 | B149: BOGOTA | C149: CENTRO AMBULATORIO GUSTAVO ESCALLON CAYCEDO | D149: 0 | E149: 0 | F149: 0 | G149: 1 | H149: 0 | I149: 0 | J149: 0 | K149: 0 | L149: 0 | M149: 0 | N149: 0 | O149: 0 | P149: =SUM(D149:F149) -> 0 | Q149: =SUM(G149:I149) -> 1 | R149: =SUM(J149:L149) -> 0 | S149: =SUM(M149:O149) -> 0 | T149: =SUM(P149:S149) -> 1 | U149: 5 | V149: 2 | W149: 4 | X149: 3 | Y149: 2 | Z149: 2 | AA149: 0 | AB149: 0 | AC149: 0 | AD149: 0 | AE149: 0 | AF149: 0 | AG149: =SUM(U149:W149) -> 11 | AH149: =SUM(X149:Z149) -> 7 | AI149: =SUM(AA149:AC149) -> 0 | AJ149: =+AD149+AE149+AF149 -> 0 | AK149: =SUM(AG149:AJ149) -> 18 | AL149: 0.05555555556 | AM149: 0 | AN149: 0.1428571429 | AO149: 0 | AP149: 0 | AQ149: 0 | AR149: 0.05555555556
A150: 2695 | B150: BOGOTA | C150: CENTRO MEDICO SURA SUR | D150: 6 | E150: 2 | F150: 3 | G150: 2 | H150: 5 | I150: 1 | J150: 1 | K150: 1 | L150: 1 | M150: 4 | N150: 2 | O150: 3 | P150: =SUM(D150:F150) -> 11 | Q150: =SUM(G150:I150) -> 8 | R150: =SUM(J150:L150) -> 3 | S150: =SUM(M150:O150) -> 9 | T150: =SUM(P150:S150) -> 31 | U150: 33 | V150: 30 | W150: 35 | X150: 27 | Y150: 40 | Z150: 27 | AA150: 32 | AB150: 43 | AC150: 24 | AD150: 34 | AE150: 21 | AF150: 22 | AG150: =SUM(U150:W150) -> 98 | AH150: =SUM(X150:Z150) -> 94 | AI150: =SUM(AA150:AC150) -> 99 | AJ150: =+AD150+AE150+AF150 -> 77 | AK150: =SUM(AG150:AJ150) -> 368 | AL150: 0.09895833333 | AM150: 0.112244898 | AN150: 0.08510638298 | AO150: 0.06818181818 | AP150: 0.0303030303 | AQ150: 0.1168831169 | AR150: 0.08423913043
A151: 11 | B151: BOGOTA | C151: DARSALUD | D151: 1 | E151: 0 | F151: 3 | G151: 1 | H151: 0 | I151: 2 | J151: 2 | K151: 3 | L151: 1 | M151: 3 | N151: 1 | O151: 1 | P151: 4 | Q151: 3 | R151: 6 | S151: 5 | T151: 18 | U151: 30 | V151: 21 | W151: 28 | X151: 22 | Y151: 26 | Z151: 26 | AA151: 29 | AB151: 33 | AC151: 29 | AD151: 20 | AE151: 11 | AF151: 18 | AG151: 79 | AH151: 74 | AI151: 91 | AJ151: 49 | AK151: 293 | AL151: 0.04575163399 | AM151: 0.05063291139 | AN151: 0.04054054054 | AO151: 0.07857142857 | AP151: 0.06593406593 | AQ151: 0.1020408163 | AR151: 0.0614334471
A152: 2687 | B152: BOGOTA | C152: IPS COLSUBSIDIO CENTRO MEDICO AVENIDA BOYACA | D152: 1 | E152: 0 | F152: 1 | G152: 1 | H152: 0 | I152: 1 | J152: 1 | K152: 1 | L152: 2 | M152: 1 | N152: 0 | O152: 1 | P152: 2 | Q152: 2 | R152: 4 | S152: 2 | T152: 10 | U152: 28 | V152: 22 | W152: 24 | X152: 11 | Y152: 15 | Z152: 19 | AA152: 20 | AB152: 17 | AC152: 20 | AD152: 13 | AE152: 10 | AF152: 20 | AG152: 74 | AH152: 45 | AI152: 57 | AJ152: 43 | AK152: 219 | AL152: 0.03361344538 | AM152: 0.02702702703 | AN152: 0.04444444444 | AO152: 0.06 | AP152: 0.0701754386 | AQ152: 0.04651162791 | AR152: 0.04566210046
A153: 2685 | B153: BOGOTA | C153: IPS COLSUBSIDIO CENTRO MEDICO SUBA | D153: 1 | E153: 0 | F153: 2 | G153: 3 | H153: 2 | I153: 2 | J153: 0 | K153: 0 | L153: 1 | M153: 0 | N153: 2 | O153: 0 | P153: 3 | Q153: 7 | R153: 1 | S153: 2 | T153: 13 | U153: 26 | V153: 22 | W153: 27 | X153: 23 | Y153: 21 | Z153: 33 | AA153: 25 | AB153: 28 | AC153: 18 | AD153: 22 | AE153: 26 | AF153: 14 | AG153: 75 | AH153: 77 | AI153: 71 | AJ153: 62 | AK153: 285 | AL153: 0.06578947368 | AM153: 0.04 | AN153: 0.09090909091 | AO153: 0.02255639098 | AP153: 0.01408450704 | AQ153: 0.03225806452 | AR153: 0.04561403509
A154: 1788 | B154: BOGOTA | C154: IPS SURA CHAPINERO | D154: 1 | E154: 0 | F154: 0 | G154: 0 | H154: 0 | I154: 1 | J154: 0 | K154: 0 | L154: 2 | M154: 0 | N154: 0 | O154: 0 | P154: 1 | Q154: 1 | R154: 2 | S154: 0 | T154: 4 | U154: 22 | V154: 7 | W154: 21 | X154: 12 | Y154: 14 | Z154: 21 | AA154: 19 | AB154: 12 | AC154: 19 | AD154: 9 | AE154: 3 | AF154: 2 | AG154: 50 | AH154: 47 | AI154: 50 | AJ154: 14 | AK154: 161 | AL154: 0.0206185567 | AM154: 0.02 | AN154: 0.02127659574 | AO154: 0.03125 | AP154: 0.04 | AQ154: 0 | AR154: 0.0248447205
A155: 79 | B155: BOGOTA | C155: IPS SURA OLAYA | D155: 0 | E155: 1 | F155: 1 | G155: 0 | H155: 0 | I155: 5 | J155: 4 | K155: 2 | L155: 3 | M155: 2 | N155: 6 | O155: 3 | P155: =SUM(D155:F155) -> 2 | Q155: =SUM(G155:I155) -> 5 | R155: =SUM(J155:L155) -> 9 | S155: =SUM(M155:O155) -> 11 | T155: =SUM(P155:S155) -> 27 | U155: 3 | V155: 2 | W155: 3 | X155: 5 | Y155: 37 | Z155: 41 | AA155: 42 | AB155: 39 | AC155: 41 | AD155: 40 | AE155: 41 | AF155: 33 | AG155: =SUM(U155:W155) -> 8 | AH155: =SUM(X155:Z155) -> 83 | AI155: =SUM(AA155:AC155) -> 122 | AJ155: =+AD155+AE155+AF155 -> 114 | AK155: =SUM(AG155:AJ155) -> 327 | AL155: 0.07692307692 | AM155: 0.25 | AN155: 0.06024096386 | AO155: 0.08474576271 | AP155: 0.0737704918 | AQ155: 0.09649122807 | AR155: 0.08256880734
A156: 1695 | B156: BOGOTA | C156: JAVESALUD | D156: 2 | E156: 0 | F156: 1 | G156: 1 | H156: 0 | I156: 1 | J156: 0 | K156: 1 | L156: 1 | M156: 1 | N156: 1 | O156: 0 | P156: 3 | Q156: 2 | R156: 2 | S156: 2 | T156: 9 | U156: 19 | V156: 12 | W156: 14 | X156: 16 | Y156: 11 | Z156: 18 | AA156: 16 | AB156: 8 | AC156: 20 | AD156: 13 | AE156: 6 | AF156: 9 | AG156: 45 | AH156: 45 | AI156: 44 | AJ156: 28 | AK156: 162 | AL156: 0.05555555556 | AM156: 0.06666666667 | AN156: 0.04444444444 | AO156: 0.05555555556 | AP156: =IF(ISERROR(R156/AI156),0,R156/AI156) -> 0.04545454545 | AQ156: 0.07142857143 | AR156: 0.05555555556
A157: 84 | B157: BOGOTA | C157: SALUD EN CASA BOGOTA | D157: 0 | E157: 0 | F157: 0 | G157: 0 | H157: 0 | I157: 0 | J157: 0 | K157: 0 | L157: 0 | M157: 0 | N157: 0 | O157: 0 | P157: 0 | Q157: 0 | R157: 0 | S157: 0 | T157: 0 | U157: 0 | V157: 0 | W157: 0 | X157: 1 | Y157: 0 | Z157: 0 | AA157: 0 | AB157: 0 | AC157: 0 | AD157: 1 | AE157: 0 | AF157: 0 | AG157: 0 | AH157: 1 | AI157: 0 | AJ157: 1 | AK157: 2 | AL157: 0 | AM157: 0 | AN157: 0 | AO157: 0 | AP157: 0 | AQ157: 0 | AR157: 0
A158: 2278 | B158: BOGOTA | C158: SALUDSURA BOGOTA | D158: 0 | E158: 0 | F158: 0 | G158: 0 | H158: 0 | I158: 0 | J158: 0 | K158: 0 | L158: 0 | M158: 0 | N158: 0 | O158: 0 | P158: =SUM(D158:F158) -> 0 | Q158: =SUM(G158:I158) -> 0 | R158: =SUM(J158:L158) -> 0 | S158: =SUM(M158:O158) -> 0 | T158: =SUM(P158:S158) -> 0 | U158: 1 | V158: 0 | W158: 0 | X158: 0 | Y158: 1 | Z158: 0 | AA158: 1 | AB158: 0 | AC158: 1 | AD158: 1 | AE158: 1 | AF158: 0 | AG158: =SUM(U158:W158) -> 1 | AH158: =SUM(X158:Z158) -> 1 | AI158: =SUM(AA158:AC158) -> 2 | AJ158: =+AD158+AE158+AF158 -> 2 | AK158: =SUM(AG158:AJ158) -> 6 | AL158: 0 | AM158: 0 | AN158: 0 | AO158: 0 | AP158: 0 | AQ158: 0 | AR158: 0
A159: 2433 | B159: BOGOTA | C159: UNIDAD MEDICA SANTA FE AMÉRICAS | D159: 2 | E159: 1 | F159: 1 | G159: 3 | H159: 0 | I159: 2 | J159: 1 | K159: 0 | L159: 2 | M159: 0 | N159: 1 | O159: 1 | P159: 4 | Q159: 5 | R159: 3 | S159: 2 | T159: 14 | U159: 33 | V159: 24 | W159: 26 | X159: 29 | Y159: 27 | Z159: 39 | AA159: 25 | AB159: 30 | AC159: 34 | AD159: 25 | AE159: 15 | AF159: 21 | AG159: 83 | AH159: 95 | AI159: 89 | AJ159: 61 | AK159: 328 | AL159: 0.05056179775 | AM159: 0.04819277108 | AN159: 0.05263157895 | AO159: 0.03333333333 | AP159: 0.03370786517 | AQ159: 0.03278688525 | AR159: 0.04268292683
A160: 2683 | B160: CHIA | C160: IPS CLINICA CHIA | D160: 0 | E160: 0 | F160: 1 | G160: 0 | H160: 1 | I160: 0 | J160: 0 | K160: 0 | L160: 0 | M160: 0 | N160: 0 | O160: 0 | P160: 1 | Q160: 1 | R160: 0 | S160: 0 | T160: 2 | U160: 4 | V160: 1 | W160: 5 | X160: 4 | Y160: 9 | Z160: 5 | AA160: 2 | AB160: 4 | AC160: 4 | AD160: 6 | AE160: 4 | AF160: 1 | AG160: 10 | AH160: 18 | AI160: 10 | AJ160: 11 | AK160: 49 | AL160: 0.07142857143 | AM160: 0.1 | AN160: 0.05555555556 | AO160: 0 | AP160: 0 | AQ160: 0 | AR160: 0.04081632653
A161: 59 | B161: ZIPAQUIRA | C161: A & G SERVICIOS DE SALUD | D161: 1 | E161: 2 | F161: 0 | G161: 3 | H161: 0 | I161: 2 | J161: 5 | K161: 2 | L161: 1 | M161: 6 | N161: 3 | O161: 0 | P161: 3 | Q161: 5 | R161: 8 | S161: 9 | T161: 25 | U161: 22 | V161: 12 | W161: 19 | X161: 13 | Y161: 14 | Z161: 22 | AA161: 31 | AB161: 21 | AC161: 26 | AD161: 20 | AE161: 20 | AF161: 19 | AG161: 53 | AH161: 49 | AI161: 78 | AJ161: 59 | AK161: 239 | AL161: 0.07843137255 | AM161: 0.05660377358 | AN161: 0.1020408163 | AO161: 0.1240875912 | AP161: 0.1025641026 | AQ161: 0.1525423729 | AR161: 0.1046025105
A162: 12 | B162: SOACHA | C162: ASISTIR SALUD LTDA. SOACHA | D162: 0 | E162: 3 | F162: 2 | G162: 5 | H162: 5 | I162: 2 | J162: 2 | K162: 2 | L162: 4 | M162: 5 | N162: 0 | O162: 1 | P162: 5 | Q162: 12 | R162: 8 | S162: 6 | T162: 31 | U162: 24 | V162: 31 | W162: 28 | X162: 41 | Y162: 38 | Z162: 25 | AA162: 25 | AB162: 34 | AC162: 34 | AD162: 28 | AE162: 15 | AF162: 27 | AG162: 83 | AH162: 104 | AI162: 93 | AJ162: 70 | AK162: 350 | AL162: 0.09090909091 | AM162: 0.06024096386 | AN162: 0.1153846154 | AO162: 0.08588957055 | AP162: 0.08602150538 | AQ162: 0.08571428571 | AR162: 0.08857142857
A163: 111214 | B163: TENJO | C163: IPS CLINICA CHIA SEDE TENJO | D163: 0 | E163: 0 | F163: 0 | G163: 0 | H163: 0 | I163: 0 | J163: 0 | K163: 0 | L163: 0 | M163: 0 | N163: 0 | O163: 0 | P163: =SUM(D163:F163) -> 0 | Q163: 0 | R163: 0 | S163: 0 | T163: 0 | U163: 0 | V163: 0 | W163: 0 | X163: 0 | Y163: 0 | Z163: 0 | AA163: 0 | AB163: 0 | AC163: 0 | AD163: 0 | AE163: 0 | AF163: 0 | AG163: 0 | AH163: 0 | AI163: 0 | AJ163: 0 | AK163: 0 | AL163: 0 | AM163: 0 | AN163: 0 | AO163: 0 | AP163: 0 | AQ163: 0 | AR163: 0
A164: 2726 | B164: BOGOTA | C164: IPS COLSUBSIDIO SURA PAC SANTA BARBARA | D164: 0 | E164: 0 | F164: 0 | G164: 0 | H164: 0 | I164: 0 | J164: 0 | K164: 0 | L164: 0 | M164: 0 | N164: 0 | O164: 1 | P164: =SUM(D164:F164) -> 0 | Q164: =SUM(G164:I164) -> 0 | R164: =SUM(J164:L164) -> 0 | S164: =SUM(M164:O164) -> 1 | T164: =SUM(P164:S164) -> 1 | U164: 0 | V164: 0 | W164: 0 | X164: 0 | Y164: 0 | Z164: 0 | AA164: 0 | AB164: 1 | AC164: 1 | AD164: 11 | AE164: 13 | AF164: 19 | AG164: =SUM(U164:W164) -> 0 | AH164: =SUM(X164:Z164) -> 0 | AI164: =SUM(AA164:AC164) -> 2 | AJ164: =+AD164+AE164+AF164 -> 43 | AK164: =SUM(AG164:AJ164) -> 45 | AL164: =IF(ISERROR(SUM(P164:Q164)/SUM(AG164:AH164)),0,SUM(P164:Q164)/SUM(AG164:AH164)) -> 0 | AM164: =IF(ISERROR(P164/AG164),0,P164/AG164) -> 0 | AN164: =IF(ISERROR(Q164/AH164),0,Q164/AH164) -> 0 | AO164: =IF(ISERROR(SUM(R164:S164)/SUM(AI164:AJ164)),0,SUM(R164:S164)/SUM(AI164:AJ164)) -> 0.02222222222 | AP164: =IF(ISERROR(R164/AI164),0,R164/AI164) -> 0 | AQ164: =IF(ISERROR(S164/AJ164),0,S164/AJ164) -> 0.02325581395 | AR164: =IF(ISERROR(T164/AK164),0,T164/AK164) -> 0.02222222222
A165: 2738 | B165: FUNZA | C165: IPS COLSUBSIDIO FUNZA | D165: 0 | E165: 0 | F165: 0 | G165: 0 | H165: 0 | I165: 0 | J165: 0 | K165: 0 | L165: 0 | M165: 0 | N165: 0 | O165: 0 | P165: 0 | Q165: 0 | R165: 0 | S165: 0 | T165: 0 | U165: 0 | V165: 0 | W165: 0 | X165: 0 | Y165: 0 | Z165: 0 | AA165: 2 | AB165: 7 | AC165: 4 | AD165: 5 | AE165: 5 | AF165: 2 | AG165: 0 | AH165: 0 | AI165: 13 | AJ165: 12 | AK165: 25 | AL165: 0 | AM165: 0 | AN165: 0 | AO165: 0 | AP165: 0 | AQ165: 0 | AR165: 0
A166: 2748 | B166: BOGOTA | C166: IPS COLSUBSIDIO SURA PLAZA CENTRAL | D166: 0 | E166: 0 | F166: 0 | G166: 0 | H166: 0 | I166: 0 | J166: 0 | K166: 0 | L166: 0 | M166: 0 | N166: 1 | O166: 0 | P166: 0 | Q166: 0 | R166: 0 | S166: 1 | T166: 1 | U166: 0 | V166: 0 | W166: 0 | X166: 0 | Y166: 0 | Z166: 0 | AA166: 0 | AB166: 2 | AC166: 1 | AD166: 1 | AE166: 8 | AF166: 8 | AG166: 0 | AH166: 0 | AI166: 3 | AJ166: 17 | AK166: 20 | AL166: 0 | AM166: 0 | AN166: 0 | AO166: 0.05 | AP166: 0 | AQ166: 0.05882352941 | AR166: 0.05
A167: T3 | C167: TOTAL | D167: =SUM(D147:D166) -> 16 | E167: =SUM(E147:E166) -> 9 | F167: 16 | G167: 20 | H167: 14 | I167: 20 | J167: 19 | K167: 13 | L167: 18 | M167: 24 | N167: 17 | O167: 12 | P167: 41 | Q167: 54 | R167: 50 | S167: 53 | T167: 198 | U167: =SUM(U147:U166) -> 289 | V167: =SUM(V147:V166) -> 223 | W167: =SUM(W147:W166) -> 261 | X167: =SUM(X147:X166) -> 225 | Y167: =SUM(Y147:Y166) -> 290 | Z167: =SUM(Z147:Z166) -> 305 | AA167: =SUM(AA147:AA166) -> 294 | AB167: =SUM(AB147:AB166) -> 310 | AC167: =SUM(AC147:AC166) -> 293 | AD167: =SUM(AD147:AD166) -> 266 | AE167: =SUM(AE147:AE166) -> 215 | AF167: =SUM(AF147:AF166) -> 228 | AG167: =SUM(AG147:AG166) -> 773 | AH167: =SUM(AH147:AH166) -> 820 | AI167: =SUM(AI147:AI166) -> 897 | AJ167: =SUM(AJ147:AJ166) -> 709 | AK167: =SUM(AK147:AK166) -> 3199 | AL167: =IF(ISERROR(SUM(P167:Q167)/SUM(AG167:AH167)),0,SUM(P167:Q167)/SUM(AG167:AH167)) -> 0.05963590709 | AM167: 0.05304010349 | AN167: 0.06585365854 | AO167: 0.06413449564 | AP167: 0.05574136009 | AQ167: 0.07475317348 | AR167: 0.06189434198 | AS167: =SUM(AS147:AS163) -> 
C170: MUNICIPIO | D170: Enero | E170: Febrero | F170: Marzo | G170: Abril | H170: Mayo | I170: Junio | J170: Julio | K170: Agosto | L170: Septiembre | M170: Octubre | N170: Noviembre | O170: Diciembre | P170: I TRIM | Q170: II TRIM | R170: III TRIM | S170: IV TRIM | T170: TOTAL | U170: Enero | V170: Febrero | W170: Marzo | X170: Abril | Y170: Mayo | Z170: Junio | AA170: Julio | AB170: Agosto | AC170: Septiembre | AD170: Octubre | AE170: Noviembre | AF170: Diciembre | AG170: I TRIM | AH170: II TRIM | AI170: III TRIM | AJ170: IV TRIM | AK170: TOTAL | AL170: PORCENTAJE I SEM | AM170: I TRIM | AN170: II TRIM | AO170: PORCERNTAJE II SEM | AP170: III TRIM | AQ170: IV TRIM | AR170: PORCENTAJE ANUAL 2020
A171: =VLOOKUP(C171,Parametros!B$122:C$181,2,0) -> C1 | B171: BOGOTA DC | C171: BOGOTA | D171: =SUMIF($B$147:$B$166,$C171,D$147:D$166) -> 15 | E171: =SUMIF($B$147:$B$166,$C171,E$147:E$166) -> 4 | F171: 13 | G171: 12 | H171: 8 | I171: 16 | J171: 12 | K171: 9 | L171: 13 | M171: 13 | N171: 14 | O171: 11 | P171: =SUM(D171:F171) -> 32 | Q171: =SUM(G171:I171) -> 36 | R171: =SUM(J171:L171) -> 34 | S171: =SUM(M171:O171) -> 38 | T171: =SUM(P171:S171) -> 140 | U171: =SUMIF($B$147:$B$166,$C171,U$147:U$166) -> 239 | V171: =SUMIF($B$147:$B$166,$C171,V$147:V$166) -> 179 | W171: 209 | X171: 167 | Y171: 229 | Z171: 253 | AA171: 234 | AB171: 244 | AC171: 225 | AD171: 207 | AE171: 171 | AF171: 179 | AG171: =SUM(U171:W171) -> 627 | AH171: =SUM(X171:Z171) -> 649 | AI171: =SUM(AA171:AC171) -> 703 | AJ171: =+AD171+AE171+AF171 -> 557 | AK171: =SUM(AG171:AJ171) -> 2536 | AL171: =IF(ISERROR(SUM(P171:Q171)/SUM(AG171:AH171)),0,SUM(P171:Q171)/SUM(AG171:AH171)) -> 0.05329153605 | AM171: =IF(ISERROR(P171/AG171),0,P171/AG171) -> 0.05103668262 | AN171: 0.05546995378 | AO171: =IF(ISERROR(SUM(R171:S171)/SUM(AI171:AJ171)),0,SUM(R171:S171)/SUM(AI171:AJ171)) -> 0.05714285714 | AP171: =IF(ISERROR(R171/AI171),0,R171/AI171) -> 0.04836415363 | AQ171: 0.06822262118 | AR171: 0.05520504732 | AS171: =SUMIF($B$147:$B$163,$C171,AS$147:AS$163) -> 
A172: =VLOOKUP(C172,Parametros!B$122:C$181,2,0) -> C2 | B172: CUNDINAMARCA | C172: CHIA | D172: =SUMIF($B$147:$B$166,$C172,D$147:D$166) -> 0 | E172: 0 | F172: 1 | G172: 0 | H172: 1 | I172: 0 | J172: 0 | K172: 0 | L172: 0 | M172: 0 | N172: 0 | O172: 0 | P172: =SUM(D172:F172) -> 1 | Q172: 1 | R172: 0 | S172: 0 | T172: 2 | U172: =SUMIF($B$147:$B$166,$C172,U$147:U$166) -> 4 | V172: 1 | W172: 5 | X172: 4 | Y172: 9 | Z172: 5 | AA172: 2 | AB172: 4 | AC172: 4 | AD172: 6 | AE172: 4 | AF172: 1 | AG172: 10 | AH172: 18 | AI172: 10 | AJ172: 11 | AK172: 49 | AL172: 0.07142857143 | AM172: 0.1 | AN172: 0.05555555556 | AO172: 0 | AP172: 0 | AQ172: 0 | AR172: 0.04081632653
A173: =VLOOKUP(C173,Parametros!B$122:C$181,2,0) -> C3 | B173: CUNDINAMARCA | C173: MADRID | D173: 0 | E173: 0 | F173: 0 | G173: 0 | H173: 0 | I173: 0 | J173: 0 | K173: 0 | L173: 0 | M173: 0 | N173: 0 | O173: 0 | P173: 0 | Q173: 0 | R173: 0 | S173: 0 | T173: 0 | U173: 0 | V173: 0 | W173: 0 | X173: 0 | Y173: 0 | Z173: 0 | AA173: 0 | AB173: 0 | AC173: 0 | AD173: 0 | AE173: 0 | AF173: 0 | AG173: 0 | AH173: 0 | AI173: 0 | AJ173: 0 | AK173: 0 | AL173: 0 | AM173: 0 | AN173: 0 | AO173: 0 | AP173: 0 | AQ173: 0 | AR173: 0 | AS173: 0
A174: =VLOOKUP(C174,Parametros!B$122:C$181,2,0) -> C6 | B174: CUNDINAMARCA | C174: SOACHA | D174: 0 | E174: 3 | F174: 2 | G174: 5 | H174: 5 | I174: 2 | J174: 2 | K174: 2 | L174: 4 | M174: 5 | N174: 0 | O174: 1 | P174: 5 | Q174: 12 | R174: 8 | S174: 6 | T174: 31 | U174: 24 | V174: 31 | W174: 28 | X174: 41 | Y174: 38 | Z174: 25 | AA174: 25 | AB174: 34 | AC174: 34 | AD174: 28 | AE174: 15 | AF174: 27 | AG174: 83 | AH174: 104 | AI174: 93 | AJ174: 70 | AK174: 350 | AL174: 0.09090909091 | AM174: 0.06024096386 | AN174: 0.1153846154 | AO174: 0.08588957055 | AP174: 0.08602150538 | AQ174: 0.08571428571 | AR174: 0.08857142857
A175: =VLOOKUP(C175,Parametros!B$122:C$181,2,0) -> C4 | B175: CUNDINAMARCA | C175: TENJO | D175: 0 | E175: 0 | F175: 0 | G175: 0 | H175: 0 | I175: 0 | J175: 0 | K175: 0 | L175: 0 | M175: 0 | N175: 0 | O175: 0 | P175: 0 | Q175: 0 | R175: 0 | S175: 0 | T175: 0 | U175: 0 | V175: 0 | W175: 0 | X175: 0 | Y175: 0 | Z175: 0 | AA175: 0 | AB175: 0 | AC175: 0 | AD175: 0 | AE175: 0 | AF175: 0 | AG175: 0 | AH175: 0 | AI175: 0 | AJ175: 0 | AK175: 0 | AL175: 0 | AM175: 0 | AN175: 0 | AO175: 0 | AP175: 0 | AQ175: 0 | AR175: 0
A176: =VLOOKUP(C176,Parametros!B$122:C$181,2,0) -> C5 | B176: CUNDINAMARCA | C176: ZIPAQUIRA | D176: 1 | E176: 2 | F176: 0 | G176: 3 | H176: 0 | I176: 2 | J176: 5 | K176: 2 | L176: 1 | M176: 6 | N176: 3 | O176: 0 | P176: =SUM(D176:F176) -> 3 | Q176: 5 | R176: 8 | S176: =SUM(M176:O176) -> 9 | T176: 25 | U176: 22 | V176: 12 | W176: 19 | X176: 13 | Y176: 14 | Z176: 22 | AA176: 31 | AB176: 21 | AC176: 26 | AD176: 20 | AE176: 20 | AF176: 19 | AG176: 53 | AH176: 49 | AI176: 78 | AJ176: 59 | AK176: 239 | AL176: 0.07843137255 | AM176: 0.05660377358 | AN176: 0.1020408163 | AO176: 0.1240875912 | AP176: 0.1025641026 | AQ176: 0.1525423729 | AR176: 0.1046025105
A177: =VLOOKUP(C177,Parametros!B$122:C$181,2,0) -> C7 | B177: CUNDINAMARCA | C177: FUNZA | D177: 0 | E177: 0 | F177: 0 | G177: 0 | H177: 0 | I177: 0 | J177: 0 | K177: 0 | L177: 0 | M177: 0 | N177: 0 | O177: =SUMIF($B$147:$B$166,$C177,O$147:O$166) -> 0 | P177: =SUM(D177:F177) -> 0 | Q177: =SUM(G177:I177) -> 0 | R177: =SUM(J177:L177) -> 0 | S177: =SUM(M177:O177) -> 0 | T177: =SUM(P177:S177) -> 0 | U177: 0 | V177: 0 | W177: 0 | X177: 0 | Y177: 0 | Z177: 0 | AA177: 2 | AB177: 7 | AC177: 4 | AD177: 5 | AE177: 5 | AF177: =SUMIF($B$147:$B$166,$C177,AF$147:AF$166) -> 2 | AG177: =SUM(U177:W177) -> 0 | AH177: =SUM(X177:Z177) -> 0 | AI177: =SUM(AA177:AC177) -> 13 | AJ177: =+AD177+AE177+AF177 -> 12 | AK177: =SUM(AG177:AJ177) -> 25 | AL177: =IF(ISERROR(SUM(P177:Q177)/SUM(AG177:AH177)),0,SUM(P177:Q177)/SUM(AG177:AH177)) -> 0 | AM177: =IF(ISERROR(P177/AG177),0,P177/AG177) -> 0 | AN177: =IF(ISERROR(Q177/AH177),0,Q177/AH177) -> 0 | AO177: =IF(ISERROR(SUM(R177:S177)/SUM(AI177:AJ177)),0,SUM(R177:S177)/SUM(AI177:AJ177)) -> 0 | AP177: =IF(ISERROR(R177/AI177),0,R177/AI177) -> 0 | AQ177: =IF(ISERROR(S177/AJ177),0,S177/AJ177) -> 0 | AR177: =IF(ISERROR(T177/AK177),0,T177/AK177) -> 0
C178: TOTAL | D178: =SUM(D171:D177) -> 16 | E178: =SUM(E171:E177) -> 9 | F178: 16 | G178: 20 | H178: 14 | I178: 20 | J178: 19 | K178: 13 | L178: 18 | M178: 24 | N178: 17 | O178: 12 | P178: 41 | Q178: 54 | R178: 50 | S178: 53 | T178: 198 | U178: =SUM(U171:U177) -> 289 | V178: =SUM(V171:V177) -> 223 | W178: 261 | X178: 225 | Y178: 290 | Z178: 305 | AA178: 294 | AB178: 310 | AC178: 293 | AD178: 266 | AE178: 215 | AF178: 228 | AG178: 773 | AH178: 820 | AI178: 897 | AJ178: 709 | AK178: 3199 | AL178: =IF(ISERROR(SUM(P178:Q178)/SUM(AG178:AH178)),0,SUM(P178:Q178)/SUM(AG178:AH178)) -> 0.05963590709 | AM178: 0.05304010349 | AN178: 0.06585365854 | AO178: 0.06413449564 | AP178: 0.05574136009 | AQ178: 0.07475317348 | AR178: 0.06189434198 | AS178: =SUM(AS171:AS176) -> 
C181: REGIONAL CENTRO | D181: Enero | E181: Febrero | F181: Marzo | G181: Abril | H181: Mayo | I181: Junio | J181: Julio | K181: Agosto | L181: Septiembre | M181: Octubre | N181: Noviembre | O181: Diciembre | P181: I TRIM | Q181: II TRIM | R181: III TRIM | S181: IV TRIM | T181: TOTAL | U181: Enero | V181: Febrero | W181: Marzo | X181: Abril | Y181: Mayo | Z181: Junio | AA181: Julio | AB181: Agosto | AC181: Septiembre | AD181: Octubre | AE181: Noviembre | AF181: Diciembre | AG181: I TRIM | AH181: II TRIM | AI181: III TRIM | AJ181: IV TRIM | AK181: TOTAL | AL181: PORCENTAJE I SEM | AM181: I TRIM | AN181: II TRIM | AO181: PORCERNTAJE II SEM | AP181: III TRIM | AQ181: IV TRIM | AR181: PORCENTAJE ANUAL 2020
C182: DATOS | D182: =D167 -> 16 | E182: 9 | F182: 16 | G182: 20 | H182: 14 | I182: 20 | J182: 19 | K182: 13 | L182: 18 | M182: 24 | N182: 17 | O182: 12 | P182: =SUM(D182:F182) -> 41 | Q182: =SUM(G182:I182) -> 54 | R182: =SUM(J182:L182) -> 50 | S182: =SUM(M182:O182) -> 53 | T182: =SUM(P182:S182) -> 198 | U182: =U167 -> 289 | V182: 223 | W182: 261 | X182: 225 | Y182: 290 | Z182: 305 | AA182: 294 | AB182: 310 | AC182: 293 | AD182: 266 | AE182: 215 | AF182: 228 | AG182: =SUM(U182:W182) -> 773 | AH182: =SUM(X182:Z182) -> 820 | AI182: =SUM(AA182:AC182) -> 897 | AJ182: =SUM(AD182:AF182) -> 709 | AK182: =SUM(AG182:AJ182) -> 3199 | AL182: =IF(ISERROR(SUM(P182:Q182)/SUM(AG182:AH182)),0,SUM(P182:Q182)/SUM(AG182:AH182)) -> 0.05963590709 | AM182: =IF(ISERROR(P182/AG182),0,P182/AG182) -> 0.05304010349 | AN182: =IF(ISERROR(Q182/AH182),0,Q182/AH182) -> 0.06585365854 | AO182: =IF(ISERROR(SUM(R182:S182)/SUM(AI182:AJ182)),0,SUM(R182:S182)/SUM(AI182:AJ182)) -> 0.06413449564 | AP182: =IF(ISERROR(R182/AI182),0,R182/AI182) -> 0.05574136009 | AQ182: =IF(ISERROR(S182/AJ182),0,S182/AJ182) -> 0.07475317348 | AR182: =IF(ISERROR(T182/AK182),0,T182/AK182) -> 0.06189434198 | AS182: =AS167 -> 
C185: REGIONAL NORTE | D185: I TRIM | G185: II TRIM | J185: III TRIM | M185: IV TRIM | P185: MADRES ADOLESCENTES | T185: TOTAL | U185: I TRIM | X185: II TRIM | AA185: III TRIM | AD185: IV TRIM | AG185: NÚMEROS DE NACIMIENTOS | AK185: TOTAL NACIMIENTOS | AL185: PROPORCIÓN
C187: IPS | D187: Enero | E187: Febrero | F187: Marzo | G187: Abril | H187: Mayo | I187: Junio | J187: Julio | K187: Agosto | L187: Septiembre | M187: Octubre | N187: Noviembre | O187: Diciembre | P187: I TRIM | Q187: II TRIM | R187: III TRIM | S187: IV TRIM | U187: Enero | V187: Febrero | W187: Marzo | X187: Abril | Y187: Mayo | Z187: Junio | AA187: Julio | AB187: Agosto | AC187: Septiembre | AD187: Octubre | AE187: Noviembre | AF187: Diciembre | AG187: I TRIM | AH187: II TRIM | AI187: III TRIM | AJ187: IV TRIM | AL187: PORCENTAJE I SEM | AM187: I TRIM | AN187: II TRIM | AO187: PORCERNTAJE II SEM | AP187: III TRIM | AQ187: IV TRIM | AR187: PORCENTAJE ANUAL 2020
A188: 54 | B188: BARRANQUILLA | C188: IPS SURA ALTOS DEL PRADO | D188: 2 | E188: 1 | F188: 1 | G188: 0 | H188: 0 | I188: 1 | J188: 3 | K188: 2 | L188: 1 | M188: 1 | N188: 0 | O188: 0 | P188: =SUM(D188:F188) -> 4 | Q188: =SUM(G188:I188) -> 1 | R188: =SUM(J188:L188) -> 6 | S188: =SUM(M188:O188) -> 1 | T188: =SUM(P188:S188) -> 12 | U188: 80 | V188: 63 | W188: 73 | X188: 49 | Y188: 51 | Z188: 53 | AA188: 74 | AB188: 52 | AC188: 77 | AD188: 48 | AE188: 51 | AF188: 31 | AG188: =SUM(U188:W188) -> 216 | AH188: =SUM(X188:Z188) -> 153 | AI188: =SUM(AA188:AC188) -> 203 | AJ188: =+AD188+AE188+AF188 -> 130 | AK188: =SUM(AG188:AJ188) -> 702 | AL188: =IF(ISERROR(SUM(P188:Q188)/SUM(AG188:AH188)),0,SUM(P188:Q188)/SUM(AG188:AH188)) -> 0.0135501355 | AM188: =IF(ISERROR(P188/AG188),0,P188/AG188) -> 0.01851851852 | AN188: =IF(ISERROR(Q188/AH188),0,Q188/AH188) -> 0.006535947712 | AO188: =IF(ISERROR(SUM(R188:S188)/SUM(AI188:AJ188)),0,SUM(R188:S188)/SUM(AI188:AJ188)) -> 0.02102102102 | AP188: =IF(ISERROR(R188/AI188),0,R188/AI188) -> 0.02955665025 | AQ188: =IF(ISERROR(S188/AJ188),0,S188/AJ188) -> 0.007692307692 | AR188: =IF(ISERROR(T188/AK188),0,T188/AK188) -> 0.01709401709
A189: 93 | B189: BARRANQUILLA | C189: IPS SURA BOSTON | D189: 2 | E189: 3 | F189: 2 | G189: 1 | H189: 1 | I189: 1 | J189: 0 | K189: 0 | L189: 1 | M189: 0 | N189: 1 | O189: 0 | P189: =SUM(D189:F189) -> 7 | Q189: =SUM(G189:I189) -> 3 | R189: =SUM(J189:L189) -> 1 | S189: =SUM(M189:O189) -> 1 | T189: =SUM(P189:S189) -> 12 | U189: 31 | V189: 20 | W189: 16 | X189: 19 | Y189: 20 | Z189: 17 | AA189: 18 | AB189: 18 | AC189: 24 | AD189: 30 | AE189: 21 | AF189: 13 | AG189: =SUM(U189:W189) -> 67 | AH189: =SUM(X189:Z189) -> 56 | AI189: =SUM(AA189:AC189) -> 60 | AJ189: =+AD189+AE189+AF189 -> 64 | AK189: =SUM(AG189:AJ189) -> 247 | AL189: 0.08130081301 | AM189: =IF(ISERROR(P189/AG189),0,P189/AG189) -> 0.1044776119 | AN189: =IF(ISERROR(Q189/AH189),0,Q189/AH189) -> 0.05357142857 | AO189: =IF(ISERROR(SUM(R189:S189)/SUM(AI189:AJ189)),0,SUM(R189:S189)/SUM(AI189:AJ189)) -> 0.01612903226 | AP189: =IF(ISERROR(R189/AI189),0,R189/AI189) -> 0.01666666667 | AQ189: =IF(ISERROR(S189/AJ189),0,S189/AJ189) -> 0.015625 | AR189: =IF(ISERROR(T189/AK189),0,T189/AK189) -> 0.04858299595
A190: 2187 | B190: BARRANQUILLA | C190: IPS SURA MURILLO | D190: 5 | E190: 3 | F190: 1 | G190: 2 | H190: 1 | I190: 0 | J190: 6 | K190: 1 | L190: 3 | M190: 1 | N190: 5 | O190: 3 | P190: =SUM(D190:F190) -> 9 | Q190: 3 | R190: 10 | S190: 9 | T190: 31 | U190: 67 | V190: 44 | W190: 42 | X190: 45 | Y190: 34 | Z190: 34 | AA190: 44 | AB190: 45 | AC190: 61 | AD190: 52 | AE190: 48 | AF190: 23 | AG190: 153 | AH190: 113 | AI190: 150 | AJ190: 123 | AK190: 539 | AL190: 0.04511278195 | AM190: 0.05882352941 | AN190: 0.02654867257 | AO190: 0.0695970696 | AP190: 0.06666666667 | AQ190: 0.07317073171 | AR190: 0.05751391466
A191: 85 | B191: BARRANQUILLA | C191: SALUD EN CASA BARRANQUILLA | D191: 0 | E191: 0 | F191: 0 | G191: 0 | H191: 0 | I191: 0 | J191: 0 | K191: 0 | L191: 0 | M191: 0 | N191: 0 | O191: 0 | P191: =SUM(D191:L191) -> 0 | Q191: 0 | R191: 0 | S191: 0 | T191: 0 | U191: 0 | V191: 0 | W191: 0 | X191: 1 | Y191: 0 | Z191: 0 | AA191: 0 | AB191: 1 | AC191: 0 | AD191: 0 | AE191: 0 | AF191: 0 | AG191: 0 | AH191: 1 | AI191: 1 | AJ191: 0 | AK191: 2 | AL191: 0 | AM191: 0 | AN191: 0 | AO191: 0 | AP191: 0 | AQ191: 0 | AR191: 0
A192: 2182 | B192: BARRANQUILLA | C192: SALUDSURA BARRANQUILLA | D192: 0 | E192: 0 | F192: 0 | G192: 0 | H192: 0 | I192: 0 | J192: 0 | K192: 0 | L192: 0 | M192: 0 | N192: 0 | O192: 0 | P192: =SUM(D192:L192) -> 0 | Q192: 0 | R192: 0 | S192: 0 | T192: 0 | U192: 2 | V192: 0 | W192: 0 | X192: 0 | Y192: 0 | Z192: 1 | AA192: 0 | AB192: 0 | AC192: 0 | AD192: 1 | AE192: 0 | AF192: 0 | AG192: 2 | AH192: 1 | AI192: 0 | AJ192: 1 | AK192: 4 | AL192: 0 | AM192: 0 | AN192: 0 | AO192: 0 | AP192: 0 | AQ192: 0 | AR192: 0
A193: 1714 | B193: CARTAGENA | C193: SALUD DEL CARIBE S.A. PIE DE POPA | D193: 1 | E193: 0 | F193: 1 | G193: 2 | H193: 2 | I193: 1 | J193: 2 | K193: 1 | L193: 1 | M193: 2 | N193: 0 | O193: 0 | P193: =SUM(D193:F193) -> 2 | Q193: =SUM(G193:I193) -> 5 | R193: =SUM(J193:L193) -> 4 | S193: =SUM(M193:O193) -> 2 | T193: =SUM(P193:S193) -> 13 | U193: 19 | V193: 15 | W193: 20 | X193: 25 | Y193: 21 | Z193: 16 | AA193: 26 | AB193: 26 | AC193: 17 | AD193: 26 | AE193: 21 | AF193: 1 | AG193: =SUM(U193:W193) -> 54 | AH193: =SUM(X193:Z193) -> 62 | AI193: =SUM(AA193:AC193) -> 69 | AJ193: =+AD193+AE193+AF193 -> 48 | AK193: =SUM(AG193:AJ193) -> 233 | AL193: 0.06034482759 | AM193: =IF(ISERROR(P193/AG193),0,P193/AG193) -> 0.03703703704 | AN193: 0.08064516129 | AO193: =IF(ISERROR(SUM(R193:S193)/SUM(AI193:AJ193)),0,SUM(R193:S193)/SUM(AI193:AJ193)) -> 0.05128205128 | AP193: =IF(ISERROR(R193/AI193),0,R193/AI193) -> 0.05797101449 | AQ193: 0.04166666667 | AR193: 0.05579399142
A194: 1009 | B194: BARRANQUILLA | C194: FAMILIA IPS SALUD INTEGRAL SAS | D194: 2 | E194: 1 | F194: 1 | G194: 2 | H194: 1 | I194: 0 | J194: 1 | K194: 1 | L194: 0 | M194: 0 | N194: 0 | O194: 0 | P194: 4 | Q194: =SUM(G194:I194) -> 3 | R194: =SUM(J194:L194) -> 2 | S194: =SUM(M194:O194) -> 0 | T194: =SUM(P194:S194) -> 9 | U194: 23 | V194: 18 | W194: 16 | X194: 34 | Y194: 35 | Z194: 17 | AA194: 21 | AB194: 22 | AC194: 23 | AD194: 21 | AE194: 22 | AF194: 8 | AG194: =SUM(U194:W194) -> 57 | AH194: =SUM(X194:Z194) -> 86 | AI194: =SUM(AA194:AC194) -> 66 | AJ194: =+AD194+AE194+AF194 -> 51 | AK194: =SUM(AG194:AJ194) -> 260 | AL194: 0.04895104895 | AM194: 0.0701754386 | AN194: 0.03488372093 | AO194: =IF(ISERROR(SUM(R194:S194)/SUM(AI194:AJ194)),0,SUM(R194:S194)/SUM(AI194:AJ194)) -> 0.01709401709 | AP194: 0.0303030303 | AQ194: 0 | AR194: 0.03461538462
A195: 2696 | B195: BARRANQUILLA | C195: VIVA 1A SAN JOSE | D195: 4 | E195: 6 | F195: 2 | G195: 8 | H195: 8 | I195: 4 | J195: 7 | K195: 6 | L195: 1 | M195: 5 | N195: 8 | O195: 1 | P195: 12 | Q195: =SUM(G195:I195) -> 20 | R195: =SUM(J195:L195) -> 14 | S195: =SUM(M195:O195) -> 14 | T195: =SUM(P195:S195) -> 60 | U195: 83 | V195: 58 | W195: 56 | X195: 64 | Y195: 65 | Z195: 61 | AA195: 83 | AB195: 88 | AC195: 87 | AD195: 88 | AE195: 85 | AF195: 63 | AG195: =SUM(U195:W195) -> 197 | AH195: =SUM(X195:Z195) -> 190 | AI195: =SUM(AA195:AC195) -> 258 | AJ195: =+AD195+AE195+AF195 -> 236 | AK195: =SUM(AG195:AJ195) -> 881 | AL195: 0.0826873385 | AM195: 0.06091370558 | AN195: 0.1052631579 | AO195: =IF(ISERROR(SUM(R195:S195)/SUM(AI195:AJ195)),0,SUM(R195:S195)/SUM(AI195:AJ195)) -> 0.05668016194 | AP195: =IF(ISERROR(R195/AI195),0,R195/AI195) -> 0.05426356589 | AQ195: 0.0593220339 | AR195: 0.06810442679
A196: 2698 | B196: BARRANQUILLA | C196: VIVA 1A - CALLE 85 | D196: 0 | E196: 1 | F196: 0 | G196: 1 | H196: 0 | I196: 0 | J196: 3 | K196: 0 | L196: 2 | M196: 2 | N196: 2 | O196: 0 | P196: 1 | Q196: =SUM(G196:I196) -> 1 | R196: =SUM(J196:L196) -> 5 | S196: =SUM(M196:O196) -> 4 | T196: =SUM(P196:S196) -> 11 | U196: 38 | V196: 34 | W196: 30 | X196: 38 | Y196: 48 | Z196: 30 | AA196: 46 | AB196: 39 | AC196: 68 | AD196: 54 | AE196: 61 | AF196: 25 | AG196: =SUM(U196:W196) -> 102 | AH196: =SUM(X196:Z196) -> 116 | AI196: =SUM(AA196:AC196) -> 153 | AJ196: =+AD196+AE196+AF196 -> 140 | AK196: =SUM(AG196:AJ196) -> 511 | AL196: 0.009174311927 | AM196: =IF(ISERROR(P196/AG196),0,P196/AG196) -> 0.009803921569 | AN196: =IF(ISERROR(Q196/AH196),0,Q196/AH196) -> 0.008620689655 | AO196: =IF(ISERROR(SUM(R196:S196)/SUM(AI196:AJ196)),0,SUM(R196:S196)/SUM(AI196:AJ196)) -> 0.03071672355 | AP196: 0.03267973856 | AQ196: 0.02857142857 | AR196: 0.02152641879
A197: 2264 | B197: CARTAGENA | C197: SALUD DEL CARIBE SANTA LUCIA | D197: 2 | E197: 4 | F197: 0 | G197: 2 | H197: 3 | I197: 4 | J197: 2 | K197: 1 | L197: 0 | M197: 1 | N197: 2 | O197: 1 | P197: 6 | Q197: 9 | R197: 3 | S197: 4 | T197: 22 | U197: 64 | V197: 50 | W197: 52 | X197: 55 | Y197: 49 | Z197: 49 | AA197: 51 | AB197: 54 | AC197: 57 | AD197: 53 | AE197: 41 | AF197: 9 | AG197: 166 | AH197: 153 | AI197: 162 | AJ197: 103 | AK197: 584 | AL197: 0.04702194357 | AM197: 0.03614457831 | AN197: 0.05882352941 | AO197: 0.02641509434 | AP197: 0.01851851852 | AQ197: 0.03883495146 | AR197: 0.03767123288
A198: 2448 | B198: SOLEDAD | C198: IPS CALLE 30 | D198: 5 | E198: 3 | F198: 2 | G198: 4 | H198: 2 | I198: 3 | J198: 6 | K198: 4 | L198: 6 | M198: 4 | N198: 1 | O198: 2 | P198: 10 | Q198: =SUM(G198:I198) -> 9 | R198: =SUM(J198:L198) -> 16 | S198: =SUM(M198:O198) -> 7 | T198: =SUM(P198:S198) -> 42 | U198: 73 | V198: 41 | W198: 49 | X198: 47 | Y198: 41 | Z198: 46 | AA198: 55 | AB198: 47 | AC198: 59 | AD198: 65 | AE198: 56 | AF198: 39 | AG198: 163 | AH198: 134 | AI198: 161 | AJ198: 160 | AK198: =SUM(AG198:AJ198) -> 618 | AL198: 0.06397306397 | AM198: =IF(ISERROR(P198/AG198),0,P198/AG198) -> 0.06134969325 | AN198: 0.0671641791 | AO198: =IF(ISERROR(SUM(R198:S198)/SUM(AI198:AJ198)),0,SUM(R198:S198)/SUM(AI198:AJ198)) -> 0.07165109034 | AP198: =IF(ISERROR(R198/AI198),0,R198/AI198) -> 0.09937888199 | AQ198: 0.04375 | AR198: 0.06796116505
A199: 1008 | B199: BUCARAMANGA | C199: IPS CAÑAVERAL COOMULTRASAN | D199: 3 | E199: 1 | F199: 1 | G199: 1 | H199: 1 | I199: 0 | J199: 0 | K199: 4 | L199: 0 | M199: 2 | N199: 1 | O199: 1 | P199: =SUM(D199:F199) -> 5 | Q199: 2 | R199: 4 | S199: 4 | T199: 15 | U199: 30 | V199: 20 | W199: 22 | X199: 25 | Y199: 19 | Z199: 16 | AA199: 20 | AB199: 31 | AC199: 23 | AD199: 26 | AE199: 25 | AF199: 11 | AG199: 72 | AH199: 60 | AI199: 74 | AJ199: 62 | AK199: =SUM(AG199:AJ199) -> 268 | AL199: 0.05303030303 | AM199: 0.06944444444 | AN199: 0.03333333333 | AO199: =IF(ISERROR(SUM(R199:S199)/SUM(AI199:AJ199)),0,SUM(R199:S199)/SUM(AI199:AJ199)) -> 0.05882352941 | AP199: 0.05405405405 | AQ199: 0.06451612903 | AR199: 0.05597014925 | AS199: 2270
A200: 2218 | B200: BUCARAMANGA | C200: IPS SURA BUCARAMANGA | D200: 2 | E200: 3 | F200: 4 | G200: 3 | H200: 3 | I200: 1 | J200: 1 | K200: 1 | L200: 2 | M200: 2 | N200: 0 | O200: 0 | P200: 9 | Q200: 7 | R200: 4 | S200: 2 | T200: 22 | U200: 54 | V200: 60 | W200: 43 | X200: 43 | Y200: 44 | Z200: 40 | AA200: 43 | AB200: 47 | AC200: 47 | AD200: 49 | AE200: 38 | AF200: 20 | AG200: 157 | AH200: 127 | AI200: 137 | AJ200: 107 | AK200: =SUM(AG200:AJ200) -> 528 | AL200: 0.05633802817 | AM200: =IF(ISERROR(P200/AG200),0,P200/AG200) -> 0.05732484076 | AN200: =IF(ISERROR(Q200/AH200),0,Q200/AH200) -> 0.05511811024 | AO200: =IF(ISERROR(SUM(R200:S200)/SUM(AI200:AJ200)),0,SUM(R200:S200)/SUM(AI200:AJ200)) -> 0.02459016393 | AP200: =IF(ISERROR(R200/AI200),0,R200/AI200) -> 0.02919708029 | AQ200: =IF(ISERROR(S200/AJ200),0,S200/AJ200) -> 0.01869158879 | AR200: =IF(ISERROR(T200/AK200),0,T200/AK200) -> 0.04166666667
A201: 2716 | B201: BUCARAMANGA | C201: IPS COOMULTRASAN CARRERA 27 | D201: 0 | E201: 0 | F201: 0 | G201: 1 | H201: 1 | I201: 0 | J201: 0 | K201: 0 | L201: 1 | M201: 0 | N201: 0 | O201: 3 | P201: 0 | Q201: 2 | R201: 1 | S201: 3 | T201: 6 | U201: 5 | V201: 8 | W201: 11 | X201: 11 | Y201: 10 | Z201: 19 | AA201: 9 | AB201: 12 | AC201: 23 | AD201: 24 | AE201: 24 | AF201: 18 | AG201: 24 | AH201: 40 | AI201: 44 | AJ201: =+AD201+AE201+AF201 -> 66 | AK201: =SUM(AG201:AJ201) -> 174 | AL201: 0.03125 | AM201: 0 | AN201: 0.05 | AO201: 0.03636363636 | AP201: 0.02272727273 | AQ201: 0.04545454545 | AR201: 0.03448275862
A202: 2720 | B202: SABANALARGA | C202: VIVA 1A IPS SABANALARGA | D202: 1 | E202: 0 | F202: 0 | G202: 0 | H202: 0 | I202: 0 | J202: 0 | K202: 1 | L202: 0 | M202: 0 | N202: 0 | O202: 0 | P202: 1 | Q202: 0 | R202: 1 | S202: 0 | T202: 2 | U202: 3 | V202: 0 | W202: 1 | X202: 0 | Y202: 0 | Z202: 0 | AA202: 0 | AB202: 1 | AC202: 0 | AD202: 0 | AE202: 0 | AF202: 1 | AG202: =SUM(U202:W202) -> 4 | AH202: =SUM(X202:Z202) -> 0 | AI202: =SUM(AA202:AC202) -> 1 | AJ202: =+AD202+AE202+AF202 -> 1 | AK202: =SUM(AG202:AJ202) -> 6 | AL202: =IF(ISERROR(SUM(P202:Q202)/SUM(AG202:AH202)),0,SUM(P202:Q202)/SUM(AG202:AH202)) -> 0.25 | AM202: =IF(ISERROR(P202/AG202),0,P202/AG202) -> 0.25 | AN202: =IF(ISERROR(Q202/AH202),0,Q202/AH202) -> 0 | AO202: =IF(ISERROR(SUM(R202:S202)/SUM(AI202:AJ202)),0,SUM(R202:S202)/SUM(AI202:AJ202)) -> 0.5 | AP202: =IF(ISERROR(R202/AI202),0,R202/AI202) -> 1 | AQ202: =IF(ISERROR(S202/AJ202),0,S202/AJ202) -> 0 | AR202: =IF(ISERROR(T202/AK202),0,T202/AK202) -> 0.3333333333
A203: 119950 | B203: SANTA MARTA | C203: VIVA 1A IPS SANTA MARTA | D203: 0 | E203: 0 | F203: 1 | G203: 0 | H203: 2 | I203: 1 | J203: 0 | K203: 0 | L203: 0 | M203: 1 | N203: 0 | O203: 0 | P203: 1 | Q203: 3 | R203: 0 | S203: 1 | T203: 5 | U203: 1 | V203: 0 | W203: 2 | X203: 0 | Y203: 2 | Z203: 2 | AA203: 1 | AB203: 1 | AC203: 1 | AD203: 1 | AE203: 0 | AF203: 0 | AG203: =SUM(U203:W203) -> 3 | AH203: =SUM(X203:Z203) -> 4 | AI203: =SUM(AA203:AC203) -> 3 | AJ203: =+AD203+AE203+AF203 -> 1 | AK203: =SUM(AG203:AJ203) -> 11 | AL203: =IF(ISERROR(SUM(P203:Q203)/SUM(AG203:AH203)),0,SUM(P203:Q203)/SUM(AG203:AH203)) -> 0.5714285714 | AM203: =IF(ISERROR(P203/AG203),0,P203/AG203) -> 0.3333333333 | AN203: =IF(ISERROR(Q203/AH203),0,Q203/AH203) -> 0.75 | AO203: =IF(ISERROR(SUM(R203:S203)/SUM(AI203:AJ203)),0,SUM(R203:S203)/SUM(AI203:AJ203)) -> 0.25 | AP203: =IF(ISERROR(R203/AI203),0,R203/AI203) -> 0 | AQ203: =IF(ISERROR(S203/AJ203),0,S203/AJ203) -> 1 | AR203: =IF(ISERROR(T203/AK203),0,T203/AK203) -> 0.4545454545
A204: 13181 | B204: GALAPA | C204: ESE CENTRO DE SALUD GALAPA | D204: 0 | E204: 0 | F204: 0 | G204: 0 | H204: 0 | I204: 0 | J204: 0 | K204: 0 | L204: 0 | M204: 0 | N204: 0 | O204: 1 | P204: 0 | Q204: =SUM(G204:I204) -> 0 | R204: =SUM(J204:L204) -> 0 | S204: =SUM(M204:O204) -> 1 | T204: =SUM(P204:S204) -> 1 | U204: 0 | V204: 0 | W204: 0 | X204: 0 | Y204: 0 | Z204: 0 | AA204: 0 | AB204: 0 | AC204: 1 | AD204: 0 | AE204: 0 | AF204: 1 | AG204: =SUM(U204:W204) -> 0 | AH204: =SUM(X204:Z204) -> 0 | AI204: =SUM(AA204:AC204) -> 1 | AJ204: =+AD204+AE204+AF204 -> 1 | AK204: =SUM(AG204:AJ204) -> 2 | AL204: =IF(ISERROR(SUM(P204:Q204)/SUM(AG204:AH204)),0,SUM(P204:Q204)/SUM(AG204:AH204)) -> 0 | AM204: =IF(ISERROR(P204/AG204),0,P204/AG204) -> 0 | AN204: =IF(ISERROR(Q204/AH204),0,Q204/AH204) -> 0 | AO204: =IF(ISERROR(SUM(R204:S204)/SUM(AI204:AJ204)),0,SUM(R204:S204)/SUM(AI204:AJ204)) -> 0.5 | AP204: =IF(ISERROR(R204/AI204),0,R204/AI204) -> 0 | AQ204: =IF(ISERROR(S204/AJ204),0,S204/AJ204) -> 1 | AR204: =IF(ISERROR(T204/AK204),0,T204/AK204) -> 0.5
A205: T4 | C205: TOTAL | D205: =SUM(D188:D204) -> 29 | E205: =SUM(E188:E204) -> 26 | F205: 16 | G205: 27 | H205: 25 | I205: 16 | J205: 31 | K205: 22 | L205: 18 | M205: 21 | N205: 20 | O205: 12 | P205: 71 | Q205: 68 | R205: 71 | S205: 53 | T205: 263 | U205: =SUM(U188:U204) -> 573 | V205: =SUM(V188:V204) -> 431 | W205: =SUM(W188:W204) -> 433 | X205: =SUM(X188:X204) -> 456 | Y205: =SUM(Y188:Y204) -> 439 | Z205: =SUM(Z188:Z204) -> 401 | AA205: =SUM(AA188:AA204) -> 491 | AB205: =SUM(AB188:AB204) -> 484 | AC205: =SUM(AC188:AC204) -> 568 | AD205: =SUM(AD188:AD204) -> 538 | AE205: =SUM(AE188:AE204) -> 493 | AF205: =SUM(AF188:AF204) -> 263 | AG205: =SUM(AG188:AG204) -> 1437 | AH205: =SUM(AH188:AH204) -> 1296 | AI205: =SUM(AI188:AI204) -> 1543 | AJ205: =SUM(AJ188:AJ204) -> 1294 | AK205: =SUM(AK188:AK204) -> 5570 | AL205: =IF(ISERROR(SUM(P205:Q205)/SUM(AG205:AH205)),0,SUM(P205:Q205)/SUM(AG205:AH205)) -> 0.05085986096 | AM205: =IF(ISERROR(P205/AG205),0,P205/AG205) -> 0.04940848991 | AN205: 0.0524691358 | AO205: 0.0437081424 | AP205: 0.04601425794 | AQ205: 0.04095826893 | AR205: =IF(ISERROR(T205/AK205),0,T205/AK205) -> 0.04721723519 | AS205: =SUM(AS188:AS198) -> 
C208: MUNICIPIO | D208: Enero | E208: Febrero | F208: Marzo | G208: Abril | H208: Mayo | I208: Junio | J208: Julio | K208: Agosto | L208: Septiembre | M208: Octubre | N208: Noviembre | O208: Diciembre | P208: I TRIM | Q208: II TRIM | R208: III TRIM | S208: IV TRIM | T208: TOTAL | U208: Enero | V208: Febrero | W208: Marzo | X208: Abril | Y208: Mayo | Z208: Junio | AA208: Julio | AB208: Agosto | AC208: Septiembre | AD208: Octubre | AE208: Noviembre | AF208: Diciembre | AG208: I TRIM | AH208: II TRIM | AI208: III TRIM | AJ208: IV TRIM | AK208: TOTAL | AL208: PORCENTAJE I SEM | AM208: I TRIM | AN208: II TRIM | AO208: PORCERNTAJE II SEM | AP208: III TRIM | AQ208: IV TRIM | AR208: PORCENTAJE ANUAL 2020
A209: =VLOOKUP(C209,Parametros!B$122:C$181,2,0) -> N1 | B209: ATLANTICO | C209: BARRANQUILLA | D209: =SUMIF($B$188:$B$204,$C209,D$188:D$204) -> 15 | E209: =SUMIF($B$188:$B$204,$C209,E$188:E$204) -> 15 | F209: 7 | G209: 14 | H209: 11 | I209: 6 | J209: 20 | K209: 10 | L209: 8 | M209: 9 | N209: 16 | O209: 4 | P209: =SUM(D209:F209) -> 37 | Q209: =SUM(G209:I209) -> 31 | R209: =SUM(J209:L209) -> 38 | S209: =SUM(M209:O209) -> 29 | T209: =SUM(P209:S209) -> 135 | U209: =SUMIF($B$188:$B$204,$C209,U$188:U$204) -> 324 | V209: =SUMIF($B$188:$B$204,$C209,V$188:V$204) -> 237 | W209: 233 | X209: 250 | Y209: 253 | Z209: 213 | AA209: 286 | AB209: 265 | AC209: 340 | AD209: 294 | AE209: 288 | AF209: 163 | AG209: =SUM(U209:W209) -> 794 | AH209: =SUM(X209:Z209) -> 716 | AI209: =SUM(AA209:AC209) -> 891 | AJ209: =+AD209+AE209+AF209 -> 745 | AK209: =SUM(AG209:AJ209) -> 3146 | AL209: =IF(ISERROR(SUM(P209:Q209)/SUM(AG209:AH209)),0,SUM(P209:Q209)/SUM(AG209:AH209)) -> 0.04503311258 | AM209: =IF(ISERROR(P209/AG209),0,P209/AG209) -> 0.04659949622 | AN209: 0.04329608939 | AO209: =IF(ISERROR(SUM(R209:S209)/SUM(AI209:AJ209)),0,SUM(R209:S209)/SUM(AI209:AJ209)) -> 0.04095354523 | AP209: =IF(ISERROR(R209/AI209),0,R209/AI209) -> 0.04264870932 | AQ209: 0.0389261745 | AR209: 0.04291163382 | AS209: =SUMIF($B$188:$B$198,$C209,AS$188:AS$198) -> 
A210: =VLOOKUP(C210,Parametros!B$122:C$181,2,0) -> N2 | B210: SANTANDER | C210: BUCARAMANGA | D210: =SUMIF($B$188:$B$204,$C210,D$188:D$204) -> 5 | E210: 4 | F210: 5 | G210: 5 | H210: 5 | I210: 1 | J210: 1 | K210: 5 | L210: 3 | M210: 4 | N210: 1 | O210: 4 | P210: 14 | Q210: 11 | R210: 9 | S210: 9 | T210: 43 | U210: =SUMIF($B$188:$B$204,$C210,U$188:U$204) -> 89 | V210: 88 | W210: 76 | X210: 79 | Y210: 73 | Z210: 75 | AA210: 72 | AB210: 90 | AC210: 93 | AD210: 99 | AE210: 87 | AF210: 49 | AG210: 253 | AH210: 227 | AI210: 255 | AJ210: 235 | AK210: 970 | AL210: 0.05208333333 | AM210: =IF(ISERROR(P210/AG210),0,P210/AG210) -> 0.05533596838 | AN210: =IF(ISERROR(Q210/AH210),0,Q210/AH210) -> 0.04845814978 | AO210: 0.03673469388 | AP210: =IF(ISERROR(R210/AI210),0,R210/AI210) -> 0.03529411765 | AQ210: =IF(ISERROR(S210/AJ210),0,S210/AJ210) -> 0.03829787234 | AR210: =IF(ISERROR(T210/AK210),0,T210/AK210) -> 0.04432989691 | AS210: =SUMIF($B$147:$B$163,$C210,AS$147:AS$163) -> 0
A211: =VLOOKUP(C211,Parametros!B$122:C$181,2,0) -> N3 | B211: BOLIVAR | C211: CARTAGENA | D211: 3 | E211: 4 | F211: 1 | G211: 4 | H211: 5 | I211: 5 | J211: 4 | K211: 2 | L211: 1 | M211: 3 | N211: 2 | O211: 1 | P211: 8 | Q211: 14 | R211: 7 | S211: 6 | T211: 35 | U211: 83 | V211: 65 | W211: 72 | X211: 80 | Y211: 70 | Z211: 65 | AA211: 77 | AB211: 80 | AC211: 74 | AD211: 79 | AE211: 62 | AF211: 10 | AG211: 220 | AH211: 215 | AI211: 231 | AJ211: 151 | AK211: 817 | AL211: 0.05057471264 | AM211: 0.03636363636 | AN211: 0.06511627907 | AO211: 0.03403141361 | AP211: 0.0303030303 | AQ211: 0.03973509934 | AR211: 0.04283965728 | AS211: =SUMIF($B$188:$B$198,$C211,AS$188:AS$198) -> 
A212: =VLOOKUP(C212,Parametros!B$122:C$181,2,0) -> N4 | B212: ATLANTICO | C212: SOLEDAD | D212: 5 | E212: 3 | F212: 2 | G212: 4 | H212: 2 | I212: 3 | J212: 6 | K212: 4 | L212: 6 | M212: 4 | N212: 1 | O212: 2 | P212: 10 | Q212: 9 | R212: 16 | S212: 7 | T212: 42 | U212: 73 | V212: 41 | W212: 49 | X212: 47 | Y212: 41 | Z212: 46 | AA212: 55 | AB212: 47 | AC212: 59 | AD212: 65 | AE212: 56 | AF212: 39 | AG212: 163 | AH212: 134 | AI212: 161 | AJ212: 160 | AK212: 618 | AL212: 0.06397306397 | AM212: 0.06134969325 | AN212: 0.0671641791 | AO212: 0.07165109034 | AP212: 0.09937888199 | AQ212: 0.04375 | AR212: 0.06796116505 | AS212: =SUMIF($B$188:$B$198,$C212,AS$188:AS$198) -> 
A213: =VLOOKUP(C213,Parametros!B$122:C$181,2,0) -> N5 | B213: ATLANTICO | C213: SABANALARGA | D213: 1 | E213: 0 | F213: 0 | G213: 0 | H213: 0 | I213: 0 | J213: 0 | K213: 1 | L213: 0 | M213: 0 | N213: 0 | O213: 0 | P213: 1 | Q213: 0 | R213: 1 | S213: 0 | T213: 2 | U213: 3 | V213: 0 | W213: 1 | X213: 0 | Y213: 0 | Z213: 0 | AA213: 0 | AB213: 1 | AC213: 0 | AD213: 0 | AE213: 0 | AF213: 1 | AG213: 4 | AH213: 0 | AI213: 1 | AJ213: 1 | AK213: 6 | AL213: =IF(ISERROR(SUM(P213:Q213)/SUM(AG213:AH213)),0,SUM(P213:Q213)/SUM(AG213:AH213)) -> 0.25 | AM213: =IF(ISERROR(P213/AG213),0,P213/AG213) -> 0.25 | AN213: =IF(ISERROR(Q213/AH213),0,Q213/AH213) -> 0 | AO213: 0.5 | AP213: =IF(ISERROR(R213/AI213),0,R213/AI213) -> 1 | AQ213: =IF(ISERROR(S213/AJ213),0,S213/AJ213) -> 0 | AR213: =IF(ISERROR(T213/AK213),0,T213/AK213) -> 0.3333333333
A214: =VLOOKUP(C214,Parametros!B$122:C$181,2,0) -> N6 | B214: MAGDALENA | C214: SANTA MARTA | D214: 0 | E214: 0 | F214: 1 | G214: 0 | H214: 2 | I214: 1 | J214: 0 | K214: 0 | L214: 0 | M214: 1 | N214: 0 | O214: 0 | P214: 1 | Q214: 3 | R214: 0 | S214: 1 | T214: 5 | U214: 1 | V214: 0 | W214: 2 | X214: 0 | Y214: 2 | Z214: 2 | AA214: 1 | AB214: 1 | AC214: 1 | AD214: 1 | AE214: 0 | AF214: 0 | AG214: 3 | AH214: 4 | AI214: 3 | AJ214: 1 | AK214: 11 | AL214: =IF(ISERROR(SUM(P214:Q214)/SUM(AG214:AH214)),0,SUM(P214:Q214)/SUM(AG214:AH214)) -> 0.5714285714 | AM214: =IF(ISERROR(P214/AG214),0,P214/AG214) -> 0.3333333333 | AN214: =IF(ISERROR(Q214/AH214),0,Q214/AH214) -> 0.75 | AO214: 0.25 | AP214: =IF(ISERROR(R214/AI214),0,R214/AI214) -> 0 | AQ214: =IF(ISERROR(S214/AJ214),0,S214/AJ214) -> 1 | AR214: =IF(ISERROR(T214/AK214),0,T214/AK214) -> 0.4545454545
A215: =VLOOKUP(C215,Parametros!B$122:C$181,2,0) -> N7 | B215: ATLANTICO | C215: GALAPA | D215: 0 | E215: 0 | F215: 0 | G215: 0 | H215: 0 | I215: 0 | J215: 0 | K215: 0 | L215: 0 | M215: 0 | N215: 0 | O215: =SUMIF($B$188:$B$204,$C215,O$188:O$204) -> 1 | P215: =SUM(D215:F215) -> 0 | Q215: =SUM(G215:I215) -> 0 | R215: =SUM(J215:L215) -> 0 | S215: =SUM(M215:O215) -> 1 | T215: =SUM(P215:S215) -> 1 | U215: 0 | V215: 0 | W215: 0 | X215: 0 | Y215: 0 | Z215: 0 | AA215: 0 | AB215: 0 | AC215: 1 | AD215: 0 | AE215: 0 | AF215: =SUMIF($B$188:$B$204,$C215,AF$188:AF$204) -> 1 | AG215: =SUM(U215:W215) -> 0 | AH215: =SUM(X215:Z215) -> 0 | AI215: =SUM(AA215:AC215) -> 1 | AJ215: =+AD215+AE215+AF215 -> 1 | AK215: =SUM(AG215:AJ215) -> 2 | AL215: =IF(ISERROR(SUM(P215:Q215)/SUM(AG215:AH215)),0,SUM(P215:Q215)/SUM(AG215:AH215)) -> 0 | AM215: =IF(ISERROR(P215/AG215),0,P215/AG215) -> 0 | AN215: =IF(ISERROR(Q215/AH215),0,Q215/AH215) -> 0 | AO215: =IF(ISERROR(SUM(R215:S215)/SUM(AI215:AJ215)),0,SUM(R215:S215)/SUM(AI215:AJ215)) -> 0.5 | AP215: =IF(ISERROR(R215/AI215),0,R215/AI215) -> 0 | AQ215: =IF(ISERROR(S215/AJ215),0,S215/AJ215) -> 1 | AR215: =IF(ISERROR(T215/AK215),0,T215/AK215) -> 0.5
C216: TOTAL | D216: =SUM(D209:D215) -> 29 | E216: =SUM(E209:E215) -> 26 | F216: 16 | G216: 27 | H216: 25 | I216: 16 | J216: 31 | K216: 22 | L216: 18 | M216: 21 | N216: 20 | O216: 12 | P216: 71 | Q216: 68 | R216: 71 | S216: 53 | T216: 263 | U216: =SUM(U209:U215) -> 573 | V216: =SUM(V209:V215) -> 431 | W216: =SUM(W209:W215) -> 433 | X216: =SUM(X209:X215) -> 456 | Y216: =SUM(Y209:Y215) -> 439 | Z216: =SUM(Z209:Z215) -> 401 | AA216: =SUM(AA209:AA215) -> 491 | AB216: =SUM(AB209:AB215) -> 484 | AC216: =SUM(AC209:AC215) -> 568 | AD216: =SUM(AD209:AD215) -> 538 | AE216: =SUM(AE209:AE215) -> 493 | AF216: =SUM(AF209:AF215) -> 263 | AG216: =SUM(AG209:AG215) -> 1437 | AH216: =SUM(AH209:AH215) -> 1296 | AI216: =SUM(AI209:AI215) -> 1543 | AJ216: =SUM(AJ209:AJ215) -> 1294 | AK216: =SUM(AK209:AK215) -> 5570 | AL216: =IF(ISERROR(SUM(P216:Q216)/SUM(AG216:AH216)),0,SUM(P216:Q216)/SUM(AG216:AH216)) -> 0.05085986096 | AM216: 0.04940848991 | AN216: 0.0524691358 | AO216: 0.0437081424 | AP216: 0.04601425794 | AQ216: 0.04095826893 | AR216: 0.04721723519 | AS216: =SUM(AS209:AS212) -> 
C219: REGIONAL NORTE | D219: Enero | E219: Febrero | F219: Marzo | G219: Abril | H219: Mayo | I219: Junio | J219: Julio | K219: Agosto | L219: Septiembre | M219: Octubre | N219: Noviembre | O219: Diciembre | P219: I TRIM | Q219: II TRIM | R219: III TRIM | S219: IV TRIM | T219: TOTAL | U219: Enero | V219: Febrero | W219: Marzo | X219: Abril | Y219: Mayo | Z219: Junio | AA219: Julio | AB219: Agosto | AC219: Septiembre | AD219: Octubre | AE219: Noviembre | AF219: Diciembre | AG219: I TRIM | AH219: II TRIM | AI219: III TRIM | AJ219: IV TRIM | AK219: TOTAL | AL219: PORCENTAJE I SEM | AM219: I TRIM | AN219: II TRIM | AO219: PORCERNTAJE II SEM | AP219: III TRIM | AQ219: IV TRIM | AR219: PORCENTAJE ANUAL 2020
C220: DATOS | D220: =D205 -> 29 | E220: =E205 -> 26 | F220: 16 | G220: 27 | H220: 25 | I220: 16 | J220: 31 | K220: 22 | L220: 18 | M220: 21 | N220: 20 | O220: 12 | P220: =SUM(D220:F220) -> 71 | Q220: =SUM(G220:I220) -> 68 | R220: =SUM(J220:L220) -> 71 | S220: =SUM(M220:O220) -> 53 | T220: =SUM(P220:S220) -> 263 | U220: =U205 -> 573 | V220: =V205 -> 431 | W220: 433 | X220: 456 | Y220: 439 | Z220: 401 | AA220: 491 | AB220: 484 | AC220: 568 | AD220: 538 | AE220: 493 | AF220: 263 | AG220: =SUM(U220:W220) -> 1437 | AH220: =SUM(X220:Z220) -> 1296 | AI220: =SUM(AA220:AC220) -> 1543 | AJ220: =SUM(AD220:AF220) -> 1294 | AK220: =SUM(AG220:AJ220) -> 5570 | AL220: =IF(ISERROR(SUM(P220:Q220)/SUM(AG220:AH220)),0,SUM(P220:Q220)/SUM(AG220:AH220)) -> 0.05085986096 | AM220: =IF(ISERROR(P220/AG220),0,P220/AG220) -> 0.04940848991 | AN220: =IF(ISERROR(Q220/AH220),0,Q220/AH220) -> 0.0524691358 | AO220: =IF(ISERROR(SUM(R220:S220)/SUM(AI220:AJ220)),0,SUM(R220:S220)/SUM(AI220:AJ220)) -> 0.0437081424 | AP220: =IF(ISERROR(R220/AI220),0,R220/AI220) -> 0.04601425794 | AQ220: =IF(ISERROR(S220/AJ220),0,S220/AJ220) -> 0.04095826893 | AR220: =IF(ISERROR(T220/AK220),0,T220/AK220) -> 0.04721723519 | AS220: =AS205 -> 
C223: DEPARTAMENTO | D223: Enero | E223: Febrero | F223: Marzo | G223: Abril | H223: Mayo | I223: Junio | J223: Julio | K223: Agosto | L223: Septiembre | M223: Octubre | N223: Noviembre | O223: Diciembre | P223: I TRIM | Q223: II TRIM | R223: III TRIM | S223: IV TRIM | T223: TOTAL | U223: Enero | V223: Febrero | W223: Marzo | X223: Abril | Y223: Mayo | Z223: Junio | AA223: Julio | AB223: Agosto | AC223: Septiembre | AD223: Octubre | AE223: Noviembre | AF223: Diciembre | AG223: I TRIM | AH223: II TRIM | AI223: III TRIM | AJ223: IV TRIM | AK223: TOTAL | AL223: PORCENTAJE I SEM | AM223: I TRIM | AN223: II TRIM | AO223: PORCERNTAJE II SEM | AP223: III TRIM | AQ223: IV TRIM | AR223: PORCENTAJE ANUAL 2020
A224: D1 | C224: ANTIOQUIA | D224: =SUMIF($B$80:$B$105,$C224,D$80:D$105) -> 111 | E224: =SUMIF($B$80:$B$105,$C224,E$80:E$105) -> 115 | F224: 97 | G224: 97 | H224: 98 | I224: 82 | J224: 103 | K224: 95 | L224: 111 | M224: 129 | N224: 118 | O224: 84 | P224: =SUM(D224:F224) -> 323 | Q224: =SUM(G224:I224) -> 277 | R224: =SUM(J224:L224) -> 309 | S224: =SUM(M224:O224) -> 331 | T224: =SUM(P224:S224) -> 1240 | U224: =SUMIF($B$80:$B$105,$C224,U$80:U$105) -> 1458 | V224: =SUMIF($B$80:$B$105,$C224,V$80:V$105) -> 1292 | W224: 1405 | X224: 1323 | Y224: 1362 | Z224: 1401 | AA224: 1483 | AB224: 1536 | AC224: 1600 | AD224: 1579 | AE224: 1415 | AF224: 1147 | AG224: =SUM(U224:W224) -> 4155 | AH224: =SUM(X224:Z224) -> 4086 | AI224: =SUM(AA224:AC224) -> 4619 | AJ224: =+AD224+AE224+AF224 -> 4141 | AK224: =SUM(AG224:AJ224) -> 17001 | AL224: =IF(ISERROR(SUM(P224:Q224)/SUM(AG224:AH224)),0,SUM(P224:Q224)/SUM(AG224:AH224)) -> 0.07280669822 | AM224: =IF(ISERROR(P224/AG224),0,P224/AG224) -> 0.07773766546 | AN224: =IF(ISERROR(Q224/AH224),0,Q224/AH224) -> 0.06779246207 | AO224: =IF(ISERROR(SUM(R224:S224)/SUM(AI224:AJ224)),0,SUM(R224:S224)/SUM(AI224:AJ224)) -> 0.07305936073 | AP224: =IF(ISERROR(R224/AI224),0,R224/AI224) -> 0.06689759688 | AQ224: =IF(ISERROR(S224/AJ224),0,S224/AJ224) -> 0.07993238348 | AR224: =IF(ISERROR(T224/AK224),0,T224/AK224) -> 0.07293688607 | AS224: =SUMIF($B$80:$B$99,$C224,AS$80:AS$99) -> 
A225: D2 | C225: CALDAS | D225: =SUMIF($B$80:$B$105,$C225,D$80:D$105) -> 2 | E225: 2 | F225: 3 | G225: 1 | H225: 4 | I225: 5 | J225: 5 | K225: 8 | L225: 3 | M225: 2 | N225: 4 | O225: 5 | P225: 7 | Q225: 10 | R225: 16 | S225: 11 | T225: 44 | U225: =SUMIF($B$80:$B$105,$C225,U$80:U$105) -> 58 | V225: 42 | W225: 57 | X225: 32 | Y225: 46 | Z225: 62 | AA225: 54 | AB225: 60 | AC225: 66 | AD225: 49 | AE225: 48 | AF225: 61 | AG225: 157 | AH225: 140 | AI225: 180 | AJ225: 158 | AK225: 635 | AL225: =IF(ISERROR(SUM(P225:Q225)/SUM(AG225:AH225)),0,SUM(P225:Q225)/SUM(AG225:AH225)) -> 0.05723905724 | AM225: 0.04458598726 | AN225: 0.07142857143 | AO225: 0.0798816568 | AP225: 0.08888888889 | AQ225: 0.06962025316 | AR225: 0.06929133858 | AS225: =SUMIF($B$80:$B$99,$C225,AS$80:AS$99) -> 
A226: =VLOOKUP(C226,Parametros!B$122:C$181,2,0) -> D3 | C226: QUINDIO | D226: =SUMIF($B$80:$B$105,$C226,D$80:D$105) -> 2 | E226: 4 | F226: 3 | G226: 2 | H226: 3 | I226: 1 | J226: 3 | K226: 2 | L226: 3 | M226: 0 | N226: 1 | O226: 0 | P226: 9 | Q226: 6 | R226: 8 | S226: 1 | T226: 24 | U226: =SUMIF($B$80:$B$105,$C226,U$80:U$105) -> 42 | V226: 40 | W226: 35 | X226: 41 | Y226: 32 | Z226: 42 | AA226: 50 | AB226: 39 | AC226: 47 | AD226: 38 | AE226: 42 | AF226: 8 | AG226: 117 | AH226: 115 | AI226: 136 | AJ226: 88 | AK226: 456 | AL226: 0.06465517241 | AM226: 0.07692307692 | AN226: 0.05217391304 | AO226: 0.04017857143 | AP226: 0.05882352941 | AQ226: 0.01136363636 | AR226: 0.05263157895 | AS226: =SUMIF($B$80:$B$99,$C226,AS$80:AS$99) -> 
A227: =VLOOKUP(C227,Parametros!B$122:C$181,2,0) -> D4 | C227: RISARALDA | D227: =SUMIF($B$80:$B$105,$C227,D$80:D$105) -> 0 | E227: 2 | F227: 0 | G227: 2 | H227: 1 | I227: 4 | J227: 2 | K227: 3 | L227: 1 | M227: 4 | N227: 3 | O227: 2 | P227: 2 | Q227: 7 | R227: 6 | S227: 9 | T227: 24 | U227: =SUMIF($B$80:$B$105,$C227,U$80:U$105) -> 38 | V227: 20 | W227: 30 | X227: 36 | Y227: 34 | Z227: 39 | AA227: 38 | AB227: 42 | AC227: 41 | AD227: 32 | AE227: 33 | AF227: 40 | AG227: 88 | AH227: 109 | AI227: 121 | AJ227: 105 | AK227: 423 | AL227: 0.04568527919 | AM227: 0.02272727273 | AN227: 0.06422018349 | AO227: 0.06637168142 | AP227: 0.04958677686 | AQ227: 0.08571428571 | AR227: 0.05673758865 | AS227: =SUMIF($B$80:$B$99,$C227,AS$80:AS$99) -> 
A228: =VLOOKUP(C228,Parametros!B$122:C$181,2,0) -> D5 | C228: VALLE | D228: =SUMIF($B$132:$B$136,$C228,D$132:D$136) -> 10 | E228: =SUMIF($B$132:$B$136,$C228,E$132:E$136) -> 6 | F228: 7 | G228: 6 | H228: 9 | I228: 16 | J228: 9 | K228: 13 | L228: 12 | M228: 8 | N228: 10 | O228: 3 | P228: 23 | Q228: 31 | R228: 34 | S228: 21 | T228: 109 | U228: =SUMIF($B$132:$B$136,$C228,U$132:U$136) -> 213 | V228: =SUMIF($B$132:$B$136,$C228,V$132:V$136) -> 206 | W228: 235 | X228: 233 | Y228: 235 | Z228: 226 | AA228: 227 | AB228: 264 | AC228: 253 | AD228: 247 | AE228: 185 | AF228: 117 | AG228: 654 | AH228: 694 | AI228: 744 | AJ228: 549 | AK228: 2641 | AL228: 0.04005934718 | AM228: 0.03516819572 | AN228: 0.0446685879 | AO228: 0.04253673627 | AP228: 0.04569892473 | AQ228: 0.03825136612 | AR228: 0.04127224536 | AS228: =SUMIF($B$132:$B$135,$C228,AS$132:AS$135) -> 
... 11 more rows

Sheet Fichbpn
A2: FICHA TECNICA
A4: INDICADOR DE RESULTADO
A5: NOMBRE DEL INDICADOR: | B5: Prevalencia de bajo peso al nacer
A6: OBJETIVO DEL INDICADOR: | B6: Identificar la proporcion de nacidos vivos con bajo peso al nacer
A7: FECHA ACTUALIZACION FICHA TECNICA | B7: 26-10-2020
A8: RESPONSABLE PUBLICACION | B8: Salud Publica
A9: FÓRMULA DEL INDICADOR:
A10: REFERENTE PAIS | B10: 9,22 % ( año 2018) informacion disponible en http://oncalidadsalud.minsalud.gov.co/Paginas/Indicadores.aspx
A11: META EPS SURA (menor o igual al resultado registrado en el año inmediatamente anterior) | B11: 8,4%
A12: FUENTE DE LOS DATOS | B12: NUMERADOR: Detalle Eventos General - Hospitalarios
B13: DENOMINADOR: Detalle Eventos General - Hospitalarios
A14: PARÁMETROS DE EJECUCIÓN: | B14: NUMERADOR: informe Detalle Eventos General - Hospitalarios; "Peso Bebe" entre 500 y 2499, variable "Estado Recien Nacido" 1 ( vivo)
B15: DENOMINADOR: Detalle Eventos General - Hospitalarios. Estado Recien Nacido =1. si Estado=0<5%. Entonces se toman Estado=1 y 0
A16: PERIODICIDAD PUBLICACION DEL INDICADOR: | B16: TRIMESTRAL
A17: OBSERVACIONES | B17: Para el seguimiento de este indicador no se tendran en cuenta datos de las IPS Salud Sura y Salud en casa ya que no se cuenta con informacion para las usuarias de estas IPS en el pais
A18: FECHA DE CORTE DE EXTRACCIÓN DE LOS DATOS: | B18: El dia 18 del mes subsiguiente
A19: RUTA DONDE SE PUBLICARÁN LOS RESULTADOS: | B19: https://www.epssura.com/index.php?option=com_sura_coorcient&opcion=secciones
A20: SEGUIMIENTO DESDE SALUD PUBLICA | B20: Envio trimestral del top 5 de IPS de cada regional que presentan desviacion del indicador para que se definan acciones a implementar en conjunto con las IPS para impactar en el resultado. Desde Central se hara seguimiento al cambio en la tendencia del indicador de estas IPS en los trimestres posteriores a la implementacion de acciones.

Sheet Bajo Peso al Nacer
A1: 1 | B1: =+VLOOKUP($A$1,Parametros!$AC$51:$AD$54,2,0) -> RESULTADO_ANUAL_ANTIOQUIA_2019: 9.6% RESULTADO_ANUAL_EPS SURA_2019: 8.8%
C2: INDICADORES EPIDEMIOLÓGICOS DE " PROPORCIÓN *100 "BAJO PESO AL NACER " Entre >=500 Y <= 2499 grms " AÑO 2020
C4: =B1 -> RESULTADO_ANUAL_ANTIOQUIA_2019: 9.6% RESULTADO_ANUAL_EPS SURA_2019: 8.8%
C5: REGIONAL ANTIOQUIA | D5: I TRIM | G5: II TRIM | J5: III TRIM | M5: IV TRIM | P5: BAJO PESO AL NACER | T5: TOTAL BPN 2020 | U5: Meses x Nacimientos | AG5: TOTAL DE NACIMIENTOS VIVOS I SEMESTRE | AI5: TOTAL DE NACIMIENTOS VIVOS II SEMESTRE | AK5: TOTAL NACIMIENTOS 2020 | AL5: PROPORCIÓN
C6: IPS | D6: Enero | E6: Febrero | F6: Marzo | G6: Abril | H6: Mayo | I6: Junio | J6: Julio | K6: Agosto | L6: Septiembre | M6: Octubre | N6: Noviembre | O6: Diciembre | P6: I Trim | Q6: II Trim | R6: III Trim | S6: IV Trim | U6: Enero | V6: Febrero | W6: Marzo | X6: Abril | Y6: Mayo | Z6: Junio | AA6: Julio | AB6: Agosto | AC6: Septiembre | AD6: Octubre | AE6: Noviembre | AF6: Diciembre | AG6: I TRIM | AH6: II TRIM | AI6: III TRIM | AJ6: IV TRIM | AL6: I TRIM | AM6: II TRIM | AN6: III TRIM | AO6: IV TRIM | AP6: PORCENTAJE I SEM | AQ6: PORCENTAJE II SEM | AR6: PORCENTAJE ANUAL 2020 | AW6: PREVALENCIA
A7: 112 | B7: APARTADO | C7: COMFAMA APARTADO | D7: 0 | E7: 2 | F7: 2 | G7: 2 | H7: 1 | I7: 1 | J7: 1 | K7: 3 | L7: 2 | M7: 1 | N7: 0 | O7: 2 | P7: =SUM(D7:F7) -> 4 | Q7: =SUM(G7:I7) -> 4 | R7: =SUM(J7:L7) -> 6 | S7: =SUM(M7:O7) -> 3 | T7: =SUM(P7:S7) -> 17 | U7: 24 | V7: 21 | W7: 27 | X7: 24 | Y7: 20 | Z7: 31 | AA7: 34 | AB7: 27 | AC7: 35 | AD7: 39 | AE7: 29 | AF7: 31 | AG7: =SUM(U7:W7) -> 72 | AH7: =SUM(X7:Z7) -> 75 | AI7: =SUM(AA7:AC7) -> 96 | AJ7: =SUM(AD7:AF7) -> 99 | AK7: =SUM(AG7:AJ7) -> 342 | AL7: =IF(ISERROR(SUM(D7:F7)/AG7),0,SUM(D7:F7)/AG7) -> 0.05555555556 | AM7: =IF(ISERROR(Q7/AH7),0,Q7/AH7) -> 0.05333333333 | AN7: =IF(ISERROR(R7/AI7),0,R7/AI7) -> 0.0625 | AO7: =IF(ISERROR(S7/AJ7),0,S7/AJ7) -> 0.0303030303 | AP7: =IF(ISERROR(SUM(P7:Q7)/SUM(AG7:AH7)),0,SUM(P7:Q7)/SUM(AG7:AH7)) -> 0.05442176871 | AQ7: =IF(ISERROR(SUM(R7:S7)/SUM(AI7:AJ7)),0,SUM(R7:S7)/SUM(AI7:AJ7)) -> 0.04615384615 | AR7: =IF(ISERROR(SUM(P7:S7)/SUM(AG7:AJ7)),0,SUM(P7:S7)/SUM(AG7:AJ7)) -> 0.04970760234 | AS7: 5216
A8: 2691 | B8: APARTADO | C8: COMFAMA CAREPA | D8: 1 | E8: 0 | F8: 2 | G8: 0 | H8: 0 | I8: 0 | J8: 0 | K8: 0 | L8: 2 | M8: 2 | N8: 1 | O8: 2 | P8: =SUM(D8:F8) -> 3 | Q8: =SUM(G8:I8) -> 0 | R8: =SUM(J8:L8) -> 2 | S8: =SUM(M8:O8) -> 5 | T8: =SUM(P8:S8) -> 10 | U8: 14 | V8: 6 | W8: 7 | X8: 8 | Y8: 12 | Z8: 10 | AA8: 11 | AB8: 7 | AC8: 16 | AD8: 21 | AE8: 17 | AF8: 17 | AG8: =SUM(U8:W8) -> 27 | AH8: =SUM(X8:Z8) -> 30 | AI8: =SUM(AA8:AC8) -> 34 | AJ8: =SUM(AD8:AF8) -> 55 | AK8: =SUM(AG8:AJ8) -> 146 | AL8: =IF(ISERROR(SUM(D8:F8)/AG8),0,SUM(D8:F8)/AG8) -> 0.1111111111 | AM8: =IF(ISERROR(Q8/AH8),0,Q8/AH8) -> 0 | AN8: =IF(ISERROR(R8/AI8),0,R8/AI8) -> 0.05882352941 | AO8: =IF(ISERROR(S8/AJ8),0,S8/AJ8) -> 0.09090909091 | AP8: =IF(ISERROR(SUM(P8:Q8)/SUM(AG8:AH8)),0,SUM(P8:Q8)/SUM(AG8:AH8)) -> 0.05263157895 | AQ8: =IF(ISERROR(SUM(R8:S8)/SUM(AI8:AJ8)),0,SUM(R8:S8)/SUM(AI8:AJ8)) -> 0.07865168539 | AR8: =IF(ISERROR(SUM(P8:S8)/SUM(AG8:AJ8)),0,SUM(P8:S8)/SUM(AG8:AJ8)) -> 0.06849315068 | AS8: 36504
A9: 2681 | B9: APARTADO | C9: COMFAMA CHIGORODO | D9: 1 | E9: 1 | F9: 1 | G9: 2 | H9: 0 | I9: 1 | J9: 0 | K9: 1 | L9: 2 | M9: 0 | N9: 0 | O9: 0 | P9: 3 | Q9: 3 | R9: 3 | S9: 0 | T9: 9 | U9: 12 | V9: 14 | W9: 15 | X9: 14 | Y9: 14 | Z9: 12 | AA9: 10 | AB9: 13 | AC9: 22 | AD9: 17 | AE9: 8 | AF9: 11 | AG9: 41 | AH9: 40 | AI9: 45 | AJ9: 36 | AK9: 162 | AL9: 0.07317073171 | AM9: 0.075 | AN9: 0.06666666667 | AO9: 0 | AP9: 0.07407407407 | AQ9: 0.03703703704 | AR9: 0.05555555556 | AS9: 69133
A10: 2690 | B10: APARTADO | C10: COMFAMA TURBO | D10: 0 | E10: 1 | F10: 2 | G10: 2 | H10: 0 | I10: 0 | J10: 2 | K10: 2 | L10: 1 | M10: 6 | N10: 4 | O10: 2 | P10: 3 | Q10: 2 | R10: 5 | S10: 12 | T10: 22 | U10: 27 | V10: 23 | W10: 17 | X10: 12 | Y10: 19 | Z10: 20 | AA10: 27 | AB10: 20 | AC10: 18 | AD10: 33 | AE10: 14 | AF10: 11 | AG10: 67 | AH10: 51 | AI10: 65 | AJ10: 58 | AK10: 241 | AL10: 0.0447761194 | AM10: 0.03921568627 | AN10: 0.07692307692 | AO10: =IF(ISERROR(S10/AJ10),0,S10/AJ10) -> 0.2068965517 | AP10: 0.04237288136 | AQ10: 0.1382113821 | AR10: 0.09128630705 | AS10: 34650
A11: 2205 | B11: BARBOSA | C11: PROSALCO BARBOSA | D11: 0 | E11: 0 | F11: 1 | G11: 0 | H11: 1 | I11: 0 | J11: 0 | K11: 1 | L11: 2 | M11: 2 | N11: 0 | O11: 1 | P11: 1 | Q11: 1 | R11: 3 | S11: 3 | T11: 8 | U11: 11 | V11: 4 | W11: 4 | X11: 9 | Y11: 6 | Z11: 9 | AA11: 7 | AB11: 11 | AC11: 9 | AD11: 9 | AE11: 3 | AF11: 9 | AG11: 19 | AH11: 24 | AI11: 27 | AJ11: 21 | AK11: 91 | AL11: 0.05263157895 | AM11: 0.04166666667 | AN11: 0.1111111111 | AO11: 0.1428571429 | AP11: 0.04651162791 | AQ11: 0.125 | AR11: 0.08791208791 | AS11: 49158 | AY11: I_ TRIMES 2014 | AZ11: I_ TRIMESTRE 2008
A12: 37 | B12: BELLO | C12: COMFAMA BELLO | D12: 7 | E12: 12 | F12: 9 | G12: 13 | H12: 10 | I12: 9 | J12: 9 | K12: 12 | L12: 19 | M12: 11 | N12: 9 | O12: 8 | P12: 28 | Q12: 32 | R12: 40 | S12: 28 | T12: 128 | U12: 98 | V12: 127 | W12: 126 | X12: 120 | Y12: 139 | Z12: 105 | AA12: 115 | AB12: 144 | AC12: 163 | AD12: 129 | AE12: 115 | AF12: 81 | AG12: 351 | AH12: 364 | AI12: 422 | AJ12: 325 | AK12: 1462 | AL12: 0.07977207977 | AM12: 0.08791208791 | AN12: 0.09478672986 | AO12: 0.08615384615 | AP12: 0.08391608392 | AQ12: 0.09103078983 | AR12: 0.08755129959 | AS12: 15824 | AX12: ANTIOQUIA | AY12: 7.24 | AZ12: 9.39
A13: 2702 | B13: BELLO | C13: COOMSOCIAL - BELLO | D13: 5 | E13: 0 | F13: 1 | G13: 2 | H13: 4 | I13: 2 | J13: 0 | K13: 1 | L13: 0 | M13: 3 | N13: 1 | O13: 2 | P13: 6 | Q13: 8 | R13: 1 | S13: 6 | T13: 21 | U13: 29 | V13: 22 | W13: 22 | X13: 18 | Y13: 25 | Z13: 21 | AA13: 23 | AB13: 19 | AC13: 28 | AD13: 31 | AE13: 26 | AF13: 27 | AG13: 73 | AH13: 64 | AI13: 70 | AJ13: 84 | AK13: 291 | AL13: 0.08219178082 | AM13: 0.125 | AN13: 0.01428571429 | AO13: 0.07142857143 | AP13: 0.102189781 | AQ13: 0.04545454545 | AR13: 0.07216494845 | AS13: 36457 | AX13: BARRANQUILLA | AY13: 4 | AZ13: 8.9
A14: 34 | B14: CALDAS | C14: COMFAMA CALDAS | D14: 2 | E14: 7 | F14: 1 | G14: 4 | H14: 2 | I14: 1 | J14: 7 | K14: 4 | L14: 5 | M14: 7 | N14: 3 | O14: 0 | P14: 10 | Q14: 7 | R14: 16 | S14: 10 | T14: 43 | U14: 41 | V14: 42 | W14: 38 | X14: 34 | Y14: 39 | Z14: 29 | AA14: 47 | AB14: 46 | AC14: 33 | AD14: 48 | AE14: 48 | AF14: 21 | AG14: 121 | AH14: 102 | AI14: 126 | AJ14: 117 | AK14: 466 | AL14: 0.0826446281 | AM14: 0.06862745098 | AN14: 0.126984127 | AO14: 0.08547008547 | AP14: 0.07623318386 | AQ14: 0.1069958848 | AR14: 0.09227467811 | AS14: 15359 | AX14: BOGOTA | AY14: 10 | AZ14: 9.5
A15: 19 | B15: DON MATIAS | C15: PROSALCO DON MATIAS | D15: 2 | E15: 2 | F15: 1 | G15: 1 | H15: 1 | I15: 2 | J15: 1 | K15: 3 | L15: 3 | M15: 0 | N15: 1 | O15: 1 | P15: 5 | Q15: 4 | R15: 7 | S15: 2 | T15: 18 | U15: 9 | V15: 7 | W15: 8 | X15: 5 | Y15: 8 | Z15: 7 | AA15: 8 | AB15: 8 | AC15: 14 | AD15: 8 | AE15: 9 | AF15: 5 | AG15: 24 | AH15: 20 | AI15: 30 | AJ15: 22 | AK15: 96 | AL15: 0.2083333333 | AM15: 0.2 | AN15: =IF(ISERROR(R15/AI15),0,R15/AI15) -> 0.2333333333 | AO15: 0.09090909091 | AP15: 0.2045454545 | AQ15: 0.1730769231 | AR15: 0.1875 | AS15: 32750 | AX15: CALI | AY15: 9 | AZ15: 5.5
A16: 27 | B16: ENVIGADO | C16: COMFAMA ENVIGADO | D16: 5 | E16: 3 | F16: 3 | G16: 8 | H16: 7 | I16: 5 | J16: 4 | K16: 5 | L16: 2 | M16: 3 | N16: 5 | O16: 3 | P16: 11 | Q16: 20 | R16: 11 | S16: 11 | T16: 53 | U16: 49 | V16: 35 | W16: 48 | X16: 40 | Y16: 42 | Z16: 43 | AA16: 41 | AB16: 43 | AC16: 32 | AD16: 34 | AE16: 35 | AF16: 32 | AG16: 132 | AH16: 125 | AI16: 116 | AJ16: 101 | AK16: 474 | AL16: 0.08333333333 | AM16: 0.16 | AN16: 0.09482758621 | AO16: 0.1089108911 | AP16: 0.1206225681 | AQ16: 0.1013824885 | AR16: 0.111814346 | AS16: 20447 | AX16: PEREIRA | AY16: 0 | AZ16: 0
A17: 32 | B17: GIRARDOTA | C17: COMFAMA GIRARDOTA | D17: 2 | E17: 1 | F17: 1 | G17: 0 | H17: 1 | I17: 0 | J17: 4 | K17: 2 | L17: 2 | M17: 1 | N17: 1 | O17: 3 | P17: 4 | Q17: 1 | R17: 8 | S17: 5 | T17: 18 | U17: 25 | V17: 19 | W17: 11 | X17: 16 | Y17: 14 | Z17: 17 | AA17: 14 | AB17: 18 | AC17: 21 | AD17: 14 | AE17: 21 | AF17: 12 | AG17: 55 | AH17: 47 | AI17: 53 | AJ17: 47 | AK17: 202 | AL17: 0.07272727273 | AM17: 0.02127659574 | AN17: 0.1509433962 | AO17: 0.1063829787 | AP17: 0.04901960784 | AQ17: 0.13 | AR17: 0.08910891089 | AS17: 17560 | AX17: MANIZALES | AY17: 0 | AZ17: 12.5
A18: 2431 | B18: GUARNE | C18: PROSALCO GUARNE | D18: 3 | E18: 0 | F18: 0 | G18: 0 | H18: 0 | I18: 0 | J18: 5 | K18: 3 | L18: 0 | M18: 1 | N18: 0 | O18: 0 | P18: 3 | Q18: 0 | R18: 8 | S18: 1 | T18: 12 | U18: 13 | V18: 3 | W18: 13 | X18: 7 | Y18: 10 | Z18: 14 | AA18: 9 | AB18: 11 | AC18: 14 | AD18: 6 | AE18: 10 | AF18: 3 | AG18: 29 | AH18: 31 | AI18: 34 | AJ18: 19 | AK18: 113 | AL18: 0.1034482759 | AM18: 0 | AN18: 0.2352941176 | AO18: 0.05263157895 | AP18: 0.05 | AQ18: 0.1698113208 | AR18: 0.1061946903 | AS18: 60916 | AX18: SANTANDER | AY18: 0 | AZ18: 6
A19: 26 | B19: ITAGUI | C19: COMFAMA ITAGUI | D19: 8 | E19: 4 | F19: 5 | G19: 5 | H19: 3 | I19: 5 | J19: 4 | K19: 3 | L19: 9 | M19: 5 | N19: 3 | O19: 5 | P19: =SUM(D19:F19) -> 17 | Q19: 13 | R19: =SUM(J19:L19) -> 16 | S19: 13 | T19: 59 | U19: 49 | V19: 56 | W19: 69 | X19: 66 | Y19: 59 | Z19: 57 | AA19: 60 | AB19: 59 | AC19: 77 | AD19: 75 | AE19: 59 | AF19: 48 | AG19: =SUM(U19:W19) -> 174 | AH19: 182 | AI19: =SUM(AA19:AC19) -> 196 | AJ19: =SUM(AD19:AF19) -> 182 | AK19: =SUM(AG19:AJ19) -> 734 | AL19: 0.09770114943 | AM19: 0.07142857143 | AN19: 0.08163265306 | AO19: 0.07142857143 | AP19: 0.08426966292 | AQ19: 0.07671957672 | AR19: 0.08038147139 | AS19: 19098
A20: 6 | B20: ITAGUI | C20: HUMANITAS - ITAGUI | D20: 6 | E20: 8 | F20: 4 | G20: 3 | H20: 1 | I20: 3 | J20: 4 | K20: 4 | L20: 7 | M20: 7 | N20: 4 | O20: 4 | P20: 18 | Q20: 7 | R20: 15 | S20: 15 | T20: 55 | U20: 48 | V20: 39 | W20: 43 | X20: 43 | Y20: 37 | Z20: 36 | AA20: 42 | AB20: 42 | AC20: 58 | AD20: 38 | AE20: 42 | AF20: 47 | AG20: 130 | AH20: =SUM(X20:Z20) -> 116 | AI20: 142 | AJ20: 127 | AK20: 515 | AL20: 0.1384615385 | AM20: 0.06034482759 | AN20: 0.1056338028 | AO20: 0.1181102362 | AP20: 0.1016260163 | AQ20: 0.1115241636 | AR20: 0.1067961165 | AS20: 17539
A21: 33 | B21: LA CEJA | C21: COMFAMA LA CEJA | D21: 4 | E21: 4 | F21: 1 | G21: 2 | H21: 4 | I21: 4 | J21: 5 | K21: 5 | L21: 3 | M21: 7 | N21: 3 | O21: 0 | P21: 9 | Q21: 10 | R21: 13 | S21: 10 | T21: 42 | U21: 32 | V21: 28 | W21: 23 | X21: 20 | Y21: 32 | Z21: 32 | AA21: 35 | AB21: 34 | AC21: 36 | AD21: 30 | AE21: 25 | AF21: 18 | AG21: 83 | AH21: 84 | AI21: 105 | AJ21: 73 | AK21: 345 | AL21: 0.1084337349 | AM21: 0.119047619 | AN21: 0.1238095238 | AO21: 0.1369863014 | AP21: 0.1137724551 | AQ21: 0.1292134831 | AR21: 0.1217391304 | AS21: 30341
A22: 2424 | B22: MARINILLA | C22: PROSALCO MARINILLA | D22: 1 | E22: 2 | F22: 2 | G22: 0 | H22: 3 | I22: 0 | J22: 1 | K22: 2 | L22: 2 | M22: 3 | N22: 2 | O22: 2 | P22: 5 | Q22: 3 | R22: 5 | S22: 7 | T22: 20 | U22: 15 | V22: 17 | W22: 21 | X22: 21 | Y22: 22 | Z22: 9 | AA22: 13 | AB22: 28 | AC22: 22 | AD22: 27 | AE22: 17 | AF22: 10 | AG22: 53 | AH22: 52 | AI22: 63 | AJ22: 54 | AK22: 222 | AL22: 0.09433962264 | AM22: 0.05769230769 | AN22: 0.07936507937 | AO22: 0.1296296296 | AP22: 0.07619047619 | AQ22: 0.1025641026 | AR22: 0.09009009009 | AS22: 21456
A23: 31 | B23: MEDELLIN | C23: COMFAMA ARANJUEZ | D23: 12 | E23: 5 | F23: 5 | G23: 13 | H23: 1 | I23: 6 | J23: 9 | K23: 3 | L23: 2 | M23: 2 | N23: 6 | O23: 4 | P23: 22 | Q23: 20 | R23: 14 | S23: 12 | T23: 68 | U23: 73 | V23: 44 | W23: 63 | X23: 72 | Y23: 71 | Z23: 52 | AA23: 70 | AB23: 64 | AC23: 67 | AD23: 74 | AE23: 47 | AF23: 55 | AG23: 180 | AH23: 195 | AI23: 201 | AJ23: 176 | AK23: 752 | AL23: 0.1222222222 | AM23: 0.1025641026 | AN23: 0.06965174129 | AO23: 0.06818181818 | AP23: 0.112 | AQ23: 0.06896551724 | AR23: 0.09042553191 | AS23: 37282
A24: 2679 | B24: COPACABANA | C24: COMFAMA COPACABANA | D24: 1 | E24: 2 | F24: 2 | G24: 1 | H24: 2 | I24: 2 | J24: 3 | K24: 2 | L24: 0 | M24: 1 | N24: 0 | O24: 1 | P24: 5 | Q24: 5 | R24: 5 | S24: 2 | T24: 17 | U24: 21 | V24: 14 | W24: 21 | X24: 25 | Y24: 24 | Z24: 25 | AA24: 17 | AB24: 23 | AC24: 19 | AD24: 27 | AE24: 20 | AF24: 15 | AG24: 56 | AH24: 74 | AI24: 59 | AJ24: 62 | AK24: 251 | AL24: 0.08928571429 | AM24: 0.06756756757 | AN24: 0.08474576271 | AO24: 0.03225806452 | AP24: =IF(ISERROR(SUM(P24:Q24)/SUM(AG24:AH24)),0,SUM(P24:Q24)/SUM(AG24:AH24)) -> 0.07692307692 | AQ24: 0.05785123967 | AR24: 0.06772908367 | AS24: 26062
A25: 2670 | B25: MEDELLIN | C25: COMFAMA LA 80 | D25: 4 | E25: 4 | F25: 4 | G25: 1 | H25: 0 | I25: 1 | J25: 2 | K25: 3 | L25: 4 | M25: 1 | N25: 1 | O25: 0 | P25: 12 | Q25: 2 | R25: 9 | S25: 2 | T25: 25 | U25: 26 | V25: 25 | W25: 30 | X25: 18 | Y25: 15 | Z25: 22 | AA25: 36 | AB25: 34 | AC25: 28 | AD25: 30 | AE25: 24 | AF25: 16 | AG25: 81 | AH25: 55 | AI25: 98 | AJ25: 70 | AK25: 304 | AL25: 0.1481481481 | AM25: 0.03636363636 | AN25: 0.09183673469 | AO25: 0.02857142857 | AP25: 0.1029411765 | AQ25: 0.06547619048 | AR25: 0.08223684211 | AS25: 7867
A26: 30 | B26: MEDELLIN | C26: COMFAMA MANRIQUE | D26: 5 | E26: 6 | F26: 5 | G26: 5 | H26: 5 | I26: 6 | J26: 5 | K26: 6 | L26: 2 | M26: 5 | N26: 5 | O26: 5 | P26: 16 | Q26: 16 | R26: 13 | S26: 15 | T26: 60 | U26: 47 | V26: 50 | W26: 61 | X26: 44 | Y26: 47 | Z26: 70 | AA26: 52 | AB26: 53 | AC26: 53 | AD26: 55 | AE26: 60 | AF26: 48 | AG26: 158 | AH26: 161 | AI26: 158 | AJ26: 163 | AK26: 640 | AL26: 0.1012658228 | AM26: 0.09937888199 | AN26: 0.08227848101 | AO26: 0.09202453988 | AP26: 0.1003134796 | AQ26: 0.08722741433 | AR26: 0.09375 | AS26: 22942
A27: 29 | B27: MEDELLIN | C27: COMFAMA SAN IGNACIO | D27: 12 | E27: 7 | F27: 12 | G27: 10 | H27: 12 | I27: 12 | J27: 11 | K27: 11 | L27: 9 | M27: 3 | N27: 6 | O27: 8 | P27: 31 | Q27: 34 | R27: 31 | S27: 17 | T27: 113 | U27: 91 | V27: 95 | W27: 104 | X27: 93 | Y27: 87 | Z27: 99 | AA27: 115 | AB27: 112 | AC27: 94 | AD27: 95 | AE27: 68 | AF27: 81 | AG27: 290 | AH27: 279 | AI27: 321 | AJ27: 244 | AK27: 1134 | AL27: 0.1068965517 | AM27: 0.1218637993 | AN27: 0.09657320872 | AO27: 0.06967213115 | AP27: 0.1142355009 | AQ27: 0.08495575221 | AR27: 0.09964726631 | AS27: 57141
A28: 2701 | B28: MEDELLIN | C28: COOMSOCIAL - ESTADIO | D28: 5 | E28: 0 | F28: 5 | G28: 5 | H28: 0 | I28: 3 | J28: 3 | K28: 1 | L28: 2 | M28: 3 | N28: 0 | O28: 1 | P28: 10 | Q28: 8 | R28: 6 | S28: 4 | T28: 28 | U28: 36 | V28: 29 | W28: 49 | X28: 47 | Y28: 30 | Z28: 53 | AA28: 33 | AB28: 39 | AC28: 43 | AD28: 32 | AE28: 39 | AF28: 37 | AG28: 114 | AH28: 130 | AI28: 115 | AJ28: 108 | AK28: 467 | AL28: 0.08771929825 | AM28: 0.06153846154 | AN28: 0.05217391304 | AO28: 0.03703703704 | AP28: 0.0737704918 | AQ28: 0.04484304933 | AR28: 0.05995717345 | AS28: 57668
A29: 35 | B29: MEDELLIN | C29: COOPSANA- CENTRO | D29: 4 | E29: 1 | F29: 3 | G29: 3 | H29: 2 | I29: 3 | J29: 7 | K29: 4 | L29: 4 | M29: 10 | N29: 4 | O29: 4 | P29: 8 | Q29: 8 | R29: 15 | S29: 18 | T29: 49 | U29: 46 | V29: 27 | W29: 28 | X29: 33 | Y29: 40 | Z29: 38 | AA29: 45 | AB29: 43 | AC29: 46 | AD29: 36 | AE29: 38 | AF29: 29 | AG29: 101 | AH29: 111 | AI29: 134 | AJ29: 103 | AK29: 449 | AL29: 0.07920792079 | AM29: 0.07207207207 | AN29: 0.1119402985 | AO29: 0.1747572816 | AP29: 0.07547169811 | AQ29: 0.1392405063 | AR29: 0.1091314031 | AS29: 16161
A30: 1013 | B30: MEDELLIN | C30: COOPSANA CALASANZ | D30: 4 | E30: 3 | F30: 5 | G30: 2 | H30: 0 | I30: 3 | J30: 0 | K30: 2 | L30: 3 | M30: 1 | N30: 6 | O30: 1 | P30: 12 | Q30: 5 | R30: =SUM(J30:L30) -> 5 | S30: =SUM(M30:O30) -> 8 | T30: =SUM(P30:S30) -> 30 | U30: 29 | V30: 30 | W30: 31 | X30: 25 | Y30: 23 | Z30: 30 | AA30: 31 | AB30: 20 | AC30: 32 | AD30: 23 | AE30: 24 | AF30: 18 | AG30: 90 | AH30: 78 | AI30: =SUM(AA30:AC30) -> 83 | AJ30: =SUM(AD30:AF30) -> 65 | AK30: =SUM(AG30:AJ30) -> 316 | AL30: 0.1333333333 | AM30: 0.0641025641 | AN30: 0.06024096386 | AO30: 0.1230769231 | AP30: 0.1011904762 | AQ30: 0.08783783784 | AR30: =IF(ISERROR(SUM(P30:S30)/SUM(AG30:AJ30)),0,SUM(P30:S30)/SUM(AG30:AJ30)) -> 0.09493670886
A31: 115393 | B31: MEDELLIN | C31: COOPSANA ARGENTINA CENTRO | D31: 2 | E31: 4 | F31: 2 | G31: 2 | H31: 3 | I31: 4 | J31: 2 | K31: 1 | L31: 4 | M31: 4 | N31: 2 | O31: 2 | P31: =SUM(D31:F31) -> 8 | Q31: 9 | R31: =SUM(J31:L31) -> 7 | S31: =SUM(M31:O31) -> 8 | T31: =SUM(P31:S31) -> 32 | U31: 21 | V31: 31 | W31: 24 | X31: 16 | Y31: 30 | Z31: 17 | AA31: 20 | AB31: 22 | AC31: 30 | AD31: 34 | AE31: 18 | AF31: 22 | AG31: 76 | AH31: 63 | AI31: =SUM(AA31:AC31) -> 72 | AJ31: =SUM(AD31:AF31) -> 74 | AK31: =SUM(AG31:AJ31) -> 285 | AL31: 0.1052631579 | AM31: 0.1428571429 | AN31: 0.09722222222 | AO31: 0.1081081081 | AP31: 0.1223021583 | AQ31: 0.102739726 | AR31: =IF(ISERROR(SUM(P31:S31)/SUM(AG31:AJ31)),0,SUM(P31:S31)/SUM(AG31:AJ31)) -> 0.1122807018
A32: 2136 | B32: MEDELLIN | C32: COOPSANA NORTE | D32: 7 | E32: 6 | F32: 8 | G32: 2 | H32: 1 | I32: 0 | J32: 2 | K32: 7 | L32: 5 | M32: 9 | N32: 5 | O32: 4 | P32: 21 | Q32: 3 | R32: 14 | S32: 18 | T32: 56 | U32: 58 | V32: 55 | W32: 44 | X32: 47 | Y32: 52 | Z32: 45 | AA32: 43 | AB32: 54 | AC32: 55 | AD32: 60 | AE32: 59 | AF32: 44 | AG32: 157 | AH32: 144 | AI32: 152 | AJ32: 163 | AK32: 616 | AL32: 0.1337579618 | AM32: 0.02083333333 | AN32: 0.09210526316 | AO32: 0.1104294479 | AP32: 0.07973421927 | AQ32: 0.1015873016 | AR32: 0.09090909091 | AS32: 32512
A33: 60 | B33: MEDELLIN | C33: INSTITUTO DEL TORAX -LA PAZ | D33: 3 | E33: 2 | F33: 0 | G33: 0 | H33: 0 | I33: 5 | J33: 0 | K33: 1 | L33: 2 | M33: 2 | N33: 2 | O33: 1 | P33: 5 | Q33: 5 | R33: 3 | S33: 5 | T33: 18 | U33: 21 | V33: 23 | W33: 16 | X33: 14 | Y33: 14 | Z33: 18 | AA33: 17 | AB33: 17 | AC33: 24 | AD33: 24 | AE33: 24 | AF33: 17 | AG33: 60 | AH33: 46 | AI33: 58 | AJ33: 65 | AK33: 229 | AL33: 0.08333333333 | AM33: 0.1086956522 | AN33: 0.05172413793 | AO33: 0.07692307692 | AP33: 0.09433962264 | AQ33: 0.06504065041 | AR33: 0.07860262009 | AS33: 20189
A34: 2325 | B34: MEDELLIN | C34: IPS COBERSALUD INTEGRAL EN SALUD | D34: 0 | E34: 2 | F34: 1 | G34: 1 | H34: 2 | I34: 0 | J34: 1 | K34: 1 | L34: 0 | M34: 0 | N34: 0 | O34: 0 | P34: 3 | Q34: 3 | R34: 2 | S34: 0 | T34: 8 | U34: 12 | V34: 9 | W34: 12 | X34: 8 | Y34: 12 | Z34: 4 | AA34: 9 | AB34: 11 | AC34: 8 | AD34: 14 | AE34: 6 | AF34: 7 | AG34: 33 | AH34: 24 | AI34: 28 | AJ34: 27 | AK34: 112 | AL34: 0.09090909091 | AM34: 0.125 | AN34: 0.07142857143 | AO34: 0 | AP34: 0.1052631579 | AQ34: 0.03636363636 | AR34: 0.07142857143 | AS34: 26178
A35: 42 | B35: MEDELLIN | C35: IPS SURA ALMACENTRO | D35: 4 | E35: 3 | F35: 1 | G35: 3 | H35: 1 | I35: 2 | J35: 3 | K35: 1 | L35: 2 | M35: 0 | N35: 1 | O35: 3 | P35: =SUM(D35:F35) -> 8 | Q35: 6 | R35: =SUM(J35:L35) -> 6 | S35: =SUM(M35:O35) -> 4 | T35: =SUM(P35:S35) -> 24 | U35: 22 | V35: 15 | W35: 27 | X35: 26 | Y35: 14 | Z35: 17 | AA35: 24 | AB35: 18 | AC35: 20 | AD35: 24 | AE35: 13 | AF35: 15 | AG35: 64 | AH35: 57 | AI35: =SUM(AA35:AC35) -> 62 | AJ35: =SUM(AD35:AF35) -> 52 | AK35: =SUM(AG35:AJ35) -> 235 | AL35: 0.125 | AM35: 0.1052631579 | AN35: 0.09677419355 | AO35: 0.07692307692 | AP35: 0.1157024793 | AQ35: 0.08771929825 | AR35: 0.1021276596 | AS35: 88387
A36: 80 | B36: MEDELLIN | C36: IPS SURA CENTRO | D36: 5 | E36: 5 | F36: 1 | G36: 3 | H36: 3 | I36: 0 | J36: 3 | K36: 4 | L36: 2 | M36: 3 | N36: 3 | O36: 1 | P36: 11 | Q36: 6 | R36: 9 | S36: 7 | T36: 33 | U36: 43 | V36: 32 | W36: 37 | X36: 22 | Y36: 29 | Z36: 39 | AA36: 32 | AB36: 35 | AC36: 37 | AD36: 25 | AE36: 38 | AF36: 24 | AG36: 112 | AH36: 90 | AI36: 104 | AJ36: 87 | AK36: 393 | AL36: 0.09821428571 | AM36: 0.06666666667 | AN36: 0.08653846154 | AO36: 0.08045977011 | AP36: 0.08415841584 | AQ36: 0.08376963351 | AR36: 0.08396946565 | AS36: 2436
A37: 20 | B37: MEDELLIN | C37: IPS SURA CORDOBA | D37: 3 | E37: 2 | F37: 2 | G37: 3 | H37: 3 | I37: 3 | J37: 4 | K37: 2 | L37: 3 | M37: 2 | N37: 2 | O37: 1 | P37: 7 | Q37: 9 | R37: 9 | S37: 5 | T37: 30 | U37: 36 | V37: 20 | W37: 29 | X37: 35 | Y37: 32 | Z37: 34 | AA37: 31 | AB37: 36 | AC37: 25 | AD37: 21 | AE37: 26 | AF37: 18 | AG37: 85 | AH37: 101 | AI37: 92 | AJ37: 65 | AK37: 343 | AL37: 0.08235294118 | AM37: 0.08910891089 | AN37: 0.09782608696 | AO37: 0.07692307692 | AP37: 0.08602150538 | AQ37: 0.08917197452 | AR37: 0.08746355685 | AS37: 4396
A38: 2660 | B38: MEDELLIN | C38: IPS SURA LOS MOLINOS | D38: 7 | E38: 1 | F38: 2 | G38: 1 | H38: 6 | I38: 4 | J38: 2 | K38: 6 | L38: 5 | M38: 7 | N38: 7 | O38: 6 | P38: 10 | Q38: 11 | R38: 13 | S38: 20 | T38: 54 | U38: 73 | V38: 62 | W38: 58 | X38: 62 | Y38: 76 | Z38: 55 | AA38: 59 | AB38: 53 | AC38: 67 | AD38: 77 | AE38: 54 | AF38: 51 | AG38: 193 | AH38: 193 | AI38: 179 | AJ38: 182 | AK38: 747 | AL38: 0.0518134715 | AM38: 0.05699481865 | AN38: 0.07262569832 | AO38: 0.1098901099 | AP38: 0.05440414508 | AQ38: 0.09141274238 | AR38: 0.07228915663 | AS38: 2634
A39: 1709 | B39: MEDELLIN | C39: IPS SURA MONTERREY | D39: 2 | E39: 0 | F39: 0 | G39: 0 | H39: 1 | I39: 2 | J39: 2 | K39: 2 | L39: 2 | M39: 0 | N39: 2 | O39: 1 | P39: 2 | Q39: 3 | R39: 6 | S39: 3 | T39: 14 | U39: 25 | V39: 20 | W39: 18 | X39: 15 | Y39: 8 | Z39: 18 | AA39: 19 | AB39: 23 | AC39: 16 | AD39: 19 | AE39: 12 | AF39: 13 | AG39: 63 | AH39: 41 | AI39: 58 | AJ39: 44 | AK39: 206 | AL39: 0.03174603175 | AM39: 0.07317073171 | AN39: 0.1034482759 | AO39: 0.06818181818 | AP39: 0.04807692308 | AQ39: 0.08823529412 | AR39: 0.06796116505 | AS39: 3842
A40: 1789 | B40: MEDELLIN | C40: IPS SURA SAMAN | D40: 0 | E40: 2 | F40: 1 | G40: 0 | H40: 1 | I40: 1 | J40: 1 | K40: 0 | L40: 3 | M40: 0 | N40: 1 | O40: 1 | P40: 3 | Q40: 2 | R40: 4 | S40: 2 | T40: 11 | U40: 13 | V40: 13 | W40: 13 | X40: 12 | Y40: 11 | Z40: 10 | AA40: 21 | AB40: 13 | AC40: 25 | AD40: 11 | AE40: 13 | AF40: 16 | AG40: 39 | AH40: 33 | AI40: 59 | AJ40: 40 | AK40: 171 | AL40: 0.07692307692 | AM40: 0.06060606061 | AN40: 0.06779661017 | AO40: 0.05 | AP40: 0.06944444444 | AQ40: 0.06060606061 | AR40: 0.06432748538 | AS40: 2071
A41: 2694 | B41: MEDELLIN | C41: IPS SURA SAN DIEGO | D41: 2 | E41: 5 | F41: 3 | G41: 3 | H41: 1 | I41: 3 | J41: 4 | K41: 1 | L41: 4 | M41: 2 | N41: 0 | O41: 2 | P41: =SUM(D41:F41) -> 10 | Q41: 7 | R41: =SUM(J41:L41) -> 9 | S41: =SUM(M41:O41) -> 4 | T41: =SUM(P41:S41) -> 30 | U41: 41 | V41: 36 | W41: 40 | X41: 35 | Y41: 30 | Z41: 30 | AA41: 30 | AB41: 32 | AC41: 28 | AD41: 30 | AE41: 25 | AF41: 16 | AG41: 117 | AH41: 95 | AI41: =SUM(AA41:AC41) -> 90 | AJ41: =SUM(AD41:AF41) -> 71 | AK41: 373 | AL41: =IF(ISERROR(SUM(D41:F41)/AG41),0,SUM(D41:F41)/AG41) -> 0.08547008547 | AM41: =IF(ISERROR(Q41/AH41),0,Q41/AH41) -> 0.07368421053 | AN41: =IF(ISERROR(R41/AI41),0,R41/AI41) -> 0.1 | AO41: =IF(ISERROR(S41/AJ41),0,S41/AJ41) -> 0.05633802817 | AP41: =IF(ISERROR(SUM(P41:Q41)/SUM(AG41:AH41)),0,SUM(P41:Q41)/SUM(AG41:AH41)) -> 0.08018867925 | AQ41: =IF(ISERROR(SUM(R41:S41)/SUM(AI41:AJ41)),0,SUM(R41:S41)/SUM(AI41:AJ41)) -> 0.08074534161 | AR41: =IF(ISERROR(SUM(P41:S41)/SUM(AG41:AJ41)),0,SUM(P41:S41)/SUM(AG41:AJ41)) -> 0.08042895442
A42: 55 | B42: MEDELLIN | C42: SALUD EN CASA MEDELLIN | D42: 1 | E42: 0 | F42: 0 | G42: 0 | H42: 0 | I42: 0 | J42: 0 | K42: 0 | L42: 0 | M42: 0 | N42: 0 | O42: 0 | P42: 1 | Q42: 0 | R42: 0 | S42: 0 | T42: 1 | U42: 1 | V42: 0 | W42: 2 | X42: 1 | Y42: 1 | Z42: 3 | AA42: 0 | AB42: 1 | AC42: 1 | AD42: 2 | AE42: 1 | AF42: 0 | AG42: 3 | AH42: 5 | AI42: 2 | AJ42: 3 | AK42: 13 | AL42: 0.3333333333 | AM42: 0 | AN42: 0 | AO42: 0 | AP42: 0.125 | AQ42: 0 | AR42: 0.07692307692 | AS42: 1368
A43: 5 | B43: MEDELLIN | C43: SALUDSURA SAO PAULO | D43: 0 | E43: 0 | F43: 0 | G43: 0 | H43: 0 | I43: 1 | J43: 0 | K43: 0 | L43: 0 | M43: 0 | N43: 0 | O43: 0 | P43: 0 | Q43: 1 | R43: 0 | S43: 0 | T43: 1 | U43: 0 | V43: 0 | W43: 1 | X43: 1 | Y43: 1 | Z43: 3 | AA43: 0 | AB43: 0 | AC43: 1 | AD43: 0 | AE43: 1 | AF43: 1 | AG43: 1 | AH43: 5 | AI43: 1 | AJ43: 2 | AK43: 9 | AL43: 0 | AM43: 0.2 | AN43: 0 | AO43: 0 | AP43: 0.1666666667 | AQ43: 0 | AR43: 0.1111111111 | AS43: 2636
A44: 2161 | B44: MEDELLIN | C44: SALUDSURA INDUSTRIALES | D44: 0 | E44: 0 | F44: 0 | G44: 0 | H44: 0 | I44: 0 | J44: 0 | K44: 0 | L44: 0 | M44: 0 | N44: 0 | O44: 0 | P44: 0 | Q44: 0 | R44: 0 | S44: 0 | T44: 0 | U44: 0 | V44: 0 | W44: 0 | X44: 0 | Y44: 0 | Z44: 0 | AA44: 0 | AB44: 0 | AC44: 0 | AD44: 0 | AE44: 0 | AF44: 0 | AG44: 0 | AH44: 0 | AI44: 0 | AJ44: 0 | AK44: 0 | AL44: 0 | AM44: 0 | AN44: 0 | AO44: 0 | AP44: 0 | AQ44: 0 | AR44: 0 | AS44: 49
A45: 1031 | B45: MEDELLIN | C45: PROSALCO SAN JUAN | D45: 2 | E45: 1 | F45: 2 | G45: 2 | H45: 2 | I45: 5 | J45: 3 | K45: 3 | L45: 2 | M45: 2 | N45: 3 | O45: 0 | P45: 5 | Q45: 9 | R45: =SUM(J45:L45) -> 8 | S45: =SUM(M45:O45) -> 5 | T45: =SUM(P45:S45) -> 27 | U45: 18 | V45: 15 | W45: 20 | X45: 13 | Y45: 23 | Z45: 23 | AA45: 19 | AB45: 24 | AC45: 25 | AD45: 21 | AE45: 22 | AF45: 24 | AG45: 53 | AH45: 59 | AI45: =SUM(AA45:AC45) -> 68 | AJ45: =SUM(AD45:AF45) -> 67 | AK45: =SUM(AG45:AJ45) -> 247 | AL45: 0.09433962264 | AM45: 0.1525423729 | AN45: 0.1176470588 | AO45: 0.07462686567 | AP45: 0.125 | AQ45: 0.0962962963 | AR45: =IF(ISERROR(SUM(P45:S45)/SUM(AG45:AJ45)),0,SUM(P45:S45)/SUM(AG45:AJ45)) -> 0.1093117409
A46: 53 | B46: RIONEGRO | C46: COMFAMA RIONEGRO | D46: 5 | E46: 6 | F46: 3 | G46: 5 | H46: 9 | I46: 4 | J46: 4 | K46: 5 | L46: 5 | M46: 1 | N46: 9 | O46: 1 | P46: 14 | Q46: 18 | R46: 14 | S46: 11 | T46: 57 | U46: 55 | V46: 57 | W46: 41 | X46: 50 | Y46: 44 | Z46: 50 | AA46: 51 | AB46: 54 | AC46: 42 | AD46: 49 | AE46: 61 | AF46: 15 | AG46: 153 | AH46: 144 | AI46: 147 | AJ46: 125 | AK46: 569 | AL46: 0.09150326797 | AM46: 0.125 | AN46: 0.09523809524 | AO46: 0.088 | AP46: 0.1077441077 | AQ46: 0.09191176471 | AR46: 0.1001757469 | AS46: 15467
A47: 78 | B47: RIONEGRO | C47: IPS SURA RIONEGRO | D47: 1 | E47: 4 | F47: 4 | G47: 1 | H47: 2 | I47: 2 | J47: 0 | K47: 4 | L47: 0 | M47: 5 | N47: 3 | O47: 0 | P47: 9 | Q47: 5 | R47: 4 | S47: 8 | T47: 26 | U47: 22 | V47: 23 | W47: 19 | X47: 20 | Y47: 20 | Z47: 28 | AA47: 26 | AB47: 18 | AC47: 17 | AD47: 26 | AE47: 23 | AF47: 12 | AG47: 64 | AH47: 68 | AI47: 61 | AJ47: 61 | AK47: 254 | AL47: 0.140625 | AM47: 0.07352941176 | AN47: 0.06557377049 | AO47: 0.131147541 | AP47: 0.1060606061 | AQ47: 0.09836065574 | AR47: 0.1023622047 | AS47: 51314
A48: 2194 | B48: RIONEGRO | C48: SALUD EN CASA RIONEGRO | D48: 0 | E48: 0 | F48: 0 | G48: 0 | H48: 0 | I48: 0 | J48: 0 | K48: 0 | L48: 0 | M48: 0 | N48: 0 | O48: 0 | P48: =SUM(D48:F48) -> 0 | Q48: 0 | R48: =SUM(J48:L48) -> 0 | S48: =SUM(M48:O48) -> 0 | T48: =SUM(P48:S48) -> 0 | U48: 1 | V48: 0 | W48: 0 | X48: 0 | Y48: 0 | Z48: 0 | AA48: 0 | AB48: 0 | AC48: 0 | AD48: 0 | AE48: 0 | AF48: 0 | AG48: 1 | AH48: 0 | AI48: =SUM(AA48:AC48) -> 0 | AJ48: =SUM(AD48:AF48) -> 0 | AK48: =SUM(AG48:AJ48) -> 1 | AL48: 0 | AM48: 0 | AN48: 0 | AO48: 0 | AP48: 0 | AQ48: 0 | AR48: 0 | AS48: 1
A49: 91 | B49: SABANETA | C49: COMFAMA SABANETA | D49: 0 | E49: 3 | F49: 0 | G49: 1 | H49: 1 | I49: 3 | J49: 5 | K49: 1 | L49: 6 | M49: 7 | N49: 2 | O49: 2 | P49: 3 | Q49: 5 | R49: 12 | S49: 11 | T49: 31 | U49: 38 | V49: 28 | W49: 18 | X49: 24 | Y49: 18 | Z49: 29 | AA49: 33 | AB49: 32 | AC49: 33 | AD49: 31 | AE49: 34 | AF49: 23 | AG49: 84 | AH49: 71 | AI49: 98 | AJ49: 88 | AK49: 341 | AL49: 0.03571428571 | AM49: 0.07042253521 | AN49: 0.1224489796 | AO49: 0.125 | AP49: 0.05161290323 | AQ49: 0.123655914 | AR49: =IF(ISERROR(SUM(P49:S49)/SUM(AG49:AJ49)),0,SUM(P49:S49)/SUM(AG49:AJ49)) -> 0.09090909091
A50: 17 | B50: SANTA ROSA DE OSOS | C50: PROSALCO SANTA ROSA | D50: 0 | E50: 1 | F50: 0 | G50: 0 | H50: 2 | I50: 1 | J50: 1 | K50: 0 | L50: 1 | M50: 0 | N50: 1 | O50: 1 | P50: 1 | Q50: 3 | R50: 2 | S50: 2 | T50: 8 | U50: 2 | V50: 3 | W50: 8 | X50: 5 | Y50: 7 | Z50: 8 | AA50: 7 | AB50: 3 | AC50: 10 | AD50: 12 | AE50: 16 | AF50: 3 | AG50: 13 | AH50: 20 | AI50: 20 | AJ50: 31 | AK50: 84 | AL50: 0.07692307692 | AM50: 0.15 | AN50: 0.1 | AO50: 0.06451612903 | AP50: 0.1212121212 | AQ50: 0.07843137255 | AR50: =IF(ISERROR(SUM(P50:S50)/SUM(AG50:AJ50)),0,SUM(P50:S50)/SUM(AG50:AJ50)) -> 0.09523809524
A51: 2084 | B51: YARUMAL | C51: PROSALCO YARUMAL | D51: 1 | E51: 0 | F51: 0 | G51: 0 | H51: 0 | I51: 1 | J51: 0 | K51: 0 | L51: 0 | M51: 0 | N51: 1 | O51: 0 | P51: 1 | Q51: 1 | R51: 0 | S51: 1 | T51: 3 | U51: 4 | V51: 0 | W51: 3 | X51: 2 | Y51: 1 | Z51: 2 | AA51: 1 | AB51: 0 | AC51: 2 | AD51: 0 | AE51: 2 | AF51: 0 | AG51: 7 | AH51: 5 | AI51: 3 | AJ51: 2 | AK51: 17 | AL51: 0.1428571429 | AM51: 0.2 | AN51: 0 | AO51: 0.5 | AP51: 0.1666666667 | AQ51: 0.2 | AR51: =IF(ISERROR(SUM(P51:S51)/SUM(AG51:AJ51)),0,SUM(P51:S51)/SUM(AG51:AJ51)) -> 0.1764705882
A52: 2642 | B52: ARMENIA | C52: SALUD DEL CARIBE ARMENIA | D52: 0 | E52: 1 | F52: 3 | G52: 0 | H52: 1 | I52: 1 | J52: 0 | K52: 2 | L52: 1 | M52: 2 | N52: 5 | O52: 0 | P52: 4 | Q52: 2 | R52: 3 | S52: 7 | T52: 16 | U52: 32 | V52: 20 | W52: 25 | X52: 27 | Y52: 22 | Z52: 27 | AA52: 30 | AB52: 24 | AC52: 34 | AD52: 30 | AE52: 31 | AF52: 4 | AG52: 77 | AH52: 76 | AI52: 88 | AJ52: 65 | AK52: 306 | AL52: 0.05194805195 | AM52: 0.02631578947 | AN52: 0.03409090909 | AO52: 0.1076923077 | AP52: 0.03921568627 | AQ52: 0.06535947712 | AR52: 0.0522875817 | AS52: 5608
A53: 1034 | B53: ARMENIA | C53: SALUD DEL CARIBE ARMENIA SEDE SUR | D53: 0 | E53: 1 | F53: 1 | G53: 3 | H53: 0 | I53: 1 | J53: 0 | K53: 0 | L53: 2 | M53: 1 | N53: 1 | O53: 1 | P53: 2 | Q53: 4 | R53: 2 | S53: 3 | T53: 11 | U53: 10 | V53: 20 | W53: 9 | X53: 13 | Y53: 8 | Z53: 15 | AA53: 19 | AB53: 15 | AC53: 12 | AD53: 8 | AE53: 11 | AF53: 4 | AG53: 39 | AH53: 36 | AI53: 46 | AJ53: 23 | AK53: 144 | AL53: 0.05128205128 | AM53: 0.1111111111 | AN53: 0.04347826087 | AO53: 0.1304347826 | AP53: 0.08 | AQ53: 0.07246376812 | AR53: =IF(ISERROR(SUM(P53:S53)/SUM(AG53:AJ53)),0,SUM(P53:S53)/SUM(AG53:AJ53)) -> 0.07638888889
A54: 1712 | B54: MANIZALES | C54: INTERCONSULTAS LTDA. | D54: 2 | E54: 2 | F54: 1 | G54: 3 | H54: 0 | I54: 3 | J54: 1 | K54: 4 | L54: 1 | M54: 3 | N54: 2 | O54: 4 | P54: 5 | Q54: 6 | R54: 6 | S54: 9 | T54: 26 | U54: 46 | V54: 37 | W54: 49 | X54: 25 | Y54: 40 | Z54: 34 | AA54: 42 | AB54: 45 | AC54: 55 | AD54: 39 | AE54: 36 | AF54: 46 | AG54: 132 | AH54: 99 | AI54: 142 | AJ54: 121 | AK54: 494 | AL54: 0.03787878788 | AM54: 0.06060606061 | AN54: 0.04225352113 | AO54: 0.07438016529 | AP54: 0.04761904762 | AQ54: 0.05703422053 | AR54: 0.05263157895 | AS54: 20582
A55: 2671 | B55: PEREIRA | C55: IPS COLSUBSIDIO PEREIRA | D55: 2 | E55: 2 | F55: 1 | G55: 1 | H55: 3 | I55: 9 | J55: 3 | K55: 3 | L55: 2 | M55: 3 | N55: 5 | O55: 1 | P55: 5 | Q55: 13 | R55: 8 | S55: 9 | T55: 35 | U55: 32 | V55: 19 | W55: 28 | X55: 32 | Y55: 30 | Z55: 35 | AA55: 35 | AB55: 38 | AC55: 39 | AD55: 29 | AE55: 31 | AF55: 37 | AG55: 79 | AH55: 97 | AI55: 112 | AJ55: 97 | AK55: 385 | AL55: 0.06329113924 | AM55: 0.1340206186 | AN55: 0.07142857143 | AO55: 0.09278350515 | AP55: 0.1022727273 | AQ55: 0.08133971292 | AR55: 0.09090909091 | AS55: 11036
A56: 2704 | B56: LA ESTRELLA | C56: COMFAMA LA ESTRELLA | D56: 3 | E56: 0 | F56: 2 | G56: 2 | H56: 0 | I56: 0 | J56: 0 | K56: 1 | L56: 0 | M56: 1 | N56: 1 | O56: 1 | P56: =SUM(D56:F56) -> 5 | Q56: =SUM(G56:I56) -> 2 | R56: =SUM(J56:L56) -> 1 | S56: =SUM(M56:O56) -> 3 | T56: =SUM(P56:S56) -> 11 | U56: 9 | V56: 6 | W56: 15 | X56: 10 | Y56: 11 | Z56: 12 | AA56: 9 | AB56: 10 | AC56: 6 | AD56: 8 | AE56: 8 | AF56: 12 | AG56: 30 | AH56: 33 | AI56: =SUM(AA56:AC56) -> 25 | AJ56: =SUM(AD56:AF56) -> 28 | AK56: =SUM(AG56:AJ56) -> 116 | AL56: =IF(ISERROR(SUM(D56:F56)/AG56),0,SUM(D56:F56)/AG56) -> 0.1666666667 | AM56: =IF(ISERROR(Q56/AH56),0,Q56/AH56) -> 0.06060606061 | AN56: 0.04 | AO56: 0.1071428571 | AP56: 0.1111111111 | AQ56: =IF(ISERROR(SUM(R56:S56)/SUM(AI56:AJ56)),0,SUM(R56:S56)/SUM(AI56:AJ56)) -> 0.07547169811 | AR56: =IF(ISERROR(SUM(P56:S56)/SUM(AG56:AJ56)),0,SUM(P56:S56)/SUM(AG56:AJ56)) -> 0.09482758621
A57: 2705 | B57: CARMEN DE VIBORAL | C57: PROSALCO CARMEN DE VIBORAL | D57: 0 | E57: 2 | F57: 1 | G57: 0 | H57: 2 | I57: 2 | J57: 1 | K57: 1 | L57: 1 | M57: 1 | N57: 0 | O57: 1 | P57: =SUM(D57:F57) -> 3 | Q57: =SUM(G57:I57) -> 4 | R57: =SUM(J57:L57) -> 3 | S57: =SUM(M57:O57) -> 2 | T57: =SUM(P57:S57) -> 12 | U57: 11 | V57: 11 | W57: 8 | X57: 9 | Y57: 8 | Z57: 9 | AA57: 9 | AB57: 12 | AC57: 12 | AD57: 12 | AE57: 13 | AF57: 7 | AG57: 30 | AH57: 26 | AI57: =SUM(AA57:AC57) -> 33 | AJ57: =SUM(AD57:AF57) -> 32 | AK57: =SUM(AG57:AJ57) -> 121 | AL57: =IF(ISERROR(SUM(D57:F57)/AG57),0,SUM(D57:F57)/AG57) -> 0.1 | AM57: 0.1538461538 | AN57: 0.09090909091 | AO57: 0.0625 | AP57: 0.125 | AQ57: =IF(ISERROR(SUM(R57:S57)/SUM(AI57:AJ57)),0,SUM(R57:S57)/SUM(AI57:AJ57)) -> 0.07692307692 | AR57: =IF(ISERROR(SUM(P57:S57)/SUM(AG57:AJ57)),0,SUM(P57:S57)/SUM(AG57:AJ57)) -> 0.09917355372
A58: 2707 | B58: MEDELLIN | C58: CIS COMFAMA CRISTO REY | D58: 1 | E58: 0 | F58: 1 | G58: 4 | H58: 2 | I58: 0 | J58: 1 | K58: 0 | L58: 2 | M58: 1 | N58: 0 | O58: 1 | P58: =SUM(D58:F58) -> 2 | Q58: =SUM(G58:I58) -> 6 | R58: =SUM(J58:L58) -> 3 | S58: =SUM(M58:O58) -> 2 | T58: =SUM(P58:S58) -> 13 | U58: 9 | V58: 6 | W58: 9 | X58: 16 | Y58: 14 | Z58: 16 | AA58: 17 | AB58: 17 | AC58: 15 | AD58: 19 | AE58: 12 | AF58: 17 | AG58: 24 | AH58: 46 | AI58: =SUM(AA58:AC58) -> 49 | AJ58: =SUM(AD58:AF58) -> 48 | AK58: =SUM(AG58:AJ58) -> 167 | AL58: =IF(ISERROR(SUM(D58:F58)/AG58),0,SUM(D58:F58)/AG58) -> 0.08333333333 | AM58: 0.1304347826 | AN58: 0.0612244898 | AO58: 0.04166666667 | AP58: =IF(ISERROR(SUM(P58:Q58)/SUM(AG58:AH58)),0,SUM(P58:Q58)/SUM(AG58:AH58)) -> 0.1142857143 | AQ58: =IF(ISERROR(SUM(R58:S58)/SUM(AI58:AJ58)),0,SUM(R58:S58)/SUM(AI58:AJ58)) -> 0.05154639175 | AR58: =IF(ISERROR(SUM(P58:S58)/SUM(AG58:AJ58)),0,SUM(P58:S58)/SUM(AG58:AJ58)) -> 0.07784431138
A59: 2708 | B59: MANIZALES | C59: IPS CAJA COMPENSACIÓN FAMILIAR CALDAS CONFA | D59: 0 | E59: 1 | F59: 0 | G59: 1 | H59: 1 | I59: 4 | J59: 0 | K59: 2 | L59: 0 | M59: 0 | N59: 1 | O59: 2 | P59: =SUM(D59:F59) -> 1 | Q59: =SUM(G59:I59) -> 6 | R59: =SUM(J59:L59) -> 2 | S59: =SUM(M59:O59) -> 3 | T59: =SUM(P59:S59) -> 12 | U59: 11 | V59: 5 | W59: 7 | X59: 7 | Y59: 6 | Z59: 27 | AA59: 12 | AB59: 14 | AC59: 10 | AD59: 9 | AE59: 11 | AF59: 14 | AG59: =SUM(U59:W59) -> 23 | AH59: =SUM(X59:Z59) -> 40 | AI59: =SUM(AA59:AC59) -> 36 | AJ59: =SUM(AD59:AF59) -> 34 | AK59: =SUM(AG59:AJ59) -> 133 | AL59: =IF(ISERROR(SUM(D59:F59)/AG59),0,SUM(D59:F59)/AG59) -> 0.04347826087 | AM59: =IF(ISERROR(Q59/AH59),0,Q59/AH59) -> 0.15 | AN59: =IF(ISERROR(R59/AI59),0,R59/AI59) -> 0.05555555556 | AO59: =IF(ISERROR(S59/AJ59),0,S59/AJ59) -> 0.08823529412 | AP59: 0.1111111111 | AQ59: =IF(ISERROR(SUM(R59:S59)/SUM(AI59:AJ59)),0,SUM(R59:S59)/SUM(AI59:AJ59)) -> 0.07142857143 | AR59: =IF(ISERROR(SUM(P59:S59)/SUM(AG59:AJ59)),0,SUM(P59:S59)/SUM(AG59:AJ59)) -> 0.09022556391
A60: 2709 | B60: MEDELLIN | C60: CIS COMFAMA LOPEZ DE MESA | D60: 2 | E60: 2 | F60: 0 | G60: 2 | H60: 2 | I60: 4 | J60: 7 | K60: 3 | L60: 4 | M60: 6 | N60: 1 | O60: 0 | P60: 4 | Q60: 8 | R60: 14 | S60: 7 | T60: 33 | U60: 12 | V60: 14 | W60: 12 | X60: 27 | Y60: 17 | Z60: 26 | AA60: 24 | AB60: 29 | AC60: 24 | AD60: 30 | AE60: 21 | AF60: 25 | AG60: 38 | AH60: 70 | AI60: 77 | AJ60: 76 | AK60: 261 | AL60: 0.1052631579 | AM60: 0.1142857143 | AN60: 0.1818181818 | AO60: 0.09210526316 | AP60: 0.1111111111 | AQ60: 0.137254902 | AR60: 0.1264367816
A61: 2715 | B61: MEDELLIN | C61: IPS PAC COOPSANA SURAMERICANA | D61: 1 | E61: 4 | F61: 0 | G61: 0 | H61: 0 | I61: 3 | J61: 0 | K61: 1 | L61: 1 | M61: 1 | N61: 0 | O61: 1 | P61: =SUM(D61:F61) -> 5 | Q61: =SUM(G61:I61) -> 3 | R61: =SUM(J61:L61) -> 2 | S61: =SUM(M61:O61) -> 2 | T61: =SUM(P61:S61) -> 12 | U61: 14 | V61: 7 | W61: 9 | X61: 4 | Y61: 5 | Z61: 12 | AA61: 9 | AB61: 16 | AC61: 17 | AD61: 13 | AE61: 8 | AF61: 5 | AG61: =SUM(U61:W61) -> 30 | AH61: =SUM(X61:Z61) -> 21 | AI61: =SUM(AA61:AC61) -> 42 | AJ61: =SUM(AD61:AF61) -> 26 | AK61: =SUM(AG61:AJ61) -> 119 | AL61: =IF(ISERROR(SUM(D61:F61)/AG61),0,SUM(D61:F61)/AG61) -> 0.1666666667 | AM61: =IF(ISERROR(Q61/AH61),0,Q61/AH61) -> 0.1428571429 | AN61: =IF(ISERROR(R61/AI61),0,R61/AI61) -> 0.04761904762 | AO61: =IF(ISERROR(S61/AJ61),0,S61/AJ61) -> 0.07692307692 | AP61: =IF(ISERROR(SUM(P61:Q61)/SUM(AG61:AH61)),0,SUM(P61:Q61)/SUM(AG61:AH61)) -> 0.1568627451 | AQ61: =IF(ISERROR(SUM(R61:S61)/SUM(AI61:AJ61)),0,SUM(R61:S61)/SUM(AI61:AJ61)) -> 0.05882352941 | AR61: =IF(ISERROR(SUM(P61:S61)/SUM(AG61:AJ61)),0,SUM(P61:S61)/SUM(AG61:AJ61)) -> 0.1008403361
A62: 2713 | B62: RIONEGRO | C62: SALUDSURA RIONEGRO | D62: 0 | E62: 0 | F62: 0 | G62: 0 | H62: 0 | I62: 0 | J62: 0 | K62: 0 | L62: 0 | M62: 0 | N62: 0 | O62: 0 | P62: =SUM(D62:F62) -> 0 | Q62: =SUM(G62:I62) -> 0 | R62: =SUM(J62:L62) -> 0 | S62: =SUM(M62:O62) -> 0 | T62: =SUM(P62:S62) -> 0 | U62: 0 | V62: 0 | W62: 0 | X62: 1 | Y62: 0 | Z62: 0 | AA62: 0 | AB62: 0 | AC62: 0 | AD62: 0 | AE62: 0 | AF62: 0 | AG62: =SUM(U62:W62) -> 0 | AH62: =SUM(X62:Z62) -> 1 | AI62: =SUM(AA62:AC62) -> 0 | AJ62: =SUM(AD62:AF62) -> 0 | AK62: =SUM(AG62:AJ62) -> 1 | AL62: =IF(ISERROR(SUM(D62:F62)/AG62),0,SUM(D62:F62)/AG62) -> 0 | AM62: =IF(ISERROR(Q62/AH62),0,Q62/AH62) -> 0 | AN62: =IF(ISERROR(R62/AI62),0,R62/AI62) -> 0 | AO62: =IF(ISERROR(S62/AJ62),0,S62/AJ62) -> 0 | AP62: =IF(ISERROR(SUM(P62:Q62)/SUM(AG62:AH62)),0,SUM(P62:Q62)/SUM(AG62:AH62)) -> 0 | AQ62: =IF(ISERROR(SUM(R62:S62)/SUM(AI62:AJ62)),0,SUM(R62:S62)/SUM(AI62:AJ62)) -> 0 | AR62: =IF(ISERROR(SUM(P62:S62)/SUM(AG62:AJ62)),0,SUM(P62:S62)/SUM(AG62:AJ62)) -> 0
A63: 2717 | B63: DOSQUEBRADAS | C63: COMFAMILIAR RISARALDA SEDE DOSQUEBRADAS | D63: 2 | E63: 0 | F63: 0 | G63: 0 | H63: 1 | I63: 0 | J63: 0 | K63: 0 | L63: 0 | M63: 0 | N63: 0 | O63: 0 | P63: 2 | Q63: 1 | R63: 0 | S63: 0 | T63: 3 | U63: 5 | V63: 1 | W63: 2 | X63: 4 | Y63: 3 | Z63: 3 | AA63: 3 | AB63: 4 | AC63: 2 | AD63: 3 | AE63: 2 | AF63: 3 | AG63: 8 | AH63: 10 | AI63: 9 | AJ63: 8 | AK63: 35 | AL63: 0.25 | AM63: 0.1 | AN63: 0 | AO63: 0 | AP63: 0.1666666667 | AQ63: 0 | AR63: 0.08571428571
A64: 2718 | B64: APARTADO | C64: CIS COMFAMA SALUD PLAZA APARTADO | D64: 0 | E64: 1 | F64: 1 | G64: 3 | H64: 0 | I64: 0 | J64: 0 | K64: 0 | L64: 0 | M64: 0 | N64: 2 | O64: 1 | P64: =SUM(D64:F64) -> 2 | Q64: =SUM(G64:I64) -> 3 | R64: =SUM(J64:L64) -> 0 | S64: =SUM(M64:O64) -> 3 | T64: =SUM(P64:S64) -> 8 | U64: 10 | V64: 5 | W64: 8 | X64: 12 | Y64: 6 | Z64: 6 | AA64: 16 | AB64: 15 | AC64: 16 | AD64: 16 | AE64: 17 | AF64: 7 | AG64: =SUM(U64:W64) -> 23 | AH64: =SUM(X64:Z64) -> 24 | AI64: =SUM(AA64:AC64) -> 47 | AJ64: =SUM(AD64:AF64) -> 40 | AK64: =SUM(AG64:AJ64) -> 134 | AL64: =IF(ISERROR(SUM(D64:F64)/AG64),0,SUM(D64:F64)/AG64) -> 0.08695652174 | AM64: =IF(ISERROR(Q64/AH64),0,Q64/AH64) -> 0.125 | AN64: =IF(ISERROR(R64/AI64),0,R64/AI64) -> 0 | AO64: =IF(ISERROR(S64/AJ64),0,S64/AJ64) -> 0.075 | AP64: =IF(ISERROR(SUM(P64:Q64)/SUM(AG64:AH64)),0,SUM(P64:Q64)/SUM(AG64:AH64)) -> 0.1063829787 | AQ64: =IF(ISERROR(SUM(R64:S64)/SUM(AI64:AJ64)),0,SUM(R64:S64)/SUM(AI64:AJ64)) -> 0.03448275862 | AR64: =IF(ISERROR(SUM(P64:S64)/SUM(AG64:AJ64)),0,SUM(P64:S64)/SUM(AG64:AJ64)) -> 0.05970149254
A65: 2719 | B65: MEDELLIN | C65: CIS COMFAMA CALASANZ | D65: 0 | E65: 1 | F65: 1 | G65: 0 | H65: 0 | I65: 1 | J65: 5 | K65: 0 | L65: 0 | M65: 1 | N65: 1 | O65: 2 | P65: 2 | Q65: 1 | R65: 5 | S65: 4 | T65: 12 | U65: 10 | V65: 7 | W65: 11 | X65: 3 | Y65: 10 | Z65: 7 | AA65: 10 | AB65: 20 | AC65: 19 | AD65: 20 | AE65: 15 | AF65: 13 | AG65: 28 | AH65: 20 | AI65: 49 | AJ65: 48 | AK65: 145 | AL65: 0.07142857143 | AM65: 0.05 | AN65: 0.1020408163 | AO65: 0.08333333333 | AP65: 0.0625 | AQ65: 0.09278350515 | AR65: 0.08275862069
A66: 2721 | B66: TURBO | C66: CIS COMFAMA CURRULAO | D66: 0 | E66: 0 | F66: 0 | G66: 0 | H66: 0 | I66: 0 | J66: 0 | K66: 0 | L66: 1 | M66: 2 | N66: 1 | O66: 0 | P66: =SUM(D66:F66) -> 0 | Q66: =SUM(G66:I66) -> 0 | R66: =SUM(J66:L66) -> 1 | S66: =SUM(M66:O66) -> 3 | T66: =SUM(P66:S66) -> 4 | U66: 0 | V66: 4 | W66: 4 | X66: 6 | Y66: 13 | Z66: 4 | AA66: 8 | AB66: 7 | AC66: 12 | AD66: 11 | AE66: 18 | AF66: 8 | AG66: =SUM(U66:W66) -> 8 | AH66: =SUM(X66:Z66) -> 23 | AI66: =SUM(AA66:AC66) -> 27 | AJ66: =SUM(AD66:AF66) -> 37 | AK66: =SUM(AG66:AJ66) -> 95 | AL66: =IF(ISERROR(SUM(D66:F66)/AG66),0,SUM(D66:F66)/AG66) -> 0 | AM66: =IF(ISERROR(Q66/AH66),0,Q66/AH66) -> 0 | AN66: =IF(ISERROR(R66/AI66),0,R66/AI66) -> 0.03703703704 | AO66: =IF(ISERROR(S66/AJ66),0,S66/AJ66) -> 0.08108108108 | AP66: =IF(ISERROR(SUM(P66:Q66)/SUM(AG66:AH66)),0,SUM(P66:Q66)/SUM(AG66:AH66)) -> 0 | AQ66: =IF(ISERROR(SUM(R66:S66)/SUM(AI66:AJ66)),0,SUM(R66:S66)/SUM(AI66:AJ66)) -> 0.0625 | AR66: =IF(ISERROR(SUM(P66:S66)/SUM(AG66:AJ66)),0,SUM(P66:S66)/SUM(AG66:AJ66)) -> 0.04210526316
A67: 2722 | B67: APARTADO | C67: CIS COMFAMA NUEVA COLONIA | D67: 0 | E67: 0 | F67: 1 | G67: 0 | H67: 0 | I67: 0 | J67: 2 | K67: 0 | L67: 1 | M67: 0 | N67: 1 | O67: 0 | P67: 1 | Q67: 0 | R67: 3 | S67: 1 | T67: 5 | U67: 0 | V67: 6 | W67: 3 | X67: 2 | Y67: 3 | Z67: 7 | AA67: 7 | AB67: 2 | AC67: 5 | AD67: 4 | AE67: 7 | AF67: 3 | AG67: 9 | AH67: 12 | AI67: 14 | AJ67: 14 | AK67: 49 | AL67: 0.1111111111 | AM67: 0 | AN67: 0.2142857143 | AO67: 0.07142857143 | AP67: 0.04761904762 | AQ67: 0.1428571429 | AR67: 0.1020408163
A68: 2723 | B68: APARTADO | C68: CIS COMFAMA CHIGORODO CENTRO | D68: 0 | E68: 0 | F68: 0 | G68: 0 | H68: 0 | I68: 0 | J68: 0 | K68: 0 | L68: 0 | M68: 0 | N68: 3 | O68: 0 | P68: =SUM(D68:F68) -> 0 | Q68: =SUM(G68:I68) -> 0 | R68: =SUM(J68:L68) -> 0 | S68: =SUM(M68:O68) -> 3 | T68: =SUM(P68:S68) -> 3 | U68: 0 | V68: 0 | W68: 0 | X68: 0 | Y68: 0 | Z68: 2 | AA68: 1 | AB68: 4 | AC68: 1 | AD68: 4 | AE68: 10 | AF68: 2 | AG68: =SUM(U68:W68) -> 0 | AH68: =SUM(X68:Z68) -> 2 | AI68: =SUM(AA68:AC68) -> 6 | AJ68: =SUM(AD68:AF68) -> 16 | AK68: =SUM(AG68:AJ68) -> 24 | AL68: =IF(ISERROR(SUM(D68:F68)/AG68),0,SUM(D68:F68)/AG68) -> 0 | AM68: =IF(ISERROR(Q68/AH68),0,Q68/AH68) -> 0 | AN68: =IF(ISERROR(R68/AI68),0,R68/AI68) -> 0 | AO68: =IF(ISERROR(S68/AJ68),0,S68/AJ68) -> 0.1875 | AP68: =IF(ISERROR(SUM(P68:Q68)/SUM(AG68:AH68)),0,SUM(P68:Q68)/SUM(AG68:AH68)) -> 0 | AQ68: =IF(ISERROR(SUM(R68:S68)/SUM(AI68:AJ68)),0,SUM(R68:S68)/SUM(AI68:AJ68)) -> 0.1363636364 | AR68: =IF(ISERROR(SUM(P68:S68)/SUM(AG68:AJ68)),0,SUM(P68:S68)/SUM(AG68:AJ68)) -> 0.125
A69: 2724 | B69: BELLO | C69: IPS SURA BELLO | D69: 0 | E69: 0 | F69: 0 | G69: 0 | H69: 0 | I69: 0 | J69: 0 | K69: 0 | L69: 0 | M69: 1 | N69: 1 | O69: 1 | P69: =SUM(D69:F69) -> 0 | Q69: =SUM(G69:I69) -> 0 | R69: =SUM(J69:L69) -> 0 | S69: =SUM(M69:O69) -> 3 | T69: =SUM(P69:S69) -> 3 | U69: 0 | V69: 0 | W69: 0 | X69: 0 | Y69: 0 | Z69: 0 | AA69: 0 | AB69: 0 | AC69: 0 | AD69: 1 | AE69: 1 | AF69: 4 | AG69: =SUM(U69:W69) -> 0 | AH69: =SUM(X69:Z69) -> 0 | AI69: =SUM(AA69:AC69) -> 0 | AJ69: =SUM(AD69:AF69) -> 6 | AK69: =SUM(AG69:AJ69) -> 6 | AL69: =IF(ISERROR(SUM(D69:F69)/AG69),0,SUM(D69:F69)/AG69) -> 0 | AM69: =IF(ISERROR(Q69/AH69),0,Q69/AH69) -> 0 | AN69: =IF(ISERROR(R69/AI69),0,R69/AI69) -> 0 | AO69: =IF(ISERROR(S69/AJ69),0,S69/AJ69) -> 0.5 | AP69: =IF(ISERROR(SUM(P69:Q69)/SUM(AG69:AH69)),0,SUM(P69:Q69)/SUM(AG69:AH69)) -> 0 | AQ69: =IF(ISERROR(SUM(R69:S69)/SUM(AI69:AJ69)),0,SUM(R69:S69)/SUM(AI69:AJ69)) -> 0.5 | AR69: =IF(ISERROR(SUM(P69:S69)/SUM(AG69:AJ69)),0,SUM(P69:S69)/SUM(AG69:AJ69)) -> 0.5
A70: 2725 | B70: MEDELLIN | C70: CIS COMFAMA BUENOS AIRES | D70: 0 | E70: 0 | F70: 0 | G70: 0 | H70: 0 | I70: 0 | J70: 0 | K70: 2 | L70: 2 | M70: 0 | N70: 3 | O70: 3 | P70: 0 | Q70: 0 | R70: 4 | S70: 6 | T70: 10 | U70: 0 | V70: 0 | W70: 0 | X70: 0 | Y70: 0 | Z70: 7 | AA70: 9 | AB70: 12 | AC70: 9 | AD70: 11 | AE70: 11 | AF70: 14 | AG70: 0 | AH70: 7 | AI70: 30 | AJ70: 36 | AK70: 73 | AL70: 0 | AM70: 0 | AN70: 0.1333333333 | AO70: 0.1666666667 | AP70: 0 | AQ70: 0.1515151515 | AR70: 0.1369863014
A71: 2727 | B71: MEDELLIN | C71: CIS COMFAMA CITY PLAZA | D71: 0 | E71: 0 | F71: 0 | G71: 0 | H71: 1 | I71: 0 | J71: 0 | K71: 1 | L71: 0 | M71: 2 | N71: 0 | O71: 0 | P71: 0 | Q71: 1 | R71: 1 | S71: 2 | T71: 4 | U71: 0 | V71: 0 | W71: 0 | X71: 0 | Y71: 5 | Z71: 8 | AA71: 12 | AB71: 7 | AC71: 6 | AD71: 5 | AE71: 5 | AF71: 10 | AG71: 0 | AH71: 13 | AI71: 25 | AJ71: 20 | AK71: 58 | AL71: 0 | AM71: 0.07692307692 | AN71: 0.04 | AO71: 0.1 | AP71: 0.07692307692 | AQ71: 0.06666666667 | AR71: 0.06896551724
A72: 2729 | B72: LA UNION | C72: CIS COMFAMA LA UNION | D72: 0 | E72: 0 | F72: 0 | G72: 0 | H72: 0 | I72: 0 | J72: 0 | K72: 1 | L72: 0 | M72: 0 | N72: 0 | O72: 2 | P72: 0 | Q72: 0 | R72: 1 | S72: 2 | T72: 3 | U72: 0 | V72: 0 | W72: 0 | X72: 0 | Y72: 0 | Z72: 0 | AA72: 4 | AB72: 4 | AC72: 5 | AD72: 0 | AE72: 2 | AF72: 4 | AG72: 0 | AH72: 0 | AI72: 13 | AJ72: 6 | AK72: 19 | AL72: 0 | AM72: 0 | AN72: 0.07692307692 | AO72: 0.3333333333 | AP72: 0 | AQ72: 0.1578947368 | AR72: 0.1578947368
A73: 2739 | B73: ITAGUI | C73: CIS COMFAMA SAN ANTONIO DE PRADO - ITAGUI | D73: 0 | E73: 0 | F73: 0 | G73: 0 | H73: 0 | I73: 0 | J73: 0 | K73: 0 | L73: 0 | M73: 0 | N73: 0 | O73: 0 | P73: 0 | Q73: 0 | R73: 0 | S73: 0 | T73: 0 | U73: 0 | V73: 0 | W73: 0 | X73: 0 | Y73: 0 | Z73: 0 | AA73: 0 | AB73: 0 | AC73: 1 | AD73: 0 | AE73: 6 | AF73: 3 | AG73: 0 | AH73: 0 | AI73: 1 | AJ73: 9 | AK73: 10 | AL73: 0 | AM73: 0 | AN73: 0 | AO73: 0 | AP73: 0 | AQ73: 0 | AR73: 0
A74: 2740 | B74: ITAGUI | C74: CIS COMFAMA SANTA MARIA - ITAGUI | D74: 0 | E74: 0 | F74: 0 | G74: 0 | H74: 0 | I74: 0 | J74: 0 | K74: 0 | L74: 0 | M74: 0 | N74: 0 | O74: 0 | P74: 0 | Q74: 0 | R74: 0 | S74: 0 | T74: 0 | U74: 0 | V74: 0 | W74: 0 | X74: 0 | Y74: 0 | Z74: 0 | AA74: 1 | AB74: 0 | AC74: 0 | AD74: 0 | AE74: 2 | AF74: 0 | AG74: 0 | AH74: 0 | AI74: 1 | AJ74: 2 | AK74: 3 | AL74: 0 | AM74: 0 | AN74: 0 | AO74: 0 | AP74: 0 | AQ74: 0 | AR74: 0
A75: 2741 | B75: SANTUARIO | C75: CIS COMFAMA SANTUARIO | D75: 0 | E75: 0 | F75: 0 | G75: 0 | H75: 0 | I75: 0 | J75: 0 | K75: 0 | L75: 0 | M75: 0 | N75: 0 | O75: 0 | P75: 0 | Q75: 0 | R75: 0 | S75: 0 | T75: 0 | U75: 0 | V75: 0 | W75: 0 | X75: 0 | Y75: 0 | Z75: 0 | AA75: 0 | AB75: 0 | AC75: 0 | AD75: 0 | AE75: 2 | AF75: 2 | AG75: 0 | AH75: 0 | AI75: 0 | AJ75: 4 | AK75: 4 | AL75: 0 | AM75: 0 | AN75: 0 | AO75: 0 | AP75: 0 | AQ75: 0 | AR75: 0
A76: T1 | C76: TOTAL | D76: =SUM(D7:D75) -> 152 | E76: =SUM(E7:E75) -> 139 | F76: 120 | G76: 130 | H76: 111 | I76: 138 | J76: 144 | K76: 143 | L76: 151 | M76: 154 | N76: 137 | O76: 106 | P76: 411 | Q76: 379 | R76: 438 | S76: 397 | T76: 1625 | U76: 1582 | V76: 1387 | W76: 1508 | X76: 1420 | Y76: 1459 | Z76: 1531 | AA76: 1614 | AB76: 1659 | AC76: 1746 | AD76: 1683 | AE76: 1526 | AF76: 1247 | AG76: 4477 | AH76: 4410 | AI76: 5019 | AJ76: 4456 | AK76: =SUM(AK7:AK75) -> 18362 | AL76: 0.09180254635 | AM76: 0.08594104308 | AN76: 0.08726838016 | AO76: 0.08909335727 | AP76: 0.08889388995 | AQ76: =IF(ISERROR(SUM(R76:S76)/SUM(AI76:AJ76)),0,SUM(R76:S76)/SUM(AI76:AJ76)) -> 0.08812664908 | AR76: 0.08849798497 | AS76: =SUM(AS7:AS55) -> 998237
C79: MUNICIPIO | D79: Enero | E79: Febrero | F79: Marzo | G79: Abril | H79: Mayo | I79: Junio | J79: Julio | K79: Agosto | L79: Septiembre | M79: Octubre | N79: Noviembre | O79: Diciembre | P79: I Trim | Q79: II Trim | R79: III Trim | S79: IV Trim | T79: TOTAL | U79: Enero | V79: Febrero | W79: Marzo | X79: abril | Y79: Mayo | Z79: Junio | AA79: Julio | AB79: Agosto | AC79: Septiembre | AD79: Octubre | AE79: Noviembre | AF79: Diciembre | AG79: I TRIM | AH79: II TRIM | AI79: III TRIM | AJ79: IV TRIM | AK79: TOTAL NACIMIENTOS | AL79: I TRIM | AM79: II TRIM | AN79: III TRIM | AO79: IV TRIM | AP79: PORCENTAJE I SEM | AQ79: PORCENTAJE II SEM | AR79: PORCENTAJE ANUAL 2020
A80: A1 | B80: ANTIOQUIA | C80: APARTADO | D80: =SUMIF($B$7:$B$75,$C80,D$7:D$75) -> 2 | E80: =SUMIF($B$7:$B$75,$C80,E$7:E$75) -> 5 | F80: 9 | G80: 9 | H80: 1 | I80: 2 | J80: 5 | K80: 6 | L80: 8 | M80: 9 | N80: 11 | O80: 7 | P80: =SUM(D80:F80) -> 16 | Q80: =SUM(G80:I80) -> 12 | R80: =SUM(J80:L80) -> 19 | S80: =SUM(M80:O80) -> 27 | T80: =SUM(P80:S80) -> 74 | U80: =SUMIF($B$7:$B$75,$C80,U$7:U$75) -> 87 | V80: =SUMIF($B$7:$B$75,$C80,V$7:V$75) -> 75 | W80: 77 | X80: 72 | Y80: 74 | Z80: 88 | AA80: 106 | AB80: 88 | AC80: 113 | AD80: 134 | AE80: 102 | AF80: 82 | AG80: =SUM(U80:W80) -> 239 | AH80: =SUM(X80:Z80) -> 234 | AI80: =SUM(AA80:AC80) -> 307 | AJ80: =SUM(AD80:AF80) -> 318 | AK80: =SUM(AG80:AJ80) -> 1098 | AL80: =IF(ISERROR(SUM(D80:F80)/AG80),0,SUM(D80:F80)/AG80) -> 0.06694560669 | AM80: =IF(ISERROR(Q80/AH80),0,Q80/AH80) -> 0.05128205128 | AN80: =IF(ISERROR(R80/AI80),0,R80/AI80) -> 0.06188925081 | AO80: =IF(ISERROR(S80/AJ80),0,S80/AJ80) -> 0.08490566038 | AP80: =IF(ISERROR(SUM(P80:Q80)/SUM(AG80:AH80)),0,SUM(P80:Q80)/SUM(AG80:AH80)) -> 0.05919661734 | AQ80: =IF(ISERROR(SUM(R80:S80)/SUM(AI80:AJ80)),0,SUM(R80:S80)/SUM(AI80:AJ80)) -> 0.0736 | AR80: =IF(ISERROR(SUM(P80:S80)/SUM(AG80:AJ80)),0,SUM(P80:S80)/SUM(AG80:AJ80)) -> 0.06739526412 | AS80: =SUMIF($B$7:$B$55,$C80,AS$7:AS$55) -> 145503
A81: =VLOOKUP(C81,Parametros!B$122:C$181,2,0) -> A2 | B81: ANTIOQUIA | C81: BARBOSA | D81: =SUMIF($B$7:$B$75,$C81,D$7:D$75) -> 0 | E81: 0 | F81: 1 | G81: 0 | H81: 1 | I81: 0 | J81: 0 | K81: 1 | L81: 2 | M81: 2 | N81: 0 | O81: 1 | P81: 1 | Q81: 1 | R81: 3 | S81: 3 | T81: 8 | U81: =SUMIF($B$7:$B$75,$C81,U$7:U$75) -> 11 | V81: 4 | W81: 4 | X81: 9 | Y81: 6 | Z81: 9 | AA81: 7 | AB81: 11 | AC81: 9 | AD81: 9 | AE81: 3 | AF81: 9 | AG81: 19 | AH81: 24 | AI81: 27 | AJ81: 21 | AK81: 91 | AL81: =IF(ISERROR(SUM(D81:F81)/AG81),0,SUM(D81:F81)/AG81) -> 0.05263157895 | AM81: =IF(ISERROR(Q81/AH81),0,Q81/AH81) -> 0.04166666667 | AN81: =IF(ISERROR(R81/AI81),0,R81/AI81) -> 0.1111111111 | AO81: =IF(ISERROR(S81/AJ81),0,S81/AJ81) -> 0.1428571429 | AP81: =IF(ISERROR(SUM(P81:Q81)/SUM(AG81:AH81)),0,SUM(P81:Q81)/SUM(AG81:AH81)) -> 0.04651162791 | AQ81: =IF(ISERROR(SUM(R81:S81)/SUM(AI81:AJ81)),0,SUM(R81:S81)/SUM(AI81:AJ81)) -> 0.125 | AR81: =IF(ISERROR(SUM(P81:S81)/SUM(AG81:AJ81)),0,SUM(P81:S81)/SUM(AG81:AJ81)) -> 0.08791208791 | AS81: 49158
A82: =VLOOKUP(C82,Parametros!B$122:C$181,2,0) -> A3 | B82: ANTIOQUIA | C82: BELLO | D82: 12 | E82: 12 | F82: 10 | G82: 15 | H82: 14 | I82: 11 | J82: 9 | K82: 13 | L82: 19 | M82: 15 | N82: 11 | O82: 11 | P82: 34 | Q82: 40 | R82: 41 | S82: 37 | T82: 152 | U82: 127 | V82: 149 | W82: 148 | X82: 138 | Y82: 164 | Z82: 126 | AA82: 138 | AB82: 163 | AC82: 191 | AD82: 161 | AE82: 142 | AF82: 112 | AG82: 424 | AH82: 428 | AI82: 492 | AJ82: 415 | AK82: 1759 | AL82: 0.08018867925 | AM82: 0.09345794393 | AN82: 0.08333333333 | AO82: 0.08915662651 | AP82: 0.08685446009 | AQ82: 0.08599779493 | AR82: 0.08641273451 | AS82: 52281
A83: =VLOOKUP(C83,Parametros!B$122:C$181,2,0) -> A4 | B83: ANTIOQUIA | C83: CALDAS | D83: 2 | E83: 7 | F83: 1 | G83: 4 | H83: 2 | I83: 1 | J83: 7 | K83: 4 | L83: 5 | M83: 7 | N83: 3 | O83: 0 | P83: 10 | Q83: 7 | R83: 16 | S83: 10 | T83: 43 | U83: 41 | V83: 42 | W83: 38 | X83: 34 | Y83: 39 | Z83: 29 | AA83: 47 | AB83: 46 | AC83: 33 | AD83: 48 | AE83: 48 | AF83: 21 | AG83: 121 | AH83: 102 | AI83: 126 | AJ83: 117 | AK83: 466 | AL83: 0.0826446281 | AM83: 0.06862745098 | AN83: 0.126984127 | AO83: 0.08547008547 | AP83: 0.07623318386 | AQ83: 0.1069958848 | AR83: 0.09227467811 | AS83: 15359
A84: =VLOOKUP(C84,Parametros!B$122:C$181,2,0) -> A5 | B84: ANTIOQUIA | C84: COPACABANA | D84: 1 | E84: 2 | F84: 2 | G84: 1 | H84: 2 | I84: 2 | J84: 3 | K84: 2 | L84: 0 | M84: 1 | N84: 0 | O84: 1 | P84: 5 | Q84: 5 | R84: 5 | S84: 2 | T84: 17 | U84: 21 | V84: 14 | W84: 21 | X84: 25 | Y84: 24 | Z84: 25 | AA84: 17 | AB84: 23 | AC84: 19 | AD84: 27 | AE84: 20 | AF84: 15 | AG84: 56 | AH84: 74 | AI84: 59 | AJ84: 62 | AK84: 251 | AL84: 0.08928571429 | AM84: 0.06756756757 | AN84: 0.08474576271 | AO84: 0.03225806452 | AP84: 0.07692307692 | AQ84: 0.05785123967 | AR84: 0.06772908367 | AS84: 26062
A85: =VLOOKUP(C85,Parametros!B$122:C$181,2,0) -> A6 | B85: ANTIOQUIA | C85: DON MATIAS | D85: 2 | E85: 2 | F85: 1 | G85: 1 | H85: 1 | I85: 2 | J85: 1 | K85: 3 | L85: 3 | M85: 0 | N85: 1 | O85: 1 | P85: 5 | Q85: 4 | R85: 7 | S85: 2 | T85: 18 | U85: 9 | V85: 7 | W85: 8 | X85: 5 | Y85: 8 | Z85: 7 | AA85: 8 | AB85: 8 | AC85: 14 | AD85: 8 | AE85: 9 | AF85: 5 | AG85: 24 | AH85: 20 | AI85: 30 | AJ85: 22 | AK85: 96 | AL85: 0.2083333333 | AM85: 0.2 | AN85: 0.2333333333 | AO85: 0.09090909091 | AP85: 0.2045454545 | AQ85: 0.1730769231 | AR85: 0.1875 | AS85: 32750
A86: =VLOOKUP(C86,Parametros!B$122:C$181,2,0) -> A7 | B86: ANTIOQUIA | C86: ENVIGADO | D86: 5 | E86: 3 | F86: 3 | G86: 8 | H86: 7 | I86: 5 | J86: 4 | K86: 5 | L86: 2 | M86: 3 | N86: 5 | O86: 3 | P86: 11 | Q86: 20 | R86: 11 | S86: 11 | T86: 53 | U86: 49 | V86: 35 | W86: 48 | X86: 40 | Y86: 42 | Z86: 43 | AA86: 41 | AB86: 43 | AC86: 32 | AD86: 34 | AE86: 35 | AF86: 32 | AG86: 132 | AH86: 125 | AI86: 116 | AJ86: 101 | AK86: 474 | AL86: 0.08333333333 | AM86: 0.16 | AN86: 0.09482758621 | AO86: 0.1089108911 | AP86: 0.1206225681 | AQ86: 0.1013824885 | AR86: 0.111814346 | AS86: 20447
A87: =VLOOKUP(C87,Parametros!B$122:C$181,2,0) -> A8 | B87: ANTIOQUIA | C87: GIRARDOTA | D87: 2 | E87: 1 | F87: 1 | G87: 0 | H87: 1 | I87: 0 | J87: 4 | K87: 2 | L87: 2 | M87: 1 | N87: 1 | O87: 3 | P87: 4 | Q87: 1 | R87: 8 | S87: 5 | T87: 18 | U87: 25 | V87: 19 | W87: 11 | X87: 16 | Y87: 14 | Z87: 17 | AA87: 14 | AB87: 18 | AC87: 21 | AD87: 14 | AE87: 21 | AF87: 12 | AG87: 55 | AH87: 47 | AI87: 53 | AJ87: 47 | AK87: 202 | AL87: 0.07272727273 | AM87: 0.02127659574 | AN87: 0.1509433962 | AO87: 0.1063829787 | AP87: 0.04901960784 | AQ87: 0.13 | AR87: 0.08910891089 | AS87: 17560
A88: =VLOOKUP(C88,Parametros!B$122:C$181,2,0) -> A9 | B88: ANTIOQUIA | C88: GUARNE | D88: 3 | E88: 0 | F88: 0 | G88: 0 | H88: 0 | I88: 0 | J88: 5 | K88: 3 | L88: 0 | M88: 1 | N88: 0 | O88: 0 | P88: 3 | Q88: 0 | R88: 8 | S88: 1 | T88: 12 | U88: 13 | V88: 3 | W88: 13 | X88: 7 | Y88: 10 | Z88: 14 | AA88: 9 | AB88: 11 | AC88: 14 | AD88: 6 | AE88: 10 | AF88: 3 | AG88: 29 | AH88: 31 | AI88: 34 | AJ88: 19 | AK88: 113 | AL88: 0.1034482759 | AM88: 0 | AN88: 0.2352941176 | AO88: 0.05263157895 | AP88: 0.05 | AQ88: 0.1698113208 | AR88: 0.1061946903 | AS88: 60916
A89: =VLOOKUP(C89,Parametros!B$122:C$181,2,0) -> A10 | B89: ANTIOQUIA | C89: ITAGUI | D89: 14 | E89: 12 | F89: 9 | G89: 8 | H89: 4 | I89: 8 | J89: 8 | K89: 7 | L89: 16 | M89: 12 | N89: 7 | O89: 9 | P89: 35 | Q89: 20 | R89: 31 | S89: 28 | T89: 114 | U89: 97 | V89: 95 | W89: 112 | X89: 109 | Y89: 96 | Z89: 93 | AA89: 103 | AB89: 101 | AC89: 136 | AD89: 113 | AE89: 109 | AF89: 98 | AG89: 304 | AH89: 298 | AI89: 340 | AJ89: 320 | AK89: 1262 | AL89: 0.1151315789 | AM89: 0.06711409396 | AN89: 0.09117647059 | AO89: 0.0875 | AP89: 0.09136212625 | AQ89: 0.08939393939 | AR89: 0.09033280507 | AS89: 36637
A90: =VLOOKUP(C90,Parametros!B$122:C$181,2,0) -> A11 | B90: ANTIOQUIA | C90: LA CEJA | D90: 4 | E90: 4 | F90: 1 | G90: 2 | H90: 4 | I90: 4 | J90: 5 | K90: 5 | L90: 3 | M90: 7 | N90: 3 | O90: 0 | P90: 9 | Q90: 10 | R90: 13 | S90: 10 | T90: 42 | U90: 32 | V90: 28 | W90: 23 | X90: 20 | Y90: 32 | Z90: 32 | AA90: 35 | AB90: 34 | AC90: 36 | AD90: 30 | AE90: 25 | AF90: 18 | AG90: 83 | AH90: 84 | AI90: 105 | AJ90: 73 | AK90: 345 | AL90: 0.1084337349 | AM90: 0.119047619 | AN90: 0.1238095238 | AO90: 0.1369863014 | AP90: 0.1137724551 | AQ90: 0.1292134831 | AR90: 0.1217391304 | AS90: 30341
A91: =VLOOKUP(C91,Parametros!B$122:C$181,2,0) -> A12 | B91: ANTIOQUIA | C91: MARINILLA | D91: 1 | E91: 2 | F91: 2 | G91: 0 | H91: 3 | I91: 0 | J91: 1 | K91: 2 | L91: 2 | M91: 3 | N91: 2 | O91: 2 | P91: 5 | Q91: 3 | R91: 5 | S91: 7 | T91: 20 | U91: 15 | V91: 17 | W91: 21 | X91: 21 | Y91: 22 | Z91: 9 | AA91: 13 | AB91: 28 | AC91: 22 | AD91: 27 | AE91: 17 | AF91: 10 | AG91: 53 | AH91: 52 | AI91: 63 | AJ91: 54 | AK91: 222 | AL91: 0.09433962264 | AM91: 0.05769230769 | AN91: 0.07936507937 | AO91: 0.1296296296 | AP91: 0.07619047619 | AQ91: 0.1025641026 | AR91: 0.09009009009 | AS91: 21456
A92: =VLOOKUP(C92,Parametros!B$122:C$181,2,0) -> A13 | B92: ANTIOQUIA | C92: MEDELLIN | D92: 88 | E92: 66 | F92: 64 | G92: 65 | H92: 49 | I92: 72 | J92: 77 | K92: 66 | L92: 69 | M92: 67 | N92: 61 | O92: 52 | P92: 218 | Q92: 186 | R92: 212 | S92: 180 | T92: 796 | U92: 777 | V92: 665 | W92: 748 | X92: 689 | Y92: 697 | Z92: 756 | AA92: 787 | AB92: 805 | AC92: 815 | AD92: 805 | AE92: 684 | AF92: 636 | AG92: 2190 | AH92: 2142 | AI92: 2407 | AJ92: 2125 | AK92: 8864 | AL92: 0.099543379 | AM92: 0.08683473389 | AN92: 0.08807644371 | AO92: 0.08470588235 | AP92: 0.09325946445 | AQ92: 0.08649602824 | AR92: 0.08980144404 | AS92: 385759
A93: =VLOOKUP(C93,Parametros!B$122:C$181,2,0) -> A14 | B93: ANTIOQUIA | C93: RIONEGRO | D93: 6 | E93: 10 | F93: 7 | G93: 6 | H93: 11 | I93: 6 | J93: 4 | K93: 9 | L93: 5 | M93: 6 | N93: 12 | O93: 1 | P93: 23 | Q93: 23 | R93: 18 | S93: 19 | T93: 83 | U93: 78 | V93: 80 | W93: 60 | X93: 71 | Y93: 64 | Z93: 78 | AA93: 77 | AB93: 72 | AC93: 59 | AD93: 75 | AE93: 84 | AF93: 27 | AG93: 218 | AH93: 213 | AI93: 208 | AJ93: 186 | AK93: 825 | AL93: 0.1055045872 | AM93: 0.1079812207 | AN93: 0.08653846154 | AO93: 0.1021505376 | AP93: 0.1067285383 | AQ93: 0.09390862944 | AR93: 0.1006060606 | AS93: 66782
A94: =VLOOKUP(C94,Parametros!B$122:C$181,2,0) -> A15 | B94: ANTIOQUIA | C94: SABANETA | D94: 0 | E94: 3 | F94: 0 | G94: 1 | H94: 1 | I94: 3 | J94: 5 | K94: 1 | L94: 6 | M94: 7 | N94: 2 | O94: 2 | P94: 3 | Q94: 5 | R94: 12 | S94: 11 | T94: 31 | U94: 38 | V94: 28 | W94: 18 | X94: 24 | Y94: 18 | Z94: 29 | AA94: 33 | AB94: 32 | AC94: 33 | AD94: 31 | AE94: 34 | AF94: 23 | AG94: 84 | AH94: 71 | AI94: 98 | AJ94: 88 | AK94: 341 | AL94: 0.03571428571 | AM94: 0.07042253521 | AN94: 0.1224489796 | AO94: 0.125 | AP94: 0.05161290323 | AQ94: 0.123655914 | AR94: 0.09090909091 | AS94: 0
A95: =VLOOKUP(C95,Parametros!B$122:C$181,2,0) -> A16 | B95: ANTIOQUIA | C95: SANTA ROSA DE OSOS | D95: 0 | E95: 1 | F95: 0 | G95: 0 | H95: 2 | I95: 1 | J95: 1 | K95: 0 | L95: 1 | M95: 0 | N95: 1 | O95: 1 | P95: =SUM(D95:F95) -> 1 | Q95: =SUM(G95:I95) -> 3 | R95: =SUM(J95:L95) -> 2 | S95: =SUM(M95:O95) -> 2 | T95: =SUM(P95:S95) -> 8 | U95: 2 | V95: 3 | W95: 8 | X95: 5 | Y95: 7 | Z95: 8 | AA95: 7 | AB95: 3 | AC95: 10 | AD95: 12 | AE95: 16 | AF95: 3 | AG95: 13 | AH95: 20 | AI95: 20 | AJ95: 31 | AK95: 84 | AL95: 0.07692307692 | AM95: 0.15 | AN95: 0.1 | AO95: 0.06451612903 | AP95: 0.1212121212 | AQ95: 0.07843137255 | AR95: 0.09523809524 | AS95: 0
A96: =VLOOKUP(C96,Parametros!B$122:C$181,2,0) -> A17 | B96: ANTIOQUIA | C96: YARUMAL | D96: 1 | E96: 0 | F96: 0 | G96: 0 | H96: 0 | I96: 1 | J96: 0 | K96: 0 | L96: 0 | M96: 0 | N96: 1 | O96: 0 | P96: 1 | Q96: 1 | R96: 0 | S96: 1 | T96: 3 | U96: 4 | V96: 0 | W96: 3 | X96: 2 | Y96: 1 | Z96: 2 | AA96: 1 | AB96: 0 | AC96: 2 | AD96: 0 | AE96: 2 | AF96: 0 | AG96: 7 | AH96: 5 | AI96: 3 | AJ96: 2 | AK96: 17 | AL96: 0.1428571429 | AM96: 0.2 | AN96: 0 | AO96: 0.5 | AP96: 0.1666666667 | AQ96: 0.2 | AR96: 0.1764705882 | AS96: 0
A97: =VLOOKUP(C97,Parametros!B$122:C$181,2,0) -> A18 | B97: QUINDIO | C97: ARMENIA | D97: 0 | E97: 2 | F97: 4 | G97: 3 | H97: 1 | I97: 2 | J97: 0 | K97: 2 | L97: 3 | M97: 3 | N97: 6 | O97: 1 | P97: 6 | Q97: 6 | R97: 5 | S97: 10 | T97: 27 | U97: 42 | V97: 40 | W97: 34 | X97: 40 | Y97: 30 | Z97: 42 | AA97: 49 | AB97: 39 | AC97: 46 | AD97: 38 | AE97: 42 | AF97: 8 | AG97: 116 | AH97: 112 | AI97: 134 | AJ97: 88 | AK97: 450 | AL97: 0.05172413793 | AM97: 0.05357142857 | AN97: 0.03731343284 | AO97: 0.1136363636 | AP97: 0.05263157895 | AQ97: 0.06756756757 | AR97: 0.06 | AS97: 5608
A98: =VLOOKUP(C98,Parametros!B$122:C$181,2,0) -> A19 | B98: CALDAS | C98: MANIZALES | D98: 2 | E98: 3 | F98: 1 | G98: 4 | H98: 1 | I98: 7 | J98: 1 | K98: 6 | L98: 1 | M98: 3 | N98: 3 | O98: 6 | P98: 6 | Q98: 12 | R98: 8 | S98: 12 | T98: 38 | U98: 57 | V98: 42 | W98: 56 | X98: 32 | Y98: 46 | Z98: 61 | AA98: 54 | AB98: 59 | AC98: 65 | AD98: 48 | AE98: 47 | AF98: 60 | AG98: 155 | AH98: 139 | AI98: 178 | AJ98: 155 | AK98: 627 | AL98: 0.03870967742 | AM98: 0.08633093525 | AN98: 0.04494382022 | AO98: 0.07741935484 | AP98: 0.0612244898 | AQ98: 0.06006006006 | AR98: 0.06060606061 | AS98: 20582
A99: =VLOOKUP(C99,Parametros!B$122:C$181,2,0) -> A20 | B99: RISARALDA | C99: PEREIRA | D99: 2 | E99: 2 | F99: 1 | G99: 1 | H99: 3 | I99: 9 | J99: 3 | K99: 3 | L99: 2 | M99: 3 | N99: 5 | O99: 1 | P99: 5 | Q99: 13 | R99: 8 | S99: 9 | T99: 35 | U99: 32 | V99: 19 | W99: 28 | X99: 32 | Y99: 30 | Z99: 35 | AA99: 35 | AB99: 38 | AC99: 39 | AD99: 29 | AE99: 31 | AF99: 37 | AG99: 79 | AH99: 97 | AI99: 112 | AJ99: 97 | AK99: 385 | AL99: 0.06329113924 | AM99: 0.1340206186 | AN99: 0.07142857143 | AO99: 0.09278350515 | AP99: 0.1022727273 | AQ99: 0.08133971292 | AR99: 0.09090909091 | AS99: 11036
A100: =VLOOKUP(C100,Parametros!B$122:C$181,2,0) -> A21 | B100: ANTIOQUIA | C100: LA ESTRELLA | D100: 3 | E100: 0 | F100: 2 | G100: 2 | H100: 0 | I100: 0 | J100: 0 | K100: 1 | L100: 0 | M100: 1 | N100: 1 | O100: 1 | P100: 5 | Q100: 2 | R100: 1 | S100: 3 | T100: 11 | U100: 9 | V100: 6 | W100: 15 | X100: 10 | Y100: 11 | Z100: 12 | AA100: 9 | AB100: 10 | AC100: 6 | AD100: 8 | AE100: 8 | AF100: 12 | AG100: =SUM(U100:W100) -> 30 | AH100: =SUM(X100:Z100) -> 33 | AI100: =SUM(AA100:AC100) -> 25 | AJ100: =SUM(AD100:AF100) -> 28 | AK100: =SUM(AG100:AJ100) -> 116 | AL100: =IF(ISERROR(SUM(D100:F100)/AG100),0,SUM(D100:F100)/AG100) -> 0.1666666667 | AM100: =IF(ISERROR(Q100/AH100),0,Q100/AH100) -> 0.06060606061 | AN100: 0.04 | AO100: 0.1071428571 | AP100: 0.1111111111 | AQ100: =IF(ISERROR(SUM(R100:S100)/SUM(AI100:AJ100)),0,SUM(R100:S100)/SUM(AI100:AJ100)) -> 0.07547169811 | AR100: =IF(ISERROR(SUM(P100:S100)/SUM(AG100:AJ100)),0,SUM(P100:S100)/SUM(AG100:AJ100)) -> 0.09482758621
A101: =VLOOKUP(C101,Parametros!B$122:C$181,2,0) -> A22 | B101: ANTIOQUIA | C101: CARMEN DE VIBORAL | D101: 0 | E101: 2 | F101: 1 | G101: 0 | H101: 2 | I101: 2 | J101: 1 | K101: 1 | L101: 1 | M101: 1 | N101: 0 | O101: 1 | P101: 3 | Q101: 4 | R101: 3 | S101: 2 | T101: 12 | U101: 11 | V101: 11 | W101: 8 | X101: 9 | Y101: 8 | Z101: 9 | AA101: 9 | AB101: 12 | AC101: 12 | AD101: 12 | AE101: 13 | AF101: 7 | AG101: 30 | AH101: 26 | AI101: 33 | AJ101: 32 | AK101: 121 | AL101: 0.1 | AM101: 0.1538461538 | AN101: 0.09090909091 | AO101: 0.0625 | AP101: 0.125 | AQ101: 0.07692307692 | AR101: 0.09917355372
A102: =VLOOKUP(C102,Parametros!B$122:C$181,2,0) -> A23 | B102: RISARALDA | C102: DOSQUEBRADAS | D102: 2 | E102: 0 | F102: 0 | G102: 0 | H102: 1 | I102: 0 | J102: 0 | K102: 0 | L102: 0 | M102: 0 | N102: 0 | O102: 0 | P102: =SUM(D102:F102) -> 2 | Q102: =SUM(G102:I102) -> 1 | R102: =SUM(J102:L102) -> 0 | S102: =SUM(M102:O102) -> 0 | T102: =SUM(P102:S102) -> 3 | U102: 5 | V102: 1 | W102: 2 | X102: 4 | Y102: 3 | Z102: 3 | AA102: 3 | AB102: 4 | AC102: 2 | AD102: 3 | AE102: 2 | AF102: 3 | AG102: 8 | AH102: 10 | AI102: 9 | AJ102: 8 | AK102: 35 | AL102: 0.25 | AM102: =IF(ISERROR(Q102/AH102),0,Q102/AH102) -> 0.1 | AN102: =IF(ISERROR(R102/AI102),0,R102/AI102) -> 0 | AO102: =IF(ISERROR(S102/AJ102),0,S102/AJ102) -> 0 | AP102: =IF(ISERROR(SUM(P102:Q102)/SUM(AG102:AH102)),0,SUM(P102:Q102)/SUM(AG102:AH102)) -> 0.1666666667 | AQ102: 0 | AR102: 0.08571428571
A103: =VLOOKUP(C103,Parametros!B$122:C$181,2,0) -> A24 | B103: ANTIOQUIA | C103: TURBO | D103: 0 | E103: 0 | F103: 0 | G103: 0 | H103: 0 | I103: 0 | J103: 0 | K103: 0 | L103: 1 | M103: 2 | N103: 1 | O103: 0 | P103: =SUM(D103:F103) -> 0 | Q103: =SUM(G103:I103) -> 0 | R103: =SUM(J103:L103) -> 1 | S103: =SUM(M103:O103) -> 3 | T103: =SUM(P103:S103) -> 4 | U103: 0 | V103: 4 | W103: 4 | X103: 6 | Y103: 13 | Z103: 4 | AA103: 8 | AB103: 7 | AC103: 12 | AD103: 11 | AE103: 18 | AF103: 8 | AG103: 8 | AH103: 23 | AI103: 27 | AJ103: 37 | AK103: 95 | AL103: 0 | AM103: =IF(ISERROR(Q103/AH103),0,Q103/AH103) -> 0 | AN103: =IF(ISERROR(R103/AI103),0,R103/AI103) -> 0.03703703704 | AO103: =IF(ISERROR(S103/AJ103),0,S103/AJ103) -> 0.08108108108 | AP103: =IF(ISERROR(SUM(P103:Q103)/SUM(AG103:AH103)),0,SUM(P103:Q103)/SUM(AG103:AH103)) -> 0 | AQ103: 0.0625 | AR103: 0.04210526316
A104: =VLOOKUP(C104,Parametros!B$122:C$181,2,0) -> A25 | B104: ANTIOQUIA | C104: LA UNION | D104: 0 | E104: 0 | F104: 0 | G104: 0 | H104: 0 | I104: 0 | J104: 0 | K104: 1 | L104: 0 | M104: 0 | N104: 0 | O104: 2 | P104: =SUM(D104:F104) -> 0 | Q104: =SUM(G104:I104) -> 0 | R104: =SUM(J104:L104) -> 1 | S104: =SUM(M104:O104) -> 2 | T104: =SUM(P104:S104) -> 3 | U104: 0 | V104: 0 | W104: 0 | X104: 0 | Y104: 0 | Z104: 0 | AA104: 4 | AB104: 4 | AC104: 5 | AD104: 0 | AE104: 2 | AF104: 4 | AG104: 0 | AH104: 0 | AI104: 13 | AJ104: 6 | AK104: 19 | AL104: 0 | AM104: =IF(ISERROR(Q104/AH104),0,Q104/AH104) -> 0 | AN104: =IF(ISERROR(R104/AI104),0,R104/AI104) -> 0.07692307692 | AO104: =IF(ISERROR(S104/AJ104),0,S104/AJ104) -> 0.3333333333 | AP104: =IF(ISERROR(SUM(P104:Q104)/SUM(AG104:AH104)),0,SUM(P104:Q104)/SUM(AG104:AH104)) -> 0 | AQ104: 0.1578947368 | AR104: 0.1578947368
A105: =VLOOKUP(C105,Parametros!B$122:C$181,2,0) -> A26 | B105: ANTIOQUIA | C105: SANTUARIO | D105: 0 | E105: 0 | F105: 0 | G105: 0 | H105: 0 | I105: 0 | J105: 0 | K105: 0 | L105: 0 | M105: 0 | N105: 0 | O105: =SUMIF($B$7:$B$75,$C105,O$7:O$75) -> 0 | P105: =SUM(D105:F105) -> 0 | Q105: =SUM(G105:I105) -> 0 | R105: =SUM(J105:L105) -> 0 | S105: =SUM(M105:O105) -> 0 | T105: =SUM(P105:S105) -> 0 | U105: 0 | V105: 0 | W105: 0 | X105: 0 | Y105: 0 | Z105: 0 | AA105: 0 | AB105: 0 | AC105: 0 | AD105: 0 | AE105: 2 | AF105: =SUMIF($B$7:$B$75,$C105,AF$7:AF$75) -> 2 | AG105: 0 | AH105: 0 | AI105: 0 | AJ105: 4 | AK105: 4 | AL105: 0 | AM105: =IF(ISERROR(Q105/AH105),0,Q105/AH105) -> 0 | AN105: =IF(ISERROR(R105/AI105),0,R105/AI105) -> 0 | AO105: =IF(ISERROR(S105/AJ105),0,S105/AJ105) -> 0 | AP105: =IF(ISERROR(SUM(P105:Q105)/SUM(AG105:AH105)),0,SUM(P105:Q105)/SUM(AG105:AH105)) -> 0 | AQ105: 0 | AR105: 0
C106: TOTAL | D106: =SUM(D80:D105) -> 152 | E106: =SUM(E80:E105) -> 139 | F106: 120 | G106: 130 | H106: 111 | I106: 138 | J106: 144 | K106: 143 | L106: 151 | M106: 154 | N106: 137 | O106: 106 | P106: 411 | Q106: 379 | R106: 438 | S106: 397 | T106: 1625 | U106: 1582 | V106: 1387 | W106: 1508 | X106: 1420 | Y106: 1459 | Z106: 1531 | AA106: 1614 | AB106: 1659 | AC106: 1746 | AD106: 1683 | AE106: 1526 | AF106: 1247 | AG106: 4477 | AH106: 4410 | AI106: 5019 | AJ106: 4456 | AK106: =SUM(AK80:AK105) -> 18362 | AL106: 0.09180254635 | AM106: 0.08594104308 | AN106: 0.08726838016 | AO106: 0.08909335727 | AP106: =IF(ISERROR(SUM(P106:Q106)/SUM(AG106:AH106)),0,SUM(P106:Q106)/SUM(AG106:AH106)) -> 0.08889388995 | AQ106: 0.08812664908 | AR106: 0.08849798497 | AS106: =SUM(AS80:AS99) -> 998237
C109: REGIONAL ANTIOQUIA | D109: Enero | E109: Febrero | F109: Marzo | G109: Abril | H109: Mayo | I109: Junio | J109: Julio | K109: Agosto | L109: Septiembre | M109: Octubre | N109: Noviembre | O109: Diciembr | P109: I Trim | Q109: II Trim | R109: III Trim | S109: IV Trim | T109: TOTAL BPN | U109: Enero | V109: Febrero | W109: Marzo | X109: Abril | Y109: Mayo | Z109: Junio | AA109: Julio | AB109: Agosto | AC109: Septiembre | AD109: Octubre | AE109: Noviembre | AF109: Diciembr | AG109: I TRIM | AH109: II TRIM | AI109: III TRIM | AJ109: IV TRIM | AK109: TOTAL | AL109: I TRIM | AM109: II TRIM | AN109: III TRIM | AO109: IV TRIM | AP109: PORCENTAJE I SEM | AQ109: PORCENTAJE II SEM | AR109: PORCENTAJE ANUAL 2020
C110: DATOS | D110: =D76 -> 152 | E110: =E76 -> 139 | F110: =F76 -> 120 | G110: 130 | H110: 111 | I110: 138 | J110: 144 | K110: 143 | L110: 151 | M110: 154 | N110: 137 | O110: 106 | P110: =SUM(D110:F110) -> 411 | Q110: =SUM(G110:I110) -> 379 | R110: =SUM(J110:L110) -> 438 | S110: =SUM(M110:O110) -> 397 | T110: =SUM(P110+Q110+R110+S110) -> 1625 | U110: =U76 -> 1582 | V110: =V76 -> 1387 | W110: 1508 | X110: 1420 | Y110: 1459 | Z110: 1531 | AA110: 1614 | AB110: 1659 | AC110: 1746 | AD110: 1683 | AE110: 1526 | AF110: 1247 | AG110: =SUM(U110:W110) -> 4477 | AH110: =SUM(X110:Z110) -> 4410 | AI110: =SUM(AA110:AC110) -> 5019 | AJ110: =SUM(AD110:AF110) -> 4456 | AK110: =SUM(AG110:AJ110) -> 18362 | AL110: =IF(ISERROR(SUM(D110:F110)/AG110),0,SUM(D110:F110)/AG110) -> 0.09180254635 | AM110: =IF(ISERROR(Q110/AH110),0,Q110/AH110) -> 0.08594104308 | AN110: =IF(ISERROR(R110/AI110),0,R110/AI110) -> 0.08726838016 | AO110: =IF(ISERROR(S110/AJ110),0,S110/AJ110) -> 0.08909335727 | AP110: =IF(ISERROR(SUM(P110:Q110)/SUM(AG110:AH110)),0,SUM(P110:Q110)/SUM(AG110:AH110)) -> 0.08889388995 | AQ110: =IF(ISERROR(SUM(R110:S110)/SUM(AI110:AJ110)),0,SUM(R110:S110)/SUM(AI110:AJ110)) -> 0.08812664908 | AR110: =IF(ISERROR(SUM(P110:S110)/SUM(AG110:AJ110)),0,SUM(P110:S110)/SUM(AG110:AJ110)) -> 0.08849798497 | AS110: =AS76 -> 998237
C113: REGIONAL OCCIDENTE | D113: BPN | P113: Bajo Peso Al nacer | T113: Total | U113: NACIMIENTOS | AG113: NUMEROS DE NACIMIENTOS | AK113: TOTAL NACIMIENTOS 2020 | AL113: PROPORCIÓN
D114: Enero | E114: Febrero | F114: Marzo | G114: Abril | H114: Mayo | I114: Junio | J114: Julio | K114: Agosto | L114: Septiemb | M114: Octubre | N114: Noviembre | O114: Diciembre | U114: Enero | V114: Febrero | W114: Marzo | X114: Abril | Y114: Mayo | Z114: Junio | AA114: Julio | AB114: Agosto | AC114: Septiembre | AD114: Octubre | AE114: Noviembre | AF114: Diciembre
C115: IPS | P115: I Trim | Q115: II Trim | R115: III Trim | S115: IV Trim | AG115: I TRIM | AH115: II TRIM | AI115: III TRIM | AJ115: IV TRIM | AL115: I TRIM | AM115: II TRIM | AN115: III TRIM | AO115: IV TRIM | AP115: PORCENTAJE I SEM | AQ115: PORCENTAJE II SEM | AR115: PORCENTAJE ANUAL 2020
A116: 2676 | B116: PALMIRA | C116: CENTRO DE EXCELENCIA CLINICA SANTA HELENA | D116: 0 | E116: 0 | F116: 0 | G116: 0 | H116: 0 | I116: 0 | J116: 0 | K116: 0 | L116: 0 | M116: 0 | N116: 0 | O116: 0 | P116: =SUM(D116:F116) -> 0 | Q116: =SUM(G116:I116) -> 0 | R116: =SUM(J116:L116) -> 0 | S116: =SUM(M116:O116) -> 0 | T116: =SUM(P116:S116) -> 0 | U116: 9 | V116: 5 | W116: 15 | X116: 11 | Y116: 7 | Z116: 6 | AA116: 13 | AB116: 12 | AC116: 12 | AD116: 19 | AE116: 17 | AF116: 9 | AG116: =SUM(U116:W116) -> 29 | AH116: =SUM(X116:Z116) -> 24 | AI116: =SUM(AA116:AC116) -> 37 | AJ116: =SUM(AD116:AF116) -> 45 | AK116: =SUM(AG116:AJ116) -> 135 | AL116: =IF(ISERROR(SUM(D116:F116)/AG116),0,SUM(D116:F116)/AG116) -> 0 | AM116: =IF(ISERROR(Q116/AH116),0,Q116/AH116) -> 0 | AN116: =IF(ISERROR(R116/AI116),0,R116/AI116) -> 0 | AO116: =IF(ISERROR(S116/AJ116),0,S116/AJ116) -> 0 | AP116: =IF(ISERROR(SUM(P116:Q116)/SUM(AG116:AH116)),0,SUM(P116:Q116)/SUM(AG116:AH116)) -> 0 | AQ116: =IF(ISERROR(SUM(R116:S116)/SUM(AI116:AJ116)),0,SUM(R116:S116)/SUM(AI116:AJ116)) -> 0 | AR116: =IF(ISERROR(SUM(P116:S116)/SUM(AG116:AJ116)),0,SUM(P116:S116)/SUM(AG116:AJ116)) -> 0 | AS116: 2134
A117: 1030 | B117: CALI | C117: IPS VIVIR | D117: 0 | E117: 0 | F117: 0 | G117: 0 | H117: 0 | I117: 0 | J117: 0 | K117: 0 | L117: 0 | M117: 0 | N117: 0 | O117: 0 | P117: =SUM(D117:F117) -> 0 | Q117: =SUM(G117:I117) -> 0 | R117: =SUM(J117:L117) -> 0 | S117: =SUM(M117:O117) -> 0 | T117: =SUM(P117:S117) -> 0 | U117: 33 | V117: 28 | W117: 48 | X117: 47 | Y117: 42 | Z117: 42 | AA117: 42 | AB117: 58 | AC117: 46 | AD117: 56 | AE117: 27 | AF117: 15 | AG117: 109 | AH117: 131 | AI117: 146 | AJ117: 98 | AK117: 484 | AL117: 0 | AM117: 0 | AN117: 0 | AO117: 0 | AP117: 0 | AQ117: 0 | AR117: 0
A118: 1130 | B118: CALI | C118: SALUD SURA CHIPICHAPE | D118: 0 | E118: 0 | F118: 0 | G118: 0 | H118: 0 | I118: 0 | J118: 0 | K118: 0 | L118: 0 | M118: 0 | N118: 0 | O118: 0 | P118: =SUM(D118:F118) -> 0 | Q118: =SUM(G118:I118) -> 0 | R118: =SUM(J118:L118) -> 0 | S118: =SUM(M118:O118) -> 0 | T118: =SUM(P118:S118) -> 0 | U118: 0 | V118: 0 | W118: 1 | X118: 2 | Y118: 0 | Z118: 1 | AA118: 2 | AB118: 0 | AC118: 1 | AD118: 0 | AE118: 1 | AF118: 0 | AG118: 1 | AH118: 3 | AI118: 3 | AJ118: 1 | AK118: 8 | AL118: 0 | AM118: 0 | AN118: 0 | AO118: 0 | AP118: 0 | AQ118: 0 | AR118: 0
A119: 51 | B119: CALI | C119: IPS SURA LA FLORA | D119: 2 | E119: 0 | F119: 1 | G119: 1 | H119: 5 | I119: 2 | J119: 0 | K119: 0 | L119: 0 | M119: 0 | N119: 0 | O119: 0 | P119: =SUM(D119:F119) -> 3 | Q119: =SUM(G119:I119) -> 8 | R119: =SUM(J119:L119) -> 0 | S119: =SUM(M119:O119) -> 0 | T119: =SUM(P119:S119) -> 11 | U119: 49 | V119: 43 | W119: 45 | X119: 41 | Y119: 49 | Z119: 42 | AA119: 40 | AB119: 43 | AC119: 46 | AD119: 28 | AE119: 29 | AF119: 30 | AG119: 137 | AH119: 132 | AI119: 129 | AJ119: 87 | AK119: 485 | AL119: 0.02189781022 | AM119: 0.06060606061 | AN119: 0 | AO119: 0 | AP119: 0.04089219331 | AQ119: 0 | AR119: 0.02268041237 | AS119: 33022
A120: 2666 | B120: CALI | C120: IPS SURA PASO ANCHO | D120: 0 | E120: 0 | F120: 0 | G120: 0 | H120: 0 | I120: 0 | J120: 0 | K120: 0 | L120: 0 | M120: 0 | N120: 0 | O120: 0 | P120: =SUM(D120:F120) -> 0 | Q120: =SUM(G120:I120) -> 0 | R120: =SUM(J120:L120) -> 0 | S120: 0 | T120: 0 | U120: 1 | V120: 2 | W120: 3 | X120: 2 | Y120: 0 | Z120: 0 | AA120: 0 | AB120: 1 | AC120: 2 | AD120: 1 | AE120: 0 | AF120: 0 | AG120: 6 | AH120: 2 | AI120: 3 | AJ120: 1 | AK120: 12 | AL120: 0 | AM120: 0 | AN120: 0 | AO120: 0 | AP120: 0 | AQ120: 0 | AR120: 0 | AS120: 52021
A121: 122354 | B121: CALI | C121: AMIGOS DE LA SALUD AMISALUD S.A.S | D121: 0 | E121: 0 | F121: 0 | G121: 0 | H121: 0 | I121: 0 | J121: 0 | K121: 0 | L121: 0 | M121: 0 | N121: 0 | O121: 0 | P121: =SUM(D121:F121) -> 0 | Q121: =SUM(G121:I121) -> 0 | R121: =SUM(J121:L121) -> 0 | S121: =SUM(M121:O121) -> 0 | T121: =SUM(P121:S121) -> 0 | U121: 1 | V121: 9 | W121: 5 | X121: 10 | Y121: 7 | Z121: 6 | AA121: 5 | AB121: 2 | AC121: 3 | AD121: 8 | AE121: 4 | AF121: 2 | AG121: =SUM(U121:W121) -> 15 | AH121: =SUM(X121:Z121) -> 23 | AI121: =SUM(AA121:AC121) -> 10 | AJ121: =SUM(AD121:AF121) -> 14 | AK121: =SUM(AG121:AJ121) -> 62 | AL121: 0 | AM121: 0 | AN121: 0 | AO121: 0 | AP121: 0 | AQ121: 0 | AR121: 0
A122: 83 | B122: CALI | C122: SALUD EN CASA CALI | D122: 0 | E122: 0 | F122: 0 | G122: 0 | H122: 0 | I122: 0 | J122: 0 | K122: 0 | L122: 0 | M122: 0 | N122: 0 | O122: 0 | P122: 0 | Q122: 0 | R122: 0 | S122: 0 | T122: 0 | U122: 0 | V122: 0 | W122: 0 | X122: 0 | Y122: 0 | Z122: 0 | AA122: 0 | AB122: 0 | AC122: 1 | AD122: 0 | AE122: 0 | AF122: 0 | AG122: 0 | AH122: 0 | AI122: 1 | AJ122: 0 | AK122: 1 | AL122: 0 | AM122: 0 | AN122: 0 | AO122: 0 | AP122: 0 | AQ122: 0 | AR122: 0 | AS122: 335
A123: 2703 | B123: CALI | C123: IPS SURA TEQUENDAMA | D123: 0 | E123: 0 | F123: 0 | G123: 0 | H123: 0 | I123: 0 | J123: 0 | K123: 0 | L123: 0 | M123: 0 | N123: 0 | O123: 0 | P123: =SUM(D123:F123) -> 0 | Q123: =SUM(G123:I123) -> 0 | R123: =SUM(J123:L123) -> 0 | S123: =SUM(M123:O123) -> 0 | T123: 0 | U123: 86 | V123: 93 | W123: 76 | X123: 81 | Y123: 92 | Z123: 87 | AA123: 93 | AB123: 91 | AC123: 91 | AD123: 80 | AE123: 69 | AF123: 25 | AG123: =SUM(U123:W123) -> 255 | AH123: =SUM(X123:Z123) -> 260 | AI123: =SUM(AA123:AC123) -> 275 | AJ123: =SUM(AD123:AF123) -> 174 | AK123: =SUM(AG123:AJ123) -> 964 | AL123: =IF(ISERROR(SUM(D123:F123)/AG123),0,SUM(D123:F123)/AG123) -> 0 | AM123: =IF(ISERROR(Q123/AH123),0,Q123/AH123) -> 0 | AN123: 0 | AO123: 0 | AP123: 0 | AQ123: =IF(ISERROR(SUM(R123:S123)/SUM(AI123:AJ123)),0,SUM(R123:S123)/SUM(AI123:AJ123)) -> 0 | AR123: =IF(ISERROR(SUM(P123:S123)/SUM(AG123:AJ123)),0,SUM(P123:S123)/SUM(AG123:AJ123)) -> 0
A124: 2711 | B124: BUGA | C124: IPS BASICA COMFANDI BUGA | D124: 1 | E124: 0 | F124: 0 | G124: 1 | H124: 0 | I124: 2 | J124: 0 | K124: 1 | L124: 2 | M124: 0 | N124: 1 | O124: 1 | P124: =SUM(D124:F124) -> 1 | Q124: =SUM(G124:I124) -> 3 | R124: =SUM(J124:L124) -> 3 | S124: =SUM(M124:O124) -> 2 | T124: =SUM(P124:S124) -> 9 | U124: 6 | V124: 5 | W124: 7 | X124: 3 | Y124: 7 | Z124: 7 | AA124: 3 | AB124: 6 | AC124: 10 | AD124: 10 | AE124: 7 | AF124: 5 | AG124: =SUM(U124:W124) -> 18 | AH124: =SUM(X124:Z124) -> 17 | AI124: =SUM(AA124:AC124) -> 19 | AJ124: =SUM(AD124:AF124) -> 22 | AK124: =SUM(AG124:AJ124) -> 76 | AL124: =IF(ISERROR(SUM(D124:F124)/AG124),0,SUM(D124:F124)/AG124) -> 0.05555555556 | AM124: 0.1764705882 | AN124: 0.1578947368 | AO124: 0.09090909091 | AP124: 0.1142857143 | AQ124: =IF(ISERROR(SUM(R124:S124)/SUM(AI124:AJ124)),0,SUM(R124:S124)/SUM(AI124:AJ124)) -> 0.1219512195 | AR124: =IF(ISERROR(SUM(P124:S124)/SUM(AG124:AJ124)),0,SUM(P124:S124)/SUM(AG124:AJ124)) -> 0.1184210526
A125: 2712 | B125: CALI | C125: IPS COLSUBSIDIO NORTE | D125: 0 | E125: 0 | F125: 3 | G125: 2 | H125: 0 | I125: 1 | J125: 0 | K125: 0 | L125: 0 | M125: 0 | N125: 0 | O125: 0 | P125: =SUM(D125:F125) -> 3 | Q125: =SUM(G125:I125) -> 3 | R125: =SUM(J125:L125) -> 0 | S125: =SUM(M125:O125) -> 0 | T125: =SUM(P125:S125) -> 6 | U125: 25 | V125: 21 | W125: 33 | X125: 32 | Y125: 30 | Z125: 35 | AA125: 27 | AB125: 47 | AC125: 35 | AD125: 38 | AE125: 28 | AF125: 28 | AG125: =SUM(U125:W125) -> 79 | AH125: =SUM(X125:Z125) -> 97 | AI125: =SUM(AA125:AC125) -> 109 | AJ125: =SUM(AD125:AF125) -> 94 | AK125: =SUM(AG125:AJ125) -> 379 | AL125: =IF(ISERROR(SUM(D125:F125)/AG125),0,SUM(D125:F125)/AG125) -> 0.03797468354 | AM125: =IF(ISERROR(Q125/AH125),0,Q125/AH125) -> 0.03092783505 | AN125: =IF(ISERROR(R125/AI125),0,R125/AI125) -> 0 | AO125: =IF(ISERROR(S125/AJ125),0,S125/AJ125) -> 0 | AP125: =IF(ISERROR(SUM(P125:Q125)/SUM(AG125:AH125)),0,SUM(P125:Q125)/SUM(AG125:AH125)) -> 0.03409090909 | AQ125: =IF(ISERROR(SUM(R125:S125)/SUM(AI125:AJ125)),0,SUM(R125:S125)/SUM(AI125:AJ125)) -> 0 | AR125: =IF(ISERROR(SUM(P125:S125)/SUM(AG125:AJ125)),0,SUM(P125:S125)/SUM(AG125:AJ125)) -> 0.01583113456
A126: 141148 | B126: POPAYAN | C126: BIOS IPS MEDICAL CENTER SAS | D126: 0 | E126: 0 | F126: 0 | G126: 0 | H126: 0 | I126: 0 | J126: 0 | K126: 0 | L126: 0 | M126: 0 | N126: 0 | O126: 0 | P126: =SUM(D126:F126) -> 0 | Q126: =SUM(G126:I126) -> 0 | R126: =SUM(J126:L126) -> 0 | S126: =SUM(M126:O126) -> 0 | T126: =SUM(P126:S126) -> 0 | U126: 3 | V126: 0 | W126: 2 | X126: 1 | Y126: 1 | Z126: 0 | AA126: 2 | AB126: 2 | AC126: 5 | AD126: 3 | AE126: 2 | AF126: 0 | AG126: =SUM(U126:W126) -> 5 | AH126: =SUM(X126:Z126) -> 2 | AI126: =SUM(AA126:AC126) -> 9 | AJ126: =SUM(AD126:AF126) -> 5 | AK126: =SUM(AG126:AJ126) -> 21 | AL126: =IF(ISERROR(SUM(D126:F126)/AG126),0,SUM(D126:F126)/AG126) -> 0 | AM126: =IF(ISERROR(Q126/AH126),0,Q126/AH126) -> 0 | AN126: =IF(ISERROR(R126/AI126),0,R126/AI126) -> 0 | AO126: =IF(ISERROR(S126/AJ126),0,S126/AJ126) -> 0 | AP126: =IF(ISERROR(SUM(P126:Q126)/SUM(AG126:AH126)),0,SUM(P126:Q126)/SUM(AG126:AH126)) -> 0 | AQ126: =IF(ISERROR(SUM(R126:S126)/SUM(AI126:AJ126)),0,SUM(R126:S126)/SUM(AI126:AJ126)) -> 0 | AR126: =IF(ISERROR(SUM(P126:S126)/SUM(AG126:AJ126)),0,SUM(P126:S126)/SUM(AG126:AJ126)) -> 0
A127: 2744 | B127: CALI | C127: IPS VIVIR NORTE | D127: 0 | E127: 0 | F127: 0 | G127: 0 | H127: 0 | I127: 0 | J127: 0 | K127: 0 | L127: 0 | M127: 0 | N127: 0 | O127: 0 | P127: =SUM(D127:F127) -> 0 | Q127: =SUM(G127:I127) -> 0 | R127: =SUM(J127:L127) -> 0 | S127: =SUM(M127:O127) -> 0 | T127: =SUM(P127:S127) -> 0 | U127: 0 | V127: 0 | W127: 0 | X127: 0 | Y127: 0 | Z127: 0 | AA127: 0 | AB127: 2 | AC127: 1 | AD127: 4 | AE127: 1 | AF127: 3 | AG127: =SUM(U127:W127) -> 0 | AH127: =SUM(X127:Z127) -> 0 | AI127: =SUM(AA127:AC127) -> 3 | AJ127: =SUM(AD127:AF127) -> 8 | AK127: =SUM(AG127:AJ127) -> 11 | AL127: =IF(ISERROR(SUM(D127:F127)/AG127),0,SUM(D127:F127)/AG127) -> 0 | AM127: =IF(ISERROR(Q127/AH127),0,Q127/AH127) -> 0 | AN127: =IF(ISERROR(R127/AI127),0,R127/AI127) -> 0 | AO127: =IF(ISERROR(S127/AJ127),0,S127/AJ127) -> 0 | AP127: =IF(ISERROR(SUM(P127:Q127)/SUM(AG127:AH127)),0,SUM(P127:Q127)/SUM(AG127:AH127)) -> 0 | AQ127: =IF(ISERROR(SUM(R127:S127)/SUM(AI127:AJ127)),0,SUM(R127:S127)/SUM(AI127:AJ127)) -> 0 | AR127: =IF(ISERROR(SUM(P127:S127)/SUM(AG127:AJ127)),0,SUM(P127:S127)/SUM(AG127:AJ127)) -> 0
A128: T2 | C128: TOTAL | D128: =SUM(D116:D127) -> 3 | E128: 0 | F128: 4 | G128: 4 | H128: 5 | I128: 5 | J128: 0 | K128: 1 | L128: 2 | M128: 0 | N128: 1 | O128: 1 | P128: 7 | Q128: 14 | R128: 3 | S128: 2 | T128: 26 | U128: 213 | V128: 206 | W128: 235 | X128: 230 | Y128: 235 | Z128: 226 | AA128: 227 | AB128: 264 | AC128: 253 | AD128: 247 | AE128: 185 | AF128: 117 | AG128: 654 | AH128: 691 | AI128: 744 | AJ128: 549 | AK128: 2638 | AL128: 0.01070336391 | AM128: 0.02026049204 | AN128: 0.004032258065 | AO128: 0.00364298725 | AP128: =IF(ISERROR(SUM(P128:Q128)/SUM(AG128:AH128)),0,SUM(P128:Q128)/SUM(AG128:AH128)) -> 0.0156133829 | AQ128: 0.003866976025 | AR128: 0.009855951478 | AS128: =SUM(AS116:AS122) -> 87512
C130: MUNICIPIO | D130: Enero | E130: Febrero | F130: Marzo | G130: Abril | H130: Mayo | I130: Junio | J130: Julio | K130: Agosto | L130: Septiembre | M130: Octubre | N130: Noviembre | O130: Diciembre | P130: I Trim | Q130: II Trim | R130: III Trim | S130: IV Trim | T130: TOTAL BPN | U130: Enero | V130: Febrero | W130: Marzo | X130: abril | Y130: Mayo | Z130: Junio | AA130: Julio | AB130: Agosto | AC130: Septiembre | AD130: Octubre | AE130: Noviembre | AF130: Diciembre | AG130: I TRIM | AH130: II TRIM | AI130: III TRIM | AJ130: IV TRIM | AK130: TOTAL NACIMIENTOS | AL130: I TRIM | AM130: II TRIM | AN130: III TRIM | AO130: IV TRIM | AP130: PORCENTAJE I SEM | AQ130: PORCENTAJE II SEM | AR130: PORCENTAJE ANUAL 2020
A131: =VLOOKUP(C131,Parametros!B$122:C$181,2,0) -> O1 | B131: VALLE | C131: BUGA | D131: =SUMIF($B$116:$B$127,$C131,D$116:D$127) -> 1 | E131: 0 | F131: 0 | G131: 1 | H131: 0 | I131: 2 | J131: 0 | K131: 1 | L131: 2 | M131: 0 | N131: 1 | O131: 1 | P131: =SUM(D131:F131) -> 1 | Q131: =SUM(G131:I131) -> 3 | R131: =SUM(J131:L131) -> 3 | S131: =SUM(M131:O131) -> 2 | T131: =SUM(P131:S131) -> 9 | U131: =SUMIF($B$116:$B$127,$C131,U$116:U$127) -> 6 | V131: 5 | W131: 7 | X131: 3 | Y131: 7 | Z131: 7 | AA131: 3 | AB131: 6 | AC131: 10 | AD131: 10 | AE131: 7 | AF131: 5 | AG131: =SUM(U131:W131) -> 18 | AH131: =SUM(X131:Z131) -> 17 | AI131: =SUM(AA131:AC131) -> 19 | AJ131: =SUM(AD131:AF131) -> 22 | AK131: =SUM(AG131:AJ131) -> 76 | AL131: =IF(ISERROR(SUM(D131:F131)/AG131),0,SUM(D131:F131)/AG131) -> 0.05555555556 | AM131: =IF(ISERROR(Q131/AH131),0,Q131/AH131) -> 0.1764705882 | AN131: 0.1578947368 | AO131: 0.09090909091 | AP131: =IF(ISERROR(SUM(P131:Q131)/SUM(AG131:AH131)),0,SUM(P131:Q131)/SUM(AG131:AH131)) -> 0.1142857143 | AQ131: =IF(ISERROR(SUM(R131:S131)/SUM(AI131:AJ131)),0,SUM(R131:S131)/SUM(AI131:AJ131)) -> 0.1219512195 | AR131: =IF(ISERROR(SUM(P131:S131)/SUM(AG131:AJ131)),0,SUM(P131:S131)/SUM(AG131:AJ131)) -> 0.1184210526 | AS131: =SUMIF($B$116:$B$122,$C131,AS$116:AS$122) -> 0
A132: =VLOOKUP(C132,Parametros!B$122:C$181,2,0) -> O2 | B132: VALLE | C132: CALI | D132: 2 | E132: 0 | F132: 4 | G132: 3 | H132: 5 | I132: 3 | J132: 0 | K132: 0 | L132: 0 | M132: 0 | N132: 0 | O132: 0 | P132: 6 | Q132: 11 | R132: 0 | S132: 0 | T132: 17 | U132: 195 | V132: 196 | W132: 211 | X132: 215 | Y132: 220 | Z132: 213 | AA132: 209 | AB132: 244 | AC132: 226 | AD132: 215 | AE132: 159 | AF132: 103 | AG132: =SUM(U132:W132) -> 602 | AH132: =SUM(X132:Z132) -> 648 | AI132: =SUM(AA132:AC132) -> 679 | AJ132: =SUM(AD132:AF132) -> 477 | AK132: =SUM(AG132:AJ132) -> 2406 | AL132: 0.009966777409 | AM132: 0.01697530864 | AN132: 0 | AO132: 0 | AP132: 0.0136 | AQ132: 0 | AR132: 0.00706566916 | AS132: =SUMIF($B$116:$B$122,$C132,AS$116:AS$122) -> 85378
A133: =VLOOKUP(C133,Parametros!B$122:C$181,2,0) -> O3 | B133: VALLE | C133: PALMIRA | D133: 0 | E133: 0 | F133: 0 | G133: 0 | H133: 0 | I133: 0 | J133: 0 | K133: 0 | L133: 0 | M133: 0 | N133: 0 | O133: 0 | P133: 0 | Q133: 0 | R133: 0 | S133: 0 | T133: 0 | U133: 9 | V133: 5 | W133: 15 | X133: 11 | Y133: 7 | Z133: 6 | AA133: 13 | AB133: 12 | AC133: 12 | AD133: 19 | AE133: 17 | AF133: 9 | AG133: =SUM(U133:W133) -> 29 | AH133: =SUM(X133:Z133) -> 24 | AI133: =SUM(AA133:AC133) -> 37 | AJ133: =SUM(AD133:AF133) -> 45 | AK133: =SUM(AG133:AJ133) -> 135 | AL133: 0 | AM133: 0 | AN133: 0 | AO133: 0 | AP133: 0 | AQ133: 0 | AR133: 0 | AS133: =SUMIF($B$116:$B$122,$C133,AS$116:AS$122) -> 2134
A134: =VLOOKUP(C134,Parametros!B$122:C$181,2,0) -> O4 | B134: VALLE | C134: JAMUNDI | D134: 0 | E134: 0 | F134: 0 | G134: 0 | H134: 0 | I134: 0 | J134: 0 | K134: 0 | L134: 0 | M134: 0 | N134: 0 | O134: 0 | P134: 0 | Q134: 0 | R134: 0 | S134: 0 | T134: 0 | U134: 0 | V134: 0 | W134: 0 | X134: 0 | Y134: 0 | Z134: 0 | AA134: 0 | AB134: 0 | AC134: 0 | AD134: 0 | AE134: 0 | AF134: 0 | AG134: =SUM(U134:W134) -> 0 | AH134: =SUM(X134:Z134) -> 0 | AI134: =SUM(AA134:AC134) -> 0 | AJ134: =SUM(AD134:AF134) -> 0 | AK134: =SUM(AG134:AJ134) -> 0 | AL134: 0 | AM134: 0 | AN134: 0 | AO134: 0 | AP134: 0 | AQ134: 0 | AR134: 0 | AS134: =SUMIF($B$116:$B$122,$C134,AS$116:AS$122) -> 0
A135: =VLOOKUP(C135,Parametros!B$122:C$181,2,0) -> O5 | B135: VALLE | C135: POPAYAN | D135: 0 | E135: 0 | F135: 0 | G135: 0 | H135: 0 | I135: 0 | J135: 0 | K135: 0 | L135: 0 | M135: 0 | N135: 0 | O135: 0 | P135: 0 | Q135: 0 | R135: 0 | S135: 0 | T135: 0 | U135: 3 | V135: 0 | W135: 2 | X135: 1 | Y135: 1 | Z135: 0 | AA135: 2 | AB135: 2 | AC135: 5 | AD135: 3 | AE135: 2 | AF135: 0 | AG135: =SUM(U135:W135) -> 5 | AH135: =SUM(X135:Z135) -> 2 | AI135: =SUM(AA135:AC135) -> 9 | AJ135: =SUM(AD135:AF135) -> 5 | AK135: =SUM(AG135:AJ135) -> 21 | AL135: 0 | AM135: =IF(ISERROR(Q135/AH135),0,Q135/AH135) -> 0 | AN135: =IF(ISERROR(R135/AI135),0,R135/AI135) -> 0 | AO135: =IF(ISERROR(S135/AJ135),0,S135/AJ135) -> 0 | AP135: =IF(ISERROR(SUM(P135:Q135)/SUM(AG135:AH135)),0,SUM(P135:Q135)/SUM(AG135:AH135)) -> 0 | AQ135: 0 | AR135: 0
C136: TOTAL | D136: =SUM(D131:D135) -> 3 | E136: =SUM(E131:E135) -> 0 | F136: 4 | G136: 4 | H136: 5 | I136: 5 | J136: 0 | K136: 1 | L136: 2 | M136: 0 | N136: 1 | O136: 1 | P136: 7 | Q136: 14 | R136: 3 | S136: 2 | T136: 26 | U136: 213 | V136: 206 | W136: 235 | X136: 230 | Y136: 235 | Z136: 226 | AA136: 227 | AB136: 264 | AC136: 253 | AD136: 247 | AE136: 185 | AF136: 117 | AG136: 654 | AH136: 691 | AI136: 744 | AJ136: 549 | AK136: =SUM(AK131:AK135) -> 2638 | AL136: 0.01070336391 | AM136: 0.02026049204 | AN136: 0.004032258065 | AO136: 0.00364298725 | AP136: =IF(ISERROR(SUM(P136:Q136)/SUM(AG136:AH136)),0,SUM(P136:Q136)/SUM(AG136:AH136)) -> 0.0156133829 | AQ136: 0.003866976025 | AR136: 0.009855951478 | AS136: =SUM(AS131:AS134) -> 87512
C139: REGIONAL OCCIDENTE | D139: Enero | E139: Febrero | F139: Marzo | G139: Abril | H139: Mayo | I139: Junio | J139: Julio | K139: Agosto | L139: Septiembre | M139: Octubre | N139: Noviembre | O139: Diciembr | P139: I Trim | Q139: II Trim | R139: III Trim | S139: IV Trim | T139: TOTAL BPN | U139: Enero | V139: Febrero | W139: Marzo | X139: Abril | Y139: Mayo | Z139: Junio | AA139: Julio | AB139: Agosto | AC139: Septiembre | AD139: Octubre | AE139: Noviembre | AF139: Diciembr | AG139: I TRIM | AH139: II TRIM | AI139: III TRIM | AJ139: IV TRIM | AK139: TOTAL | AL139: I TRIM | AM139: II TRIM | AN139: III TRIM | AO139: IV TRIM | AP139: PORCENTAJE I SEM | AQ139: PORCENTAJE II SEM | AR139: PORCENTAJE ANUAL 2020
C140: DATOS | D140: =D128 -> 3 | E140: 0 | F140: 4 | G140: 4 | H140: 5 | I140: 5 | J140: 0 | K140: 1 | L140: 2 | M140: 0 | N140: 1 | O140: 1 | P140: =SUM(D140:F140) -> 7 | Q140: =SUM(G140:I140) -> 14 | R140: =SUM(J140:L140) -> 3 | S140: =SUM(M140:O140) -> 2 | T140: =SUM(P140+Q140+R140+S140) -> 26 | U140: =U128 -> 213 | V140: 206 | W140: 235 | X140: 230 | Y140: 235 | Z140: 226 | AA140: 227 | AB140: 264 | AC140: 253 | AD140: 247 | AE140: 185 | AF140: 117 | AG140: =SUM(U140:W140) -> 654 | AH140: =SUM(X140:Z140) -> 691 | AI140: =SUM(AA140:AC140) -> 744 | AJ140: =SUM(AD140:AF140) -> 549 | AK140: =AG140+AH140+AI140+AJ140 -> 2638 | AL140: =IF(ISERROR(SUM(D140:F140)/AG140),0,SUM(D140:F140)/AG140) -> 0.01070336391 | AM140: =IF(ISERROR(Q140/AH140),0,Q140/AH140) -> 0.02026049204 | AN140: =IF(ISERROR(R140/AI140),0,R140/AI140) -> 0.004032258065 | AO140: =IF(ISERROR(S140/AJ140),0,S140/AJ140) -> 0.00364298725 | AP140: =IF(ISERROR(SUM(P140:Q140)/SUM(AG140:AH140)),0,SUM(P140:Q140)/SUM(AG140:AH140)) -> 0.0156133829 | AQ140: =IF(ISERROR(SUM(R140:S140)/SUM(AI140:AJ140)),0,SUM(R140:S140)/SUM(AI140:AJ140)) -> 0.003866976025 | AR140: =IF(ISERROR(SUM(P140:S140)/SUM(AG140:AJ140)),0,SUM(P140:S140)/SUM(AG140:AJ140)) -> 0.009855951478 | AS140: =AS128 -> 87512
C143: REGIONAL CENTRO | D143: N° BPN | P143: Bajo Peso al Nacer | T143: TOTAL | U143: Nacimientos -2019 | AG143: NUMEROS DE NACIMIENTOS | AK143: TOTAL NACIMIENTOS-2020 | AL143: PROPORCIÓN
C145: IPS | D145: Enero | E145: Febrero | F145: Marzo | G145: Abril | H145: Mayo | I145: Junio | J145: Julio | K145: Agost | L145: Septiembre | M145: Octubre | N145: Noviembre | O145: Diciembre | P145: I Trim | Q145: II Trim | R145: III Trim | S145: IV Trim | U145: Enero | V145: Febrero | W145: Marzo | X145: ABRIL | Y145: Mayo | Z145: Junio | AA145: Julio | AB145: Agosto | AC145: Septiembre | AD145: Octubre | AE145: Noviembre | AF145: Diciembre | AG145: I TRIM | AH145: II TRIM | AI145: III TRIM | AJ145: IV TRIM | AL145: I TRIM | AM145: II TRIM | AN145: III TRIM | AO145: IV TRIM | AP145: PORCENTAJE I SEM | AQ145: PORCENTAJE II SEM | AR145: PORCENTAJE ANUAL 2020
A146: 1761 | B146: BOGOTA | C146: A & G NIZA | D146: 0 | E146: 1 | F146: 0 | G146: 1 | H146: 1 | I146: 0 | J146: 1 | K146: 0 | L146: 0 | M146: 0 | N146: 0 | O146: 0 | P146: =SUM(D146:F146) -> 1 | Q146: =SUM(G146:I146) -> 2 | R146: =SUM(J146:L146) -> 1 | S146: =SUM(M146:O146) -> 0 | T146: =SUM(P146:S146) -> 4 | U146: 18 | V146: 17 | W146: 11 | X146: 8 | Y146: 8 | Z146: 10 | AA146: 8 | AB146: 10 | AC146: 5 | AD146: 6 | AE146: 8 | AF146: 3 | AG146: =SUM(U146:W146) -> 46 | AH146: =SUM(X146:Z146) -> 26 | AI146: =SUM(AA146:AC146) -> 23 | AJ146: =SUM(AD146:AF146) -> 17 | AK146: =SUM(AG146:AJ146) -> 112 | AL146: =IF(ISERROR(SUM(D146:F146)/AG146),0,SUM(D146:F146)/AG146) -> 0.02173913043 | AM146: =IF(ISERROR(Q146/AH146),0,Q146/AH146) -> 0.07692307692 | AN146: =IF(ISERROR(R146/AI146),0,R146/AI146) -> 0.04347826087 | AO146: =IF(ISERROR(S146/AJ146),0,S146/AJ146) -> 0 | AP146: =IF(ISERROR(SUM(P146:Q146)/SUM(AG146:AH146)),0,SUM(P146:Q146)/SUM(AG146:AH146)) -> 0.04166666667 | AQ146: =IF(ISERROR(SUM(R146:S146)/SUM(AI146:AJ146)),0,SUM(R146:S146)/SUM(AI146:AJ146)) -> 0.025 | AR146: =IF(ISERROR(SUM(P146:S146)/SUM(AG146:AJ146)),0,SUM(P146:S146)/SUM(AG146:AJ146)) -> 0.03571428571 | AS146: 8503
A147: 165 | B147: BOGOTA | C147: ASISTIR SALUD FONTIBON | D147: 4 | E147: 2 | F147: 3 | G147: 1 | H147: 3 | I147: 4 | J147: 3 | K147: 2 | L147: 3 | M147: 1 | N147: 3 | O147: 0 | P147: 9 | Q147: 8 | R147: 8 | S147: 4 | T147: 29 | U147: 21 | V147: 20 | W147: 16 | X147: 10 | Y147: 26 | Z147: 17 | AA147: 17 | AB147: 21 | AC147: 12 | AD147: 11 | AE147: 8 | AF147: 10 | AG147: 57 | AH147: 53 | AI147: 50 | AJ147: 29 | AK147: 189 | AL147: =IF(ISERROR(SUM(D147:F147)/AG147),0,SUM(D147:F147)/AG147) -> 0.1578947368 | AM147: =IF(ISERROR(Q147/AH147),0,Q147/AH147) -> 0.1509433962 | AN147: =IF(ISERROR(R147/AI147),0,R147/AI147) -> 0.16 | AO147: =IF(ISERROR(S147/AJ147),0,S147/AJ147) -> 0.1379310345 | AP147: 0.1545454545 | AQ147: =IF(ISERROR(SUM(R147:S147)/SUM(AI147:AJ147)),0,SUM(R147:S147)/SUM(AI147:AJ147)) -> 0.1518987342 | AR147: =IF(ISERROR(SUM(P147:S147)/SUM(AG147:AJ147)),0,SUM(P147:S147)/SUM(AG147:AJ147)) -> 0.1534391534 | AS147: 10115
A148: 2640 | B148: BOGOTA | C148: CENTRO AMBULATORIO GUSTAVO ESCALLON CAYCEDO | D148: 1 | E148: 1 | F148: 0 | G148: 1 | H148: 1 | I148: 1 | J148: 0 | K148: 0 | L148: 0 | M148: 0 | N148: 0 | O148: 0 | P148: 2 | Q148: 3 | R148: 0 | S148: 0 | T148: 5 | U148: 5 | V148: 2 | W148: 4 | X148: 3 | Y148: 2 | Z148: 2 | AA148: 0 | AB148: 0 | AC148: 0 | AD148: 0 | AE148: 0 | AF148: 0 | AG148: 11 | AH148: 7 | AI148: 0 | AJ148: 0 | AK148: 18 | AL148: 0.1818181818 | AM148: 0.4285714286 | AN148: 0 | AO148: 0 | AP148: 0.2777777778 | AQ148: 0 | AR148: 0.2777777778 | AS148: 9186
A149: 2695 | B149: BOGOTA | C149: CENTRO MEDICO SURA SUR | D149: 6 | E149: 1 | F149: 6 | G149: 2 | H149: 5 | I149: 7 | J149: 1 | K149: 7 | L149: 4 | M149: 7 | N149: 5 | O149: 4 | P149: =SUM(D149:F149) -> 13 | Q149: =SUM(G149:I149) -> 14 | R149: =SUM(J149:L149) -> 12 | S149: =SUM(M149:O149) -> 16 | T149: =SUM(P149:S149) -> 55 | U149: 33 | V149: 30 | W149: 35 | X149: 26 | Y149: 40 | Z149: 27 | AA149: 32 | AB149: 43 | AC149: 24 | AD149: 34 | AE149: 20 | AF149: 22 | AG149: =SUM(U149:W149) -> 98 | AH149: =SUM(X149:Z149) -> 93 | AI149: =SUM(AA149:AC149) -> 99 | AJ149: =SUM(AD149:AF149) -> 76 | AK149: =SUM(AG149:AJ149) -> 366 | AL149: =IF(ISERROR(SUM(D149:F149)/AG149),0,SUM(D149:F149)/AG149) -> 0.1326530612 | AM149: =IF(ISERROR(Q149/AH149),0,Q149/AH149) -> 0.1505376344 | AN149: =IF(ISERROR(R149/AI149),0,R149/AI149) -> 0.1212121212 | AO149: =IF(ISERROR(S149/AJ149),0,S149/AJ149) -> 0.2105263158 | AP149: 0.1413612565 | AQ149: =IF(ISERROR(SUM(R149:S149)/SUM(AI149:AJ149)),0,SUM(R149:S149)/SUM(AI149:AJ149)) -> 0.16 | AR149: =IF(ISERROR(SUM(P149:S149)/SUM(AG149:AJ149)),0,SUM(P149:S149)/SUM(AG149:AJ149)) -> 0.150273224
A150: 11 | B150: BOGOTA | C150: DARSALUD | D150: 6 | E150: 4 | F150: 4 | G150: 4 | H150: 1 | I150: 7 | J150: 5 | K150: 5 | L150: 1 | M150: 2 | N150: 1 | O150: 1 | P150: 14 | Q150: 12 | R150: 11 | S150: 4 | T150: 41 | U150: 30 | V150: 21 | W150: 28 | X150: 22 | Y150: 26 | Z150: 26 | AA150: 29 | AB150: 33 | AC150: 29 | AD150: 20 | AE150: 10 | AF150: 18 | AG150: 79 | AH150: 74 | AI150: 91 | AJ150: 48 | AK150: 292 | AL150: 0.1772151899 | AM150: 0.1621621622 | AN150: 0.1208791209 | AO150: 0.08333333333 | AP150: 0.1699346405 | AQ150: 0.1079136691 | AR150: 0.1404109589 | AS150: 12882
A151: 2687 | B151: BOGOTA | C151: IPS COLSUBSIDIO CENTRO MEDICO AVENIDA BOYACA | D151: 5 | E151: 2 | F151: 5 | G151: 2 | H151: 2 | I151: 3 | J151: 3 | K151: 4 | L151: 3 | M151: 1 | N151: 0 | O151: 0 | P151: =SUM(D151:F151) -> 12 | Q151: =SUM(G151:I151) -> 7 | R151: =SUM(J151:L151) -> 10 | S151: =SUM(M151:O151) -> 1 | T151: =SUM(P151:S151) -> 30 | U151: 28 | V151: 21 | W151: 24 | X151: 11 | Y151: 15 | Z151: 19 | AA151: 19 | AB151: 17 | AC151: 20 | AD151: 13 | AE151: 10 | AF151: 20 | AG151: =SUM(U151:W151) -> 73 | AH151: =SUM(X151:Z151) -> 45 | AI151: =SUM(AA151:AC151) -> 56 | AJ151: =SUM(AD151:AF151) -> 43 | AK151: =SUM(AG151:AJ151) -> 217 | AL151: 0.1643835616 | AM151: 0.1555555556 | AN151: 0.1785714286 | AO151: 0.02325581395 | AP151: 0.1610169492 | AQ151: 0.1111111111 | AR151: 0.1382488479
A152: 2685 | B152: BOGOTA | C152: IPS COLSUBSIDIO CENTRO MEDICO SUBA | D152: 4 | E152: 1 | F152: 2 | G152: 3 | H152: 2 | I152: 4 | J152: 2 | K152: 5 | L152: 2 | M152: 4 | N152: 2 | O152: 0 | P152: 7 | Q152: 9 | R152: 9 | S152: 6 | T152: 31 | U152: 26 | V152: 22 | W152: 27 | X152: 23 | Y152: 21 | Z152: 33 | AA152: 25 | AB152: 28 | AC152: 18 | AD152: 22 | AE152: 26 | AF152: 14 | AG152: 75 | AH152: 77 | AI152: 71 | AJ152: 62 | AK152: 285 | AL152: 0.09333333333 | AM152: 0.1168831169 | AN152: 0.1267605634 | AO152: 0.09677419355 | AP152: 0.1052631579 | AQ152: 0.1127819549 | AR152: 0.1087719298 | AS152: 16254
A153: 1788 | B153: BOGOTA | C153: IPS SURA CHAPINERO | D153: 3 | E153: 1 | F153: 4 | G153: 2 | H153: 0 | I153: 0 | J153: 3 | K153: 1 | L153: 3 | M153: 0 | N153: 0 | O153: 0 | P153: 8 | Q153: 2 | R153: 7 | S153: 0 | T153: 17 | U153: 22 | V153: 7 | W153: 21 | X153: 12 | Y153: 14 | Z153: 20 | AA153: 19 | AB153: 12 | AC153: 19 | AD153: 9 | AE153: 3 | AF153: 2 | AG153: 50 | AH153: 46 | AI153: 50 | AJ153: 14 | AK153: 160 | AL153: 0.16 | AM153: 0.04347826087 | AN153: 0.14 | AO153: 0 | AP153: 0.1041666667 | AQ153: 0.109375 | AR153: 0.10625 | AS153: 1974
A154: 79 | B154: BOGOTA | C154: IPS SURA OLAYA | D154: 0 | E154: 0 | F154: 0 | G154: 1 | H154: 3 | I154: 3 | J154: 0 | K154: 0 | L154: 0 | M154: 0 | N154: 2 | O154: 0 | P154: =SUM(D154:F154) -> 0 | Q154: =SUM(G154:I154) -> 7 | R154: =SUM(J154:L154) -> 0 | S154: =SUM(M154:O154) -> 2 | T154: =SUM(P154:S154) -> 9 | U154: 3 | V154: 2 | W154: 3 | X154: 5 | Y154: 37 | Z154: 41 | AA154: 42 | AB154: 39 | AC154: 41 | AD154: 40 | AE154: 41 | AF154: 33 | AG154: =SUM(U154:W154) -> 8 | AH154: =SUM(X154:Z154) -> 83 | AI154: =SUM(AA154:AC154) -> 122 | AJ154: =SUM(AD154:AF154) -> 114 | AK154: =SUM(AG154:AJ154) -> 327 | AL154: 0 | AM154: 0.0843373494 | AN154: 0 | AO154: 0.01754385965 | AP154: 0.07692307692 | AQ154: 0.008474576271 | AR154: 0.02752293578 | AS154: 3822
A155: 1695 | B155: BOGOTA | C155: JAVESALUD | D155: 2 | E155: 0 | F155: 1 | G155: 0 | H155: 0 | I155: 3 | J155: 3 | K155: 1 | L155: 2 | M155: 1 | N155: 1 | O155: 0 | P155: 3 | Q155: 3 | R155: 6 | S155: 2 | T155: 14 | U155: 19 | V155: 12 | W155: 14 | X155: 16 | Y155: 11 | Z155: 18 | AA155: 16 | AB155: 8 | AC155: 20 | AD155: 13 | AE155: 6 | AF155: 9 | AG155: 45 | AH155: 45 | AI155: 44 | AJ155: 28 | AK155: 162 | AL155: 0.06666666667 | AM155: 0.06666666667 | AN155: 0.1363636364 | AO155: 0.07142857143 | AP155: 0.06666666667 | AQ155: 0.1111111111 | AR155: 0.08641975309 | AS155: 19435
A156: 84 | B156: BOGOTA | C156: SALUD EN CASA BOGOTA | D156: 0 | E156: 0 | F156: 0 | G156: 1 | H156: 0 | I156: 0 | J156: 0 | K156: 0 | L156: 0 | M156: 0 | N156: 0 | O156: 0 | P156: 0 | Q156: 1 | R156: 0 | S156: 0 | T156: 1 | U156: 0 | V156: 0 | W156: 0 | X156: 1 | Y156: 0 | Z156: 0 | AA156: 0 | AB156: 0 | AC156: 0 | AD156: 1 | AE156: 0 | AF156: 0 | AG156: 0 | AH156: 1 | AI156: 0 | AJ156: 1 | AK156: 2 | AL156: 0 | AM156: 1 | AN156: 0 | AO156: 0 | AP156: 1 | AQ156: 0 | AR156: 0.5 | AS156: 15873
A157: 2278 | B157: BOGOTA | C157: SALUDSURA BOGOTA | D157: 0 | E157: 0 | F157: 0 | G157: 0 | H157: 0 | I157: 0 | J157: 0 | K157: 0 | L157: 0 | M157: 0 | N157: 0 | O157: 0 | P157: =SUM(D157:F157) -> 0 | Q157: =SUM(G157:I157) -> 0 | R157: =SUM(J157:L157) -> 0 | S157: =SUM(M157:O157) -> 0 | T157: =SUM(P157:S157) -> 0 | U157: 1 | V157: 0 | W157: 0 | X157: 0 | Y157: 1 | Z157: 0 | AA157: 1 | AB157: 0 | AC157: 1 | AD157: 1 | AE157: 1 | AF157: 0 | AG157: =SUM(U157:W157) -> 1 | AH157: =SUM(X157:Z157) -> 1 | AI157: =SUM(AA157:AC157) -> 2 | AJ157: =SUM(AD157:AF157) -> 2 | AK157: =SUM(AG157:AJ157) -> 6 | AL157: 0 | AM157: 0 | AN157: =IF(ISERROR(R157/AI157),0,R157/AI157) -> 0 | AO157: =IF(ISERROR(S157/AJ157),0,S157/AJ157) -> 0 | AP157: 0 | AQ157: 0 | AR157: 0 | AS157: 18675
A158: 2433 | B158: BOGOTA | C158: UNIDAD MEDICA SANTA FE AMÉRICAS | D158: 6 | E158: 1 | F158: 1 | G158: 1 | H158: 2 | I158: 5 | J158: 4 | K158: 1 | L158: 7 | M158: 1 | N158: 0 | O158: 1 | P158: 8 | Q158: 8 | R158: 12 | S158: 2 | T158: 30 | U158: 32 | V158: 24 | W158: 26 | X158: 29 | Y158: 27 | Z158: 39 | AA158: 25 | AB158: 30 | AC158: 34 | AD158: 25 | AE158: 15 | AF158: 21 | AG158: 82 | AH158: 95 | AI158: 89 | AJ158: 61 | AK158: 327 | AL158: 0.09756097561 | AM158: 0.08421052632 | AN158: 0.1348314607 | AO158: 0.03278688525 | AP158: 0.09039548023 | AQ158: 0.09333333333 | AR158: 0.09174311927 | AS158: 40559
A159: 2217 | B159: BOGOTA | C159: UNIDAD MEDICA SANTA FE MARLY | D159: 0 | E159: 0 | F159: 0 | G159: 0 | H159: 0 | I159: 0 | J159: 0 | K159: 0 | L159: 0 | M159: 0 | N159: 0 | O159: 0 | P159: 0 | Q159: 0 | R159: 0 | S159: 0 | T159: 0 | U159: 0 | V159: 0 | W159: 0 | X159: 0 | Y159: 0 | Z159: 0 | AA159: 0 | AB159: 0 | AC159: 0 | AD159: 0 | AE159: 0 | AF159: 0 | AG159: 0 | AH159: 0 | AI159: 0 | AJ159: 0 | AK159: 0 | AL159: 0 | AM159: 0 | AN159: 0 | AO159: 0 | AP159: 0 | AQ159: 0 | AR159: 0 | AS159: 5545
A160: 2683 | B160: CHIA | C160: IPS CLINICA CHIA | D160: 1 | E160: 0 | F160: 0 | G160: 0 | H160: 2 | I160: 2 | J160: 0 | K160: 1 | L160: 0 | M160: 0 | N160: 0 | O160: 0 | P160: 1 | Q160: 4 | R160: 1 | S160: 0 | T160: 6 | U160: 4 | V160: 1 | W160: 5 | X160: 4 | Y160: 9 | Z160: 5 | AA160: 2 | AB160: 4 | AC160: 4 | AD160: 5 | AE160: 4 | AF160: 1 | AG160: 10 | AH160: 18 | AI160: 10 | AJ160: 10 | AK160: 48 | AL160: 0.1 | AM160: 0.2222222222 | AN160: 0.1 | AO160: 0 | AP160: 0.1785714286 | AQ160: 0.05 | AR160: 0.125 | AS160: 13594
A161: 59 | B161: ZIPAQUIRA | C161: A & G SERVICIOS DE SALUD | D161: 2 | E161: 1 | F161: 2 | G161: 0 | H161: 0 | I161: 2 | J161: 2 | K161: 2 | L161: 2 | M161: 0 | N161: 1 | O161: 0 | P161: 5 | Q161: 2 | R161: 6 | S161: 1 | T161: 14 | U161: 22 | V161: 12 | W161: 19 | X161: 13 | Y161: 14 | Z161: 22 | AA161: 31 | AB161: 21 | AC161: 26 | AD161: 20 | AE161: 20 | AF161: 19 | AG161: 53 | AH161: 49 | AI161: 78 | AJ161: 59 | AK161: 239 | AL161: 0.09433962264 | AM161: 0.04081632653 | AN161: 0.07692307692 | AO161: 0.01694915254 | AP161: 0.06862745098 | AQ161: 0.05109489051 | AR161: 0.05857740586 | AS161: 7362
A162: 12 | B162: SOACHA | C162: ASISTIR SALUD LTDA. SOACHA | D162: 1 | E162: 6 | F162: 4 | G162: 5 | H162: 8 | I162: 4 | J162: 3 | K162: 6 | L162: 6 | M162: 6 | N162: 0 | O162: 3 | P162: 11 | Q162: 17 | R162: 15 | S162: 9 | T162: 52 | U162: 24 | V162: 31 | W162: 28 | X162: 41 | Y162: 37 | Z162: 25 | AA162: 25 | AB162: 34 | AC162: 34 | AD162: 28 | AE162: 15 | AF162: 27 | AG162: 83 | AH162: 103 | AI162: 93 | AJ162: 70 | AK162: 349 | AL162: 0.1325301205 | AM162: 0.1650485437 | AN162: 0.1612903226 | AO162: 0.1285714286 | AP162: 0.1505376344 | AQ162: 0.1472392638 | AR162: 0.1489971347 | AS162: 610
A163: 2726 | B163: BOGOTA | C163: IPS COLSUBSIDIO SURA PAC SANTA BARBARA | D163: 0 | E163: 0 | F163: 0 | G163: 0 | H163: 0 | I163: 0 | J163: 0 | K163: 0 | L163: 0 | M163: 1 | N163: 1 | O163: 0 | P163: =SUM(D163:F163) -> 0 | Q163: =SUM(G163:I163) -> 0 | R163: =SUM(J163:L163) -> 0 | S163: =SUM(M163:O163) -> 2 | T163: =SUM(P163:S163) -> 2 | U163: 0 | V163: 0 | W163: 0 | X163: 0 | Y163: 0 | Z163: 0 | AA163: 0 | AB163: 1 | AC163: 1 | AD163: 11 | AE163: 13 | AF163: 19 | AG163: =SUM(U163:W163) -> 0 | AH163: =SUM(X163:Z163) -> 0 | AI163: =SUM(AA163:AC163) -> 2 | AJ163: =SUM(AD163:AF163) -> 43 | AK163: =SUM(AG163:AJ163) -> 45 | AL163: =IF(ISERROR(SUM(D163:F163)/AG163),0,SUM(D163:F163)/AG163) -> 0 | AM163: =IF(ISERROR(Q163/AH163),0,Q163/AH163) -> 0 | AN163: =IF(ISERROR(R163/AI163),0,R163/AI163) -> 0 | AO163: =IF(ISERROR(S163/AJ163),0,S163/AJ163) -> 0.04651162791 | AP163: =IF(ISERROR(SUM(P163:Q163)/SUM(AG163:AH163)),0,SUM(P163:Q163)/SUM(AG163:AH163)) -> 0 | AQ163: =IF(ISERROR(SUM(R163:S163)/SUM(AI163:AJ163)),0,SUM(R163:S163)/SUM(AI163:AJ163)) -> 0.04444444444 | AR163: =IF(ISERROR(SUM(P163:S163)/SUM(AG163:AJ163)),0,SUM(P163:S163)/SUM(AG163:AJ163)) -> 0.04444444444
A164: 2738 | B164: FUNZA | C164: IPS COLSUBSIDIO FUNZA | D164: 0 | E164: 0 | F164: 0 | G164: 0 | H164: 0 | I164: 0 | J164: 0 | K164: 1 | L164: 0 | M164: 0 | N164: 0 | O164: 0 | P164: 0 | Q164: 0 | R164: 1 | S164: 0 | T164: 1 | U164: 0 | V164: 0 | W164: 0 | X164: 0 | Y164: 0 | Z164: 0 | AA164: 2 | AB164: 7 | AC164: 4 | AD164: 5 | AE164: 5 | AF164: 2 | AG164: 0 | AH164: 0 | AI164: 13 | AJ164: 12 | AK164: 25 | AL164: 0 | AM164: 0 | AN164: 0.07692307692 | AO164: 0 | AP164: 0 | AQ164: 0.04 | AR164: 0.04
A165: 2748 | B165: BOGOTA | C165: IPS COLSUBSIDIO SURA PLAZA CENTRAL | D165: 0 | E165: 0 | F165: 0 | G165: 0 | H165: 0 | I165: 0 | J165: 0 | K165: 0 | L165: 0 | M165: 0 | N165: 1 | O165: 2 | P165: 0 | Q165: 0 | R165: 0 | S165: 3 | T165: 3 | U165: 0 | V165: 0 | W165: 0 | X165: 0 | Y165: 0 | Z165: 0 | AA165: 0 | AB165: 2 | AC165: 1 | AD165: 1 | AE165: 8 | AF165: 8 | AG165: 0 | AH165: 0 | AI165: 3 | AJ165: 17 | AK165: 20 | AL165: 0 | AM165: 0 | AN165: 0 | AO165: 0.1764705882 | AP165: 0 | AQ165: 0.15 | AR165: 0.15
A166: T3 | C166: TOTAL | D166: =SUM(D146:D165) -> 41 | E166: =SUM(E146:E165) -> 21 | F166: 32 | G166: 24 | H166: 30 | I166: 45 | J166: 30 | K166: 36 | L166: 33 | M166: 24 | N166: 17 | O166: 11 | P166: 94 | Q166: 99 | R166: 99 | S166: 52 | T166: 344 | U166: 288 | V166: 222 | W166: 261 | X166: 224 | Y166: 288 | Z166: 304 | AA166: 293 | AB166: 310 | AC166: 293 | AD166: 265 | AE166: 213 | AF166: 228 | AG166: 771 | AH166: 816 | AI166: 896 | AJ166: 706 | AK166: =SUM(AK146:AK165) -> 3189 | AL166: 0.121919585 | AM166: 0.1213235294 | AN166: 0.1104910714 | AO166: 0.07365439093 | AP166: =IF(ISERROR(SUM(P166:Q166)/SUM(AG166:AH166)),0,SUM(P166:Q166)/SUM(AG166:AH166)) -> 0.1216131065 | AQ166: 0.09425717853 | AR166: 0.1078708059 | AS166: =SUM(AS146:AS162) -> 184389
C169: MUNICIPIO | D169: Enero | E169: Febrero | F169: Marzo | G169: Abril | H169: Mayo | I169: Junio | J169: Julio | K169: Agosto | L169: Septiembre | M169: Octubre | N169: Noviembre | O169: Diciembre | P169: I Trim | Q169: II Trim | R169: III Trim | S169: IV Trim | T169: TOTAL | U169: Enero | V169: Febrero | W169: Marzo | X169: abril | Y169: Mayo | Z169: Junio | AA169: Julio | AB169: Agosto | AC169: Septiembre | AD169: Octubre | AE169: Noviembre | AF169: Diciembre | AG169: I TRIM | AH169: II TRIM | AI169: III TRIM | AJ169: IV TRIM | AK169: TOTAL NACIMIENTOS | AL169: I TRIM | AM169: II TRIM | AN169: III TRIM | AO169: IV TRIM | AP169: PORCENTAJE I SEM | AQ169: PORCENTAJE II SEM | AR169: PORCENTAJE ANUAL 2020
A170: =VLOOKUP(C170,Parametros!B$122:C$181,2,0) -> C1 | B170: BOGOTA DC | C170: BOGOTA | D170: =SUMIF($B$146:$B$165,$C170,D$146:D$165) -> 37 | E170: =SUMIF($B$146:$B$165,$C170,E$146:E$165) -> 14 | F170: 26 | G170: 19 | H170: 20 | I170: 37 | J170: 25 | K170: 26 | L170: 25 | M170: 18 | N170: 16 | O170: 8 | P170: =SUM(D170:F170) -> 77 | Q170: =SUM(G170:I170) -> 76 | R170: =SUM(J170:L170) -> 76 | S170: =SUM(M170:O170) -> 42 | T170: =SUM(P170:S170) -> 271 | U170: =SUMIF($B$146:$B$165,$C170,U$146:U$165) -> 238 | V170: =SUMIF($B$146:$B$165,$C170,V$146:V$165) -> 178 | W170: 209 | X170: 166 | Y170: 228 | Z170: 252 | AA170: 233 | AB170: 244 | AC170: 225 | AD170: 207 | AE170: 169 | AF170: 179 | AG170: =SUM(U170:W170) -> 625 | AH170: =SUM(X170:Z170) -> 646 | AI170: =SUM(AA170:AC170) -> 702 | AJ170: =SUM(AD170:AF170) -> 555 | AK170: =SUM(AG170:AJ170) -> 2528 | AL170: =IF(ISERROR(SUM(D170:F170)/AG170),0,SUM(D170:F170)/AG170) -> 0.1232 | AM170: =IF(ISERROR(Q170/AH170),0,Q170/AH170) -> 0.1176470588 | AN170: =IF(ISERROR(R170/AI170),0,R170/AI170) -> 0.1082621083 | AO170: =IF(ISERROR(S170/AJ170),0,S170/AJ170) -> 0.07567567568 | AP170: =IF(ISERROR(SUM(P170:Q170)/SUM(AG170:AH170)),0,SUM(P170:Q170)/SUM(AG170:AH170)) -> 0.1203776554 | AQ170: =IF(ISERROR(SUM(R170:S170)/SUM(AI170:AJ170)),0,SUM(R170:S170)/SUM(AI170:AJ170)) -> 0.0938743039 | AR170: =IF(ISERROR(SUM(P170:S170)/SUM(AG170:AJ170)),0,SUM(P170:S170)/SUM(AG170:AJ170)) -> 0.1071993671 | AS170: =SUMIF($B$146:$B$162,$C170,AS$146:AS$162) -> 162823
A171: =VLOOKUP(C171,Parametros!B$122:C$181,2,0) -> C2 | B171: CUNDINAMARCA | C171: CHIA | D171: =SUMIF($B$146:$B$165,$C171,D$146:D$165) -> 1 | E171: 0 | F171: 0 | G171: 0 | H171: 2 | I171: 2 | J171: 0 | K171: 1 | L171: 0 | M171: 0 | N171: 0 | O171: 0 | P171: 1 | Q171: 4 | R171: 1 | S171: 0 | T171: 6 | U171: =SUMIF($B$146:$B$165,$C171,U$146:U$165) -> 4 | V171: 1 | W171: 5 | X171: 4 | Y171: 9 | Z171: 5 | AA171: 2 | AB171: 4 | AC171: 4 | AD171: 5 | AE171: 4 | AF171: 1 | AG171: 10 | AH171: 18 | AI171: 10 | AJ171: 10 | AK171: 48 | AL171: 0.1 | AM171: 0.2222222222 | AN171: 0.1 | AO171: 0 | AP171: 0.1785714286 | AQ171: 0.05 | AR171: 0.125 | AS171: 13594
A172: =VLOOKUP(C172,Parametros!B$122:C$181,2,0) -> C3 | B172: CUNDINAMARCA | C172: MADRID | D172: 0 | E172: 0 | F172: 0 | G172: 0 | H172: 0 | I172: 0 | J172: 0 | K172: 0 | L172: 0 | M172: 0 | N172: 0 | O172: 0 | P172: 0 | Q172: 0 | R172: 0 | S172: 0 | T172: 0 | U172: 0 | V172: 0 | W172: 0 | X172: 0 | Y172: 0 | Z172: 0 | AA172: 0 | AB172: 0 | AC172: 0 | AD172: 0 | AE172: 0 | AF172: 0 | AG172: 0 | AH172: 0 | AI172: 0 | AJ172: 0 | AK172: 0 | AL172: 0 | AM172: 0 | AN172: 0 | AO172: 0 | AP172: 0 | AQ172: 0 | AR172: 0 | AS172: 0
A173: =VLOOKUP(C173,Parametros!B$122:C$181,2,0) -> C6 | B173: CUNDINAMARCA | C173: SOACHA | D173: 1 | E173: 6 | F173: 4 | G173: 5 | H173: 8 | I173: 4 | J173: 3 | K173: 6 | L173: 6 | M173: 6 | N173: 0 | O173: 3 | P173: 11 | Q173: 17 | R173: 15 | S173: 9 | T173: 52 | U173: 24 | V173: 31 | W173: 28 | X173: 41 | Y173: 37 | Z173: 25 | AA173: 25 | AB173: 34 | AC173: 34 | AD173: 28 | AE173: 15 | AF173: 27 | AG173: 83 | AH173: 103 | AI173: 93 | AJ173: 70 | AK173: 349 | AL173: 0.1325301205 | AM173: 0.1650485437 | AN173: 0.1612903226 | AO173: 0.1285714286 | AP173: 0.1505376344 | AQ173: 0.1472392638 | AR173: 0.1489971347 | AS173: 610
A174: =VLOOKUP(C174,Parametros!B$122:C$181,2,0) -> C4 | B174: CUNDINAMARCA | C174: TENJO | D174: 0 | E174: 0 | F174: 0 | G174: 0 | H174: 0 | I174: 0 | J174: 0 | K174: 0 | L174: 0 | M174: 0 | N174: 0 | O174: 0 | P174: 0 | Q174: 0 | R174: 0 | S174: 0 | T174: 0 | U174: 0 | V174: 0 | W174: 0 | X174: 0 | Y174: 0 | Z174: 0 | AA174: 0 | AB174: 0 | AC174: 0 | AD174: 0 | AE174: 0 | AF174: 0 | AG174: 0 | AH174: 0 | AI174: 0 | AJ174: 0 | AK174: 0 | AL174: 0 | AM174: 0 | AN174: 0 | AO174: 0 | AP174: 0 | AQ174: 0 | AR174: 0 | AS174: 0
A175: =VLOOKUP(C175,Parametros!B$122:C$181,2,0) -> C5 | B175: CUNDINAMARCA | C175: ZIPAQUIRA | D175: 2 | E175: 1 | F175: 2 | G175: 0 | H175: 0 | I175: 2 | J175: 2 | K175: 2 | L175: 2 | M175: 0 | N175: 1 | O175: 0 | P175: 5 | Q175: 2 | R175: 6 | S175: 1 | T175: 14 | U175: 22 | V175: 12 | W175: 19 | X175: 13 | Y175: 14 | Z175: 22 | AA175: 31 | AB175: 21 | AC175: 26 | AD175: 20 | AE175: 20 | AF175: 19 | AG175: 53 | AH175: 49 | AI175: 78 | AJ175: 59 | AK175: 239 | AL175: 0.09433962264 | AM175: 0.04081632653 | AN175: 0.07692307692 | AO175: 0.01694915254 | AP175: 0.06862745098 | AQ175: 0.05109489051 | AR175: 0.05857740586 | AS175: 7362
A176: =VLOOKUP(C176,Parametros!B$122:C$181,2,0) -> C7 | B176: CUNDINAMARCA | C176: FUNZA | D176: 0 | E176: 0 | F176: 0 | G176: 0 | H176: 0 | I176: 0 | J176: 0 | K176: 1 | L176: 0 | M176: 0 | N176: 0 | O176: 0 | P176: =SUM(D176:F176) -> 0 | Q176: =SUM(G176:I176) -> 0 | R176: =SUM(J176:L176) -> 1 | S176: =SUM(M176:O176) -> 0 | T176: =SUM(P176:S176) -> 1 | U176: 0 | V176: 0 | W176: 0 | X176: 0 | Y176: 0 | Z176: 0 | AA176: 2 | AB176: 7 | AC176: 4 | AD176: 5 | AE176: 5 | AF176: 2 | AG176: =SUM(U176:W176) -> 0 | AH176: =SUM(X176:Z176) -> 0 | AI176: =SUM(AA176:AC176) -> 13 | AJ176: =SUM(AD176:AF176) -> 12 | AK176: =SUM(AG176:AJ176) -> 25 | AL176: =IF(ISERROR(SUM(D176:F176)/AG176),0,SUM(D176:F176)/AG176) -> 0 | AM176: =IF(ISERROR(Q176/AH176),0,Q176/AH176) -> 0 | AN176: =IF(ISERROR(R176/AI176),0,R176/AI176) -> 0.07692307692 | AO176: =IF(ISERROR(S176/AJ176),0,S176/AJ176) -> 0 | AP176: =IF(ISERROR(SUM(P176:Q176)/SUM(AG176:AH176)),0,SUM(P176:Q176)/SUM(AG176:AH176)) -> 0 | AQ176: =IF(ISERROR(SUM(R176:S176)/SUM(AI176:AJ176)),0,SUM(R176:S176)/SUM(AI176:AJ176)) -> 0.04 | AR176: =IF(ISERROR(SUM(P176:S176)/SUM(AG176:AJ176)),0,SUM(P176:S176)/SUM(AG176:AJ176)) -> 0.04
C177: TOTAL | D177: =SUM(D170:D176) -> 41 | E177: =SUM(E170:E176) -> 21 | F177: 32 | G177: 24 | H177: 30 | I177: 45 | J177: 30 | K177: 36 | L177: 33 | M177: 24 | N177: 17 | O177: 11 | P177: 94 | Q177: 99 | R177: 99 | S177: 52 | T177: 344 | U177: 288 | V177: 222 | W177: 261 | X177: 224 | Y177: 288 | Z177: 304 | AA177: 293 | AB177: 310 | AC177: 293 | AD177: 265 | AE177: 213 | AF177: 228 | AG177: 771 | AH177: 816 | AI177: 896 | AJ177: 706 | AK177: 3189 | AL177: 0.121919585 | AM177: 0.1213235294 | AN177: 0.1104910714 | AO177: 0.07365439093 | AP177: =IF(ISERROR(SUM(P177:Q177)/SUM(AG177:AH177)),0,SUM(P177:Q177)/SUM(AG177:AH177)) -> 0.1216131065 | AQ177: 0.09425717853 | AR177: =IF(ISERROR(SUM(P177:S177)/SUM(AG177:AJ177)),0,SUM(P177:S177)/SUM(AG177:AJ177)) -> 0.1078708059 | AS177: =SUM(AS170:AS175) -> 184389
C180: REGIONAL Centro | D180: Enero | E180: Febrero | F180: Marzo | G180: Abril | H180: Mayo | I180: Junio | J180: Julio | K180: Agosto | L180: Septiembre | M180: Octubre | N180: Noviembre | O180: Diciembr | P180: I Trim | Q180: II Trim | R180: III Trim | S180: IV Trim | T180: TOTAL BPN | U180: Enero | V180: Febrero | W180: Marzo | X180: Abril | Y180: Mayo | Z180: Junio | AA180: Julio | AB180: Agosto | AC180: Septiembre | AD180: Octubre | AE180: Noviembre | AF180: Diciembr | AG180: I TRIM | AH180: II TRIM | AI180: III TRIM | AJ180: IV TRIM | AK180: TOTAL | AL180: I TRIM | AM180: II TRIM | AN180: III TRIM | AO180: IV TRIM | AP180: PORCENTAJE I SEM | AQ180: PORCENTAJE II SEM | AR180: PORCENTAJE ANUAL 2020
C181: DATOS | D181: =D166 -> 41 | E181: 21 | F181: 32 | G181: 24 | H181: 30 | I181: 45 | J181: 30 | K181: 36 | L181: 33 | M181: 24 | N181: 17 | O181: 11 | P181: =SUM(D181:F181) -> 94 | Q181: =SUM(G181:I181) -> 99 | R181: =SUM(J181:L181) -> 99 | S181: =SUM(M181:O181) -> 52 | T181: =SUM(P181:S181) -> 344 | U181: =U166 -> 288 | V181: 222 | W181: 261 | X181: 224 | Y181: 288 | Z181: 304 | AA181: 293 | AB181: 310 | AC181: 293 | AD181: 265 | AE181: 213 | AF181: 228 | AG181: =SUM(U181:W181) -> 771 | AH181: =SUM(X181:Z181) -> 816 | AI181: =SUM(AA181:AC181) -> 896 | AJ181: =SUM(AD181:AF181) -> 706 | AK181: =SUM(AG181:AJ181) -> 3189 | AL181: =IF(ISERROR(SUM(D181:F181)/AG181),0,SUM(D181:F181)/AG181) -> 0.121919585 | AM181: =IF(ISERROR(Q181/AH181),0,Q181/AH181) -> 0.1213235294 | AN181: =IF(ISERROR(R181/AI181),0,R181/AI181) -> 0.1104910714 | AO181: =IF(ISERROR(S181/AJ181),0,S181/AJ181) -> 0.07365439093 | AP181: =IF(ISERROR(SUM(P181:Q181)/SUM(AG181:AH181)),0,SUM(P181:Q181)/SUM(AG181:AH181)) -> 0.1216131065 | AQ181: =IF(ISERROR(SUM(R181:S181)/SUM(AI181:AJ181)),0,SUM(R181:S181)/SUM(AI181:AJ181)) -> 0.09425717853 | AR181: =IF(ISERROR(SUM(P181:S181)/SUM(AG181:AJ181)),0,SUM(P181:S181)/SUM(AG181:AJ181)) -> 0.1078708059 | AS181: =AS166 -> 184389
C184: REGIONAL NORTE | D184: N° BPN | P184: Total BPN | T184: TOTAL | U184: NACIMIENTOS | AK184: TOTAL NACIMIENTOS | AL184: PROPORCIÓN
C186: IPS | D186: Enero | E186: Febrero | F186: Marzo | G186: Abril | H186: Mayo | I186: Junio | J186: Julio | K186: Agosto | L186: Septiembre | M186: Octubre | N186: Noviembre | O186: Diciembre | P186: I Trim | Q186: II Trim | R186: III Trim | S186: IV Trim | U186: Enero | V186: Febrero | W186: Marzo | X186: abril | Y186: Mayo | Z186: Junio | AA186: Julio | AB186: Agosto | AC186: Septiembre | AD186: Octubre | AE186: Noviembre | AF186: Diciembre | AG186: I TRIM | AH186: II TRIM | AI186: III TRIM | AJ186: IV TRIM | AL186: I TRIM | AM186: II TRIM | AN186: III TRIM | AO186: IV TRIM | AP186: PORCENTAJE I SEM | AQ186: PORCENTAJE II SEM | AR186: PORCENTAJE ANUAL 2020
A187: 54 | B187: BARRANQUILLA | C187: IPS SURA ALTOS DEL PRADO | D187: 6 | E187: 7 | F187: 5 | G187: 4 | H187: 2 | I187: 2 | J187: 7 | K187: 2 | L187: 2 | M187: 2 | N187: 2 | O187: 2 | P187: =SUM(D187:F187) -> 18 | Q187: =SUM(G187:I187) -> 8 | R187: =SUM(J187:L187) -> 11 | S187: =SUM(M187:O187) -> 6 | T187: =SUM(P187:S187) -> 43 | U187: 80 | V187: 63 | W187: 71 | X187: 49 | Y187: 51 | Z187: 53 | AA187: 74 | AB187: 52 | AC187: 77 | AD187: 48 | AE187: 51 | AF187: 31 | AG187: =SUM(U187:W187) -> 214 | AH187: =SUM(X187:Z187) -> 153 | AI187: =SUM(AA187:AC187) -> 203 | AJ187: =SUM(AD187:AF187) -> 130 | AK187: =SUM(AG187:AJ187) -> 700 | AL187: =IF(ISERROR(SUM(D187:F187)/AG187),0,SUM(D187:F187)/AG187) -> 0.08411214953 | AM187: =IF(ISERROR(Q187/AH187),0,Q187/AH187) -> 0.0522875817 | AN187: =IF(ISERROR(R187/AI187),0,R187/AI187) -> 0.05418719212 | AO187: =IF(ISERROR(S187/AJ187),0,S187/AJ187) -> 0.04615384615 | AP187: =IF(ISERROR(SUM(P187:Q187)/SUM(AG187:AH187)),0,SUM(P187:Q187)/SUM(AG187:AH187)) -> 0.07084468665 | AQ187: =IF(ISERROR(SUM(R187:S187)/SUM(AI187:AJ187)),0,SUM(R187:S187)/SUM(AI187:AJ187)) -> 0.05105105105 | AR187: =IF(ISERROR(SUM(P187:S187)/SUM(AG187:AJ187)),0,SUM(P187:S187)/SUM(AG187:AJ187)) -> 0.06142857143 | AS187: 39390
A188: 93 | B188: BARRANQUILLA | C188: IPS SURA BOSTON | D188: 3 | E188: 2 | F188: 4 | G188: 4 | H188: 2 | I188: 0 | J188: 1 | K188: 0 | L188: 3 | M188: 2 | N188: 0 | O188: 0 | P188: =SUM(D188:F188) -> 9 | Q188: =SUM(G188:I188) -> 6 | R188: =SUM(J188:L188) -> 4 | S188: =SUM(M188:O188) -> 2 | T188: =SUM(P188:S188) -> 21 | U188: 31 | V188: 20 | W188: 15 | X188: 19 | Y188: 20 | Z188: 17 | AA188: 18 | AB188: 18 | AC188: 24 | AD188: 30 | AE188: 21 | AF188: 13 | AG188: =SUM(U188:W188) -> 66 | AH188: =SUM(X188:Z188) -> 56 | AI188: =SUM(AA188:AC188) -> 60 | AJ188: =SUM(AD188:AF188) -> 64 | AK188: =SUM(AG188:AJ188) -> 246 | AL188: 0.1363636364 | AM188: 0.1071428571 | AN188: 0.06666666667 | AO188: 0.03125 | AP188: 0.1229508197 | AQ188: 0.04838709677 | AR188: 0.08536585366
A189: 2187 | B189: BARRANQUILLA | C189: IPS SURA MURILLO | D189: 4 | E189: 3 | F189: 5 | G189: 1 | H189: 3 | I189: 3 | J189: 6 | K189: 6 | L189: 4 | M189: 8 | N189: 6 | O189: 0 | P189: 12 | Q189: 7 | R189: 16 | S189: 14 | T189: 49 | U189: 66 | V189: 42 | W189: 42 | X189: 45 | Y189: 34 | Z189: 34 | AA189: 44 | AB189: 45 | AC189: 61 | AD189: 52 | AE189: 48 | AF189: 23 | AG189: 150 | AH189: 113 | AI189: 150 | AJ189: 123 | AK189: 536 | AL189: 0.08 | AM189: 0.06194690265 | AN189: 0.1066666667 | AO189: 0.1138211382 | AP189: 0.07224334601 | AQ189: 0.1098901099 | AR189: 0.09141791045 | AS189: 18983
A190: 85 | B190: BARRANQUILLA | C190: SALUD EN CASA BARRANQUILLA | D190: 0 | E190: 0 | F190: 0 | G190: 0 | H190: 0 | I190: 0 | J190: 0 | K190: 0 | L190: 0 | M190: 0 | N190: 0 | O190: 0 | P190: 0 | Q190: 0 | R190: 0 | S190: 0 | T190: 0 | U190: 0 | V190: 0 | W190: 0 | X190: 1 | Y190: 0 | Z190: 0 | AA190: 0 | AB190: 1 | AC190: 0 | AD190: 0 | AE190: 0 | AF190: 0 | AG190: 0 | AH190: 1 | AI190: 1 | AJ190: 0 | AK190: 2 | AL190: 0 | AM190: 0 | AN190: 0 | AO190: 0 | AP190: 0 | AQ190: 0 | AR190: 0 | AS190: 36457
A191: 2182 | B191: BARRANQUILLA | C191: SALUDSURA BARRANQUILLA | D191: 0 | E191: 0 | F191: 0 | G191: 0 | H191: 0 | I191: 0 | J191: 0 | K191: 0 | L191: 0 | M191: 1 | N191: 0 | O191: 0 | P191: 0 | Q191: 0 | R191: 0 | S191: 1 | T191: 1 | U191: 2 | V191: 0 | W191: 0 | X191: 0 | Y191: 0 | Z191: 1 | AA191: 0 | AB191: 0 | AC191: 0 | AD191: 1 | AE191: 0 | AF191: 0 | AG191: 2 | AH191: 1 | AI191: 0 | AJ191: 1 | AK191: 4 | AL191: 0 | AM191: 0 | AN191: 0 | AO191: 1 | AP191: 0 | AQ191: 1 | AR191: 0.25 | AS191: 7635
A192: 1009 | B192: BARRANQUILLA | C192: FAMILIA IPS SALUD INTEGRAL SAS | D192: 1 | E192: 2 | F192: 2 | G192: 4 | H192: 3 | I192: 1 | J192: 0 | K192: 3 | L192: 0 | M192: 1 | N192: 1 | O192: 1 | P192: =SUM(D192:F192) -> 5 | Q192: =SUM(G192:I192) -> 8 | R192: =SUM(J192:L192) -> 3 | S192: =SUM(M192:O192) -> 3 | T192: =SUM(P192:S192) -> 19 | U192: 22 | V192: 18 | W192: 16 | X192: 34 | Y192: 35 | Z192: 17 | AA192: 21 | AB192: 22 | AC192: 22 | AD192: 21 | AE192: 22 | AF192: 8 | AG192: =SUM(U192:W192) -> 56 | AH192: =SUM(X192:Z192) -> 86 | AI192: =SUM(AA192:AC192) -> 65 | AJ192: =SUM(AD192:AF192) -> 51 | AK192: =SUM(AG192:AJ192) -> 258 | AL192: 0.08928571429 | AM192: 0.09302325581 | AN192: 0.04615384615 | AO192: 0.05882352941 | AP192: 0.09154929577 | AQ192: 0.05172413793 | AR192: 0.07364341085
A193: 2696 | B193: BARRANQUILLA | C193: VIVA 1A SAN JOSE | D193: 3 | E193: 0 | F193: 5 | G193: 8 | H193: 4 | I193: 3 | J193: 3 | K193: 6 | L193: 6 | M193: 7 | N193: 6 | O193: 2 | P193: =SUM(D193:F193) -> 8 | Q193: =SUM(G193:I193) -> 15 | R193: =SUM(J193:L193) -> 15 | S193: =SUM(M193:O193) -> 15 | T193: =SUM(P193:S193) -> 53 | U193: 83 | V193: 58 | W193: 56 | X193: 64 | Y193: 63 | Z193: 60 | AA193: 83 | AB193: 88 | AC193: 87 | AD193: 88 | AE193: 85 | AF193: 63 | AG193: =SUM(U193:W193) -> 197 | AH193: =SUM(X193:Z193) -> 187 | AI193: =SUM(AA193:AC193) -> 258 | AJ193: =SUM(AD193:AF193) -> 236 | AK193: =SUM(AG193:AJ193) -> 878 | AL193: =IF(ISERROR(SUM(D193:F193)/AG193),0,SUM(D193:F193)/AG193) -> 0.04060913706 | AM193: =IF(ISERROR(Q193/AH193),0,Q193/AH193) -> 0.08021390374 | AN193: 0.05813953488 | AO193: 0.06355932203 | AP193: 0.05989583333 | AQ193: =IF(ISERROR(SUM(R193:S193)/SUM(AI193:AJ193)),0,SUM(R193:S193)/SUM(AI193:AJ193)) -> 0.06072874494 | AR193: =IF(ISERROR(SUM(P193:S193)/SUM(AG193:AJ193)),0,SUM(P193:S193)/SUM(AG193:AJ193)) -> 0.06036446469
A194: 2698 | B194: BARRANQUILLA | C194: VIVA 1A - CALLE 85 | D194: 0 | E194: 0 | F194: 4 | G194: 2 | H194: 4 | I194: 2 | J194: 6 | K194: 5 | L194: 6 | M194: 1 | N194: 4 | O194: 0 | P194: =SUM(D194:F194) -> 4 | Q194: =SUM(G194:I194) -> 8 | R194: =SUM(J194:L194) -> 17 | S194: =SUM(M194:O194) -> 5 | T194: =SUM(P194:S194) -> 34 | U194: 38 | V194: 34 | W194: 30 | X194: 37 | Y194: 48 | Z194: 30 | AA194: 46 | AB194: 39 | AC194: 68 | AD194: 54 | AE194: 61 | AF194: 25 | AG194: =SUM(U194:W194) -> 102 | AH194: =SUM(X194:Z194) -> 115 | AI194: =SUM(AA194:AC194) -> 153 | AJ194: =SUM(AD194:AF194) -> 140 | AK194: =SUM(AG194:AJ194) -> 510 | AL194: =IF(ISERROR(SUM(D194:F194)/AG194),0,SUM(D194:F194)/AG194) -> 0.03921568627 | AM194: 0.06956521739 | AN194: 0.1111111111 | AO194: 0.03571428571 | AP194: 0.05529953917 | AQ194: =IF(ISERROR(SUM(R194:S194)/SUM(AI194:AJ194)),0,SUM(R194:S194)/SUM(AI194:AJ194)) -> 0.07508532423 | AR194: =IF(ISERROR(SUM(P194:S194)/SUM(AG194:AJ194)),0,SUM(P194:S194)/SUM(AG194:AJ194)) -> 0.06666666667
A195: 1714 | B195: CARTAGENA | C195: SALUD DEL CARIBE S.A. PIE DE POPA | D195: 2 | E195: 2 | F195: 6 | G195: 1 | H195: 4 | I195: 0 | J195: 3 | K195: 1 | L195: 2 | M195: 3 | N195: 0 | O195: 0 | P195: 10 | Q195: 5 | R195: 6 | S195: 3 | T195: 24 | U195: 19 | V195: 15 | W195: 20 | X195: 25 | Y195: 20 | Z195: 16 | AA195: 26 | AB195: 26 | AC195: 17 | AD195: 26 | AE195: 21 | AF195: 1 | AG195: 54 | AH195: 61 | AI195: 69 | AJ195: 48 | AK195: 232 | AL195: 0.1851851852 | AM195: 0.08196721311 | AN195: 0.08695652174 | AO195: 0.0625 | AP195: 0.1304347826 | AQ195: 0.07692307692 | AR195: 0.1034482759 | AS195: 13105
A196: 2264 | B196: CARTAGENA | C196: SALUD DEL CARIBE SANTA LUCIA | D196: 5 | E196: 7 | F196: 4 | G196: 8 | H196: 3 | I196: 5 | J196: 8 | K196: 5 | L196: 6 | M196: 4 | N196: 2 | O196: 0 | P196: =SUM(D196:F196) -> 16 | Q196: =SUM(G196:I196) -> 16 | R196: =SUM(J196:L196) -> 19 | S196: =SUM(M196:O196) -> 6 | T196: =SUM(P196:S196) -> 57 | U196: 64 | V196: 50 | W196: 52 | X196: 55 | Y196: 49 | Z196: 48 | AA196: 51 | AB196: 54 | AC196: 56 | AD196: 52 | AE196: 41 | AF196: 8 | AG196: =SUM(U196:W196) -> 166 | AH196: =SUM(X196:Z196) -> 152 | AI196: =SUM(AA196:AC196) -> 161 | AJ196: =SUM(AD196:AF196) -> 101 | AK196: =SUM(AG196:AJ196) -> 580 | AL196: 0.09638554217 | AM196: 0.1052631579 | AN196: 0.1180124224 | AO196: 0.05940594059 | AP196: 0.1006289308 | AQ196: 0.09541984733 | AR196: 0.09827586207 | AS196: 236
A197: 2448 | B197: SOLEDAD | C197: IPS CALLE 30 | D197: 10 | E197: 4 | F197: 3 | G197: 0 | H197: 2 | I197: 5 | J197: 6 | K197: 1 | L197: 3 | M197: 7 | N197: 1 | O197: 0 | P197: 17 | Q197: 7 | R197: 10 | S197: 8 | T197: 42 | U197: 73 | V197: 41 | W197: 47 | X197: 47 | Y197: 41 | Z197: 46 | AA197: 55 | AB197: 47 | AC197: 59 | AD197: 65 | AE197: 56 | AF197: 38 | AG197: 161 | AH197: 134 | AI197: 161 | AJ197: 159 | AK197: 615 | AL197: 0.1055900621 | AM197: 0.05223880597 | AN197: 0.06211180124 | AO197: 0.05031446541 | AP197: 0.0813559322 | AQ197: 0.05625 | AR197: 0.06829268293 | AS197: 5703
A198: 1008 | B198: BUCARAMANGA | C198: IPS CAÑAVERAL COOMULTRASAN | D198: 2 | E198: 3 | F198: 2 | G198: 2 | H198: 2 | I198: 2 | J198: 1 | K198: 1 | L198: 4 | M198: 1 | N198: 1 | O198: 0 | P198: =SUM(D198:F198) -> 7 | Q198: =SUM(G198:I198) -> 6 | R198: =SUM(J198:L198) -> 6 | S198: =SUM(M198:O198) -> 2 | T198: =SUM(P198:S198) -> 21 | U198: 30 | V198: 20 | W198: 22 | X198: 25 | Y198: 19 | Z198: 16 | AA198: 20 | AB198: 31 | AC198: 23 | AD198: 26 | AE198: 25 | AF198: 11 | AG198: =SUM(U198:W198) -> 72 | AH198: =SUM(X198:Z198) -> 60 | AI198: =SUM(AA198:AC198) -> 74 | AJ198: =SUM(AD198:AF198) -> 62 | AK198: =SUM(AG198:AJ198) -> 268 | AL198: =IF(ISERROR(SUM(D198:F198)/AG198),0,SUM(D198:F198)/AG198) -> 0.09722222222 | AM198: =IF(ISERROR(Q198/AH198),0,Q198/AH198) -> 0.1 | AN198: 0.08108108108 | AO198: 0.03225806452 | AP198: 0.09848484848 | AQ198: =IF(ISERROR(SUM(R198:S198)/SUM(AI198:AJ198)),0,SUM(R198:S198)/SUM(AI198:AJ198)) -> 0.05882352941 | AR198: =IF(ISERROR(SUM(P198:S198)/SUM(AG198:AJ198)),0,SUM(P198:S198)/SUM(AG198:AJ198)) -> 0.07835820896 | AS198: 14172
A199: 2218 | B199: BUCARAMANGA | C199: IPS SURA BUCARAMANGA | D199: 7 | E199: 6 | F199: 4 | G199: 2 | H199: 3 | I199: 2 | J199: 2 | K199: 7 | L199: 4 | M199: 5 | N199: 3 | O199: 3 | P199: =SUM(D199:F199) -> 17 | Q199: =SUM(G199:I199) -> 7 | R199: =SUM(J199:L199) -> 13 | S199: =SUM(M199:O199) -> 11 | T199: =SUM(P199:S199) -> 48 | U199: 54 | V199: 60 | W199: 43 | X199: 42 | Y199: 44 | Z199: 40 | AA199: 43 | AB199: 47 | AC199: 46 | AD199: 48 | AE199: 38 | AF199: 20 | AG199: =SUM(U199:W199) -> 157 | AH199: =SUM(X199:Z199) -> 126 | AI199: =SUM(AA199:AC199) -> 136 | AJ199: =SUM(AD199:AF199) -> 106 | AK199: =SUM(AG199:AJ199) -> 525 | AL199: =IF(ISERROR(SUM(D199:F199)/AG199),0,SUM(D199:F199)/AG199) -> 0.1082802548 | AM199: 0.05555555556 | AN199: 0.09558823529 | AO199: 0.1037735849 | AP199: 0.08480565371 | AQ199: =IF(ISERROR(SUM(R199:S199)/SUM(AI199:AJ199)),0,SUM(R199:S199)/SUM(AI199:AJ199)) -> 0.09917355372 | AR199: =IF(ISERROR(SUM(P199:S199)/SUM(AG199:AJ199)),0,SUM(P199:S199)/SUM(AG199:AJ199)) -> 0.09142857143 | AS199: 6371
A200: 2716 | B200: BUCARAMANGA | C200: IPS COOMULTRASAN CARRERA 27 | D200: 0 | E200: 2 | F200: 0 | G200: 0 | H200: 4 | I200: 1 | J200: 2 | K200: 0 | L200: 0 | M200: 5 | N200: 2 | O200: 3 | P200: =SUM(D200:F200) -> 2 | Q200: =SUM(G200:I200) -> 5 | R200: =SUM(J200:L200) -> 2 | S200: =SUM(M200:O200) -> 10 | T200: =SUM(P200:S200) -> 19 | U200: 5 | V200: 8 | W200: 11 | X200: 11 | Y200: 10 | Z200: 19 | AA200: 9 | AB200: 12 | AC200: 23 | AD200: 24 | AE200: 24 | AF200: 18 | AG200: =SUM(U200:W200) -> 24 | AH200: =SUM(X200:Z200) -> 40 | AI200: =SUM(AA200:AC200) -> 44 | AJ200: =SUM(AD200:AF200) -> 66 | AK200: =SUM(AG200:AJ200) -> 174 | AL200: =IF(ISERROR(SUM(D200:F200)/AG200),0,SUM(D200:F200)/AG200) -> 0.08333333333 | AM200: =IF(ISERROR(Q200/AH200),0,Q200/AH200) -> 0.125 | AN200: =IF(ISERROR(R200/AI200),0,R200/AI200) -> 0.04545454545 | AO200: =IF(ISERROR(S200/AJ200),0,S200/AJ200) -> 0.1515151515 | AP200: =IF(ISERROR(SUM(P200:Q200)/SUM(AG200:AH200)),0,SUM(P200:Q200)/SUM(AG200:AH200)) -> 0.109375 | AQ200: =IF(ISERROR(SUM(R200:S200)/SUM(AI200:AJ200)),0,SUM(R200:S200)/SUM(AI200:AJ200)) -> 0.1090909091 | AR200: =IF(ISERROR(SUM(P200:S200)/SUM(AG200:AJ200)),0,SUM(P200:S200)/SUM(AG200:AJ200)) -> 0.1091954023
A201: 2720 | B201: SABANALARGA | C201: VIVA 1A IPS SABANALARGA | D201: 0 | E201: 0 | F201: 0 | G201: 0 | H201: 0 | I201: 0 | J201: 0 | K201: 0 | L201: 0 | M201: 0 | N201: 0 | O201: 0 | P201: =SUM(D201:F201) -> 0 | Q201: =SUM(G201:I201) -> 0 | R201: =SUM(J201:L201) -> 0 | S201: =SUM(M201:O201) -> 0 | T201: =SUM(P201:S201) -> 0 | U201: 3 | V201: 0 | W201: 1 | X201: 0 | Y201: 0 | Z201: 0 | AA201: 0 | AB201: 1 | AC201: 0 | AD201: 0 | AE201: 0 | AF201: 1 | AG201: =SUM(U201:W201) -> 4 | AH201: =SUM(X201:Z201) -> 0 | AI201: =SUM(AA201:AC201) -> 1 | AJ201: =SUM(AD201:AF201) -> 1 | AK201: =SUM(AG201:AJ201) -> 6 | AL201: =IF(ISERROR(SUM(D201:F201)/AG201),0,SUM(D201:F201)/AG201) -> 0 | AM201: =IF(ISERROR(Q201/AH201),0,Q201/AH201) -> 0 | AN201: =IF(ISERROR(R201/AI201),0,R201/AI201) -> 0 | AO201: =IF(ISERROR(S201/AJ201),0,S201/AJ201) -> 0 | AP201: =IF(ISERROR(SUM(P201:Q201)/SUM(AG201:AH201)),0,SUM(P201:Q201)/SUM(AG201:AH201)) -> 0 | AQ201: =IF(ISERROR(SUM(R201:S201)/SUM(AI201:AJ201)),0,SUM(R201:S201)/SUM(AI201:AJ201)) -> 0 | AR201: =IF(ISERROR(SUM(P201:S201)/SUM(AG201:AJ201)),0,SUM(P201:S201)/SUM(AG201:AJ201)) -> 0
A202: 119950 | B202: SANTA MARTA | C202: VIVA 1A IPS SANTA MARTA | D202: 0 | E202: 0 | F202: 1 | G202: 0 | H202: 0 | I202: 0 | J202: 0 | K202: 0 | L202: 0 | M202: 0 | N202: 0 | O202: 0 | P202: 1 | Q202: 0 | R202: 0 | S202: 0 | T202: 1 | U202: 1 | V202: 0 | W202: 2 | X202: 0 | Y202: 2 | Z202: 2 | AA202: 1 | AB202: 1 | AC202: 1 | AD202: 1 | AE202: 0 | AF202: 0 | AG202: 3 | AH202: 4 | AI202: 3 | AJ202: 1 | AK202: 11 | AL202: 0.3333333333 | AM202: 0 | AN202: 0 | AO202: 0 | AP202: 0.1428571429 | AQ202: 0 | AR202: 0.09090909091
A203: 13181 | B203: GALAPA | C203: ESE CENTRO DE SALUD GALAPA | D203: 0 | E203: 0 | F203: 0 | G203: 0 | H203: 0 | I203: 0 | J203: 0 | K203: 0 | L203: 0 | M203: 0 | N203: 0 | O203: 0 | P203: =SUM(D203:F203) -> 0 | Q203: =SUM(G203:I203) -> 0 | R203: =SUM(J203:L203) -> 0 | S203: =SUM(M203:O203) -> 0 | T203: =SUM(P203:S203) -> 0 | U203: 0 | V203: 0 | W203: 0 | X203: 0 | Y203: 0 | Z203: 0 | AA203: 0 | AB203: 0 | AC203: 1 | AD203: 0 | AE203: 0 | AF203: 1 | AG203: =SUM(U203:W203) -> 0 | AH203: =SUM(X203:Z203) -> 0 | AI203: =SUM(AA203:AC203) -> 1 | AJ203: =SUM(AD203:AF203) -> 1 | AK203: =SUM(AG203:AJ203) -> 2 | AL203: =IF(ISERROR(SUM(D203:F203)/AG203),0,SUM(D203:F203)/AG203) -> 0 | AM203: =IF(ISERROR(Q203/AH203),0,Q203/AH203) -> 0 | AN203: =IF(ISERROR(R203/AI203),0,R203/AI203) -> 0 | AO203: =IF(ISERROR(S203/AJ203),0,S203/AJ203) -> 0 | AP203: =IF(ISERROR(SUM(P203:Q203)/SUM(AG203:AH203)),0,SUM(P203:Q203)/SUM(AG203:AH203)) -> 0 | AQ203: =IF(ISERROR(SUM(R203:S203)/SUM(AI203:AJ203)),0,SUM(R203:S203)/SUM(AI203:AJ203)) -> 0 | AR203: =IF(ISERROR(SUM(P203:S203)/SUM(AG203:AJ203)),0,SUM(P203:S203)/SUM(AG203:AJ203)) -> 0
A204: T4 | C204: TOTAL | D204: =SUM(D187:D203) -> 43 | E204: =SUM(E187:E203) -> 38 | F204: 45 | G204: 36 | H204: 36 | I204: 26 | J204: 45 | K204: 37 | L204: 40 | M204: 47 | N204: 28 | O204: 11 | P204: 126 | Q204: 98 | R204: 122 | S204: 86 | T204: 432 | U204: 571 | V204: 429 | W204: 428 | X204: 454 | Y204: 436 | Z204: 399 | AA204: 491 | AB204: 484 | AC204: 565 | AD204: 536 | AE204: 493 | AF204: 261 | AG204: 1428 | AH204: 1289 | AI204: 1540 | AJ204: 1290 | AK204: 5547 | AL204: =IF(ISERROR(SUM(D204:F204)/AG204),0,SUM(D204:F204)/AG204) -> 0.08823529412 | AM204: 0.07602792863 | AN204: 0.07922077922 | AO204: 0.06666666667 | AP204: =IF(ISERROR(SUM(P204:Q204)/SUM(AG204:AH204)),0,SUM(P204:Q204)/SUM(AG204:AH204)) -> 0.08244387192 | AQ204: 0.07349823322 | AR204: =IF(ISERROR(SUM(P204:S204)/SUM(AG204:AJ204)),0,SUM(P204:S204)/SUM(AG204:AJ204)) -> 0.0778799351 | AS204: =SUM(AS187:AS197) -> 121509
C207: MUNICIPIO | D207: Enero | E207: Febrero | F207: Marzo | G207: Abril | H207: Mayo | I207: Junio | J207: Julio | K207: Agosto | L207: Septiembre | M207: Octubre | N207: Noviembre | O207: Diciembre | P207: I Trim | Q207: II Trim | R207: III Trim | S207: IV Trim | T207: TOTAL | U207: Enero | V207: Febrero | W207: Marzo | X207: abril | Y207: Mayo | Z207: Junio | AA207: Julio | AB207: Agosto | AC207: Septiembre | AD207: Octubre | AE207: Noviembre | AF207: Diciembre | AG207: I TRIM | AH207: II TRIM | AI207: III TRIM | AJ207: IV TRIM | AK207: TOTAL NACIMIENTOS | AL207: I TRIM | AM207: II TRIM | AN207: III TRIM | AO207: IV TRIM | AP207: PORCENTAJE I SEM | AQ207: PORCENTAJE II SEM | AR207: PORCENTAJE ANUAL 2020
A208: =VLOOKUP(C208,Parametros!B$122:C$181,2,0) -> N1 | B208: ATLANTICO | C208: BARRANQUILLA | D208: =SUMIF($B$187:$B$203,$C208,D$187:D$203) -> 17 | E208: =SUMIF($B$187:$B$203,$C208,E$187:E$203) -> 14 | F208: 25 | G208: 23 | H208: 18 | I208: 11 | J208: 23 | K208: 22 | L208: 21 | M208: 22 | N208: 19 | O208: 5 | P208: =SUM(D208:F208) -> 56 | Q208: =SUM(G208:I208) -> 52 | R208: =SUM(J208:L208) -> 66 | S208: =SUM(M208:O208) -> 46 | T208: =SUM(P208:S208) -> 220 | U208: =SUMIF($B$187:$B$203,$C208,U$187:U$203) -> 322 | V208: =SUMIF($B$187:$B$203,$C208,V$187:V$203) -> 235 | W208: 230 | X208: 249 | Y208: 251 | Z208: 212 | AA208: 286 | AB208: 265 | AC208: 339 | AD208: 294 | AE208: 288 | AF208: 163 | AG208: =SUM(U208:W208) -> 787 | AH208: =SUM(X208:Z208) -> 712 | AI208: =SUM(AA208:AC208) -> 890 | AJ208: =SUM(AD208:AF208) -> 745 | AK208: =SUM(AG208:AJ208) -> 3134 | AL208: =IF(ISERROR(SUM(D208:F208)/AG208),0,SUM(D208:F208)/AG208) -> 0.07115628971 | AM208: =IF(ISERROR(Q208/AH208),0,Q208/AH208) -> 0.07303370787 | AN208: 0.07415730337 | AO208: 0.06174496644 | AP208: =IF(ISERROR(SUM(P208:Q208)/SUM(AG208:AH208)),0,SUM(P208:Q208)/SUM(AG208:AH208)) -> 0.07204803202 | AQ208: =IF(ISERROR(SUM(R208:S208)/SUM(AI208:AJ208)),0,SUM(R208:S208)/SUM(AI208:AJ208)) -> 0.06850152905 | AR208: =IF(ISERROR(SUM(P208:S208)/SUM(AG208:AJ208)),0,SUM(P208:S208)/SUM(AG208:AJ208)) -> 0.07019783025 | AS208: =SUMIF($B$187:$B$197,$C208,AS$187:AS$197) -> 102465
A209: =VLOOKUP(C209,Parametros!B$122:C$181,2,0) -> N2 | B209: SANTANDER | C209: BUCARAMANGA | D209: =SUMIF($B$187:$B$203,$C209,D$187:D$203) -> 9 | E209: 11 | F209: 6 | G209: 4 | H209: 9 | I209: 5 | J209: 5 | K209: 8 | L209: 8 | M209: 11 | N209: 6 | O209: 6 | P209: =SUM(D209:F209) -> 26 | Q209: =SUM(G209:I209) -> 18 | R209: =SUM(J209:L209) -> 21 | S209: =SUM(M209:O209) -> 23 | T209: =SUM(P209:S209) -> 88 | U209: =SUMIF($B$187:$B$203,$C209,U$187:U$203) -> 89 | V209: 88 | W209: 76 | X209: 78 | Y209: 73 | Z209: 75 | AA209: 72 | AB209: 90 | AC209: 92 | AD209: 98 | AE209: 87 | AF209: 49 | AG209: =SUM(U209:W209) -> 253 | AH209: =SUM(X209:Z209) -> 226 | AI209: =SUM(AA209:AC209) -> 254 | AJ209: =SUM(AD209:AF209) -> 234 | AK209: =SUM(AG209:AJ209) -> 967 | AL209: =IF(ISERROR(SUM(D209:F209)/AG209),0,SUM(D209:F209)/AG209) -> 0.1027667984 | AM209: =IF(ISERROR(Q209/AH209),0,Q209/AH209) -> 0.0796460177 | AN209: =IF(ISERROR(R209/AI209),0,R209/AI209) -> 0.08267716535 | AO209: =IF(ISERROR(S209/AJ209),0,S209/AJ209) -> 0.09829059829 | AP209: 0.09185803758 | AQ209: =IF(ISERROR(SUM(R209:S209)/SUM(AI209:AJ209)),0,SUM(R209:S209)/SUM(AI209:AJ209)) -> 0.09016393443 | AR209: =IF(ISERROR(SUM(P209:S209)/SUM(AG209:AJ209)),0,SUM(P209:S209)/SUM(AG209:AJ209)) -> 0.09100310238 | AS209: =SUMIF($B$146:$B$162,$C209,AS$146:AS$162) -> 0
A210: =VLOOKUP(C210,Parametros!B$122:C$181,2,0) -> N3 | B210: BOLIVAR | C210: CARTAGENA | D210: 7 | E210: 9 | F210: 10 | G210: 9 | H210: 7 | I210: 5 | J210: 11 | K210: 6 | L210: 8 | M210: 7 | N210: 2 | O210: 0 | P210: =SUM(D210:F210) -> 26 | Q210: =SUM(G210:I210) -> 21 | R210: =SUM(J210:L210) -> 25 | S210: =SUM(M210:O210) -> 9 | T210: =SUM(P210:S210) -> 81 | U210: 83 | V210: 65 | W210: 72 | X210: 80 | Y210: 69 | Z210: 64 | AA210: 77 | AB210: 80 | AC210: 73 | AD210: 78 | AE210: 62 | AF210: 9 | AG210: =SUM(U210:W210) -> 220 | AH210: =SUM(X210:Z210) -> 213 | AI210: =SUM(AA210:AC210) -> 230 | AJ210: =SUM(AD210:AF210) -> 149 | AK210: =SUM(AG210:AJ210) -> 812 | AL210: =IF(ISERROR(SUM(D210:F210)/AG210),0,SUM(D210:F210)/AG210) -> 0.1181818182 | AM210: 0.0985915493 | AN210: 0.1086956522 | AO210: 0.06040268456 | AP210: 0.1085450346 | AQ210: =IF(ISERROR(SUM(R210:S210)/SUM(AI210:AJ210)),0,SUM(R210:S210)/SUM(AI210:AJ210)) -> 0.08970976253 | AR210: =IF(ISERROR(SUM(P210:S210)/SUM(AG210:AJ210)),0,SUM(P210:S210)/SUM(AG210:AJ210)) -> 0.09975369458 | AS210: =SUMIF($B$187:$B$197,$C210,AS$187:AS$197) -> 13341
A211: =VLOOKUP(C211,Parametros!B$122:C$181,2,0) -> N4 | B211: ATLANTICO | C211: SOLEDAD | D211: 10 | E211: 4 | F211: 3 | G211: 0 | H211: 2 | I211: 5 | J211: 6 | K211: 1 | L211: 3 | M211: 7 | N211: 1 | O211: 0 | P211: =SUM(D211:F211) -> 17 | Q211: =SUM(G211:I211) -> 7 | R211: =SUM(J211:L211) -> 10 | S211: =SUM(M211:O211) -> 8 | T211: =SUM(P211:S211) -> 42 | U211: 73 | V211: 41 | W211: 47 | X211: 47 | Y211: 41 | Z211: 46 | AA211: 55 | AB211: 47 | AC211: 59 | AD211: 65 | AE211: 56 | AF211: 38 | AG211: =SUM(U211:W211) -> 161 | AH211: =SUM(X211:Z211) -> 134 | AI211: =SUM(AA211:AC211) -> 161 | AJ211: =SUM(AD211:AF211) -> 159 | AK211: =SUM(AG211:AJ211) -> 615 | AL211: =IF(ISERROR(SUM(D211:F211)/AG211),0,SUM(D211:F211)/AG211) -> 0.1055900621 | AM211: 0.05223880597 | AN211: 0.06211180124 | AO211: 0.05031446541 | AP211: 0.0813559322 | AQ211: =IF(ISERROR(SUM(R211:S211)/SUM(AI211:AJ211)),0,SUM(R211:S211)/SUM(AI211:AJ211)) -> 0.05625 | AR211: =IF(ISERROR(SUM(P211:S211)/SUM(AG211:AJ211)),0,SUM(P211:S211)/SUM(AG211:AJ211)) -> 0.06829268293 | AS211: =SUMIF($B$187:$B$197,$C211,AS$187:AS$197) -> 5703
A212: =VLOOKUP(C212,Parametros!B$122:C$181,2,0) -> N5 | B212: ATLANTICO | C212: SABANALARGA | D212: 0 | E212: 0 | F212: 0 | G212: 0 | H212: 0 | I212: 0 | J212: 0 | K212: 0 | L212: 0 | M212: 0 | N212: 0 | O212: 0 | P212: =SUM(D212:F212) -> 0 | Q212: =SUM(G212:I212) -> 0 | R212: =SUM(J212:L212) -> 0 | S212: =SUM(M212:O212) -> 0 | T212: =SUM(P212:S212) -> 0 | U212: 3 | V212: 0 | W212: 1 | X212: 0 | Y212: 0 | Z212: 0 | AA212: 0 | AB212: 1 | AC212: 0 | AD212: 0 | AE212: 0 | AF212: 1 | AG212: =SUM(U212:W212) -> 4 | AH212: =SUM(X212:Z212) -> 0 | AI212: =SUM(AA212:AC212) -> 1 | AJ212: =SUM(AD212:AF212) -> 1 | AK212: =SUM(AG212:AJ212) -> 6 | AL212: =IF(ISERROR(SUM(D212:F212)/AG212),0,SUM(D212:F212)/AG212) -> 0 | AM212: =IF(ISERROR(Q212/AH212),0,Q212/AH212) -> 0 | AN212: =IF(ISERROR(R212/AI212),0,R212/AI212) -> 0 | AO212: =IF(ISERROR(S212/AJ212),0,S212/AJ212) -> 0 | AP212: =IF(ISERROR(SUM(P212:Q212)/SUM(AG212:AH212)),0,SUM(P212:Q212)/SUM(AG212:AH212)) -> 0 | AQ212: =IF(ISERROR(SUM(R212:S212)/SUM(AI212:AJ212)),0,SUM(R212:S212)/SUM(AI212:AJ212)) -> 0 | AR212: =IF(ISERROR(SUM(P212:S212)/SUM(AG212:AJ212)),0,SUM(P212:S212)/SUM(AG212:AJ212)) -> 0
A213: =VLOOKUP(C213,Parametros!B$122:C$181,2,0) -> N6 | B213: MAGDALENA | C213: SANTA MARTA | D213: 0 | E213: 0 | F213: 1 | G213: 0 | H213: 0 | I213: 0 | J213: 0 | K213: 0 | L213: 0 | M213: 0 | N213: 0 | O213: 0 | P213: 1 | Q213: 0 | R213: 0 | S213: 0 | T213: 1 | U213: 1 | V213: 0 | W213: 2 | X213: 0 | Y213: 2 | Z213: 2 | AA213: 1 | AB213: 1 | AC213: 1 | AD213: 1 | AE213: 0 | AF213: 0 | AG213: 3 | AH213: 4 | AI213: 3 | AJ213: 1 | AK213: 11 | AL213: 0.3333333333 | AM213: 0 | AN213: 0 | AO213: 0 | AP213: 0.1428571429 | AQ213: 0 | AR213: 0.09090909091
A214: =VLOOKUP(C214,Parametros!B$122:C$181,2,0) -> N7 | B214: ATLANTICO | C214: GALAPA | D214: 0 | E214: 0 | F214: 0 | G214: 0 | H214: 0 | I214: 0 | J214: 0 | K214: 0 | L214: 0 | M214: 0 | N214: 0 | O214: 0 | P214: =SUM(D214:F214) -> 0 | Q214: =SUM(G214:I214) -> 0 | R214: =SUM(J214:L214) -> 0 | S214: =SUM(M214:O214) -> 0 | T214: =SUM(P214:S214) -> 0 | U214: 0 | V214: 0 | W214: 0 | X214: 0 | Y214: 0 | Z214: 0 | AA214: 0 | AB214: 0 | AC214: 1 | AD214: 0 | AE214: 0 | AF214: 1 | AG214: =SUM(U214:W214) -> 0 | AH214: =SUM(X214:Z214) -> 0 | AI214: =SUM(AA214:AC214) -> 1 | AJ214: =SUM(AD214:AF214) -> 1 | AK214: =SUM(AG214:AJ214) -> 2 | AL214: =IF(ISERROR(SUM(D214:F214)/AG214),0,SUM(D214:F214)/AG214) -> 0 | AM214: =IF(ISERROR(Q214/AH214),0,Q214/AH214) -> 0 | AN214: =IF(ISERROR(R214/AI214),0,R214/AI214) -> 0 | AO214: =IF(ISERROR(S214/AJ214),0,S214/AJ214) -> 0 | AP214: =IF(ISERROR(SUM(P214:Q214)/SUM(AG214:AH214)),0,SUM(P214:Q214)/SUM(AG214:AH214)) -> 0 | AQ214: =IF(ISERROR(SUM(R214:S214)/SUM(AI214:AJ214)),0,SUM(R214:S214)/SUM(AI214:AJ214)) -> 0 | AR214: =IF(ISERROR(SUM(P214:S214)/SUM(AG214:AJ214)),0,SUM(P214:S214)/SUM(AG214:AJ214)) -> 0
C215: TOTAL | D215: =SUM(D208:D214) -> 43 | E215: =SUM(E208:E214) -> 38 | F215: 45 | G215: 36 | H215: 36 | I215: 26 | J215: 45 | K215: 37 | L215: 40 | M215: 47 | N215: 28 | O215: 11 | P215: 126 | Q215: 98 | R215: 122 | S215: 86 | T215: 432 | U215: 571 | V215: 429 | W215: 428 | X215: 454 | Y215: 436 | Z215: 399 | AA215: 491 | AB215: 484 | AC215: 565 | AD215: 536 | AE215: 493 | AF215: 261 | AG215: 1428 | AH215: 1289 | AI215: 1540 | AJ215: 1290 | AK215: 5547 | AL215: =IF(ISERROR(SUM(D215:F215)/AG215),0,SUM(D215:F215)/AG215) -> 0.08823529412 | AM215: 0.07602792863 | AN215: 0.07922077922 | AO215: 0.06666666667 | AP215: =IF(ISERROR(SUM(P215:Q215)/SUM(AG215:AH215)),0,SUM(P215:Q215)/SUM(AG215:AH215)) -> 0.08244387192 | AQ215: =IF(ISERROR(SUM(R215:S215)/SUM(AI215:AJ215)),0,SUM(R215:S215)/SUM(AI215:AJ215)) -> 0.07349823322 | AR215: =IF(ISERROR(SUM(P215:S215)/SUM(AG215:AJ215)),0,SUM(P215:S215)/SUM(AG215:AJ215)) -> 0.0778799351 | AS215: =SUM(AS208:AS211) -> 121509
C218: Regional Norte | D218: Enero | E218: Febrero | F218: Marzo | G218: Abril | H218: Mayo | I218: Junio | J218: Julio | K218: Agosto | L218: Septiembre | M218: Octubre | N218: Noviembre | O218: Diciembr | P218: I Trim | Q218: II Trim | R218: III Trim | S218: IV Trim | T218: TOTAL BPN | U218: Enero | V218: Febrero | W218: Marzo | X218: Abril | Y218: Mayo | Z218: Junio | AA218: Julio | AB218: Agosto | AC218: Septiembre | AD218: Octubre | AE218: Noviembre | AF218: Diciembre | AG218: I TRIM | AH218: II TRIM | AI218: III TRIM | AJ218: IV TRIM | AK218: TOTAL | AL218: I TRIM | AM218: II TRIM | AN218: III TRIM | AO218: IV TRIM | AP218: PORCENTAJE I SEM | AQ218: PORCENTAJE II SEM | AR218: PORCENTAJE ANUAL 2020
C219: DATOS | D219: =D204 -> 43 | E219: =E204 -> 38 | F219: 45 | G219: 36 | H219: 36 | I219: 26 | J219: 45 | K219: 37 | L219: 40 | M219: 47 | N219: 28 | O219: 11 | P219: =SUM(D219:F219) -> 126 | Q219: =SUM(G219:I219) -> 98 | R219: =SUM(J219:L219) -> 122 | S219: =SUM(M219:O219) -> 86 | T219: =SUM(P219+Q219+R219+S219) -> 432 | U219: =U204 -> 571 | V219: =V204 -> 429 | W219: 428 | X219: 454 | Y219: 436 | Z219: 399 | AA219: 491 | AB219: 484 | AC219: 565 | AD219: 536 | AE219: 493 | AF219: 261 | AG219: =SUM(U219:W219) -> 1428 | AH219: =SUM(X219:Z219) -> 1289 | AI219: =SUM(AA219:AC219) -> 1540 | AJ219: =SUM(AD219:AF219) -> 1290 | AK219: =SUM(AG219:AJ219) -> 5547 | AL219: =IF(ISERROR(SUM(D219:F219)/AG219),0,SUM(D219:F219)/AG219) -> 0.08823529412 | AM219: =IF(ISERROR(Q219/AH219),0,Q219/AH219) -> 0.07602792863 | AN219: =IF(ISERROR(R219/AI219),0,R219/AI219) -> 0.07922077922 | AO219: =IF(ISERROR(S219/AJ219),0,S219/AJ219) -> 0.06666666667 | AP219: =IF(ISERROR(SUM(P219:Q219)/SUM(AG219:AH219)),0,SUM(P219:Q219)/SUM(AG219:AH219)) -> 0.08244387192 | AQ219: =IF(ISERROR(SUM(R219:S219)/SUM(AI219:AJ219)),0,SUM(R219:S219)/SUM(AI219:AJ219)) -> 0.07349823322 | AR219: =IF(ISERROR(SUM(P219:S219)/SUM(AG219:AJ219)),0,SUM(P219:S219)/SUM(AG219:AJ219)) -> 0.0778799351 | AS219: =AS204 -> 121509
C222: DEPARTAMENTO | D222: Enero | E222: Febrero | F222: Marzo | G222: Abril | H222: Mayo | I222: Junio | J222: Julio | K222: Agosto | L222: Septiembre | M222: Octubre | N222: Noviembre | O222: Diciembr | P222: I Trim | Q222: II Trim | R222: III Trim | S222: IV Trim | T222: TOTAL BPN | U222: Enero | V222: Febrero | W222: Marzo | X222: Abril | Y222: Mayo | Z222: Junio | AA222: Julio | AB222: Agosto | AC222: Septiembre | AD222: Octubre | AE222: Noviembre | AF222: Diciembre | AG222: I TRIM | AH222: II TRIM | AI222: III TRIM | AJ222: IV TRIM | AK222: TOTAL | AL222: I TRIM | AM222: II TRIM | AN222: III TRIM | AO222: IV TRIM | AP222: PORCENTAJE I SEM | AQ222: PORCENTAJE II SEM | AR222: PORCENTAJE ANUAL 2020
A223: D1 | C223: ANTIOQUIA | D223: =SUMIF($B$80:$B$105,$C223,D$80:D$105) -> 146 | E223: =SUMIF($B$80:$B$105,$C223,E$80:E$105) -> 132 | F223: 114 | G223: 122 | H223: 105 | I223: 120 | J223: 140 | K223: 132 | L223: 145 | M223: 145 | N223: 123 | O223: 98 | P223: =SUM(D223:F223) -> 392 | Q223: =SUM(G223:I223) -> 347 | R223: =SUM(J223:L223) -> 417 | S223: =SUM(M223:O223) -> 366 | T223: =SUM(P223:S223) -> 1522 | U223: =SUMIF($B$80:$B$105,$C223,U$80:U$105) -> 1446 | V223: =SUMIF($B$80:$B$105,$C223,V$80:V$105) -> 1285 | W223: 1388 | X223: 1312 | Y223: 1350 | Z223: 1390 | AA223: 1473 | AB223: 1519 | AC223: 1594 | AD223: 1565 | AE223: 1404 | AF223: 1139 | AG223: =SUM(U223:W223) -> 4119 | AH223: =SUM(X223:Z223) -> 4052 | AI223: =SUM(AA223:AC223) -> 4586 | AJ223: =SUM(AD223:AF223) -> 4108 | AK223: =SUM(AG223:AJ223) -> 16865 | AL223: =IF(ISERROR(SUM(D223:F223)/AG223),0,SUM(D223:F223)/AG223) -> 0.09516873027 | AM223: =IF(ISERROR(Q223/AH223),0,Q223/AH223) -> 0.08563672261 | AN223: =IF(ISERROR(R223/AI223),0,R223/AI223) -> 0.09092891409 | AO223: =IF(ISERROR(S223/AJ223),0,S223/AJ223) -> 0.08909444985 | AP223: =IF(ISERROR(SUM(P223:Q223)/SUM(AG223:AH223)),0,SUM(P223:Q223)/SUM(AG223:AH223)) -> 0.09044180639 | AQ223: =IF(ISERROR(SUM(R223:S223)/SUM(AI223:AJ223)),0,SUM(R223:S223)/SUM(AI223:AJ223)) -> 0.0900621118 | AR223: =IF(ISERROR(SUM(P223:S223)/SUM(AG223:AJ223)),0,SUM(P223:S223)/SUM(AG223:AJ223)) -> 0.09024607175 | AS223: =SUMIF($B$80:$B$99,$C223,AS$80:AS$99) -> 961011
A224: D2 | C224: CALDAS | D224: =SUMIF($B$80:$B$105,$C224,D$80:D$105) -> 2 | E224: 3 | F224: 1 | G224: 4 | H224: 1 | I224: 7 | J224: 1 | K224: 6 | L224: 1 | M224: 3 | N224: 3 | O224: 6 | P224: 6 | Q224: =SUM(G224:I224) -> 12 | R224: 8 | S224: 12 | T224: 38 | U224: =SUMIF($B$80:$B$105,$C224,U$80:U$105) -> 57 | V224: 42 | W224: 56 | X224: 32 | Y224: 46 | Z224: 61 | AA224: 54 | AB224: 59 | AC224: 65 | AD224: 48 | AE224: 47 | AF224: 60 | AG224: =SUM(U224:W224) -> 155 | AH224: 139 | AI224: 178 | AJ224: 155 | AK224: 627 | AL224: =IF(ISERROR(SUM(D224:F224)/AG224),0,SUM(D224:F224)/AG224) -> 0.03870967742 | AM224: =IF(ISERROR(Q224/AH224),0,Q224/AH224) -> 0.08633093525 | AN224: =IF(ISERROR(R224/AI224),0,R224/AI224) -> 0.04494382022 | AO224: =IF(ISERROR(S224/AJ224),0,S224/AJ224) -> 0.07741935484 | AP224: =IF(ISERROR(SUM(P224:Q224)/SUM(AG224:AH224)),0,SUM(P224:Q224)/SUM(AG224:AH224)) -> 0.0612244898 | AQ224: =IF(ISERROR(SUM(R224:S224)/SUM(AI224:AJ224)),0,SUM(R224:S224)/SUM(AI224:AJ224)) -> 0.06006006006 | AR224: =IF(ISERROR(SUM(P224:S224)/SUM(AG224:AJ224)),0,SUM(P224:S224)/SUM(AG224:AJ224)) -> 0.06060606061 | AS224: =SUMIF($B$80:$B$99,$C224,AS$80:AS$99) -> 20582
A225: =VLOOKUP(C225,Parametros!B$122:C$181,2,0) -> D3 | C225: QUINDIO | D225: =SUMIF($B$80:$B$105,$C225,D$80:D$105) -> 0 | E225: 2 | F225: 4 | G225: 3 | H225: 1 | I225: 2 | J225: 0 | K225: 2 | L225: 3 | M225: 3 | N225: 6 | O225: 1 | P225: 6 | Q225: 6 | R225: 5 | S225: 10 | T225: 27 | U225: =SUMIF($B$80:$B$105,$C225,U$80:U$105) -> 42 | V225: 40 | W225: 34 | X225: 40 | Y225: 30 | Z225: 42 | AA225: 49 | AB225: 39 | AC225: 46 | AD225: 38 | AE225: 42 | AF225: 8 | AG225: =SUM(U225:W225) -> 116 | AH225: 112 | AI225: 134 | AJ225: =SUM(AD225:AF225) -> 88 | AK225: 450 | AL225: 0.05172413793 | AM225: 0.05357142857 | AN225: 0.03731343284 | AO225: 0.1136363636 | AP225: 0.05263157895 | AQ225: 0.06756756757 | AR225: 0.06 | AS225: =SUMIF($B$80:$B$99,$C225,AS$80:AS$99) -> 5608
A226: =VLOOKUP(C226,Parametros!B$122:C$181,2,0) -> D4 | C226: RISARALDA | D226: =SUMIF($B$80:$B$105,$C226,D$80:D$105) -> 4 | E226: 2 | F226: 1 | G226: 1 | H226: 4 | I226: 9 | J226: 3 | K226: 3 | L226: 2 | M226: 3 | N226: 5 | O226: 1 | P226: 7 | Q226: 14 | R226: 8 | S226: 9 | T226: 38 | U226: =SUMIF($B$80:$B$105,$C226,U$80:U$105) -> 37 | V226: 20 | W226: 30 | X226: 36 | Y226: 33 | Z226: 38 | AA226: 38 | AB226: 42 | AC226: 41 | AD226: 32 | AE226: 33 | AF226: 40 | AG226: 87 | AH226: 107 | AI226: 121 | AJ226: 105 | AK226: 420 | AL226: 0.08045977011 | AM226: 0.1308411215 | AN226: 0.06611570248 | AO226: 0.08571428571 | AP226: 0.1082474227 | AQ226: 0.07522123894 | AR226: 0.09047619048 | AS226: =SUMIF($B$80:$B$99,$C226,AS$80:AS$99) -> 11036
... 13 more rows

Sheet FIchaBPNT
A2: FICHA TECNICA
A4: INDICADOR DE CALIDAD DEL CONTROL PRENATAL
A5: NOMBRE DEL INDICADOR: | B5: Proporcion de bajo peso al nacer en gestaciones de termino
A6: OBJETIVO DEL INDICADOR: | B6: Identificar la proporcion de nacidos vivos con bajo peso al nacer en gestaciones de termino
A7: FECHA ACTUALIZACION FICHA TECNICA | B7: 26-10-2020
A8: RESPONSABLE PUBLICACION | B8: Salud Publica
A9: FÓRMULA DEL INDICADOR:
A10: REFERENTE PAIS | B10: NO APLICA
A11: META EPS SURA (menor o igual al resultado registrado en el año inmediatamente anterior) | B11: 0.04
A12: FUENTE DE LOS DATOS | B12: NUMERADOR: Detalle Eventos General - Hospitalarios
B13: DENOMINADOR: Detalle Eventos General - Hospitalarios
A14: PARÁMETROS DE EJECUCIÓN: | B14: NUMERADOR: informe Detalle Eventos General - Hospitalarios con bajo peso al nacer a termino < 2500 gr y < 37 semanas
B15: DENOMINADOR: Detalle Eventos General - Hospitalarios/Nacidos vivos. Estado =1. si Estado=0<5%. Entonces se toman Estado=1 y 0
A16: PERIODICIDAD PUBLICACION DEL INDICADOR: | B16: TRIMESTRAL
A17: OBSERVACIONES | B17: Para el seguimiento de este indicador no se tendran en cuenta datos de las IPS Salud Sura y Salud en casa ya que no se cuenta con informacion para las usuarias de estas IPS en el pais
A18: FECHA DE CORTE DE EXTRACCIÓN DE LOS DATOS: | B18: El dia 18 del mes subsiguiente
A19: RUTA DONDE SE PUBLICARÁN LOS RESULTADOS: | B19: https://www.epssura.com/index.php?option=com_sura_coorcient&opcion=secciones
A20: SEGUIMIENTO DESDE SALUD PUBLICA | B20: Envio trimestral del top 5 de IPS de cada regional que presentan desviacion del indicador para que se definan acciones a implementar en conjunto con las IPS para impactar en el resultado. Desde Central se hara seguimiento al cambio en la tendencia del indicador de estas IPS en los trimestres posteriores a la implementacion de acciones.

Sheet BPNT
A1: 1 | B1: =+VLOOKUP($A$1,Parametros!$AC$45:$AD$48,2,0) -> RESULTADO_ANUAL_ANTIOQUIA_2019: 4.4% RESULTADO_ANUAL_EPS SURA_2019: 3.9%
C2: INDICADORES EPIDEMIOLÓGICOS DE IMPACTO" PREVALENCIA *100 BAJO PESO AL NACER A TÉRMINO < 2499 g ó >= 37 semanas "
C4: =B1 -> RESULTADO_ANUAL_ANTIOQUIA_2019: 4.4% RESULTADO_ANUAL_EPS SURA_2019: 3.9%
C5: REGIONAL ANTIOQUIA | D5: Bajo Peso al Nacer CORREGIDA | P5: BAJO PESO AL NACER | T5: TOTAL BPNT | U5: Meses x Nacimientos | AG5: TOTAL DE NACIMIENTOS VIVOS I SEMESTRE | AI5: TOTAL DE NACIMIENTOS VIVOS II SEMESTRE | AK5: TOTAL NACIMIENTOS 2020 | AL5: PROPORCIÓN
C6: IPS | D6: Enero | E6: Febrero | F6: Marzo | G6: Abril | H6: Mayo | I6: Junio | J6: Julio | K6: Agosto | L6: Septiembre | M6: Octubre | N6: Noviembre | O6: Diciembre | P6: I Trim | Q6: II Trim | R6: III Trim | S6: IV Trim | U6: Enero | V6: Febrero | W6: Marzo | X6: Abril | Y6: Mayo | Z6: Junio | AA6: Julio | AB6: Agosto | AC6: Septiembre | AD6: Octubre | AE6: Noviembre | AF6: Diciembre | AG6: I TRIM | AH6: II TRIM | AI6: III TRIM | AJ6: IV TRIM | AL6: I TRIM | AM6: II TRIM | AN6: III TRIM | AO6: IV TRIM | AP6: PORCENTAJE I SEM | AQ6: PORCENTAJE II SEM | AR6: PORCENTAJE ANUAL 2020
A7: 112 | B7: APARTADO | C7: COMFAMA APARTADO | D7: 0 | E7: 0 | F7: 1 | G7: 0 | H7: 0 | I7: 0 | J7: 0 | K7: 2 | L7: 0 | M7: 0 | N7: 0 | O7: 1 | P7: =SUM(D7:F7) -> 1 | Q7: =SUM(G7:I7) -> 0 | R7: =SUM(J7:L7) -> 2 | S7: =SUM(M7:O7) -> 1 | T7: =SUM(P7:S7) -> 4 | U7: 23 | V7: 19 | W7: 25 | X7: 21 | Y7: 19 | Z7: 30 | AA7: 33 | AB7: 25 | AC7: 33 | AD7: 35 | AE7: 28 | AF7: 29 | AG7: =SUM(U7:W7) -> 67 | AH7: =SUM(X7:Z7) -> 70 | AI7: =SUM(AA7:AC7) -> 91 | AJ7: =SUM(AD7:AF7) -> 92 | AK7: =SUM(AG7:AJ7) -> 320 | AL7: =IF(ISERROR(SUM(D7:F7)/AG7),0,SUM(D7:F7)/AG7) -> 0.01492537313 | AM7: =IF(ISERROR(Q7/AH7),0,Q7/AH7) -> 0 | AN7: =IF(ISERROR(R7/AI7),0,R7/AI7) -> 0.02197802198 | AO7: =IF(ISERROR(S7/AJ7),0,S7/AJ7) -> 0.01086956522 | AP7: =IF(ISERROR(SUM(P7:Q7)/SUM(AG7:AH7)),0,SUM(P7:Q7)/SUM(AG7:AH7)) -> 0.007299270073 | AQ7: =IF(ISERROR(SUM(R7:S7)/SUM(AI7:AJ7)),0,SUM(R7:S7)/SUM(AI7:AJ7)) -> 0.01639344262 | AR7: =IF(ISERROR(SUM(P7:S7)/SUM(AG7:AJ7)),0,SUM(P7:S7)/SUM(AG7:AJ7)) -> 0.0125 | AS7: 5216
A8: 2691 | B8: APARTADO | C8: COMFAMA CAREPA | D8: 1 | E8: 0 | F8: 0 | G8: 0 | H8: 0 | I8: 0 | J8: 0 | K8: 0 | L8: 2 | M8: 1 | N8: 1 | O8: 1 | P8: =SUM(D8:F8) -> 1 | Q8: =SUM(G8:I8) -> 0 | R8: =SUM(J8:L8) -> 2 | S8: =SUM(M8:O8) -> 3 | T8: =SUM(P8:S8) -> 6 | U8: 12 | V8: 6 | W8: 5 | X8: 8 | Y8: 11 | Z8: 10 | AA8: 11 | AB8: 7 | AC8: 15 | AD8: 17 | AE8: 14 | AF8: 16 | AG8: =SUM(U8:W8) -> 23 | AH8: =SUM(X8:Z8) -> 29 | AI8: =SUM(AA8:AC8) -> 33 | AJ8: =SUM(AD8:AF8) -> 47 | AK8: =SUM(AG8:AJ8) -> 132 | AL8: =IF(ISERROR(SUM(D8:F8)/AG8),0,SUM(D8:F8)/AG8) -> 0.04347826087 | AM8: =IF(ISERROR(Q8/AH8),0,Q8/AH8) -> 0 | AN8: =IF(ISERROR(R8/AI8),0,R8/AI8) -> 0.06060606061 | AO8: =IF(ISERROR(S8/AJ8),0,S8/AJ8) -> 0.06382978723 | AP8: =IF(ISERROR(SUM(P8:Q8)/SUM(AG8:AH8)),0,SUM(P8:Q8)/SUM(AG8:AH8)) -> 0.01923076923 | AQ8: =IF(ISERROR(SUM(R8:S8)/SUM(AI8:AJ8)),0,SUM(R8:S8)/SUM(AI8:AJ8)) -> 0.0625 | AR8: =IF(ISERROR(SUM(P8:S8)/SUM(AG8:AJ8)),0,SUM(P8:S8)/SUM(AG8:AJ8)) -> 0.04545454545 | AS8: 36504
A9: 2681 | B9: APARTADO | C9: COMFAMA CHIGORODO | D9: 0 | E9: 0 | F9: 0 | G9: 1 | H9: 0 | I9: 1 | J9: 0 | K9: 0 | L9: 1 | M9: 0 | N9: 0 | O9: 0 | P9: 0 | Q9: 2 | R9: 1 | S9: 0 | T9: 3 | U9: 9 | V9: 10 | W9: 13 | X9: 11 | Y9: 13 | Z9: 11 | AA9: 7 | AB9: 11 | AC9: 18 | AD9: 16 | AE9: 8 | AF9: 11 | AG9: 32 | AH9: 35 | AI9: 36 | AJ9: 35 | AK9: 138 | AL9: 0 | AM9: 0.05714285714 | AN9: 0.02777777778 | AO9: 0 | AP9: 0.02985074627 | AQ9: 0.01408450704 | AR9: 0.02173913043 | AS9: 69133
A10: 2690 | B10: APARTADO | C10: COMFAMA TURBO | D10: 0 | E10: 1 | F10: 2 | G10: 1 | H10: 0 | I10: 0 | J10: 1 | K10: 1 | L10: 1 | M10: 3 | N10: 1 | O10: 0 | P10: 3 | Q10: 1 | R10: 3 | S10: 4 | T10: 11 | U10: 27 | V10: 22 | W10: 17 | X10: 11 | Y10: 19 | Z10: 20 | AA10: 24 | AB10: 18 | AC10: 18 | AD10: 29 | AE10: 10 | AF10: 9 | AG10: 66 | AH10: 50 | AI10: 60 | AJ10: 48 | AK10: 224 | AL10: 0.04545454545 | AM10: 0.02 | AN10: 0.05 | AO10: 0.08333333333 | AP10: 0.03448275862 | AQ10: 0.06481481481 | AR10: 0.04910714286 | AS10: 34650
A11: 2205 | B11: BARBOSA | C11: PROSALCO BARBOSA | D11: 0 | E11: 0 | F11: 0 | G11: 0 | H11: 1 | I11: 0 | J11: 0 | K11: 0 | L11: 0 | M11: 1 | N11: 0 | O11: 0 | P11: 0 | Q11: 1 | R11: 0 | S11: 1 | T11: 2 | U11: 10 | V11: 4 | W11: 3 | X11: 9 | Y11: 6 | Z11: 8 | AA11: 6 | AB11: 10 | AC11: 7 | AD11: 6 | AE11: 2 | AF11: 7 | AG11: 17 | AH11: 23 | AI11: 23 | AJ11: 15 | AK11: 78 | AL11: 0 | AM11: 0.04347826087 | AN11: 0 | AO11: 0.06666666667 | AP11: 0.025 | AQ11: 0.02631578947 | AR11: 0.02564102564 | AS11: 49158
A12: 37 | B12: BELLO | C12: COMFAMA BELLO | D12: 6 | E12: 3 | F12: 4 | G12: 2 | H12: 6 | I12: 5 | J12: 3 | K12: 6 | L12: 7 | M12: 5 | N12: 5 | O12: 3 | P12: 13 | Q12: 13 | R12: 16 | S12: 13 | T12: 55 | U12: 94 | V12: 112 | W12: 113 | X12: 104 | Y12: 131 | Z12: 97 | AA12: 103 | AB12: 132 | AC12: 147 | AD12: 119 | AE12: 107 | AF12: 73 | AG12: 319 | AH12: 332 | AI12: 382 | AJ12: 299 | AK12: 1332 | AL12: 0.0407523511 | AM12: 0.03915662651 | AN12: 0.04188481675 | AO12: 0.04347826087 | AP12: 0.03993855607 | AQ12: 0.04258443465 | AR12: 0.04129129129 | AS12: 15824
